Workbook

Sheet Model
B2: Fremskrivningsmodel for plejeboligbehov
B4: Vælg kommune | C4: =INDEX('GAMMEL Registerdata indskrevne'!C4:C101,D4) -> Silkeborg | D4: 76
B6: Forudsætninger | I6: Scenarier
B7: Behovsgrader i kommunen | J7: Ændringer i behovsgraden
B8: Indtast venteliste enten for aldergrupperne eller i alt | D8: Personer | G8: Andel i plejehjemsbolig, DST | L8: I løbet af
C9: Indtast | D9: med behov | E9: Behovsgrad | G9: Kommunen | H9: Landsplan | J9: ="Behovsgrad i "&2024+M10 -> Behovsgrad i 2032 | L9: (helt antal år)
B10: Under 70 år | C10: 0 | D10: ='Beregning 2024'!I22 -> 58 | E10: ='Beregning 2024'!L22 -> 0.06752980626 | G10: ='Beregning 2024'!K22 -> 0.06752980626 | H10: ='Analyse behovsgrad'!G232 -> 0.07271208385 | J10: Under 70 år | K10: ='Analyse behovsgrad'!B13 -> 0.07271208385 | M10: 8
B11: 70-74 år | C11: 0 | D11: ='Beregning 2024'!I23 -> 62 | E11: ='Beregning 2024'!L23 -> 1.20271581 | G11: ='Beregning 2024'!K23 -> 1.20271581 | H11: ='Analyse behovsgrad'!G233 -> 1.092901216 | J11: 70-74 år | K11: ='Analyse behovsgrad'!B14 -> 1.092901216
B12: 75-79 år | C12: 0 | D12: ='Beregning 2024'!I24 -> 111 | E12: ='Beregning 2024'!L24 -> 2.300995025 | G12: ='Beregning 2024'!K24 -> 2.300995025 | H12: ='Analyse behovsgrad'!G234 -> 2.181341381 | J12: 75-79 år | K12: ='Analyse behovsgrad'!B15 -> 2.181341381
B13: 80-84 år | C13: 0 | D13: ='Beregning 2024'!I25 -> 127 | E13: ='Beregning 2024'!L25 -> 4.640116916 | G13: ='Beregning 2024'!K25 -> 4.640116916 | H13: ='Analyse behovsgrad'!G235 -> 4.409037761 | J13: 80-84 år | K13: ='Analyse behovsgrad'!B16 -> 4.409037761
B14: 85-89 år | C14: 0 | D14: ='Beregning 2024'!I26 -> 122 | E14: ='Beregning 2024'!L26 -> 8.327645051 | G14: ='Beregning 2024'!K26 -> 8.327645051 | H14: ='Analyse behovsgrad'!G236 -> 9.67392133 | J14: 85-89 år | K14: ='Analyse behovsgrad'!B17 -> 9.67392133
B15: 90-95 år | C15: 0 | D15: ='Beregning 2024'!I27 -> 116 | E15: ='Beregning 2024'!L27 -> 20.56737589 | G15: ='Beregning 2024'!K27 -> 20.56737589 | H15: ='Analyse behovsgrad'!G237 -> 19.54602543 | J15: 90-95 år | K15: ='Analyse behovsgrad'!B18 -> 19.54602543
B16: 95+ år | C16: 0 | D16: ='Beregning 2024'!I28 -> 41 | E16: ='Beregning 2024'!L28 -> 35.96491228 | G16: ='Beregning 2024'!K28 -> 35.96491228 | H16: ='Analyse behovsgrad'!G238 -> 24.60740883 | J16: 95+ år | K16: ='Analyse behovsgrad'!B19 -> 24.60740883
B18: I alt | C18: 0 | D18: =SUM(D10:D17) -> 637 | E18: ='Beregning 2023'!L30 -> 0.6559356137 | G18: ='Beregning 2024'!K30 -> 0.6322768916 | H18: ='Analyse behovsgrad'!G240 -> 0.6770616434
J20: Vælg evt. scenarie
B22: NB! Hvis der ikke er indtastet en venteliste antages det, at behovet i kommunen er de indskrevne i en plejebolig.
B24: Gns. periode med plejeboligbehov
C25: Indtast | J25: Antal plejeboliger i starten af året | K25: 2024
B26: Gns. antal måneder i alt | C26: 36 | K26: 704 | L26: Kilde: plejehjemsoversigt.dk
B30: Tomgang ved fraflytning i plejeboliger 2024 | E30: Ændring i tomgangskapacitet fra 2025 | J30: Første fulde år efter etablering eller nedlægning | K30: Nyetablerede plejeboliger | L30: Konverterede ældreboliger | M30: Nedlagte plejerboliger
G31: Indtast | J31: 2025
B32: Antal måneder | C32: 1 | E32: Ændres til (md.) | G32: 1 | J32: 2026
B33: - svarende til antal boliger | C33: =IF(NOT(ISBLANK(K26)),MIN(K26,D18)/C26*C32,IF(NOT(ISBLANK(K26)),MIN(K26,D18)/C26*C32,MIN(D18,D18)/C26*C32)) -> 17.69444444 | E33: I løbet af (helt antal år) | G33: 1 | J33: 2027
B34: Udnyttelsesgrad (pct.) | C34: =(1-(C33/C55))*100 -> 97.4865846 | J34: 2028
J35: 2029
J36: I alt | K36: =SUM(K31:K35) -> 0 | L36: =SUM(L31:L35) -> 0 | M36: 0
B52: Hovedtal fra 2024 og fremskrivning - se mere detaljerede resultater i arket "Resultat"
C53: ='Resultat '!C3 -> 2024 | D53: ='Resultat '!D3 -> 2025 | E53: ='Resultat '!E3 -> 2026 | F53: ='Resultat '!F3 -> 2027 | G53: ='Resultat '!G3 -> 2028 | H53: ='Resultat '!H3 -> 2029 | I53: ='Resultat '!I3 -> 2030 | J53: ='Resultat '!J3 -> 2031 | K53: ='Resultat '!K3 -> 2032 | L53: ='Resultat '!L3 -> 2033 | M53: ='Resultat '!M3 -> 2034 | N53: ='Resultat '!N3 -> 2035
B55: Antal boliger | C55: ='Resultat '!C13 -> 704 | D55: ='Resultat '!D13 -> 704 | E55: ='Resultat '!E13 -> 704 | F55: ='Resultat '!F13 -> 704 | G55: ='Resultat '!G13 -> 704 | H55: ='Resultat '!H13 -> 704 | I55: ='Resultat '!I13 -> 704 | J55: ='Resultat '!J13 -> 704 | K55: ='Resultat '!K13 -> 704 | L55: ='Resultat '!L13 -> 704 | M55: ='Resultat '!M13 -> 704 | N55: ='Resultat '!N13 -> 704
B56: Tomgang ved fraflytning - svarende til antal boliger | C56: ='Resultat '!C16 -> 17.69444444 | D56: ='Resultat '!D16 -> 18.71173511 | E56: ='Resultat '!E16 -> 19.30347925 | F56: ='Resultat '!F16 -> 19.55555556 | G56: ='Resultat '!G16 -> 19.55555556 | H56: ='Resultat '!H16 -> 19.55555556 | I56: ='Resultat '!I16 -> 19.55555556 | J56: ='Resultat '!J16 -> 19.55555556 | K56: ='Resultat '!K16 -> 19.55555556 | L56: ='Resultat '!L16 -> 19.55555556 | M56: ='Resultat '!M16 -> 19.55555556 | N56: ='Resultat '!N16 -> 19.55555556
B58: Personer med behov primo året | C58: ='Resultat '!C8 -> 637 | D58: ='Resultat '!D8 -> 673.6224641 | E58: ='Resultat '!E8 -> 694.925253 | F58: ='Resultat '!F8 -> 721.7707811 | G58: ='Resultat '!G8 -> 747.9927058 | H58: ='Resultat '!H8 -> 774.6902503 | I58: ='Resultat '!I8 -> 806.9435841 | J58: ='Resultat '!J8 -> 832.7976214 | K58: ='Resultat '!K8 -> 865.1901654 | L58: ='Resultat '!L8 -> 902.1344695 | M58: ='Resultat '!M8 -> 933.3120058 | N58: ='Resultat '!N8 -> 964.916724
B60: Beboere primo året | C60: ='Resultat '!C7 -> 637 | D60: ='Resultat '!D7 -> 673.6224641 | E60: ='Resultat '!E7 -> 685.2882649 | F60: ='Resultat '!F7 -> 684.6965208 | G60: ='Resultat '!G7 -> 684.4444444 | H60: ='Resultat '!H7 -> 684.4444444 | I60: ='Resultat '!I7 -> 684.4444444 | J60: ='Resultat '!J7 -> 684.4444444 | K60: ='Resultat '!K7 -> 684.4444444 | L60: ='Resultat '!L7 -> 684.4444444 | M60: ='Resultat '!M7 -> 684.4444444 | N60: ='Resultat '!N7 -> 684.4444444
B61: Ledige boliger primo året | C61: ='Resultat '!C29 -> 49.30555556 | D61: ='Resultat '!D29 -> 0 | E61: ='Resultat '!E29 -> 0 | F61: ='Resultat '!F29 -> 0 | G61: ='Resultat '!G29 -> 0 | H61: ='Resultat '!H29 -> 0 | I61: ='Resultat '!I29 -> 0 | J61: ='Resultat '!J29 -> 0 | K61: ='Resultat '!K29 -> 0 | L61: ='Resultat '!L29 -> 0 | M61: ='Resultat '!M29 -> 0 | N61: ='Resultat '!N29 -> 0
B63: Venteliste primo året | C63: ='Resultat '!C5 -> 0 | D63: ='Resultat '!D32 -> 0 | E63: ='Resultat '!E32 -> 10.22873224 | F63: ='Resultat '!F32 -> 37.3263367 | G63: ='Resultat '!G32 -> 63.54826133 | H63: ='Resultat '!H32 -> 90.2458059 | I63: ='Resultat '!I32 -> 122.4991397 | J63: ='Resultat '!J32 -> 148.3531769 | K63: ='Resultat '!K32 -> 180.7457209 | L63: ='Resultat '!L32 -> 217.6900251 | M63: ='Resultat '!M32 -> 248.8675614 | N63: ='Resultat '!N32 -> 280.4722796
B64: Gns. Ventetid alle (md.) | C64: ='Resultat '!C35 -> 0 | D64: ='Resultat '!D35 -> 0 | E64: ='Resultat '!E35 -> 0.5298906022 | F64: ='Resultat '!F35 -> 1.861738042 | G64: ='Resultat '!G35 -> 3.058502296 | H64: ='Resultat '!H35 -> 4.193739383 | I64: ='Resultat '!I35 -> 5.465027686 | J64: ='Resultat '!J35 -> 6.412979855 | K64: ='Resultat '!K35 -> 7.520711878 | L64: ='Resultat '!L35 -> 8.686998633 | M64: ='Resultat '!M35 -> 9.599396722 | N64: ='Resultat '!N35 -> 10.46411759
B66: Antal boliger for at reducere ventelisten til 2 måneder | C66: ='Resultat '!C44 -> 0 | D66: ='Resultat '!D44 -> 0 | E66: ='Resultat '!E44 -> 0 | F66: ='Resultat '!F44 -> 0 | G66: ='Resultat '!G44 -> 21.27458935 | H66: ='Resultat '!H44 -> 44.09145328 | I66: ='Resultat '!I44 -> 69.64277867 | J66: ='Resultat '!J44 -> 88.69544696 | K66: ='Resultat '!K44 -> 110.9594931 | L66: ='Resultat '!L44 -> 134.400417 | M66: ='Resultat '!M44 -> 152.7384921 | N66: ='Resultat '!N44 -> 170.118314
B67: Antal boliger for at reducere den generelle venteliste til 2 måneder | C67: ='Resultat '!C55 -> 0 | D67: ='Resultat '!D55 -> 0 | E67: ='Resultat '!E55 -> 0 | F67: ='Resultat '!F55 -> 0 | G67: ='Resultat '!G55 -> 0 | H67: ='Resultat '!H55 -> 0 | I67: ='Resultat '!I55 -> 0 | J67: ='Resultat '!J55 -> 0 | K67: ='Resultat '!K55 -> 0 | L67: ='Resultat '!L55 -> 0 | M67: ='Resultat '!M55 -> 0 | N67: ='Resultat '!N55 -> 0
B68: NB! Den indtastede venteliste bruges i beregningen af behovsgrad i 2024, som vi fremskriver ud fra. Den indgår ultimo 2023/primo 2024.
B69: Gns. Ventetid er estimeret ud fra ventelisten ultimo året før, afgang i behov og afgang i boliger.

Sheet Resultat
A2: Resultat: Fremskrivning af plejeboligbehov
A3: Grønne felter har andre referencer eller formler | B3: ='Beregning 2023'!B2 -> 2023 | C3: =B3+1 -> 2024 | D3: 2025 | E3: 2026 | F3: 2027 | G3: 2028 | H3: 2029 | I3: 2030 | J3: 2031 | K3: 2032 | L3: 2033 | M3: 2034 | N3: 2035 | O3: 2036 | P3: 2037 | Q3: 2038 | R3: 2039 | S3: 2040 | T3: 2041 | U3: 2042 | V3: 2043 | W3: 2044 | Y3: =X3+1 -> 1
C4: (Udgangspunkt)
A5: Venteliste primo året | B5: 0 | C5: =B32 -> 0 | D5: =C32 -> 0 | E5: =D32 -> 0 | F5: 10.22873224 | G5: 37.3263367 | H5: 63.54826133 | I5: 90.2458059 | J5: 122.4991397 | K5: 148.3531769 | L5: 180.7457209 | M5: 217.6900251 | N5: 248.8675614 | O5: 280.4722796 | P5: 312.2427661 | Q5: 345.8454961 | R5: 381.1318243 | S5: 406.2034151 | T5: 431.6177446 | U5: 455.3243099 | V5: 483.2746732 | W5: 509.8027929 | Y5: 0
A7: Beboere primo året | B7: =MIN(B8,B13) -> 652 | C7: ='Beregning 2024'!C30 -> 637 | D7: =C25 -> 673.6224641 | E7: =D25 -> 685.2882649 | F7: 684.6965208 | G7: 684.4444444 | H7: 684.4444444 | I7: 684.4444444 | J7: 684.4444444 | K7: 684.4444444 | L7: 684.4444444 | M7: 684.4444444 | N7: 684.4444444 | O7: 684.4444444 | P7: 684.4444444 | Q7: 684.4444444 | R7: 684.4444444 | S7: 684.4444444 | T7: 684.4444444 | U7: 684.4444444 | V7: 684.4444444 | W7: 684.4444444 | Y7: =MIN(Y8,Y13) -> 0
A8: Antal borgere i kommunen med behov | B8: ='Beregning 2023'!G30 -> 652 | C8: ='Beregning 2024'!C69 -> 637 | D8: ='Beregning 2024'!E69 -> 673.6224641 | E8: ='Beregning 2024'!F69 -> 694.925253 | F8: ='Beregning 2024'!G69 -> 721.7707811 | G8: ='Beregning 2024'!H69 -> 747.9927058 | H8: ='Beregning 2024'!I69 -> 774.6902503 | I8: ='Beregning 2024'!J69 -> 806.9435841 | J8: ='Beregning 2024'!K69 -> 832.7976214 | K8: ='Beregning 2024'!L69 -> 865.1901654 | L8: ='Beregning 2024'!M69 -> 902.1344695 | M8: ='Beregning 2024'!N69 -> 933.3120058 | N8: ='Beregning 2024'!O69 -> 964.916724 | O8: ='Beregning 2024'!P69 -> 996.6872106 | P8: ='Beregning 2024'!Q69 -> 1030.289941 | Q8: ='Beregning 2024'!R69 -> 1065.576269 | R8: ='Beregning 2024'!S69 -> 1090.64786 | S8: ='Beregning 2024'!T69 -> 1116.062189 | T8: ='Beregning 2024'!U69 -> 1139.768754 | U8: ='Beregning 2024'!V69 -> 1167.719118 | V8: ='Beregning 2024'!W69 -> 1194.247237 | W8: ='Beregning 2024'!X69 -> 1212.02387 | Y8: ='Beregning 2023'!AA69 -> 1050.574873
A10: Nyetablerede plejeboliger | B10: ='Beregning 2023'!D110 -> 0 | C10: ='Beregning 2024'!C111 -> 0 | D10: ='Beregning 2024'!E111 -> 0 | E10: ='Beregning 2024'!F111 -> 0 | F10: ='Beregning 2024'!G111 -> 0 | G10: ='Beregning 2024'!H111 -> 0 | H10: ='Beregning 2024'!I111 -> 0 | I10: ='Beregning 2024'!J111 -> 0 | J10: ='Beregning 2024'!K111 -> 0 | K10: ='Beregning 2024'!L111 -> 0 | L10: ='Beregning 2024'!M111 -> 0 | M10: ='Beregning 2024'!N111 -> 0 | N10: ='Beregning 2024'!O111 -> 0 | O10: ='Beregning 2024'!P111 -> 0 | P10: ='Beregning 2024'!Q111 -> 0 | Q10: ='Beregning 2024'!R111 -> 0 | R10: ='Beregning 2024'!S111 -> 0 | S10: ='Beregning 2024'!T111 -> 0 | T10: ='Beregning 2024'!U111 -> 0 | U10: ='Beregning 2024'!V111 -> 0 | V10: ='Beregning 2024'!W111 -> 0 | W10: ='Beregning 2024'!X111 -> 0 | Y10: ='Beregning 2023'!AA110 -> 0
A11: Konverterede ældreboliger | B11: ='Beregning 2023'!D111 -> 0 | C11: ='Beregning 2024'!C112 -> 0 | D11: ='Beregning 2024'!E112 -> 0 | E11: ='Beregning 2024'!F112 -> 0 | F11: ='Beregning 2024'!G112 -> 0 | G11: ='Beregning 2024'!H112 -> 0 | H11: ='Beregning 2024'!I112 -> 0 | I11: ='Beregning 2024'!J112 -> 0 | J11: ='Beregning 2024'!K112 -> 0 | K11: ='Beregning 2024'!L112 -> 0 | L11: ='Beregning 2024'!M112 -> 0 | M11: ='Beregning 2024'!N112 -> 0 | N11: ='Beregning 2024'!O112 -> 0 | O11: ='Beregning 2024'!P112 -> 0 | P11: ='Beregning 2024'!Q112 -> 0 | Q11: ='Beregning 2024'!R112 -> 0 | R11: ='Beregning 2024'!S112 -> 0 | S11: ='Beregning 2024'!T112 -> 0 | T11: ='Beregning 2024'!U112 -> 0 | U11: ='Beregning 2024'!V112 -> 0 | V11: ='Beregning 2024'!W112 -> 0 | W11: ='Beregning 2024'!X112 -> 0 | Y11: ='Beregning 2023'!AA111 -> 0
A12: Nedlagte plejeboliger | B12: ='Beregning 2023'!D112 -> 0 | C12: ='Beregning 2024'!C113 -> 0 | D12: ='Beregning 2024'!E113 -> 0 | E12: ='Beregning 2024'!F113 -> 0 | F12: ='Beregning 2024'!G113 -> 0 | G12: ='Beregning 2024'!H113 -> 0 | H12: ='Beregning 2024'!I113 -> 0 | I12: ='Beregning 2024'!J113 -> 0 | J12: ='Beregning 2024'!K113 -> 0 | K12: ='Beregning 2024'!L113 -> 0 | L12: ='Beregning 2024'!M113 -> 0 | M12: ='Beregning 2024'!N113 -> 0 | N12: ='Beregning 2024'!O113 -> 0 | O12: ='Beregning 2024'!P113 -> 0 | P12: ='Beregning 2024'!Q113 -> 0 | Q12: ='Beregning 2024'!R113 -> 0 | R12: ='Beregning 2024'!S113 -> 0 | S12: ='Beregning 2024'!T113 -> 0 | T12: ='Beregning 2024'!U113 -> 0 | U12: ='Beregning 2024'!V113 -> 0 | V12: ='Beregning 2024'!W113 -> 0 | W12: ='Beregning 2024'!X113 -> 0 | Y12: ='Beregning 2023'!AA112 -> 0
A13: Antal boliger i alt | B13: =IF(Model!K26>0,Model!K26,Model!#REF!)+B10+B11-B12 -> 704 | C13: =IF(Model!M26>0,Model!M26,IF(Model!K26>0,Model!K26)+C10+C11-C12) -> 704 | D13: =IF(Model!M26>0,Model!M26,C13)+D10+D11-D12 -> 704 | E13: =D13+E10+E11-E12 -> 704 | F13: 704 | G13: 704 | H13: 704 | I13: 704 | J13: 704 | K13: 704 | L13: 704 | M13: 704 | N13: 704 | O13: 704 | P13: 704 | Q13: 704 | R13: 704 | S13: 704 | T13: 704 | U13: 704 | V13: 704 | W13: 704 | Y13: 0
A15: Tomgang ved fraflytning (md.) | B15: ='Beregning 2023'!D114 -> 0 | C15: ='Beregning 2024'!C115 -> 1 | D15: ='Beregning 2024'!E115 -> 1 | E15: ='Beregning 2024'!F115 -> 1 | F15: ='Beregning 2024'!G115 -> 1 | G15: ='Beregning 2024'!H115 -> 1 | H15: ='Beregning 2024'!I115 -> 1 | I15: ='Beregning 2024'!J115 -> 1 | J15: ='Beregning 2024'!K115 -> 1 | K15: ='Beregning 2024'!L115 -> 1 | L15: ='Beregning 2024'!M115 -> 1 | M15: ='Beregning 2024'!N115 -> 1 | N15: ='Beregning 2024'!O115 -> 1 | O15: ='Beregning 2024'!P115 -> 1 | P15: ='Beregning 2024'!Q115 -> 1 | Q15: ='Beregning 2024'!R115 -> 1 | R15: ='Beregning 2024'!S115 -> 1 | S15: ='Beregning 2024'!T115 -> 1 | T15: ='Beregning 2024'!U115 -> 1 | U15: ='Beregning 2024'!V115 -> 1 | V15: ='Beregning 2024'!W115 -> 1 | W15: ='Beregning 2024'!X115 -> 1 | Y15: ='Beregning 2023'!AA114 -> 1
A16: - svarende til antal boliger (Pr. måned) | B16: ='Beregning 2023'!D115 -> 0 | C16: ='Beregning 2024'!C116 -> 17.69444444 | D16: ='Beregning 2024'!E116 -> 18.71173511 | E16: ='Beregning 2024'!F116 -> 19.30347925 | F16: ='Beregning 2024'!G116 -> 19.55555556 | G16: ='Beregning 2024'!H116 -> 19.55555556 | H16: ='Beregning 2024'!I116 -> 19.55555556 | I16: ='Beregning 2024'!J116 -> 19.55555556 | J16: ='Beregning 2024'!K116 -> 19.55555556 | K16: ='Beregning 2024'!L116 -> 19.55555556 | L16: ='Beregning 2024'!M116 -> 19.55555556 | M16: ='Beregning 2024'!N116 -> 19.55555556 | N16: ='Beregning 2024'!O116 -> 19.55555556 | O16: ='Beregning 2024'!P116 -> 19.55555556 | P16: ='Beregning 2024'!Q116 -> 19.55555556 | Q16: ='Beregning 2024'!R116 -> 19.55555556 | R16: ='Beregning 2024'!S116 -> 19.55555556 | S16: ='Beregning 2024'!T116 -> 19.55555556 | T16: ='Beregning 2024'!U116 -> 19.55555556 | U16: ='Beregning 2024'!V116 -> 19.55555556 | V16: ='Beregning 2024'!W116 -> 19.55555556 | W16: ='Beregning 2024'!X116 -> 19.55555556 | Y16: ='Beregning 2024'!Z116 -> 19.55555556
A18: Behovsgrad pr. over 70-årig (pct.) | B18: ='Beregning 2023'!D54 -> 2.472898422 | C18: ='Beregning 2024'!C54 -> 3.896628306 | D18: ='Beregning 2024'!E54 -> 4.021455256 | E18: ='Beregning 2024'!F54 -> 4.066312951 | F18: ='Beregning 2024'!G54 -> 4.116783248 | G18: ='Beregning 2024'!H54 -> 4.173797819 | H18: ='Beregning 2024'!I54 -> 4.244702305 | I18: ='Beregning 2024'!J54 -> 4.342866704 | J18: ='Beregning 2024'!K54 -> 4.408552303 | K18: ='Beregning 2024'!L54 -> 4.510585065 | L18: ='Beregning 2024'!M54 -> 4.606177124 | M18: ='Beregning 2024'!N54 -> 4.658906599 | N18: ='Beregning 2024'!O54 -> 4.711957599 | O18: ='Beregning 2024'!P54 -> 4.756950123 | P18: ='Beregning 2024'!Q54 -> 4.789139683 | Q18: ='Beregning 2024'!R54 -> 4.849895742 | R18: ='Beregning 2024'!S54 -> 4.888244212 | S18: ='Beregning 2024'!T54 -> 4.938488793 | T18: ='Beregning 2024'!U54 -> 4.978958184 | U18: ='Beregning 2024'!V54 -> 5.012601137 | V18: ='Beregning 2024'!W54 -> 5.036163863 | W18: ='Beregning 2024'!X54 -> 5.042584608 | Y18: ='Beregning 2023'!AA54 -> 2.933119252
A19: Ændring ift. udgangsniveau (pct.point) | B19: ='Beregning 2023'!D57 -> 0 | C19: ='Beregning 2024'!C57 -> 0 | D19: ='Beregning 2024'!E57 -> -0.01698218776 | E19: ='Beregning 2024'!F57 -> -0.0330262136 | F19: ='Beregning 2024'!G57 -> -0.05104230121 | G19: ='Beregning 2024'!H57 -> -0.06403711985 | H19: ='Beregning 2024'!I57 -> -0.07649987064 | I19: ='Beregning 2024'!J57 -> -0.09219777667 | J19: ='Beregning 2024'!K57 -> -0.09545195866 | K19: ='Beregning 2024'!L57 -> -0.1005251107 | L19: ='Beregning 2024'!M57 -> -0.1007544458 | M19: ='Beregning 2024'!N57 -> -0.1081065136 | N19: ='Beregning 2024'!O57 -> -0.1192245051 | O19: ='Beregning 2024'!P57 -> -0.1348960727 | P19: ='Beregning 2024'!Q57 -> -0.14700447 | Q19: ='Beregning 2024'!R57 -> -0.1684012521 | R19: ='Beregning 2024'!S57 -> -0.1823803518 | S19: ='Beregning 2024'!T57 -> -0.1996721622 | T19: ='Beregning 2024'!U57 -> -0.2181714383 | U19: ='Beregning 2024'!V57 -> -0.2320760081 | V19: ='Beregning 2024'!W57 -> -0.2452135837 | W19: ='Beregning 2024'!X57 -> -0.2477136346 | Y19: ='Beregning 2023'!AA57 -> -0.8246676542
A21: Nyvisiterede i løbet af året (Behov) | B21: ='Beregning 2023'!D94 -> 218.7692915 | C21: ='Beregning 2024'!C94 -> 248.9557975 | D21: ='Beregning 2024'!E94 -> 245.8436102 | E21: ='Beregning 2024'!F94 -> 258.4872791 | F21: ='Beregning 2024'!G94 -> 266.812185 | G21: ='Beregning 2024'!H94 -> 276.0284465 | H21: ='Beregning 2024'!I94 -> 290.4834172 | I21: ='Beregning 2024'!J94 -> 294.835232 | J21: ='Beregning 2024'!K94 -> 309.9917511 | K21: ='Beregning 2024'!L94 -> 325.341026 | L21: ='Beregning 2024'!M94 -> 331.8890261 | M21: ='Beregning 2024'!N94 -> 342.7087201 | N21: ='Beregning 2024'!O94 -> 353.4093946 | O21: ='Beregning 2024'!P94 -> 365.8318002 | P21: ='Beregning 2024'!Q94 -> 378.7163083 | Q21: ='Beregning 2024'!R94 -> 380.2636804 | R21: ='Beregning 2024'!S94 -> 388.9636159 | S21: ='Beregning 2024'!T94 -> 395.7272951 | T21: ='Beregning 2024'!U94 -> 407.8732814 | U21: ='Beregning 2024'!V94 -> 415.7678256 | V21: ='Beregning 2024'!W94 -> 415.8590452 | W21: ='Beregning 2024'!X94 -> 425.7675074 | Y21: ='Beregning 2023'!AA94 -> 0
A22: Afgang i boliger i løbet af året | B22: ='Beregning 2023'!D81 -> 217.3333333 | C22: ='Beregning 2024'!C81 -> 234.6666667 | D22: ='Beregning 2024'!E81 -> 234.6666667 | E22: ='Beregning 2024'!F81 -> 234.6666667 | F22: ='Beregning 2024'!G81 -> 234.6666667 | G22: ='Beregning 2024'!H81 -> 234.6666667 | H22: ='Beregning 2024'!I81 -> 234.6666667 | I22: ='Beregning 2024'!J81 -> 234.6666667 | J22: ='Beregning 2024'!K81 -> 234.6666667 | K22: ='Beregning 2024'!L81 -> 234.6666667 | L22: ='Beregning 2024'!M81 -> 234.6666667 | M22: ='Beregning 2024'!N81 -> 234.6666667 | N22: ='Beregning 2024'!O81 -> 234.6666667 | O22: ='Beregning 2024'!P81 -> 234.6666667 | P22: ='Beregning 2024'!Q81 -> 234.6666667 | Q22: ='Beregning 2024'!R81 -> 234.6666667 | R22: ='Beregning 2024'!S81 -> 234.6666667 | S22: ='Beregning 2024'!T81 -> 234.6666667 | T22: ='Beregning 2024'!U81 -> 234.6666667 | U22: ='Beregning 2024'!V81 -> 234.6666667 | V22: ='Beregning 2024'!W81 -> 234.6666667 | W22: ='Beregning 2024'!X81 -> 234.6666667
A23: Afgang i behov i løbet af året | B23: ='Beregning 2023'!D82 -> 217.3333333 | C23: ='Beregning 2024'!C82 -> 212.3333333 | D23: ='Beregning 2024'!E82 -> 224.5408214 | E23: ='Beregning 2024'!F82 -> 231.641751 | F23: ='Beregning 2024'!G82 -> 240.5902604 | G23: ='Beregning 2024'!H82 -> 249.3309019 | H23: ='Beregning 2024'!I82 -> 258.2300834 | I23: ='Beregning 2024'!J82 -> 268.9811947 | J23: ='Beregning 2024'!K82 -> 277.5992071 | K23: ='Beregning 2024'!L82 -> 288.3967218 | L23: ='Beregning 2024'!M82 -> 300.7114898 | M23: ='Beregning 2024'!N82 -> 311.1040019 | N23: ='Beregning 2024'!O82 -> 321.638908 | O23: ='Beregning 2024'!P82 -> 332.2290702 | P23: ='Beregning 2024'!Q82 -> 343.4299802 | Q23: ='Beregning 2024'!R82 -> 355.1920896 | R23: ='Beregning 2024'!S82 -> 363.5492865 | S23: ='Beregning 2024'!T82 -> 372.0207297 | T23: ='Beregning 2024'!U82 -> 379.9229181 | U23: ='Beregning 2024'!V82 -> 389.2397059 | V23: ='Beregning 2024'!W82 -> 398.0824125 | W23: ='Beregning 2024'!X82 -> 404.0079567 | Y23: ='Beregning 2023'!AA81 -> 230
A25: Beboere efter nettotilgang | B25: =MIN(B13-B16,B7-B23+B21) -> 653.4359581 | C25: =MIN(C13-C16,C7-C23+C21) -> 673.6224641 | D25: =MIN(D13-D16,D7-D23+D21) -> 685.2882649 | E25: =MIN(E13-E16,E7-E23+E21) -> 684.6965208 | F25: =MIN(F13-F16,F7-F23+F21) -> 684.4444444 | G25: =MIN(G13-G16,G7-G23+G21) -> 684.4444444 | H25: 684.4444444 | I25: 684.4444444 | J25: 684.4444444 | K25: 684.4444444 | L25: 684.4444444 | M25: 684.4444444 | N25: 684.4444444 | O25: 684.4444444 | P25: 684.4444444 | Q25: 684.4444444 | R25: 684.4444444 | S25: 684.4444444 | T25: 684.4444444 | U25: 684.4444444 | V25: 684.4444444 | W25: 684.4444444 | Y25: -230
A27: Beboere efter udnyttelse af evt. ledige boliger | B27: =B25+MIN(B5,B13-B16-B25) -> 653.4359581 | C27: =C7 -> 637 | D27: =D25+MIN(D5,D13-D16-D25) -> 685.2882649 | E27: =E25+MIN(E5,E13-E16-E25) -> 684.6965208 | F27: =F25+MIN(F5,F13-F16-F25) -> 684.4444444 | G27: =G25+MIN(G5,G13-G16-G25) -> 684.4444444 | H27: 684.4444444 | I27: 684.4444444 | J27: 684.4444444 | K27: 684.4444444 | L27: 684.4444444 | M27: 684.4444444 | N27: 684.4444444 | O27: 684.4444444 | P27: 684.4444444 | Q27: 684.4444444 | R27: 684.4444444 | S27: 684.4444444 | T27: 684.4444444 | U27: 684.4444444 | V27: 684.4444444 | W27: 684.4444444 | Y27: -230
A29: Ledige boliger primo året | B29: =B13-B16-B27 -> 50.56404188 | C29: =C13-C16-C27 -> 49.30555556 | D29: =D13-D16-D27 -> 0 | E29: 0 | F29: 0 | G29: 0 | H29: 0 | I29: 0 | J29: 0 | K29: 0 | L29: 0 | M29: 0 | N29: 0 | O29: 0 | P29: 0 | Q29: 0 | R29: 0 | S29: 0 | T29: 0 | U29: 0 | V29: 0 | W29: 0 | Y29: =Y13-Y16-Y27 -> 210.4444444
A32: Venteliste primo året, personer | B32: =Model!C18 -> 0 | C32: =MAX(C8+C16-C13,0) -> 0 | D32: =MAX(D8+D16-D13,0) -> 0 | E32: =MAX(E8+E16-E13,0) -> 10.22873224 | F32: 37.3263367 | G32: 63.54826133 | H32: 90.2458059 | I32: 122.4991397 | J32: 148.3531769 | K32: 180.7457209 | L32: 217.6900251 | M32: 248.8675614 | N32: 280.4722796 | O32: 312.2427661 | P32: 345.8454961 | Q32: 381.1318243 | R32: 406.2034151 | S32: 431.6177446 | T32: 455.3243099 | U32: 483.2746732 | V32: 509.8027929 | W32: 527.5794256 | Y32: =MAX(Y8+Y16-Y13,0) -> 1070.130428
A33: ="-heraf på generel venteliste" -> -heraf på generel venteliste | B33: =B32*Model!$D$20/100 -> 0 | C33: =C32*Model!$D$20/100 -> 0 | D33: =D32*Model!$D$20/100 -> 0 | E33: =E32*Model!$D$20/100 -> 0 | F33: =F32*Model!$D$20/100 -> 0 | G33: =G32*Model!$D$20/100 -> 0 | H33: =H32*Model!$D$20/100 -> 0 | I33: =I32*Model!$D$20/100 -> 0 | J33: =J32*Model!$D$20/100 -> 0 | K33: =K32*Model!$D$20/100 -> 0 | L33: =L32*Model!$D$20/100 -> 0 | M33: =M32*Model!$D$20/100 -> 0 | N33: =N32*Model!$D$20/100 -> 0 | O33: =O32*Model!$D$20/100 -> 0 | P33: =P32*Model!$D$20/100 -> 0 | Q33: =Q32*Model!$D$20/100 -> 0 | R33: =R32*Model!$D$20/100 -> 0 | S33: =S32*Model!$D$20/100 -> 0 | T33: =T32*Model!$D$20/100 -> 0 | U33: =U32*Model!$D$20/100 -> 0 | V33: =V32*Model!$D$20/100 -> 0 | W33: =W32*Model!$D$20/100 -> 0 | Y33: =Y32*Model!#REF!/100 -> 
A35: Gns. ventetid primo året (mdr.) | B35: =MAX(B32/(B23/12),0) -> 0 | C35: =MAX(C32/(C23/12),0) -> 0 | D35: =MAX(D32/(D23/12),0) -> 0 | E35: 0.5298906022 | F35: 1.861738042 | G35: 3.058502296 | H35: 4.193739383 | I35: 5.465027686 | J35: 6.412979855 | K35: 7.520711878 | L35: 8.686998633 | M35: 9.599396722 | N35: 10.46411759 | O35: 11.27810156 | P35: 12.08440204 | Q35: 12.87636191 | R35: 13.40792339 | S35: 13.92237723 | T35: 14.38157968 | U35: 14.8990352 | V35: 15.36775633 | W35: 15.67036738 | Y35: =MAX(ROUND(Y32/(Y23/12),1),0) -> 55.8
A36: Venteliste primo året (boliger) | B36: =B35*(B$22/12) -> 0 | C36: =C35*(C$22/12) -> 0 | D36: =D35*(D$22/12) -> 0 | E36: =E35*(E$22/12) -> 10.36230511 | F36: 36.40732172 | G36: 59.81071156 | H36: 82.01090349 | I36: 106.8716525 | J36: 125.4093838 | K36: 147.0716989 | L36: 169.8790844 | M36: 187.7215359 | N36: 204.6316329 | O36: 220.5495415 | P36: 236.3171955 | Q36: 251.8044106 | R36: 262.1993907 | S36: 272.2598213 | T36: 281.2397804 | U36: 291.3589105 | V36: 300.5250127 | W36: 306.44274
A38: Grænse for ventetid (Måneder) | B38: 2 | C38: 2 | D38: 2 | E38: 2 | F38: 2 | G38: 2 | H38: 2 | I38: 2 | J38: 2 | K38: 2 | L38: 2 | M38: 2 | N38: 2 | O38: 2 | P38: 2 | Q38: 2 | R38: 2 | S38: 2 | T38: 2 | U38: 2 | V38: 2 | W38: 2
A39: Grænse for ventetid (Boliger) | B39: =B38*(B$22/12) -> 36.22222222 | C39: =C38*(C$22/12) -> 39.11111111 | D39: =D38*(D$22/12) -> 39.11111111 | E39: 39.11111111 | F39: 39.11111111 | G39: 39.11111111 | H39: 39.11111111 | I39: 39.11111111 | J39: 39.11111111 | K39: 39.11111111 | L39: 39.11111111 | M39: 39.11111111 | N39: 39.11111111 | O39: 39.11111111 | P39: 39.11111111 | Q39: 39.11111111 | R39: 39.11111111 | S39: 39.11111111 | T39: 39.11111111 | U39: 39.11111111 | V39: 39.11111111 | W39: 39.11111111 | Y39: 0
A41: Overskredet grænse (I antal boliger) | B41: =MAX(B36-B39,0) -> 0 | C41: =MAX(C36-C39,0) -> 0 | D41: =MAX(D36-D39,0) -> 0 | E41: =MAX(E36-E39,0) -> 0 | F41: 0 | G41: 20.69960045 | H41: 42.89979238 | I41: 67.76054141 | J41: 86.29827272 | K41: 107.9605878 | L41: 130.7679733 | M41: 148.6104248 | N41: 165.5205217 | O41: 181.4384304 | P41: 197.2060844 | Q41: 212.6932995 | R41: 223.0882796 | S41: 233.1487102 | T41: 242.1286693 | U41: 252.2477994 | V41: 261.4139016 | W41: 267.3316288 | Y41: =IF(Y36>Y39,Y36-Y39,0) -> 0
A42: Tomgang | B42: =B15*(B41/Model!$C$26) -> 0 | C42: =C15*(C41/Model!$C$26) -> 0 | D42: =D15*(D41/Model!$C$26) -> 0 | E42: =E15*(E41/Model!$C$26) -> 0 | F42: =F15*(F41/Model!$C$26) -> 0 | G42: =G15*(G41/Model!$C$26) -> 0.5749889014 | H42: =H15*(H41/Model!$C$26) -> 1.191660899 | I42: =I15*(I41/Model!$C$26) -> 1.882237261 | J42: =J15*(J41/Model!$C$26) -> 2.397174242 | K42: =K15*(K41/Model!$C$26) -> 2.998905218 | L42: =L15*(L41/Model!$C$26) -> 3.632443702 | M42: =M15*(M41/Model!$C$26) -> 4.128067355 | N42: =N15*(N41/Model!$C$26) -> 4.597792271 | O42: =O15*(O41/Model!$C$26) -> 5.039956401 | P42: =P15*(P41/Model!$C$26) -> 5.477946788 | Q42: =Q15*(Q41/Model!$C$26) -> 5.908147208 | R42: =R15*(R41/Model!$C$26) -> 6.196896655 | S42: =S15*(S41/Model!$C$26) -> 6.476353062 | T42: =T15*(T41/Model!$C$26) -> 6.725796369 | U42: =U15*(U41/Model!$C$26) -> 7.006883318 | V42: =V15*(V41/Model!$C$26) -> 7.261497267 | W42: =W15*(W41/Model!$C$26) -> 7.425878579
A44: Boliger som skal bygges for at reducere ventelisten til 2 måneder | B44: =B42+B41 -> 0 | C44: =C42+C41 -> 0 | D44: =D42+D41 -> 0 | E44: =E42+E41 -> 0 | F44: 0 | G44: 21.27458935 | H44: 44.09145328 | I44: 69.64277867 | J44: 88.69544696 | K44: 110.9594931 | L44: 134.400417 | M44: 152.7384921 | N44: 170.118314 | O44: 186.4783868 | P44: 202.6840311 | Q44: 218.6014467 | R44: 229.2851763 | S44: 239.6250633 | T44: 248.8544657 | U44: 259.2546828 | V44: 268.6753989 | W44: 274.7575074
A46: Hvis kun den generelle venteliste havde behov
A47: Gns. ventetid ultimo året (md.) | B47: =MAX(B33/(B23/12),0) -> 0 | C47: =MAX(C33/(C23/12),0) -> 0 | D47: =MAX(D33/(D23/12),0) -> 0 | E47: 0 | F47: 0 | G47: 0 | H47: 0 | I47: 0 | J47: 0 | K47: 0 | L47: 0 | M47: 0 | N47: 0 | O47: 0 | P47: 0 | Q47: 0 | R47: 0 | S47: 0 | T47: 0 | U47: 0 | V47: 0 | W47: 0
A48: Gns. ventetid ultimo året (Boliger) | B48: =B47*(B$22/12) -> 0 | C48: =C47*(C$22/12) -> 0 | D48: =D47*(D$22/12) -> 0 | E48: =E47*(E$22/12) -> 0 | F48: 0 | G48: 0 | H48: 0 | I48: 0 | J48: 0 | K48: 0 | L48: 0 | M48: 0 | N48: 0 | O48: 0 | P48: 0 | Q48: 0 | R48: 0 | S48: 0 | T48: 0 | U48: 0 | V48: 0 | W48: 0 | Y48: =Y47*(Y$23/12) -> 0
A50: Grænse for ventetid (Måneder) | B50: 2 | C50: 2 | D50: 2 | E50: 2 | F50: 2 | G50: 2 | H50: 2 | I50: 2 | J50: 2 | K50: 2 | L50: 2 | M50: 2 | N50: 2 | O50: 2 | P50: 2 | Q50: 2 | R50: 2 | S50: 2 | T50: 2 | U50: 2 | V50: 2 | W50: 2
A51: Grænse for ventetid (Boliger) | B51: =B50*(B$22/12) -> 36.22222222 | C51: =C38*(C$22/12) -> 39.11111111 | D51: 39.11111111 | E51: 39.11111111 | F51: 39.11111111 | G51: 39.11111111 | H51: 39.11111111 | I51: 39.11111111 | J51: 39.11111111 | K51: 39.11111111 | L51: 39.11111111 | M51: 39.11111111 | N51: 39.11111111 | O51: 39.11111111 | P51: 39.11111111 | Q51: 39.11111111 | R51: 39.11111111 | S51: 39.11111111 | T51: 39.11111111 | U51: 39.11111111 | V51: 39.11111111 | W51: 39.11111111
A53: Overskredet grænse (I antal boliger) | B53: =MAX(B48-B51,0) -> 0 | C53: =MAX(C48-C51,0) -> 0 | D53: 0 | E53: 0 | F53: 0 | G53: 0 | H53: 0 | I53: 0 | J53: 0 | K53: 0 | L53: 0 | M53: 0 | N53: 0 | O53: 0 | P53: 0 | Q53: 0 | R53: 0 | S53: 0 | T53: 0 | U53: 0 | V53: 0 | W53: 0
A54: Tomgang | B54: =B15*(B53/Model!$C$26) -> 0 | C54: =C15*(C53/Model!$C$26) -> 0 | D54: =D15*(D53/Model!$C$26) -> 0 | E54: =E15*(E53/Model!$C$26) -> 0 | F54: =F15*(F53/Model!$C$26) -> 0 | G54: =G15*(G53/Model!$C$26) -> 0 | H54: =H15*(H53/Model!$C$26) -> 0 | I54: =I15*(I53/Model!$C$26) -> 0 | J54: =J15*(J53/Model!$C$26) -> 0 | K54: =K15*(K53/Model!$C$26) -> 0 | L54: =L15*(L53/Model!$C$26) -> 0 | M54: =M15*(M53/Model!$C$26) -> 0 | N54: =N15*(N53/Model!$C$26) -> 0 | O54: =O15*(O53/Model!$C$26) -> 0 | P54: =P15*(P53/Model!$C$26) -> 0 | Q54: =Q15*(Q53/Model!$C$26) -> 0 | R54: =R15*(R53/Model!$C$26) -> 0 | S54: =S15*(S53/Model!$C$26) -> 0 | T54: =T15*(T53/Model!$C$26) -> 0 | U54: =U15*(U53/Model!$C$26) -> 0 | V54: =V15*(V53/Model!$C$26) -> 0 | W54: =W15*(W53/Model!$C$26) -> 0
A55: Boliger som skal bygges for at reducere den generelle venteliste til 2 måneder | B55: =B53+B54 -> 0 | C55: =C53+C54 -> 0 | D55: =D53+D54 -> 0 | E55: =E53+E54 -> 0 | F55: =F53+F54 -> 0 | G55: 0 | H55: 0 | I55: 0 | J55: 0 | K55: 0 | L55: 0 | M55: 0 | N55: 0 | O55: 0 | P55: 0 | Q55: 0 | R55: 0 | S55: 0 | T55: 0 | U55: 0 | V55: 0 | W55: 0

Sheet Beregning 2024 (hidden)
A1: Beregninger
A2: 2024 | B2: Opdateret 30-10-2024
A3: Scenarier:
A4: Jeg har indtastet venteliste efter aldersgruppe
A5: Jeg har indtastet venteliste i alt
A7: Valgt scenarie: | B7: 2 | C7: 1
A9: Under 70 år | B9: =IF($B$7=1,Model!C10,IF($B$7=2,M22,"")) -> 0
A10: 70-74 år | B10: =IF($B$7=1,Model!C11,IF($B$7=2,M23,IF($B$7=3,0,""))) -> 0
A11: 75-79 år | B11: =IF($B$7=1,Model!C12,IF($B$7=2,M24,IF($B$7=3,0,""))) -> 0
A12: 80-84 år | B12: =IF($B$7=1,Model!C13,IF($B$7=2,M25,IF($B$7=3,0,""))) -> 0
A13: 85-89 år | B13: =IF($B$7=1,Model!C14,IF($B$7=2,M26,IF($B$7=3,0,""))) -> 0
A14: 90-95 år | B14: =IF($B$7=1,Model!C15,IF($B$7=2,M27,IF($B$7=3,0,""))) -> 0
A15: 95+ år | B15: =IF($B$7=1,Model!C16,IF($B$7=2,M28,IF($B$7=3,0,""))) -> 0
A17: I alt | B17: =IF($B$7=1,SUM(B9:B16),IF($B$7=2,M30,IF($B$7=3,0,""))) -> 0
A19: Gennemsnitligt antal år med behov | B19: =Model!C26/12 -> 3 | C19: Statistikbanken laver ikke længere opgørelser over antal i diverse boliger - fra 2023 er det derfor lavet på baggrund af registerdata på indskrevne. Derfor findes der kun en i alt kategori.
A20: =+CONCATENATE("Beregning af behovsgrad primo"," ",A2) -> Beregning af behovsgrad primo 2024 | C20: 34 | E20: 0 | F20: 0
A21: Kommune | B21: Aldersgruppe | C21: I alt | E21: Plejeboliger | F21: Friplejeboliger | G21: Indskrevne i alt | H21: Venteliste (alt efter valg af scenarie) | I21: Behov i alt | J21: I befolkningen | K21: Beboergrad | L21: Behovsgrad | M21: Venteliste (beregnet)
A22: =Model!$C$4 -> Silkeborg | B22: Under 70 år | C22: =VLOOKUP($A22,'Indskrevne plejebolig dec 2023'!$B$7:$I$104,COUNTA($B$22:B22)+1,FALSE) -> 58 | E22: 0 | F22: 0 | G22: =C22 -> 58 | H22: =B9 -> 0 | I22: =G22+H22 -> 58 | J22: =C34 -> 85888 | K22: =G22/J22*100 -> 0.06752980626 | L22: =+I22/J22*100 -> 0.06752980626 | M22: =+$M$30*G22/$G$30 -> 0
A23: =Model!$C$4 -> Silkeborg | B23: 70-74 år | C23: =VLOOKUP($A23,'Indskrevne plejebolig dec 2023'!$B$7:$I$104,COUNTA($B$22:B23)+1,FALSE) -> 62 | E23: 0 | F23: 0 | G23: =C23 -> 62 | H23: =B10 -> 0 | I23: =G23+H23 -> 62 | J23: =C35 -> 5155 | K23: 1.20271581 | L23: =+I23/J23*100 -> 1.20271581 | M23: =+$M$30*G23/$G$30 -> 0
A24: =Model!$C$4 -> Silkeborg | B24: 75-79 år | C24: =VLOOKUP($A24,'Indskrevne plejebolig dec 2023'!$B$7:$I$104,COUNTA($B$22:B24)+1,FALSE) -> 111 | E24: 0 | F24: 0 | G24: 111 | H24: 0 | I24: 111 | J24: 4824 | K24: 2.300995025 | L24: 2.300995025 | M24: =+$M$30*G24/$G$30 -> 0
A25: =Model!$C$4 -> Silkeborg | B25: 80-84 år | C25: =VLOOKUP($A25,'Indskrevne plejebolig dec 2023'!$B$7:$I$104,COUNTA($B$22:B25)+1,FALSE) -> 127 | E25: 0 | F25: 0 | G25: 127 | H25: 0 | I25: 127 | J25: 2737 | K25: 4.640116916 | L25: 4.640116916 | M25: 0
A26: =Model!$C$4 -> Silkeborg | B26: 85-89 år | C26: =VLOOKUP($A26,'Indskrevne plejebolig dec 2023'!$B$7:$I$104,COUNTA($B$22:B26)+1,FALSE) -> 122 | E26: 0 | F26: 0 | G26: =C26 -> 122 | H26: 0 | I26: 122 | J26: 1465 | K26: 8.327645051 | L26: 8.327645051 | M26: =+$M$30*G26/$G$30 -> 0
A27: =Model!$C$4 -> Silkeborg | B27: 90-95 år | C27: =VLOOKUP($A27,'Indskrevne plejebolig dec 2023'!$B$7:$I$104,COUNTA($B$22:B27)+1,FALSE) -> 116 | E27: 0 | F27: 0 | G27: 116 | H27: 0 | I27: 116 | J27: 564 | K27: 20.56737589 | L27: 20.56737589 | M27: 0
A28: =Model!$C$4 -> Silkeborg | B28: 95+ år | C28: =VLOOKUP($A28,'Indskrevne plejebolig dec 2023'!$B$7:$I$104,COUNTA($B$22:B28)+1,FALSE) -> 41 | E28: 0 | F28: 0 | G28: 41 | H28: 0 | I28: 41 | J28: 114 | K28: 35.96491228 | L28: 35.96491228 | M28: 0
A30: =Model!$C$4 -> Silkeborg | B30: I alt | C30: =SUM(C22:C29) -> 637 | E30: =SUM(E22:E29) -> 0 | F30: 0 | G30: =C30 -> 637 | H30: 0 | I30: 637 | J30: 100747 | K30: =G30/J30*100 -> 0.6322768916 | L30: =+I30/J30*100 -> 0.6322768916 | M30: =Model!C18 -> 0
A32: Befolkningsfremskrivning (Fra Befolkningsfremskrivning og dermed ny - Befolkningsfremskriv)
A33: Kommune | B33: Aldersgruppe | C33: =A2 -> 2024 | E33: =C33+1 -> 2025 | F33: =E33+1 -> 2026 | G33: 2027 | H33: 2028 | I33: 2029 | J33: 2030 | K33: 2031 | L33: 2032 | M33: 2033 | N33: 2034 | O33: 2035 | P33: 2036 | Q33: 2037 | R33: 2038 | S33: 2039 | T33: 2040 | U33: 2041 | V33: 2042 | W33: 2043 | X33: 2044 | Y33: 2045 | Z33: 2046 | AA33: 2047
A34: =Model!$C$4 -> Silkeborg | B34: Under 70 år | C34: =VLOOKUP($A34&$B34,Befolkningsfremskrivning!$A$4:$AE$795,C$33-2019,FALSE) -> 85888 | E34: =VLOOKUP($A34&$B34,Befolkningsfremskrivning!$A$4:$AE$795,E$33-2019,FALSE) -> 86986 | F34: =VLOOKUP($A34&$B34,Befolkningsfremskrivning!$A$4:$AE$795,F$33-2019,FALSE) -> 87666 | G34: =VLOOKUP($A34&$B34,Befolkningsfremskrivning!$A$4:$AE$795,G$33-2019,FALSE) -> 88613 | H34: =VLOOKUP($A34&$B34,Befolkningsfremskrivning!$A$4:$AE$795,H$33-2019,FALSE) -> 89591 | I34: =VLOOKUP($A34&$B34,Befolkningsfremskrivning!$A$4:$AE$795,I$33-2019,FALSE) -> 90615 | J34: =VLOOKUP($A34&$B34,Befolkningsfremskrivning!$A$4:$AE$795,J$33-2019,FALSE) -> 91635 | K34: =VLOOKUP($A34&$B34,Befolkningsfremskrivning!$A$4:$AE$795,K$33-2019,FALSE) -> 92650 | L34: =VLOOKUP($A34&$B34,Befolkningsfremskrivning!$A$4:$AE$795,L$33-2019,FALSE) -> 93691 | M34: =VLOOKUP($A34&$B34,Befolkningsfremskrivning!$A$4:$AE$795,M$33-2019,FALSE) -> 94599 | N34: =VLOOKUP($A34&$B34,Befolkningsfremskrivning!$A$4:$AE$795,N$33-2019,FALSE) -> 95460 | O34: =VLOOKUP($A34&$B34,Befolkningsfremskrivning!$A$4:$AE$795,O$33-2019,FALSE) -> 96300 | P34: =VLOOKUP($A34&$B34,Befolkningsfremskrivning!$A$4:$AE$795,P$33-2019,FALSE) -> 97101 | Q34: =VLOOKUP($A34&$B34,Befolkningsfremskrivning!$A$4:$AE$795,Q$33-2019,FALSE) -> 97746 | R34: =VLOOKUP($A34&$B34,Befolkningsfremskrivning!$A$4:$AE$795,R$33-2019,FALSE) -> 98457 | S34: =VLOOKUP($A34&$B34,Befolkningsfremskrivning!$A$4:$AE$795,S$33-2019,FALSE) -> 99204 | T34: =VLOOKUP($A34&$B34,Befolkningsfremskrivning!$A$4:$AE$795,T$33-2019,FALSE) -> 99926 | U34: =VLOOKUP($A34&$B34,Befolkningsfremskrivning!$A$4:$AE$795,U$33-2019,FALSE) -> 100570 | V34: =VLOOKUP($A34&$B34,Befolkningsfremskrivning!$A$4:$AE$795,V$33-2019,FALSE) -> 101040 | W34: =VLOOKUP($A34&$B34,Befolkningsfremskrivning!$A$4:$AE$795,W$33-2019,FALSE) -> 101429 | X34: =VLOOKUP($A34&$B34,Befolkningsfremskrivning!$A$4:$AE$795,X$33-2019,FALSE) -> 101859 | Y34: =VLOOKUP($A34&$B34,Befolkningsfremskrivning!$A$4:$AE$795,Y$33-2019,FALSE) -> 102260 | Z34: =VLOOKUP($A34&$B34,Befolkningsfremskrivning!$A$4:$AE$795,Z$33-2019,FALSE) -> 102599 | AA34: =VLOOKUP($A34&$B34,Befolkningsfremskrivning!$A$4:$AE$795,AA$33-2019,FALSE) -> 102989
A35: =Model!$C$4 -> Silkeborg | B35: 70-74 år | C35: =VLOOKUP($A35&$B35,Befolkningsfremskrivning!$A$4:$AE$795,C$33-2019,FALSE) -> 5155 | E35: =VLOOKUP($A35&$B35,Befolkningsfremskrivning!$A$4:$AE$795,E$33-2019,FALSE) -> 5157 | F35: =VLOOKUP($A35&$B35,Befolkningsfremskrivning!$A$4:$AE$795,F$33-2019,FALSE) -> 5160 | G35: =VLOOKUP($A35&$B35,Befolkningsfremskrivning!$A$4:$AE$795,G$33-2019,FALSE) -> 5235 | H35: =VLOOKUP($A35&$B35,Befolkningsfremskrivning!$A$4:$AE$795,H$33-2019,FALSE) -> 5316 | I35: =VLOOKUP($A35&$B35,Befolkningsfremskrivning!$A$4:$AE$795,I$33-2019,FALSE) -> 5352 | J35: =VLOOKUP($A35&$B35,Befolkningsfremskrivning!$A$4:$AE$795,J$33-2019,FALSE) -> 5381 | K35: =VLOOKUP($A35&$B35,Befolkningsfremskrivning!$A$4:$AE$795,K$33-2019,FALSE) -> 5447 | L35: =VLOOKUP($A35&$B35,Befolkningsfremskrivning!$A$4:$AE$795,L$33-2019,FALSE) -> 5408 | M35: =VLOOKUP($A35&$B35,Befolkningsfremskrivning!$A$4:$AE$795,M$33-2019,FALSE) -> 5538 | N35: =VLOOKUP($A35&$B35,Befolkningsfremskrivning!$A$4:$AE$795,N$33-2019,FALSE) -> 5761 | O35: =VLOOKUP($A35&$B35,Befolkningsfremskrivning!$A$4:$AE$795,O$33-2019,FALSE) -> 5994 | P35: =VLOOKUP($A35&$B35,Befolkningsfremskrivning!$A$4:$AE$795,P$33-2019,FALSE) -> 6245 | Q35: =VLOOKUP($A35&$B35,Befolkningsfremskrivning!$A$4:$AE$795,Q$33-2019,FALSE) -> 6615 | R35: =VLOOKUP($A35&$B35,Befolkningsfremskrivning!$A$4:$AE$795,R$33-2019,FALSE) -> 6750 | S35: =VLOOKUP($A35&$B35,Befolkningsfremskrivning!$A$4:$AE$795,S$33-2019,FALSE) -> 6730 | T35: =VLOOKUP($A35&$B35,Befolkningsfremskrivning!$A$4:$AE$795,T$33-2019,FALSE) -> 6651 | U35: =VLOOKUP($A35&$B35,Befolkningsfremskrivning!$A$4:$AE$795,U$33-2019,FALSE) -> 6543 | V35: =VLOOKUP($A35&$B35,Befolkningsfremskrivning!$A$4:$AE$795,V$33-2019,FALSE) -> 6465 | W35: =VLOOKUP($A35&$B35,Befolkningsfremskrivning!$A$4:$AE$795,W$33-2019,FALSE) -> 6506 | X35: =VLOOKUP($A35&$B35,Befolkningsfremskrivning!$A$4:$AE$795,X$33-2019,FALSE) -> 6576 | Y35: =VLOOKUP($A35&$B35,Befolkningsfremskrivning!$A$4:$AE$795,Y$33-2019,FALSE) -> 6688 | Z35: =VLOOKUP($A35&$B35,Befolkningsfremskrivning!$A$4:$AE$795,Z$33-2019,FALSE) -> 6801 | AA35: =VLOOKUP($A35&$B35,Befolkningsfremskrivning!$A$4:$AE$795,AA$33-2019,FALSE) -> 6717
A36: =Model!$C$4 -> Silkeborg | B36: 75-79 år | C36: =VLOOKUP($A36&$B36,Befolkningsfremskrivning!$A$4:$AE$795,C$33-2019,FALSE) -> 4824 | E36: =VLOOKUP($A36&$B36,Befolkningsfremskrivning!$A$4:$AE$795,E$33-2019,FALSE) -> 4886 | F36: =VLOOKUP($A36&$B36,Befolkningsfremskrivning!$A$4:$AE$795,F$33-2019,FALSE) -> 4830 | G36: =VLOOKUP($A36&$B36,Befolkningsfremskrivning!$A$4:$AE$795,G$33-2019,FALSE) -> 4774 | H36: =VLOOKUP($A36&$B36,Befolkningsfremskrivning!$A$4:$AE$795,H$33-2019,FALSE) -> 4669 | I36: =VLOOKUP($A36&$B36,Befolkningsfremskrivning!$A$4:$AE$795,I$33-2019,FALSE) -> 4658 | J36: =VLOOKUP($A36&$B36,Befolkningsfremskrivning!$A$4:$AE$795,J$33-2019,FALSE) -> 4673 | K36: =VLOOKUP($A36&$B36,Befolkningsfremskrivning!$A$4:$AE$795,K$33-2019,FALSE) -> 4698 | L36: =VLOOKUP($A36&$B36,Befolkningsfremskrivning!$A$4:$AE$795,L$33-2019,FALSE) -> 4782 | M36: =VLOOKUP($A36&$B36,Befolkningsfremskrivning!$A$4:$AE$795,M$33-2019,FALSE) -> 4865 | N36: =VLOOKUP($A36&$B36,Befolkningsfremskrivning!$A$4:$AE$795,N$33-2019,FALSE) -> 4910 | O36: =VLOOKUP($A36&$B36,Befolkningsfremskrivning!$A$4:$AE$795,O$33-2019,FALSE) -> 4948 | P36: =VLOOKUP($A36&$B36,Befolkningsfremskrivning!$A$4:$AE$795,P$33-2019,FALSE) -> 5019 | Q36: =VLOOKUP($A36&$B36,Befolkningsfremskrivning!$A$4:$AE$795,Q$33-2019,FALSE) -> 5001 | R36: =VLOOKUP($A36&$B36,Befolkningsfremskrivning!$A$4:$AE$795,R$33-2019,FALSE) -> 5135 | S36: =VLOOKUP($A36&$B36,Befolkningsfremskrivning!$A$4:$AE$795,S$33-2019,FALSE) -> 5352 | T36: =VLOOKUP($A36&$B36,Befolkningsfremskrivning!$A$4:$AE$795,T$33-2019,FALSE) -> 5577 | U36: =VLOOKUP($A36&$B36,Befolkningsfremskrivning!$A$4:$AE$795,U$33-2019,FALSE) -> 5819 | V36: =VLOOKUP($A36&$B36,Befolkningsfremskrivning!$A$4:$AE$795,V$33-2019,FALSE) -> 6166 | W36: =VLOOKUP($A36&$B36,Befolkningsfremskrivning!$A$4:$AE$795,W$33-2019,FALSE) -> 6298 | X36: =VLOOKUP($A36&$B36,Befolkningsfremskrivning!$A$4:$AE$795,X$33-2019,FALSE) -> 6286 | Y36: =VLOOKUP($A36&$B36,Befolkningsfremskrivning!$A$4:$AE$795,Y$33-2019,FALSE) -> 6216 | Z36: =VLOOKUP($A36&$B36,Befolkningsfremskrivning!$A$4:$AE$795,Z$33-2019,FALSE) -> 6125 | AA36: =VLOOKUP($A36&$B36,Befolkningsfremskrivning!$A$4:$AE$795,AA$33-2019,FALSE) -> 6062
A37: =Model!$C$4 -> Silkeborg | B37: 80-84 år | C37: =VLOOKUP($A37&$B37,Befolkningsfremskrivning!$A$4:$AE$795,C$33-2019,FALSE) -> 2737 | E37: =VLOOKUP($A37&$B37,Befolkningsfremskrivning!$A$4:$AE$795,E$33-2019,FALSE) -> 2957 | F37: =VLOOKUP($A37&$B37,Befolkningsfremskrivning!$A$4:$AE$795,F$33-2019,FALSE) -> 3232 | G37: =VLOOKUP($A37&$B37,Befolkningsfremskrivning!$A$4:$AE$795,G$33-2019,FALSE) -> 3542 | H37: =VLOOKUP($A37&$B37,Befolkningsfremskrivning!$A$4:$AE$795,H$33-2019,FALSE) -> 3799 | I37: =VLOOKUP($A37&$B37,Befolkningsfremskrivning!$A$4:$AE$795,I$33-2019,FALSE) -> 3925 | J37: =VLOOKUP($A37&$B37,Befolkningsfremskrivning!$A$4:$AE$795,J$33-2019,FALSE) -> 3981 | K37: =VLOOKUP($A37&$B37,Befolkningsfremskrivning!$A$4:$AE$795,K$33-2019,FALSE) -> 3951 | L37: =VLOOKUP($A37&$B37,Befolkningsfremskrivning!$A$4:$AE$795,L$33-2019,FALSE) -> 3921 | M37: =VLOOKUP($A37&$B37,Befolkningsfremskrivning!$A$4:$AE$795,M$33-2019,FALSE) -> 3854 | N37: =VLOOKUP($A37&$B37,Befolkningsfremskrivning!$A$4:$AE$795,N$33-2019,FALSE) -> 3860 | O37: =VLOOKUP($A37&$B37,Befolkningsfremskrivning!$A$4:$AE$795,O$33-2019,FALSE) -> 3886 | P37: =VLOOKUP($A37&$B37,Befolkningsfremskrivning!$A$4:$AE$795,P$33-2019,FALSE) -> 3921 | Q37: =VLOOKUP($A37&$B37,Befolkningsfremskrivning!$A$4:$AE$795,Q$33-2019,FALSE) -> 4005 | R37: =VLOOKUP($A37&$B37,Befolkningsfremskrivning!$A$4:$AE$795,R$33-2019,FALSE) -> 4087 | S37: =VLOOKUP($A37&$B37,Befolkningsfremskrivning!$A$4:$AE$795,S$33-2019,FALSE) -> 4138 | T37: =VLOOKUP($A37&$B37,Befolkningsfremskrivning!$A$4:$AE$795,T$33-2019,FALSE) -> 4179 | U37: =VLOOKUP($A37&$B37,Befolkningsfremskrivning!$A$4:$AE$795,U$33-2019,FALSE) -> 4251 | V37: =VLOOKUP($A37&$B37,Befolkningsfremskrivning!$A$4:$AE$795,V$33-2019,FALSE) -> 4254 | W37: =VLOOKUP($A37&$B37,Befolkningsfremskrivning!$A$4:$AE$795,W$33-2019,FALSE) -> 4386 | X37: =VLOOKUP($A37&$B37,Befolkningsfremskrivning!$A$4:$AE$795,X$33-2019,FALSE) -> 4585 | Y37: =VLOOKUP($A37&$B37,Befolkningsfremskrivning!$A$4:$AE$795,Y$33-2019,FALSE) -> 4791 | Z37: =VLOOKUP($A37&$B37,Befolkningsfremskrivning!$A$4:$AE$795,Z$33-2019,FALSE) -> 5009 | AA37: =VLOOKUP($A37&$B37,Befolkningsfremskrivning!$A$4:$AE$795,AA$33-2019,FALSE) -> 5317
A38: =Model!$C$4 -> Silkeborg | B38: 85-89 år | C38: =VLOOKUP($A38&$B38,Befolkningsfremskrivning!$A$4:$AE$795,C$33-2019,FALSE) -> 1465 | E38: =VLOOKUP($A38&$B38,Befolkningsfremskrivning!$A$4:$AE$795,E$33-2019,FALSE) -> 1513 | F38: =VLOOKUP($A38&$B38,Befolkningsfremskrivning!$A$4:$AE$795,F$33-2019,FALSE) -> 1607 | G38: =VLOOKUP($A38&$B38,Befolkningsfremskrivning!$A$4:$AE$795,G$33-2019,FALSE) -> 1670 | H38: =VLOOKUP($A38&$B38,Befolkningsfremskrivning!$A$4:$AE$795,H$33-2019,FALSE) -> 1773 | I38: =VLOOKUP($A38&$B38,Befolkningsfremskrivning!$A$4:$AE$795,I$33-2019,FALSE) -> 1888 | J38: =VLOOKUP($A38&$B38,Befolkningsfremskrivning!$A$4:$AE$795,J$33-2019,FALSE) -> 2054 | K38: =VLOOKUP($A38&$B38,Befolkningsfremskrivning!$A$4:$AE$795,K$33-2019,FALSE) -> 2254 | L38: =VLOOKUP($A38&$B38,Befolkningsfremskrivning!$A$4:$AE$795,L$33-2019,FALSE) -> 2477 | M38: =VLOOKUP($A38&$B38,Befolkningsfremskrivning!$A$4:$AE$795,M$33-2019,FALSE) -> 2667 | N38: =VLOOKUP($A38&$B38,Befolkningsfremskrivning!$A$4:$AE$795,N$33-2019,FALSE) -> 2754 | O38: =VLOOKUP($A38&$B38,Befolkningsfremskrivning!$A$4:$AE$795,O$33-2019,FALSE) -> 2795 | P38: =VLOOKUP($A38&$B38,Befolkningsfremskrivning!$A$4:$AE$795,P$33-2019,FALSE) -> 2782 | Q38: =VLOOKUP($A38&$B38,Befolkningsfremskrivning!$A$4:$AE$795,Q$33-2019,FALSE) -> 2774 | R38: =VLOOKUP($A38&$B38,Befolkningsfremskrivning!$A$4:$AE$795,R$33-2019,FALSE) -> 2744 | S38: =VLOOKUP($A38&$B38,Befolkningsfremskrivning!$A$4:$AE$795,S$33-2019,FALSE) -> 2761 | T38: =VLOOKUP($A38&$B38,Befolkningsfremskrivning!$A$4:$AE$795,T$33-2019,FALSE) -> 2794 | U38: =VLOOKUP($A38&$B38,Befolkningsfremskrivning!$A$4:$AE$795,U$33-2019,FALSE) -> 2829 | V38: =VLOOKUP($A38&$B38,Befolkningsfremskrivning!$A$4:$AE$795,V$33-2019,FALSE) -> 2906 | W38: =VLOOKUP($A38&$B38,Befolkningsfremskrivning!$A$4:$AE$795,W$33-2019,FALSE) -> 2978 | X38: =VLOOKUP($A38&$B38,Befolkningsfremskrivning!$A$4:$AE$795,X$33-2019,FALSE) -> 3022 | Y38: =VLOOKUP($A38&$B38,Befolkningsfremskrivning!$A$4:$AE$795,Y$33-2019,FALSE) -> 3060 | Z38: =VLOOKUP($A38&$B38,Befolkningsfremskrivning!$A$4:$AE$795,Z$33-2019,FALSE) -> 3123 | AA38: =VLOOKUP($A38&$B38,Befolkningsfremskrivning!$A$4:$AE$795,AA$33-2019,FALSE) -> 3143
A39: =Model!$C$4 -> Silkeborg | B39: 90-95 år | C39: =VLOOKUP($A39&$B39,Befolkningsfremskrivning!$A$4:$AE$795,C$33-2019,FALSE) -> 564 | E39: =VLOOKUP($A39&$B39,Befolkningsfremskrivning!$A$4:$AE$795,E$33-2019,FALSE) -> 618 | F39: =VLOOKUP($A39&$B39,Befolkningsfremskrivning!$A$4:$AE$795,F$33-2019,FALSE) -> 628 | G39: =VLOOKUP($A39&$B39,Befolkningsfremskrivning!$A$4:$AE$795,G$33-2019,FALSE) -> 658 | H39: =VLOOKUP($A39&$B39,Befolkningsfremskrivning!$A$4:$AE$795,H$33-2019,FALSE) -> 705 | I39: =VLOOKUP($A39&$B39,Befolkningsfremskrivning!$A$4:$AE$795,I$33-2019,FALSE) -> 762 | J39: =VLOOKUP($A39&$B39,Befolkningsfremskrivning!$A$4:$AE$795,J$33-2019,FALSE) -> 812 | K39: =VLOOKUP($A39&$B39,Befolkningsfremskrivning!$A$4:$AE$795,K$33-2019,FALSE) -> 851 | L39: =VLOOKUP($A39&$B39,Befolkningsfremskrivning!$A$4:$AE$795,L$33-2019,FALSE) -> 896 | M39: =VLOOKUP($A39&$B39,Befolkningsfremskrivning!$A$4:$AE$795,M$33-2019,FALSE) -> 961 | N39: =VLOOKUP($A39&$B39,Befolkningsfremskrivning!$A$4:$AE$795,N$33-2019,FALSE) -> 1034 | O39: =VLOOKUP($A39&$B39,Befolkningsfremskrivning!$A$4:$AE$795,O$33-2019,FALSE) -> 1129 | P39: =VLOOKUP($A39&$B39,Befolkningsfremskrivning!$A$4:$AE$795,P$33-2019,FALSE) -> 1245 | Q39: =VLOOKUP($A39&$B39,Befolkningsfremskrivning!$A$4:$AE$795,Q$33-2019,FALSE) -> 1367 | R39: =VLOOKUP($A39&$B39,Befolkningsfremskrivning!$A$4:$AE$795,R$33-2019,FALSE) -> 1486 | S39: =VLOOKUP($A39&$B39,Befolkningsfremskrivning!$A$4:$AE$795,S$33-2019,FALSE) -> 1537 | T39: =VLOOKUP($A39&$B39,Befolkningsfremskrivning!$A$4:$AE$795,T$33-2019,FALSE) -> 1574 | U39: =VLOOKUP($A39&$B39,Befolkningsfremskrivning!$A$4:$AE$795,U$33-2019,FALSE) -> 1588 | V39: =VLOOKUP($A39&$B39,Befolkningsfremskrivning!$A$4:$AE$795,V$33-2019,FALSE) -> 1607 | W39: =VLOOKUP($A39&$B39,Befolkningsfremskrivning!$A$4:$AE$795,W$33-2019,FALSE) -> 1611 | X39: =VLOOKUP($A39&$B39,Befolkningsfremskrivning!$A$4:$AE$795,X$33-2019,FALSE) -> 1616 | Y39: =VLOOKUP($A39&$B39,Befolkningsfremskrivning!$A$4:$AE$795,Y$33-2019,FALSE) -> 1647 | Z39: =VLOOKUP($A39&$B39,Befolkningsfremskrivning!$A$4:$AE$795,Z$33-2019,FALSE) -> 1672 | AA39: =VLOOKUP($A39&$B39,Befolkningsfremskrivning!$A$4:$AE$795,AA$33-2019,FALSE) -> 1734
A40: =Model!$C$4 -> Silkeborg | B40: 95+ år | C40: =VLOOKUP($A40&$B40,Befolkningsfremskrivning!$A$4:$AE$795,C$33-2019,FALSE) -> 114 | E40: =VLOOKUP($A40&$B40,Befolkningsfremskrivning!$A$4:$AE$795,E$33-2019,FALSE) -> 145 | F40: =VLOOKUP($A40&$B40,Befolkningsfremskrivning!$A$4:$AE$795,F$33-2019,FALSE) -> 149 | G40: =VLOOKUP($A40&$B40,Befolkningsfremskrivning!$A$4:$AE$795,G$33-2019,FALSE) -> 158 | H40: =VLOOKUP($A40&$B40,Befolkningsfremskrivning!$A$4:$AE$795,H$33-2019,FALSE) -> 154 | I40: =VLOOKUP($A40&$B40,Befolkningsfremskrivning!$A$4:$AE$795,I$33-2019,FALSE) -> 155 | J40: =VLOOKUP($A40&$B40,Befolkningsfremskrivning!$A$4:$AE$795,J$33-2019,FALSE) -> 173 | K40: =VLOOKUP($A40&$B40,Befolkningsfremskrivning!$A$4:$AE$795,K$33-2019,FALSE) -> 175 | L40: =VLOOKUP($A40&$B40,Befolkningsfremskrivning!$A$4:$AE$795,L$33-2019,FALSE) -> 187 | M40: =VLOOKUP($A40&$B40,Befolkningsfremskrivning!$A$4:$AE$795,M$33-2019,FALSE) -> 207 | N40: =VLOOKUP($A40&$B40,Befolkningsfremskrivning!$A$4:$AE$795,N$33-2019,FALSE) -> 224 | O40: =VLOOKUP($A40&$B40,Befolkningsfremskrivning!$A$4:$AE$795,O$33-2019,FALSE) -> 240 | P40: =VLOOKUP($A40&$B40,Befolkningsfremskrivning!$A$4:$AE$795,P$33-2019,FALSE) -> 256 | Q40: =VLOOKUP($A40&$B40,Befolkningsfremskrivning!$A$4:$AE$795,Q$33-2019,FALSE) -> 267 | R40: =VLOOKUP($A40&$B40,Befolkningsfremskrivning!$A$4:$AE$795,R$33-2019,FALSE) -> 293 | S40: =VLOOKUP($A40&$B40,Befolkningsfremskrivning!$A$4:$AE$795,S$33-2019,FALSE) -> 318 | T40: =VLOOKUP($A40&$B40,Befolkningsfremskrivning!$A$4:$AE$795,T$33-2019,FALSE) -> 353 | U40: =VLOOKUP($A40&$B40,Befolkningsfremskrivning!$A$4:$AE$795,U$33-2019,FALSE) -> 393 | V40: =VLOOKUP($A40&$B40,Befolkningsfremskrivning!$A$4:$AE$795,V$33-2019,FALSE) -> 432 | W40: =VLOOKUP($A40&$B40,Befolkningsfremskrivning!$A$4:$AE$795,W$33-2019,FALSE) -> 470 | X40: =VLOOKUP($A40&$B40,Befolkningsfremskrivning!$A$4:$AE$795,X$33-2019,FALSE) -> 482 | Y40: =VLOOKUP($A40&$B40,Befolkningsfremskrivning!$A$4:$AE$795,Y$33-2019,FALSE) -> 494 | Z40: =VLOOKUP($A40&$B40,Befolkningsfremskrivning!$A$4:$AE$795,Z$33-2019,FALSE) -> 500 | AA40: =VLOOKUP($A40&$B40,Befolkningsfremskrivning!$A$4:$AE$795,AA$33-2019,FALSE) -> 512
A42: =Model!$C$4 -> Silkeborg | B42: I alt | C42: =SUM(C34:C41) -> 100747 | E42: =SUM(E34:E41) -> 102262 | F42: 103272 | G42: 104650 | H42: 106007 | I42: 107355 | J42: 108709 | K42: 110026 | L42: 111362 | M42: 112691 | N42: 114003 | O42: 115292 | P42: 116569 | Q42: 117775 | R42: 118952 | S42: 120040 | T42: 121054 | U42: 121993 | V42: 122870 | W42: 123678 | X42: 124426 | Y42: 125156 | Z42: 125829 | AA42: 126474
A44: Fremskrivning af behovsgrader
A45: Kommune | B45: Aldersgruppe | C45: =C33 -> 2024 | E45: =C45+1 -> 2025 | F45: =E45+1 -> 2026 | G45: 2027 | H45: 2028 | I45: 2029 | J45: 2030 | K45: 2031 | L45: 2032 | M45: 2033 | N45: 2034 | O45: 2035 | P45: 2036 | Q45: 2037 | R45: 2038 | S45: 2039 | T45: 2040 | U45: 2041 | V45: 2042 | W45: 2043 | X45: 2044 | Y45: 2045 | Z45: 2046 | AA45: 2047
A46: =Model!$C$4 -> Silkeborg | B46: Under 70 år | C46: =L22 -> 0.06752980626 | E46: =MIN(MAX(0,C46+IF(E$45-$C$45<=Model!$M$10,IF(AND(ISNUMBER(Model!$K10),ISNUMBER(Model!$M$10)),(Model!$K10-Model!$E10)/Model!$M$10),0)),100) -> 0.06817759096 | F46: =MIN(MAX(0,E46+IF(F$45-$C$45<=Model!$M$10,IF(AND(ISNUMBER(Model!$K10),ISNUMBER(Model!$M$10)),(Model!$K10-Model!$E10)/Model!$M$10),0)),100) -> 0.06882537566 | G46: =MIN(MAX(0,F46+IF(G$45-$C$45<=Model!$M$10,IF(AND(ISNUMBER(Model!$K10),ISNUMBER(Model!$M$10)),(Model!$K10-Model!$E10)/Model!$M$10),0)),100) -> 0.06947316035 | H46: =MIN(MAX(0,G46+IF(H$45-$C$45<=Model!$M$10,IF(AND(ISNUMBER(Model!$K10),ISNUMBER(Model!$M$10)),(Model!$K10-Model!$E10)/Model!$M$10),0)),100) -> 0.07012094505 | I46: =MIN(MAX(0,H46+IF(I$45-$C$45<=Model!$M$10,IF(AND(ISNUMBER(Model!$K10),ISNUMBER(Model!$M$10)),(Model!$K10-Model!$E10)/Model!$M$10),0)),100) -> 0.07076872975 | J46: =MIN(MAX(0,I46+IF(J$45-$C$45<=Model!$M$10,IF(AND(ISNUMBER(Model!$K10),ISNUMBER(Model!$M$10)),(Model!$K10-Model!$E10)/Model!$M$10),0)),100) -> 0.07141651445 | K46: =MIN(MAX(0,J46+IF(K$45-$C$45<=Model!$M$10,IF(AND(ISNUMBER(Model!$K10),ISNUMBER(Model!$M$10)),(Model!$K10-Model!$E10)/Model!$M$10),0)),100) -> 0.07206429915 | L46: =MIN(MAX(0,K46+IF(L$45-$C$45<=Model!$M$10,IF(AND(ISNUMBER(Model!$K10),ISNUMBER(Model!$M$10)),(Model!$K10-Model!$E10)/Model!$M$10),0)),100) -> 0.07271208385 | M46: =MIN(MAX(0,L46+IF(M$45-$C$45<=Model!$M$10,IF(AND(ISNUMBER(Model!$K10),ISNUMBER(Model!$M$10)),(Model!$K10-Model!$E10)/Model!$M$10),0)),100) -> 0.07271208385 | N46: =MIN(MAX(0,M46+IF(N$45-$C$45<=Model!$M$10,IF(AND(ISNUMBER(Model!$K10),ISNUMBER(Model!$M$10)),(Model!$K10-Model!$E10)/Model!$M$10),0)),100) -> 0.07271208385 | O46: =MIN(MAX(0,N46+IF(O$45-$C$45<=Model!$M$10,IF(AND(ISNUMBER(Model!$K10),ISNUMBER(Model!$M$10)),(Model!$K10-Model!$E10)/Model!$M$10),0)),100) -> 0.07271208385 | P46: =MIN(MAX(0,O46+IF(P$45-$C$45<=Model!$M$10,IF(AND(ISNUMBER(Model!$K10),ISNUMBER(Model!$M$10)),(Model!$K10-Model!$E10)/Model!$M$10),0)),100) -> 0.07271208385 | Q46: =MIN(MAX(0,P46+IF(Q$45-$C$45<=Model!$M$10,IF(AND(ISNUMBER(Model!$K10),ISNUMBER(Model!$M$10)),(Model!$K10-Model!$E10)/Model!$M$10),0)),100) -> 0.07271208385 | R46: =MIN(MAX(0,Q46+IF(R$45-$C$45<=Model!$M$10,IF(AND(ISNUMBER(Model!$K10),ISNUMBER(Model!$M$10)),(Model!$K10-Model!$E10)/Model!$M$10),0)),100) -> 0.07271208385 | S46: =MIN(MAX(0,R46+IF(S$45-$C$45<=Model!$M$10,IF(AND(ISNUMBER(Model!$K10),ISNUMBER(Model!$M$10)),(Model!$K10-Model!$E10)/Model!$M$10),0)),100) -> 0.07271208385 | T46: =MIN(MAX(0,S46+IF(T$45-$C$45<=Model!$M$10,IF(AND(ISNUMBER(Model!$K10),ISNUMBER(Model!$M$10)),(Model!$K10-Model!$E10)/Model!$M$10),0)),100) -> 0.07271208385 | U46: =MIN(MAX(0,T46+IF(U$45-$C$45<=Model!$M$10,IF(AND(ISNUMBER(Model!$K10),ISNUMBER(Model!$M$10)),(Model!$K10-Model!$E10)/Model!$M$10),0)),100) -> 0.07271208385 | V46: =MIN(MAX(0,U46+IF(V$45-$C$45<=Model!$M$10,IF(AND(ISNUMBER(Model!$K10),ISNUMBER(Model!$M$10)),(Model!$K10-Model!$E10)/Model!$M$10),0)),100) -> 0.07271208385 | W46: =MIN(MAX(0,V46+IF(W$45-$C$45<=Model!$M$10,IF(AND(ISNUMBER(Model!$K10),ISNUMBER(Model!$M$10)),(Model!$K10-Model!$E10)/Model!$M$10),0)),100) -> 0.07271208385 | X46: =MIN(MAX(0,W46+IF(X$45-$C$45<=Model!$M$10,IF(AND(ISNUMBER(Model!$K10),ISNUMBER(Model!$M$10)),(Model!$K10-Model!$E10)/Model!$M$10),0)),100) -> 0.07271208385 | Y46: =MIN(MAX(0,X46+IF(Y$45-$C$45<=Model!$M$10,IF(AND(ISNUMBER(Model!$K10),ISNUMBER(Model!$M$10)),(Model!$K10-Model!$E10)/Model!$M$10),0)),100) -> 0.07271208385 | Z46: =MIN(MAX(0,Y46+IF(Z$45-$C$45<=Model!$M$10,IF(AND(ISNUMBER(Model!$K10),ISNUMBER(Model!$M$10)),(Model!$K10-Model!$E10)/Model!$M$10),0)),100) -> 0.07271208385 | AA46: =MIN(MAX(0,Z46+IF(AA$45-$C$45<=Model!$M$10,IF(AND(ISNUMBER(Model!$K10),ISNUMBER(Model!$M$10)),(Model!$K10-Model!$E10)/Model!$M$10),0)),100) -> 0.07271208385
A47: =Model!$C$4 -> Silkeborg | B47: 70-74 år | C47: =L23 -> 1.20271581 | E47: =MIN(MAX(0,C47+IF(E$45-$C$45<=Model!$M$10,IF(AND(ISNUMBER(Model!$K11),ISNUMBER(Model!$M$10)),(Model!$K11-Model!$E11)/Model!$M$10),0)),100) -> 1.188988986 | F47: =MIN(MAX(0,E47+IF(F$45-$C$45<=Model!$M$10,IF(AND(ISNUMBER(Model!$K11),ISNUMBER(Model!$M$10)),(Model!$K11-Model!$E11)/Model!$M$10),0)),100) -> 1.175262161 | G47: =MIN(MAX(0,F47+IF(G$45-$C$45<=Model!$M$10,IF(AND(ISNUMBER(Model!$K11),ISNUMBER(Model!$M$10)),(Model!$K11-Model!$E11)/Model!$M$10),0)),100) -> 1.161535337 | H47: =MIN(MAX(0,G47+IF(H$45-$C$45<=Model!$M$10,IF(AND(ISNUMBER(Model!$K11),ISNUMBER(Model!$M$10)),(Model!$K11-Model!$E11)/Model!$M$10),0)),100) -> 1.147808513 | I47: =MIN(MAX(0,H47+IF(I$45-$C$45<=Model!$M$10,IF(AND(ISNUMBER(Model!$K11),ISNUMBER(Model!$M$10)),(Model!$K11-Model!$E11)/Model!$M$10),0)),100) -> 1.134081689 | J47: =MIN(MAX(0,I47+IF(J$45-$C$45<=Model!$M$10,IF(AND(ISNUMBER(Model!$K11),ISNUMBER(Model!$M$10)),(Model!$K11-Model!$E11)/Model!$M$10),0)),100) -> 1.120354864 | K47: =MIN(MAX(0,J47+IF(K$45-$C$45<=Model!$M$10,IF(AND(ISNUMBER(Model!$K11),ISNUMBER(Model!$M$10)),(Model!$K11-Model!$E11)/Model!$M$10),0)),100) -> 1.10662804 | L47: =MIN(MAX(0,K47+IF(L$45-$C$45<=Model!$M$10,IF(AND(ISNUMBER(Model!$K11),ISNUMBER(Model!$M$10)),(Model!$K11-Model!$E11)/Model!$M$10),0)),100) -> 1.092901216 | M47: =MIN(MAX(0,L47+IF(M$45-$C$45<=Model!$M$10,IF(AND(ISNUMBER(Model!$K11),ISNUMBER(Model!$M$10)),(Model!$K11-Model!$E11)/Model!$M$10),0)),100) -> 1.092901216 | N47: =MIN(MAX(0,M47+IF(N$45-$C$45<=Model!$M$10,IF(AND(ISNUMBER(Model!$K11),ISNUMBER(Model!$M$10)),(Model!$K11-Model!$E11)/Model!$M$10),0)),100) -> 1.092901216 | O47: =MIN(MAX(0,N47+IF(O$45-$C$45<=Model!$M$10,IF(AND(ISNUMBER(Model!$K11),ISNUMBER(Model!$M$10)),(Model!$K11-Model!$E11)/Model!$M$10),0)),100) -> 1.092901216 | P47: =MIN(MAX(0,O47+IF(P$45-$C$45<=Model!$M$10,IF(AND(ISNUMBER(Model!$K11),ISNUMBER(Model!$M$10)),(Model!$K11-Model!$E11)/Model!$M$10),0)),100) -> 1.092901216 | Q47: =MIN(MAX(0,P47+IF(Q$45-$C$45<=Model!$M$10,IF(AND(ISNUMBER(Model!$K11),ISNUMBER(Model!$M$10)),(Model!$K11-Model!$E11)/Model!$M$10),0)),100) -> 1.092901216 | R47: =MIN(MAX(0,Q47+IF(R$45-$C$45<=Model!$M$10,IF(AND(ISNUMBER(Model!$K11),ISNUMBER(Model!$M$10)),(Model!$K11-Model!$E11)/Model!$M$10),0)),100) -> 1.092901216 | S47: =MIN(MAX(0,R47+IF(S$45-$C$45<=Model!$M$10,IF(AND(ISNUMBER(Model!$K11),ISNUMBER(Model!$M$10)),(Model!$K11-Model!$E11)/Model!$M$10),0)),100) -> 1.092901216 | T47: =MIN(MAX(0,S47+IF(T$45-$C$45<=Model!$M$10,IF(AND(ISNUMBER(Model!$K11),ISNUMBER(Model!$M$10)),(Model!$K11-Model!$E11)/Model!$M$10),0)),100) -> 1.092901216 | U47: =MIN(MAX(0,T47+IF(U$45-$C$45<=Model!$M$10,IF(AND(ISNUMBER(Model!$K11),ISNUMBER(Model!$M$10)),(Model!$K11-Model!$E11)/Model!$M$10),0)),100) -> 1.092901216 | V47: =MIN(MAX(0,U47+IF(V$45-$C$45<=Model!$M$10,IF(AND(ISNUMBER(Model!$K11),ISNUMBER(Model!$M$10)),(Model!$K11-Model!$E11)/Model!$M$10),0)),100) -> 1.092901216 | W47: =MIN(MAX(0,V47+IF(W$45-$C$45<=Model!$M$10,IF(AND(ISNUMBER(Model!$K11),ISNUMBER(Model!$M$10)),(Model!$K11-Model!$E11)/Model!$M$10),0)),100) -> 1.092901216 | X47: =MIN(MAX(0,W47+IF(X$45-$C$45<=Model!$M$10,IF(AND(ISNUMBER(Model!$K11),ISNUMBER(Model!$M$10)),(Model!$K11-Model!$E11)/Model!$M$10),0)),100) -> 1.092901216 | Y47: =MIN(MAX(0,X47+IF(Y$45-$C$45<=Model!$M$10,IF(AND(ISNUMBER(Model!$K11),ISNUMBER(Model!$M$10)),(Model!$K11-Model!$E11)/Model!$M$10),0)),100) -> 1.092901216 | Z47: =MIN(MAX(0,Y47+IF(Z$45-$C$45<=Model!$M$10,IF(AND(ISNUMBER(Model!$K11),ISNUMBER(Model!$M$10)),(Model!$K11-Model!$E11)/Model!$M$10),0)),100) -> 1.092901216 | AA47: =MIN(MAX(0,Z47+IF(AA$45-$C$45<=Model!$M$10,IF(AND(ISNUMBER(Model!$K11),ISNUMBER(Model!$M$10)),(Model!$K11-Model!$E11)/Model!$M$10),0)),100) -> 1.092901216
A48: =Model!$C$4 -> Silkeborg | B48: 75-79 år | C48: =L24 -> 2.300995025 | E48: =MIN(MAX(0,C48+IF(E$45-$C$45<=Model!$M$10,IF(AND(ISNUMBER(Model!$K12),ISNUMBER(Model!$M$10)),(Model!$K12-Model!$E12)/Model!$M$10),0)),100) -> 2.286038319 | F48: =MIN(MAX(0,E48+IF(F$45-$C$45<=Model!$M$10,IF(AND(ISNUMBER(Model!$K12),ISNUMBER(Model!$M$10)),(Model!$K12-Model!$E12)/Model!$M$10),0)),100) -> 2.271081614 | G48: =MIN(MAX(0,F48+IF(G$45-$C$45<=Model!$M$10,IF(AND(ISNUMBER(Model!$K12),ISNUMBER(Model!$M$10)),(Model!$K12-Model!$E12)/Model!$M$10),0)),100) -> 2.256124908 | H48: =MIN(MAX(0,G48+IF(H$45-$C$45<=Model!$M$10,IF(AND(ISNUMBER(Model!$K12),ISNUMBER(Model!$M$10)),(Model!$K12-Model!$E12)/Model!$M$10),0)),100) -> 2.241168203 | I48: =MIN(MAX(0,H48+IF(I$45-$C$45<=Model!$M$10,IF(AND(ISNUMBER(Model!$K12),ISNUMBER(Model!$M$10)),(Model!$K12-Model!$E12)/Model!$M$10),0)),100) -> 2.226211497 | J48: =MIN(MAX(0,I48+IF(J$45-$C$45<=Model!$M$10,IF(AND(ISNUMBER(Model!$K12),ISNUMBER(Model!$M$10)),(Model!$K12-Model!$E12)/Model!$M$10),0)),100) -> 2.211254792 | K48: =MIN(MAX(0,J48+IF(K$45-$C$45<=Model!$M$10,IF(AND(ISNUMBER(Model!$K12),ISNUMBER(Model!$M$10)),(Model!$K12-Model!$E12)/Model!$M$10),0)),100) -> 2.196298086 | L48: =MIN(MAX(0,K48+IF(L$45-$C$45<=Model!$M$10,IF(AND(ISNUMBER(Model!$K12),ISNUMBER(Model!$M$10)),(Model!$K12-Model!$E12)/Model!$M$10),0)),100) -> 2.181341381 | M48: =MIN(MAX(0,L48+IF(M$45-$C$45<=Model!$M$10,IF(AND(ISNUMBER(Model!$K12),ISNUMBER(Model!$M$10)),(Model!$K12-Model!$E12)/Model!$M$10),0)),100) -> 2.181341381 | N48: =MIN(MAX(0,M48+IF(N$45-$C$45<=Model!$M$10,IF(AND(ISNUMBER(Model!$K12),ISNUMBER(Model!$M$10)),(Model!$K12-Model!$E12)/Model!$M$10),0)),100) -> 2.181341381 | O48: =MIN(MAX(0,N48+IF(O$45-$C$45<=Model!$M$10,IF(AND(ISNUMBER(Model!$K12),ISNUMBER(Model!$M$10)),(Model!$K12-Model!$E12)/Model!$M$10),0)),100) -> 2.181341381 | P48: =MIN(MAX(0,O48+IF(P$45-$C$45<=Model!$M$10,IF(AND(ISNUMBER(Model!$K12),ISNUMBER(Model!$M$10)),(Model!$K12-Model!$E12)/Model!$M$10),0)),100) -> 2.181341381 | Q48: =MIN(MAX(0,P48+IF(Q$45-$C$45<=Model!$M$10,IF(AND(ISNUMBER(Model!$K12),ISNUMBER(Model!$M$10)),(Model!$K12-Model!$E12)/Model!$M$10),0)),100) -> 2.181341381 | R48: =MIN(MAX(0,Q48+IF(R$45-$C$45<=Model!$M$10,IF(AND(ISNUMBER(Model!$K12),ISNUMBER(Model!$M$10)),(Model!$K12-Model!$E12)/Model!$M$10),0)),100) -> 2.181341381 | S48: =MIN(MAX(0,R48+IF(S$45-$C$45<=Model!$M$10,IF(AND(ISNUMBER(Model!$K12),ISNUMBER(Model!$M$10)),(Model!$K12-Model!$E12)/Model!$M$10),0)),100) -> 2.181341381 | T48: =MIN(MAX(0,S48+IF(T$45-$C$45<=Model!$M$10,IF(AND(ISNUMBER(Model!$K12),ISNUMBER(Model!$M$10)),(Model!$K12-Model!$E12)/Model!$M$10),0)),100) -> 2.181341381 | U48: =MIN(MAX(0,T48+IF(U$45-$C$45<=Model!$M$10,IF(AND(ISNUMBER(Model!$K12),ISNUMBER(Model!$M$10)),(Model!$K12-Model!$E12)/Model!$M$10),0)),100) -> 2.181341381 | V48: =MIN(MAX(0,U48+IF(V$45-$C$45<=Model!$M$10,IF(AND(ISNUMBER(Model!$K12),ISNUMBER(Model!$M$10)),(Model!$K12-Model!$E12)/Model!$M$10),0)),100) -> 2.181341381 | W48: =MIN(MAX(0,V48+IF(W$45-$C$45<=Model!$M$10,IF(AND(ISNUMBER(Model!$K12),ISNUMBER(Model!$M$10)),(Model!$K12-Model!$E12)/Model!$M$10),0)),100) -> 2.181341381 | X48: =MIN(MAX(0,W48+IF(X$45-$C$45<=Model!$M$10,IF(AND(ISNUMBER(Model!$K12),ISNUMBER(Model!$M$10)),(Model!$K12-Model!$E12)/Model!$M$10),0)),100) -> 2.181341381 | Y48: =MIN(MAX(0,X48+IF(Y$45-$C$45<=Model!$M$10,IF(AND(ISNUMBER(Model!$K12),ISNUMBER(Model!$M$10)),(Model!$K12-Model!$E12)/Model!$M$10),0)),100) -> 2.181341381 | Z48: =MIN(MAX(0,Y48+IF(Z$45-$C$45<=Model!$M$10,IF(AND(ISNUMBER(Model!$K12),ISNUMBER(Model!$M$10)),(Model!$K12-Model!$E12)/Model!$M$10),0)),100) -> 2.181341381 | AA48: =MIN(MAX(0,Z48+IF(AA$45-$C$45<=Model!$M$10,IF(AND(ISNUMBER(Model!$K12),ISNUMBER(Model!$M$10)),(Model!$K12-Model!$E12)/Model!$M$10),0)),100) -> 2.181341381
A49: =Model!$C$4 -> Silkeborg | B49: 80-84 år | C49: =L25 -> 4.640116916 | E49: =MIN(MAX(0,C49+IF(E$45-$C$45<=Model!$M$10,IF(AND(ISNUMBER(Model!$K13),ISNUMBER(Model!$M$10)),(Model!$K13-Model!$E13)/Model!$M$10),0)),100) -> 4.611232022 | F49: =MIN(MAX(0,E49+IF(F$45-$C$45<=Model!$M$10,IF(AND(ISNUMBER(Model!$K13),ISNUMBER(Model!$M$10)),(Model!$K13-Model!$E13)/Model!$M$10),0)),100) -> 4.582347128 | G49: =MIN(MAX(0,F49+IF(G$45-$C$45<=Model!$M$10,IF(AND(ISNUMBER(Model!$K13),ISNUMBER(Model!$M$10)),(Model!$K13-Model!$E13)/Model!$M$10),0)),100) -> 4.553462233 | H49: =MIN(MAX(0,G49+IF(H$45-$C$45<=Model!$M$10,IF(AND(ISNUMBER(Model!$K13),ISNUMBER(Model!$M$10)),(Model!$K13-Model!$E13)/Model!$M$10),0)),100) -> 4.524577339 | I49: =MIN(MAX(0,H49+IF(I$45-$C$45<=Model!$M$10,IF(AND(ISNUMBER(Model!$K13),ISNUMBER(Model!$M$10)),(Model!$K13-Model!$E13)/Model!$M$10),0)),100) -> 4.495692444 | J49: =MIN(MAX(0,I49+IF(J$45-$C$45<=Model!$M$10,IF(AND(ISNUMBER(Model!$K13),ISNUMBER(Model!$M$10)),(Model!$K13-Model!$E13)/Model!$M$10),0)),100) -> 4.46680755 | K49: =MIN(MAX(0,J49+IF(K$45-$C$45<=Model!$M$10,IF(AND(ISNUMBER(Model!$K13),ISNUMBER(Model!$M$10)),(Model!$K13-Model!$E13)/Model!$M$10),0)),100) -> 4.437922656 | L49: =MIN(MAX(0,K49+IF(L$45-$C$45<=Model!$M$10,IF(AND(ISNUMBER(Model!$K13),ISNUMBER(Model!$M$10)),(Model!$K13-Model!$E13)/Model!$M$10),0)),100) -> 4.409037761 | M49: =MIN(MAX(0,L49+IF(M$45-$C$45<=Model!$M$10,IF(AND(ISNUMBER(Model!$K13),ISNUMBER(Model!$M$10)),(Model!$K13-Model!$E13)/Model!$M$10),0)),100) -> 4.409037761 | N49: =MIN(MAX(0,M49+IF(N$45-$C$45<=Model!$M$10,IF(AND(ISNUMBER(Model!$K13),ISNUMBER(Model!$M$10)),(Model!$K13-Model!$E13)/Model!$M$10),0)),100) -> 4.409037761 | O49: =MIN(MAX(0,N49+IF(O$45-$C$45<=Model!$M$10,IF(AND(ISNUMBER(Model!$K13),ISNUMBER(Model!$M$10)),(Model!$K13-Model!$E13)/Model!$M$10),0)),100) -> 4.409037761 | P49: =MIN(MAX(0,O49+IF(P$45-$C$45<=Model!$M$10,IF(AND(ISNUMBER(Model!$K13),ISNUMBER(Model!$M$10)),(Model!$K13-Model!$E13)/Model!$M$10),0)),100) -> 4.409037761 | Q49: =MIN(MAX(0,P49+IF(Q$45-$C$45<=Model!$M$10,IF(AND(ISNUMBER(Model!$K13),ISNUMBER(Model!$M$10)),(Model!$K13-Model!$E13)/Model!$M$10),0)),100) -> 4.409037761 | R49: =MIN(MAX(0,Q49+IF(R$45-$C$45<=Model!$M$10,IF(AND(ISNUMBER(Model!$K13),ISNUMBER(Model!$M$10)),(Model!$K13-Model!$E13)/Model!$M$10),0)),100) -> 4.409037761 | S49: =MIN(MAX(0,R49+IF(S$45-$C$45<=Model!$M$10,IF(AND(ISNUMBER(Model!$K13),ISNUMBER(Model!$M$10)),(Model!$K13-Model!$E13)/Model!$M$10),0)),100) -> 4.409037761 | T49: =MIN(MAX(0,S49+IF(T$45-$C$45<=Model!$M$10,IF(AND(ISNUMBER(Model!$K13),ISNUMBER(Model!$M$10)),(Model!$K13-Model!$E13)/Model!$M$10),0)),100) -> 4.409037761 | U49: =MIN(MAX(0,T49+IF(U$45-$C$45<=Model!$M$10,IF(AND(ISNUMBER(Model!$K13),ISNUMBER(Model!$M$10)),(Model!$K13-Model!$E13)/Model!$M$10),0)),100) -> 4.409037761 | V49: =MIN(MAX(0,U49+IF(V$45-$C$45<=Model!$M$10,IF(AND(ISNUMBER(Model!$K13),ISNUMBER(Model!$M$10)),(Model!$K13-Model!$E13)/Model!$M$10),0)),100) -> 4.409037761 | W49: =MIN(MAX(0,V49+IF(W$45-$C$45<=Model!$M$10,IF(AND(ISNUMBER(Model!$K13),ISNUMBER(Model!$M$10)),(Model!$K13-Model!$E13)/Model!$M$10),0)),100) -> 4.409037761 | X49: =MIN(MAX(0,W49+IF(X$45-$C$45<=Model!$M$10,IF(AND(ISNUMBER(Model!$K13),ISNUMBER(Model!$M$10)),(Model!$K13-Model!$E13)/Model!$M$10),0)),100) -> 4.409037761 | Y49: =MIN(MAX(0,X49+IF(Y$45-$C$45<=Model!$M$10,IF(AND(ISNUMBER(Model!$K13),ISNUMBER(Model!$M$10)),(Model!$K13-Model!$E13)/Model!$M$10),0)),100) -> 4.409037761 | Z49: =MIN(MAX(0,Y49+IF(Z$45-$C$45<=Model!$M$10,IF(AND(ISNUMBER(Model!$K13),ISNUMBER(Model!$M$10)),(Model!$K13-Model!$E13)/Model!$M$10),0)),100) -> 4.409037761 | AA49: =MIN(MAX(0,Z49+IF(AA$45-$C$45<=Model!$M$10,IF(AND(ISNUMBER(Model!$K13),ISNUMBER(Model!$M$10)),(Model!$K13-Model!$E13)/Model!$M$10),0)),100) -> 4.409037761
A50: =Model!$C$4 -> Silkeborg | B50: 85-89 år | C50: =L26 -> 8.327645051 | E50: =MIN(MAX(0,C50+IF(E$45-$C$45<=Model!$M$10,IF(AND(ISNUMBER(Model!$K14),ISNUMBER(Model!$M$10)),(Model!$K14-Model!$E14)/Model!$M$10),0)),100) -> 8.495929586 | F50: =MIN(MAX(0,E50+IF(F$45-$C$45<=Model!$M$10,IF(AND(ISNUMBER(Model!$K14),ISNUMBER(Model!$M$10)),(Model!$K14-Model!$E14)/Model!$M$10),0)),100) -> 8.664214121 | G50: =MIN(MAX(0,F50+IF(G$45-$C$45<=Model!$M$10,IF(AND(ISNUMBER(Model!$K14),ISNUMBER(Model!$M$10)),(Model!$K14-Model!$E14)/Model!$M$10),0)),100) -> 8.832498656 | H50: =MIN(MAX(0,G50+IF(H$45-$C$45<=Model!$M$10,IF(AND(ISNUMBER(Model!$K14),ISNUMBER(Model!$M$10)),(Model!$K14-Model!$E14)/Model!$M$10),0)),100) -> 9.000783191 | I50: =MIN(MAX(0,H50+IF(I$45-$C$45<=Model!$M$10,IF(AND(ISNUMBER(Model!$K14),ISNUMBER(Model!$M$10)),(Model!$K14-Model!$E14)/Model!$M$10),0)),100) -> 9.169067725 | J50: =MIN(MAX(0,I50+IF(J$45-$C$45<=Model!$M$10,IF(AND(ISNUMBER(Model!$K14),ISNUMBER(Model!$M$10)),(Model!$K14-Model!$E14)/Model!$M$10),0)),100) -> 9.33735226 | K50: =MIN(MAX(0,J50+IF(K$45-$C$45<=Model!$M$10,IF(AND(ISNUMBER(Model!$K14),ISNUMBER(Model!$M$10)),(Model!$K14-Model!$E14)/Model!$M$10),0)),100) -> 9.505636795 | L50: =MIN(MAX(0,K50+IF(L$45-$C$45<=Model!$M$10,IF(AND(ISNUMBER(Model!$K14),ISNUMBER(Model!$M$10)),(Model!$K14-Model!$E14)/Model!$M$10),0)),100) -> 9.67392133 | M50: =MIN(MAX(0,L50+IF(M$45-$C$45<=Model!$M$10,IF(AND(ISNUMBER(Model!$K14),ISNUMBER(Model!$M$10)),(Model!$K14-Model!$E14)/Model!$M$10),0)),100) -> 9.67392133 | N50: =MIN(MAX(0,M50+IF(N$45-$C$45<=Model!$M$10,IF(AND(ISNUMBER(Model!$K14),ISNUMBER(Model!$M$10)),(Model!$K14-Model!$E14)/Model!$M$10),0)),100) -> 9.67392133 | O50: =MIN(MAX(0,N50+IF(O$45-$C$45<=Model!$M$10,IF(AND(ISNUMBER(Model!$K14),ISNUMBER(Model!$M$10)),(Model!$K14-Model!$E14)/Model!$M$10),0)),100) -> 9.67392133 | P50: =MIN(MAX(0,O50+IF(P$45-$C$45<=Model!$M$10,IF(AND(ISNUMBER(Model!$K14),ISNUMBER(Model!$M$10)),(Model!$K14-Model!$E14)/Model!$M$10),0)),100) -> 9.67392133 | Q50: =MIN(MAX(0,P50+IF(Q$45-$C$45<=Model!$M$10,IF(AND(ISNUMBER(Model!$K14),ISNUMBER(Model!$M$10)),(Model!$K14-Model!$E14)/Model!$M$10),0)),100) -> 9.67392133 | R50: =MIN(MAX(0,Q50+IF(R$45-$C$45<=Model!$M$10,IF(AND(ISNUMBER(Model!$K14),ISNUMBER(Model!$M$10)),(Model!$K14-Model!$E14)/Model!$M$10),0)),100) -> 9.67392133 | S50: =MIN(MAX(0,R50+IF(S$45-$C$45<=Model!$M$10,IF(AND(ISNUMBER(Model!$K14),ISNUMBER(Model!$M$10)),(Model!$K14-Model!$E14)/Model!$M$10),0)),100) -> 9.67392133 | T50: =MIN(MAX(0,S50+IF(T$45-$C$45<=Model!$M$10,IF(AND(ISNUMBER(Model!$K14),ISNUMBER(Model!$M$10)),(Model!$K14-Model!$E14)/Model!$M$10),0)),100) -> 9.67392133 | U50: =MIN(MAX(0,T50+IF(U$45-$C$45<=Model!$M$10,IF(AND(ISNUMBER(Model!$K14),ISNUMBER(Model!$M$10)),(Model!$K14-Model!$E14)/Model!$M$10),0)),100) -> 9.67392133 | V50: =MIN(MAX(0,U50+IF(V$45-$C$45<=Model!$M$10,IF(AND(ISNUMBER(Model!$K14),ISNUMBER(Model!$M$10)),(Model!$K14-Model!$E14)/Model!$M$10),0)),100) -> 9.67392133 | W50: =MIN(MAX(0,V50+IF(W$45-$C$45<=Model!$M$10,IF(AND(ISNUMBER(Model!$K14),ISNUMBER(Model!$M$10)),(Model!$K14-Model!$E14)/Model!$M$10),0)),100) -> 9.67392133 | X50: =MIN(MAX(0,W50+IF(X$45-$C$45<=Model!$M$10,IF(AND(ISNUMBER(Model!$K14),ISNUMBER(Model!$M$10)),(Model!$K14-Model!$E14)/Model!$M$10),0)),100) -> 9.67392133 | Y50: =MIN(MAX(0,X50+IF(Y$45-$C$45<=Model!$M$10,IF(AND(ISNUMBER(Model!$K14),ISNUMBER(Model!$M$10)),(Model!$K14-Model!$E14)/Model!$M$10),0)),100) -> 9.67392133 | Z50: =MIN(MAX(0,Y50+IF(Z$45-$C$45<=Model!$M$10,IF(AND(ISNUMBER(Model!$K14),ISNUMBER(Model!$M$10)),(Model!$K14-Model!$E14)/Model!$M$10),0)),100) -> 9.67392133 | AA50: =MIN(MAX(0,Z50+IF(AA$45-$C$45<=Model!$M$10,IF(AND(ISNUMBER(Model!$K14),ISNUMBER(Model!$M$10)),(Model!$K14-Model!$E14)/Model!$M$10),0)),100) -> 9.67392133
A51: =Model!$C$4 -> Silkeborg | B51: 90-95 år | C51: 20.56737589 | E51: =MIN(MAX(0,C51+IF(E$45-$C$45<=Model!$M$10,IF(AND(ISNUMBER(Model!$K15),ISNUMBER(Model!$M$10)),(Model!$K15-Model!$E15)/Model!$M$10),0)),100) -> 20.43970708 | F51: =MIN(MAX(0,E51+IF(F$45-$C$45<=Model!$M$10,IF(AND(ISNUMBER(Model!$K15),ISNUMBER(Model!$M$10)),(Model!$K15-Model!$E15)/Model!$M$10),0)),100) -> 20.31203827 | G51: =MIN(MAX(0,F51+IF(G$45-$C$45<=Model!$M$10,IF(AND(ISNUMBER(Model!$K15),ISNUMBER(Model!$M$10)),(Model!$K15-Model!$E15)/Model!$M$10),0)),100) -> 20.18436946 | H51: =MIN(MAX(0,G51+IF(H$45-$C$45<=Model!$M$10,IF(AND(ISNUMBER(Model!$K15),ISNUMBER(Model!$M$10)),(Model!$K15-Model!$E15)/Model!$M$10),0)),100) -> 20.05670066 | I51: =MIN(MAX(0,H51+IF(I$45-$C$45<=Model!$M$10,IF(AND(ISNUMBER(Model!$K15),ISNUMBER(Model!$M$10)),(Model!$K15-Model!$E15)/Model!$M$10),0)),100) -> 19.92903185 | J51: =MIN(MAX(0,I51+IF(J$45-$C$45<=Model!$M$10,IF(AND(ISNUMBER(Model!$K15),ISNUMBER(Model!$M$10)),(Model!$K15-Model!$E15)/Model!$M$10),0)),100) -> 19.80136304 | K51: =MIN(MAX(0,J51+IF(K$45-$C$45<=Model!$M$10,IF(AND(ISNUMBER(Model!$K15),ISNUMBER(Model!$M$10)),(Model!$K15-Model!$E15)/Model!$M$10),0)),100) -> 19.67369424 | L51: =MIN(MAX(0,K51+IF(L$45-$C$45<=Model!$M$10,IF(AND(ISNUMBER(Model!$K15),ISNUMBER(Model!$M$10)),(Model!$K15-Model!$E15)/Model!$M$10),0)),100) -> 19.54602543 | M51: =MIN(MAX(0,L51+IF(M$45-$C$45<=Model!$M$10,IF(AND(ISNUMBER(Model!$K15),ISNUMBER(Model!$M$10)),(Model!$K15-Model!$E15)/Model!$M$10),0)),100) -> 19.54602543 | N51: =MIN(MAX(0,M51+IF(N$45-$C$45<=Model!$M$10,IF(AND(ISNUMBER(Model!$K15),ISNUMBER(Model!$M$10)),(Model!$K15-Model!$E15)/Model!$M$10),0)),100) -> 19.54602543 | O51: =MIN(MAX(0,N51+IF(O$45-$C$45<=Model!$M$10,IF(AND(ISNUMBER(Model!$K15),ISNUMBER(Model!$M$10)),(Model!$K15-Model!$E15)/Model!$M$10),0)),100) -> 19.54602543 | P51: =MIN(MAX(0,O51+IF(P$45-$C$45<=Model!$M$10,IF(AND(ISNUMBER(Model!$K15),ISNUMBER(Model!$M$10)),(Model!$K15-Model!$E15)/Model!$M$10),0)),100) -> 19.54602543 | Q51: =MIN(MAX(0,P51+IF(Q$45-$C$45<=Model!$M$10,IF(AND(ISNUMBER(Model!$K15),ISNUMBER(Model!$M$10)),(Model!$K15-Model!$E15)/Model!$M$10),0)),100) -> 19.54602543 | R51: =MIN(MAX(0,Q51+IF(R$45-$C$45<=Model!$M$10,IF(AND(ISNUMBER(Model!$K15),ISNUMBER(Model!$M$10)),(Model!$K15-Model!$E15)/Model!$M$10),0)),100) -> 19.54602543 | S51: =MIN(MAX(0,R51+IF(S$45-$C$45<=Model!$M$10,IF(AND(ISNUMBER(Model!$K15),ISNUMBER(Model!$M$10)),(Model!$K15-Model!$E15)/Model!$M$10),0)),100) -> 19.54602543 | T51: =MIN(MAX(0,S51+IF(T$45-$C$45<=Model!$M$10,IF(AND(ISNUMBER(Model!$K15),ISNUMBER(Model!$M$10)),(Model!$K15-Model!$E15)/Model!$M$10),0)),100) -> 19.54602543 | U51: =MIN(MAX(0,T51+IF(U$45-$C$45<=Model!$M$10,IF(AND(ISNUMBER(Model!$K15),ISNUMBER(Model!$M$10)),(Model!$K15-Model!$E15)/Model!$M$10),0)),100) -> 19.54602543 | V51: =MIN(MAX(0,U51+IF(V$45-$C$45<=Model!$M$10,IF(AND(ISNUMBER(Model!$K15),ISNUMBER(Model!$M$10)),(Model!$K15-Model!$E15)/Model!$M$10),0)),100) -> 19.54602543 | W51: =MIN(MAX(0,V51+IF(W$45-$C$45<=Model!$M$10,IF(AND(ISNUMBER(Model!$K15),ISNUMBER(Model!$M$10)),(Model!$K15-Model!$E15)/Model!$M$10),0)),100) -> 19.54602543 | X51: =MIN(MAX(0,W51+IF(X$45-$C$45<=Model!$M$10,IF(AND(ISNUMBER(Model!$K15),ISNUMBER(Model!$M$10)),(Model!$K15-Model!$E15)/Model!$M$10),0)),100) -> 19.54602543 | Y51: =MIN(MAX(0,X51+IF(Y$45-$C$45<=Model!$M$10,IF(AND(ISNUMBER(Model!$K15),ISNUMBER(Model!$M$10)),(Model!$K15-Model!$E15)/Model!$M$10),0)),100) -> 19.54602543 | Z51: =MIN(MAX(0,Y51+IF(Z$45-$C$45<=Model!$M$10,IF(AND(ISNUMBER(Model!$K15),ISNUMBER(Model!$M$10)),(Model!$K15-Model!$E15)/Model!$M$10),0)),100) -> 19.54602543 | AA51: =MIN(MAX(0,Z51+IF(AA$45-$C$45<=Model!$M$10,IF(AND(ISNUMBER(Model!$K15),ISNUMBER(Model!$M$10)),(Model!$K15-Model!$E15)/Model!$M$10),0)),100) -> 19.54602543
A52: =Model!$C$4 -> Silkeborg | B52: 95+ år | C52: =L28 -> 35.96491228 | E52: =MIN(MAX(0,C52+IF(E$45-$C$45<=Model!$M$10,IF(AND(ISNUMBER(Model!$K16),ISNUMBER(Model!$M$10)),(Model!$K16-Model!$E16)/Model!$M$10),0)),100) -> 34.54522435 | F52: =MIN(MAX(0,E52+IF(F$45-$C$45<=Model!$M$10,IF(AND(ISNUMBER(Model!$K16),ISNUMBER(Model!$M$10)),(Model!$K16-Model!$E16)/Model!$M$10),0)),100) -> 33.12553642 | G52: =MIN(MAX(0,F52+IF(G$45-$C$45<=Model!$M$10,IF(AND(ISNUMBER(Model!$K16),ISNUMBER(Model!$M$10)),(Model!$K16-Model!$E16)/Model!$M$10),0)),100) -> 31.70584849 | H52: =MIN(MAX(0,G52+IF(H$45-$C$45<=Model!$M$10,IF(AND(ISNUMBER(Model!$K16),ISNUMBER(Model!$M$10)),(Model!$K16-Model!$E16)/Model!$M$10),0)),100) -> 30.28616056 | I52: =MIN(MAX(0,H52+IF(I$45-$C$45<=Model!$M$10,IF(AND(ISNUMBER(Model!$K16),ISNUMBER(Model!$M$10)),(Model!$K16-Model!$E16)/Model!$M$10),0)),100) -> 28.86647263 | J52: =MIN(MAX(0,I52+IF(J$45-$C$45<=Model!$M$10,IF(AND(ISNUMBER(Model!$K16),ISNUMBER(Model!$M$10)),(Model!$K16-Model!$E16)/Model!$M$10),0)),100) -> 27.44678469 | K52: =MIN(MAX(0,J52+IF(K$45-$C$45<=Model!$M$10,IF(AND(ISNUMBER(Model!$K16),ISNUMBER(Model!$M$10)),(Model!$K16-Model!$E16)/Model!$M$10),0)),100) -> 26.02709676 | L52: =MIN(MAX(0,K52+IF(L$45-$C$45<=Model!$M$10,IF(AND(ISNUMBER(Model!$K16),ISNUMBER(Model!$M$10)),(Model!$K16-Model!$E16)/Model!$M$10),0)),100) -> 24.60740883 | M52: =MIN(MAX(0,L52+IF(M$45-$C$45<=Model!$M$10,IF(AND(ISNUMBER(Model!$K16),ISNUMBER(Model!$M$10)),(Model!$K16-Model!$E16)/Model!$M$10),0)),100) -> 24.60740883 | N52: =MIN(MAX(0,M52+IF(N$45-$C$45<=Model!$M$10,IF(AND(ISNUMBER(Model!$K16),ISNUMBER(Model!$M$10)),(Model!$K16-Model!$E16)/Model!$M$10),0)),100) -> 24.60740883 | O52: =MIN(MAX(0,N52+IF(O$45-$C$45<=Model!$M$10,IF(AND(ISNUMBER(Model!$K16),ISNUMBER(Model!$M$10)),(Model!$K16-Model!$E16)/Model!$M$10),0)),100) -> 24.60740883 | P52: =MIN(MAX(0,O52+IF(P$45-$C$45<=Model!$M$10,IF(AND(ISNUMBER(Model!$K16),ISNUMBER(Model!$M$10)),(Model!$K16-Model!$E16)/Model!$M$10),0)),100) -> 24.60740883 | Q52: =MIN(MAX(0,P52+IF(Q$45-$C$45<=Model!$M$10,IF(AND(ISNUMBER(Model!$K16),ISNUMBER(Model!$M$10)),(Model!$K16-Model!$E16)/Model!$M$10),0)),100) -> 24.60740883 | R52: =MIN(MAX(0,Q52+IF(R$45-$C$45<=Model!$M$10,IF(AND(ISNUMBER(Model!$K16),ISNUMBER(Model!$M$10)),(Model!$K16-Model!$E16)/Model!$M$10),0)),100) -> 24.60740883 | S52: =MIN(MAX(0,R52+IF(S$45-$C$45<=Model!$M$10,IF(AND(ISNUMBER(Model!$K16),ISNUMBER(Model!$M$10)),(Model!$K16-Model!$E16)/Model!$M$10),0)),100) -> 24.60740883 | T52: =MIN(MAX(0,S52+IF(T$45-$C$45<=Model!$M$10,IF(AND(ISNUMBER(Model!$K16),ISNUMBER(Model!$M$10)),(Model!$K16-Model!$E16)/Model!$M$10),0)),100) -> 24.60740883 | U52: =MIN(MAX(0,T52+IF(U$45-$C$45<=Model!$M$10,IF(AND(ISNUMBER(Model!$K16),ISNUMBER(Model!$M$10)),(Model!$K16-Model!$E16)/Model!$M$10),0)),100) -> 24.60740883 | V52: =MIN(MAX(0,U52+IF(V$45-$C$45<=Model!$M$10,IF(AND(ISNUMBER(Model!$K16),ISNUMBER(Model!$M$10)),(Model!$K16-Model!$E16)/Model!$M$10),0)),100) -> 24.60740883 | W52: =MIN(MAX(0,V52+IF(W$45-$C$45<=Model!$M$10,IF(AND(ISNUMBER(Model!$K16),ISNUMBER(Model!$M$10)),(Model!$K16-Model!$E16)/Model!$M$10),0)),100) -> 24.60740883 | X52: =MIN(MAX(0,W52+IF(X$45-$C$45<=Model!$M$10,IF(AND(ISNUMBER(Model!$K16),ISNUMBER(Model!$M$10)),(Model!$K16-Model!$E16)/Model!$M$10),0)),100) -> 24.60740883 | Y52: =MIN(MAX(0,X52+IF(Y$45-$C$45<=Model!$M$10,IF(AND(ISNUMBER(Model!$K16),ISNUMBER(Model!$M$10)),(Model!$K16-Model!$E16)/Model!$M$10),0)),100) -> 24.60740883 | Z52: =MIN(MAX(0,Y52+IF(Z$45-$C$45<=Model!$M$10,IF(AND(ISNUMBER(Model!$K16),ISNUMBER(Model!$M$10)),(Model!$K16-Model!$E16)/Model!$M$10),0)),100) -> 24.60740883 | AA52: =MIN(MAX(0,Z52+IF(AA$45-$C$45<=Model!$M$10,IF(AND(ISNUMBER(Model!$K16),ISNUMBER(Model!$M$10)),(Model!$K16-Model!$E16)/Model!$M$10),0)),100) -> 24.60740883
A54: =Model!$C$4 -> Silkeborg | B54: I alt over 70 | C54: =SUM(C62:C68)/SUM(C35:C41)*100 -> 3.896628306 | E54: =SUM(E62:E68)/SUM(E35:E41)*100 -> 4.021455256 | F54: =SUM(F62:F68)/SUM(F35:F41)*100 -> 4.066312951 | G54: 4.116783248 | H54: 4.173797819 | I54: 4.244702305 | J54: 4.342866704 | K54: =SUM(K62:K68)/SUM(K35:K41)*100 -> 4.408552303 | L54: 4.510585065 | M54: 4.606177124 | N54: 4.658906599 | O54: 4.711957599 | P54: 4.756950123 | Q54: 4.789139683 | R54: 4.849895742 | S54: 4.888244212 | T54: 4.938488793 | U54: 4.978958184 | V54: 5.012601137 | W54: 5.036163863 | X54: 5.042584608 | Y54: 5.06388908 | Z54: 5.082855037 | AA54: =SUM(AA62:AA68)/SUM(AA35:AA41)*100 -> 5.148141318
A56: Forventede behovsgrader | B56: I alt over 70 | C56: =SUMPRODUCT(C35:C41,$L23:$L29)/SUM(C35:C41) -> 3.896628306 | E56: =SUMPRODUCT(E35:E41,$L23:$L29)/SUM(E35:E41) -> 4.038437443 | F56: 4.099339165 | G56: 4.16782555 | H56: 4.237834938 | I56: 4.321202176 | J56: 4.435064481 | K56: 4.504004262 | L56: 4.611110176 | M56: 4.70693157 | N56: 4.767013112 | O56: 4.831182104 | P56: 4.891846196 | Q56: 4.936144153 | R56: 5.018296994 | S56: 5.070624563 | T56: 5.138160955 | U56: 5.197129622 | V56: 5.244677145 | W56: 5.281377447 | X56: 5.290298243 | Y56: 5.315394705 | Z56: 5.333360073 | AA56: 5.405596289
A57: Forskel til forventet | B57: I alt over 70 | C57: =C54-C56 -> 0 | E57: =E54-E56 -> -0.01698218776 | F57: =F54-F56 -> -0.0330262136 | G57: -0.05104230121 | H57: -0.06403711985 | I57: -0.07649987064 | J57: -0.09219777667 | K57: -0.09545195866 | L57: -0.1005251107 | M57: -0.1007544458 | N57: -0.1081065136 | O57: -0.1192245051 | P57: -0.1348960727 | Q57: -0.14700447 | R57: -0.1684012521 | S57: -0.1823803518 | T57: -0.1996721622 | U57: -0.2181714383 | V57: -0.2320760081 | W57: -0.2452135837 | X57: =X54-X56 -> -0.2477136346 | Y57: =Y54-Y56 -> -0.2515056247 | Z57: -0.2505050359 | AA57: -0.2574549714
A59: Behovsfremskrivning
A60: Kommune | B60: Aldersgruppe | C60: =C33 -> 2024 | E60: 2025 | F60: 2026 | G60: 2027 | H60: 2028 | I60: 2029 | J60: 2030 | K60: 2031 | L60: 2032 | M60: 2033 | N60: 2034 | O60: 2035 | P60: 2036 | Q60: 2037 | R60: 2038 | S60: 2039 | T60: 2040 | U60: 2041 | V60: 2042 | W60: 2043 | X60: 2044 | Y60: 2045 | Z60: 2046 | AA60: 2047
A61: =Model!$C$4 -> Silkeborg | B61: Under 70 år | C61: =C34*(C46/100) -> 58 | E61: =E34*(E46/100) -> 59.30495927 | F61: =F34*(F46/100) -> 60.33645382 | G61: 61.56225158 | H61: 62.82205588 | I61: 64.12708446 | J61: 65.44252302 | K61: 66.76757316 | L61: 68.12467848 | M61: 68.7849042 | N61: 69.41095524 | O61: 70.02173674 | P61: 70.60416054 | Q61: 71.07315348 | R61: 71.59013639 | S61: 72.13329566 | T61: 72.6582769 | U61: 73.12654272 | V61: 73.46828952 | W61: 73.75113952 | X61: 74.06380148 | Y61: 74.35537694 | Z61: 74.6018709 | AA61: 74.88544803
A62: =Model!$C$4 -> Silkeborg | B62: 70-74 år | C62: =C35*(C47/100) -> 62 | E62: =E35*(E47/100) -> 61.31616199 | F62: 60.64352753 | G62: 60.8063749 | H62: 61.01750054 | I62: 60.69605197 | J62: 60.28629525 | K62: 60.27802934 | L62: 59.10409775 | M62: 60.52486933 | N62: 62.96203904 | O62: 65.50849887 | P62: 68.25168093 | Q62: 72.29541542 | R62: 73.77083207 | S62: 73.55225182 | T62: 72.68885986 | U62: 71.50852655 | V62: 70.6560636 | W62: 71.1041531 | X62: 71.86918395 | Y62: 73.09323331 | Z62: 74.32821169 | AA62: 73.41017466
A63: =Model!$C$4 -> Silkeborg | B63: 75-79 år | C63: =C36*(C48/100) -> 111 | E63: 111.6958323 | F63: 109.6932419 | G63: 107.7074031 | H63: 104.6401434 | I63: 103.6969315 | J63: 103.3319364 | K63: 103.1820841 | L63: 104.3117448 | M63: 106.1222582 | N63: =N36*(N48/100) -> 107.1038618 | O63: 107.9327715 | P63: 109.4815239 | Q63: 109.0888824 | R63: 112.0118799 | S63: 116.7453907 | T63: 121.6534088 | U63: 126.9322549 | V63: 134.5015095 | W63: 137.3808802 | X63: 137.1191192 | Y63: 135.5921802 | Z63: 133.6071596 | AA63: 132.2329145
A64: =Model!$C$4 -> Silkeborg | B64: 80-84 år | C64: 127 | E64: 136.3541309 | F64: 148.1014592 | G64: 161.2836323 | H64: 171.8886931 | I64: 176.4559284 | J64: 177.8236086 | K64: 175.3423241 | L64: 172.8783706 | M64: 169.9243153 | N64: 170.1888576 | O64: 171.3352074 | P64: 172.8783706 | Q64: 176.5819623 | R64: 180.1973733 | S64: 182.4459826 | T64: 184.253688 | U64: 187.4281952 | V64: 187.5604664 | W64: 193.3803962 | X64: 202.1543814 | Y64: 211.2369991 | Z64: 220.8487015 | AA64: 234.4285378
A65: =Model!$C$4 -> Silkeborg | B65: 85-89 år | C65: 122 | E65: 128.5434146 | F65: 139.2339209 | G65: 147.5027276 | H65: 159.583886 | I65: 173.1119987 | J65: 191.7892154 | K65: 214.2570534 | L65: 239.6230313 | M65: 258.0034819 | N65: 266.4197934 | O65: 270.3861012 | P65: 269.1284914 | Q65: 268.3545777 | R65: 265.4524013 | S65: 267.0969679 | T65: 270.289362 | U65: 273.6752344 | V65: 281.1241538 | W65: 288.0893772 | X65: 292.3459026 | Y65: 296.0219927 | Z65: 302.1165631 | AA65: 304.0513474
A66: =Model!$C$4 -> Silkeborg | B66: 90-95 år | C66: 116 | E66: 126.3173898 | F66: 127.5596003 | G66: 132.8131511 | H66: 141.3997396 | I66: 151.8592227 | J66: 160.7870679 | K66: 167.4231379 | L66: 175.1323878 | M66: 187.8373044 | N66: 202.1059029 | O66: 220.6746271 | P66: 243.3480166 | Q66: 267.1941676 | R66: 290.4539379 | S66: 300.4224108 | T66: 307.6544403 | U66: 310.3908838 | V66: 314.1046286 | W66: 314.8864697 | X66: 315.8637709 | Y66: 321.9230388 | Z66: 326.8095452 | AA66: 338.9280809
A67: =Model!$C$4 -> Silkeborg | B67: 95+ år | C67: 41 | E67: =E40*(E52/100) -> 50.09057531 | F67: 49.35704926 | G67: 50.09524061 | H67: 46.64068726 | I67: 44.74303257 | J67: 47.48293752 | K67: 45.54741934 | L67: 46.01585452 | M67: 50.93733628 | N67: 55.12059579 | O67: 59.0577812 | P67: 62.99496661 | Q67: 65.70178158 | R67: 72.09970788 | S67: 78.25156009 | T67: 86.86415318 | U67: 96.70711671 | V67: 106.3040062 | W67: 115.6548215 | X67: 118.6077106 | Y67: 121.5605996 | Z67: 123.0370442 | AA67: 125.9899332
A69: =Model!$C$4 -> Silkeborg | B69: I alt | C69: =SUM(C61:C68) -> 637 | E69: =SUM(E61:E68) -> 673.6224641 | F69: =SUM(F61:F68) -> 694.925253 | G69: 721.7707811 | H69: 747.9927058 | I69: 774.6902503 | J69: 806.9435841 | K69: 832.7976214 | L69: 865.1901654 | M69: 902.1344695 | N69: 933.3120058 | O69: 964.916724 | P69: 996.6872106 | Q69: 1030.289941 | R69: 1065.576269 | S69: 1090.64786 | T69: 1116.062189 | U69: 1139.768754 | V69: 1167.719118 | W69: 1194.247237 | X69: 1212.02387 | Y69: 1233.783421 | Z69: 1255.349096 | AA69: 1283.926437
A71: Afgang (Obs. For de enkelte aldersgrupper er udregnet på baggrund af antal personer med behov, og altså ikke taget højde for, om der er plads i plejeboliger til alle disse personer)
A72: Kommune | B72: Aldersgruppe | C72: =C60 -> 2024 | E72: 2025 | F72: 2026 | G72: 2027 | H72: 2028 | I72: 2029 | J72: 2030 | K72: 2031 | L72: 2032 | M72: 2033 | N72: 2034 | O72: 2035 | P72: 2036 | Q72: 2037 | R72: 2038 | S72: 2039 | T72: 2040 | U72: 2041 | V72: 2042 | W72: 2043 | X72: 2044 | Y72: 2045 | Z72: 2046 | AA72: 2047
A73: =Model!$C$4 -> Silkeborg | B73: Under 70 år | C73: =C61/$B$19 -> 19.33333333 | E73: =E61/$B$19 -> 19.76831976 | F73: 20.11215127 | G73: 20.52075053 | H73: 20.94068529 | I73: 21.37569482 | J73: 21.81417434 | K73: 22.25585772 | L73: 22.70822616 | M73: 22.9283014 | N73: 23.13698508 | O73: 23.34057891 | P73: 23.53472018 | Q73: 23.69105116 | R73: 23.8633788 | S73: 24.04443189 | T73: 24.21942563 | U73: 24.37551424 | V73: 24.48942984 | W73: 24.58371317 | X73: 24.68793383 | Y73: 24.78512565 | Z73: =Z61/$B$19 -> 24.8672903 | AA73: 24.96181601
A74: =Model!$C$4 -> Silkeborg | B74: 70-74 år | C74: =C62/$B$19 -> 20.66666667 | E74: =E62/$B$19 -> 20.43872066 | F74: 20.21450918 | G74: 20.26879163 | H74: 20.33916685 | I74: 20.23201732 | J74: 20.09543175 | K74: 20.09267645 | L74: 19.70136592 | M74: 20.17495644 | N74: 20.98734635 | O74: 21.83616629 | P74: 22.75056031 | Q74: 24.09847181 | R74: 24.59027736 | S74: 24.51741727 | T74: 24.22961995 | U74: 23.83617552 | V74: 23.5520212 | W74: 23.70138437 | X74: 23.95639465 | Y74: 24.3644111 | Z74: 24.77607056 | AA74: 24.47005822
A75: =Model!$C$4 -> Silkeborg | B75: 75-79 år | C75: 37 | E75: 37.23194409 | F75: 36.56441398 | G75: 35.90246771 | H75: 34.8800478 | I75: 34.56564385 | J75: 34.4439788 | K75: 34.39402803 | L75: 34.77058161 | M75: 35.37408606 | N75: 35.70128726 | O75: 35.9775905 | P75: 36.4938413 | Q75: 36.36296081 | R75: 37.3372933 | S75: 38.91513023 | T75: 40.55113627 | U75: 42.31075165 | V75: 44.83383651 | W75: 45.79362672 | X75: 45.70637306 | Y75: 45.19739341 | Z75: 44.53571985 | AA75: 44.07763816
A76: =Model!$C$4 -> Silkeborg | B76: 80-84 år | C76: 42.33333333 | E76: 45.45137696 | F76: 49.36715305 | G76: 53.76121077 | H76: 57.29623103 | I76: 58.81864281 | J76: 59.27453619 | K76: 58.44744137 | L76: 57.62612354 | M76: 56.64143844 | N76: 56.7296192 | O76: 57.1117358 | P76: 57.62612354 | Q76: 58.86065411 | R76: 60.0657911 | S76: 60.81532752 | T76: 61.41789601 | U76: 62.47606508 | V76: 62.52015545 | W76: 64.46013207 | X76: 67.38479378 | Y76: 70.41233305 | Z76: 73.61623382 | AA76: 78.14284592
A77: =Model!$C$4 -> Silkeborg | B77: 85-89 år | C77: 40.66666667 | E77: 42.84780488 | F77: 46.41130697 | G77: 49.16757585 | H77: 53.19462866 | I77: 57.70399955 | J77: 63.92973847 | K77: 71.41901779 | L77: 79.87434378 | M77: 86.00116062 | N77: 88.80659781 | O77: 90.12870039 | P77: 89.70949713 | Q77: 89.4515259 | R77: 88.48413376 | S77: 89.03232264 | T77: 90.09645399 | U77: 91.22507814 | V77: 93.70805128 | W77: 96.0297924 | X77: 97.4486342 | Y77: 98.67399756 | Z77: 100.705521 | AA77: 101.3504491
A78: =Model!$C$4 -> Silkeborg | B78: 90-95 år | C78: 38.66666667 | E78: 42.10579658 | F78: 42.51986678 | G78: 44.27105036 | H78: 47.13324655 | I78: 50.6197409 | J78: 53.5956893 | K78: 55.80771265 | L78: 58.37746261 | M78: 62.61243479 | N78: 67.36863431 | O78: 73.55820903 | P78: 81.11600553 | Q78: 89.06472254 | R78: 96.81797929 | S78: 100.1408036 | T78: 102.5514801 | U78: 103.4636279 | V78: 104.7015429 | W78: 104.9621566 | X78: 105.2879236 | Y78: 107.3076796 | Z78: 108.9365151 | AA78: 112.976027
A79: =Model!$C$4 -> Silkeborg | B79: 95+ år | C79: 13.66666667 | E79: 16.69685844 | F79: 16.45234975 | G79: 16.69841354 | H79: 15.54689575 | I79: 14.91434419 | J79: 15.82764584 | K79: 15.18247311 | L79: 15.33861817 | M79: 16.97911209 | N79: 18.37353193 | O79: 19.68592707 | P79: 20.9983222 | Q79: 21.90059386 | R79: 24.03323596 | S79: 26.08385336 | T79: 28.95471773 | U79: 32.23570557 | V79: 35.43466872 | W79: 38.55160717 | X79: 39.53590352 | Y79: 40.52019988 | Z79: 41.01234805 | AA79: 41.99664441
A81: =Model!$C$4 -> Silkeborg | B81: I alt (Returnerer mindsteværdi) | C81: =MIN(C69,$B$107/$B$19) -> 234.6666667 | E81: =MIN(E69,$B$107/$B$19) -> 234.6666667 | F81: =MIN(F69,$B$107/$B$19) -> 234.6666667 | G81: =MIN(G69,$B$107/$B$19) -> 234.6666667 | H81: =MIN(H69,$B$107/$B$19) -> 234.6666667 | I81: =MIN(I69,$B$107/$B$19) -> 234.6666667 | J81: 234.6666667 | K81: 234.6666667 | L81: 234.6666667 | M81: 234.6666667 | N81: 234.6666667 | O81: 234.6666667 | P81: 234.6666667 | Q81: 234.6666667 | R81: 234.6666667 | S81: 234.6666667 | T81: 234.6666667 | U81: 234.6666667 | V81: 234.6666667 | W81: 234.6666667 | X81: 234.6666667 | Y81: 234.6666667 | Z81: 234.6666667 | AA81: 234.6666667
B82: Alternativ afgang 1 (Kun behov/gns. År) | C82: =SUM(C73:C80) -> 212.3333333 | E82: =SUM(E73:E80) -> 224.5408214 | F82: =SUM(F73:F80) -> 231.641751 | G82: 240.5902604 | H82: 249.3309019 | I82: 258.2300834 | J82: 268.9811947 | K82: 277.5992071 | L82: 288.3967218 | M82: 300.7114898 | N82: 311.1040019 | O82: 321.638908 | P82: 332.2290702 | Q82: 343.4299802 | R82: 355.1920896 | S82: 363.5492865 | T82: 372.0207297 | U82: 379.9229181 | V82: 389.2397059 | W82: 398.0824125 | X82: 404.0079567 | Y82: 411.2611403 | Z82: 418.4496987 | AA82: 427.9754788
B83: Alternativ afgang 2 (MAKS()) | C83: =MAX(C69,$C$103+SUM($C$111:C$112)-SUM($C$113:C113))/$B$19 -> 212.3333333 | E83: =MAX(E69,$C$103+SUM($C$111:E$112)-SUM($C$113:E113))/$B$19 -> 224.5408214 | F83: =MAX(F69,$C$103+SUM($C$111:F$112)-SUM($C$113:F113))/$B$19 -> 231.641751 | G83: =MAX(G69,$C$103+SUM($C$111:G$112)-SUM($C$113:G113))/$B$19 -> 240.5902604 | H83: =MAX(H69,$C$103+SUM($C$111:H$112)-SUM($C$113:H113))/$B$19 -> 249.3309019 | I83: =MAX(I69,$C$103+SUM($C$111:I$112)-SUM($C$113:I113))/$B$19 -> 258.2300834 | J83: =MAX(J69,$C$103+SUM($C$111:J$112)-SUM($C$113:J113))/$B$19 -> 268.9811947 | K83: =MAX(K69,$C$103+SUM($C$111:K$112)-SUM($C$113:K113))/$B$19 -> 277.5992071 | L83: =MAX(L69,$C$103+SUM($C$111:L$112)-SUM($C$113:L113))/$B$19 -> 288.3967218 | M83: =MAX(M69,$C$103+SUM($C$111:M$112)-SUM($C$113:M113))/$B$19 -> 300.7114898 | N83: =MAX(N69,$C$103+SUM($C$111:N$112)-SUM($C$113:N113))/$B$19 -> 311.1040019 | O83: =MAX(O69,$C$103+SUM($C$111:O$112)-SUM($C$113:O113))/$B$19 -> 321.638908 | P83: =MAX(P69,$C$103+SUM($C$111:P$112)-SUM($C$113:P113))/$B$19 -> 332.2290702 | Q83: =MAX(Q69,$C$103+SUM($C$111:Q$112)-SUM($C$113:Q113))/$B$19 -> 343.4299802 | R83: =MAX(R69,$C$103+SUM($C$111:R$112)-SUM($C$113:R113))/$B$19 -> 355.1920896 | S83: =MAX(S69,$C$103+SUM($C$111:S$112)-SUM($C$113:S113))/$B$19 -> 363.5492865 | T83: =MAX(T69,$C$103+SUM($C$111:T$112)-SUM($C$113:T113))/$B$19 -> 372.0207297 | U83: =MAX(U69,$C$103+SUM($C$111:U$112)-SUM($C$113:U113))/$B$19 -> 379.9229181 | V83: =MAX(V69,$C$103+SUM($C$111:V$112)-SUM($C$113:V113))/$B$19 -> 389.2397059 | W83: =MAX(W69,$C$103+SUM($C$111:W$112)-SUM($C$113:W113))/$B$19 -> 398.0824125 | X83: =MAX(X69,$C$103+SUM($C$111:X$112)-SUM($C$113:X113))/$B$19 -> 404.0079567 | Y83: =MAX(Y69,$C$103+SUM($C$111:Y$112)-SUM($C$113:Y113))/$B$19 -> 411.2611403 | Z83: =MAX(Z69,$C$103+SUM($C$111:Z$112)-SUM($C$113:Z113))/$B$19 -> 418.4496987 | AA83: =MAX(AA69,$C$103+SUM($C$111:AA$112)-SUM($C$113:AA113))/$B$19 -> 427.9754788
A84: Tilgang
A85: Kommune | B85: Aldersgruppe | C85: =C72 -> 2024 | E85: 2025 | F85: 2026 | G85: 2027 | H85: 2028 | I85: 2029 | J85: 2030 | K85: 2031 | L85: 2032 | M85: 2033 | N85: 2034 | O85: 2035 | P85: 2036 | Q85: 2037 | R85: 2038 | S85: 2039 | T85: 2040 | U85: 2041 | V85: 2042 | W85: 2043 | X85: 2044 | Y85: 2045 | Z85: 2046 | AA85: 2047
A86: =Model!$C$4 -> Silkeborg | B86: Under 70 år | C86: =E61-C61+C73 -> 20.6382926 | E86: =F61-E61+E73 -> 20.79981431 | F86: 21.33794904 | G86: 21.78055483 | H86: 22.24571388 | I86: 22.69113337 | J86: 23.13922448 | K86: 23.61296304 | L86: 23.36845188 | M86: 23.55435244 | N86: 23.74776658 | O86: 23.92300271 | P86: 24.00371312 | Q86: 24.20803407 | R86: 24.40653806 | S86: 24.56941313 | T86: 24.68769145 | U86: 24.71726104 | V86: 24.77227985 | W86: 24.89637514 | X86: 24.97950928 | Y86: 25.03161961 | Z86: =AA61-Z61+Z73 -> 25.15086743 | AA86: =MAX(0,AB61-AA61+AA73) -> 0
A87: =Model!$C$4 -> Silkeborg | B87: 70-74 år | C87: =E62-C62+C74 -> 19.98282866 | E87: 19.7660862 | F87: 20.37735655 | G87: 20.47991728 | H87: 20.01771828 | I87: 19.8222606 | J87: 20.08716584 | K87: 18.91874486 | L87: 21.1221375 | M87: 22.61212615 | N87: 23.53380618 | O87: 24.57934834 | P87: 26.79429481 | Q87: 25.57388845 | R87: 24.37169711 | S87: 23.65402531 | T87: 23.04928664 | U87: 22.98371257 | V87: 24.0001107 | W87: 24.46641522 | X87: 25.18044401 | Y87: 25.59938948 | Z87: 23.85803354 | AA87: 0
A88: =Model!$C$4 -> Silkeborg | B88: 75-79 år | C88: =E63-C63+C75 -> 37.69583228 | E88: 35.22935376 | F88: 34.57857516 | G88: 32.83520797 | H88: 33.93683595 | I88: 34.20064872 | J88: 34.29412648 | K88: 35.52368876 | L88: 36.58109495 | M88: 36.35568968 | N88: 36.53019699 | O88: 37.52634288 | P88: 36.10119985 | Q88: 39.28595826 | R88: 42.07080409 | S88: 43.82314834 | T88: 45.82998241 | U88: 49.88000624 | V88: 47.71320713 | W88: 45.53186575 | X88: 44.1794341 | Y88: 43.21237275 | Z88: 43.16147478 | AA88: 0
A89: =Model!$C$4 -> Silkeborg | B89: 80-84 år | C89: =E64-C64+C76 -> 51.68746422 | E89: 57.19870524 | F89: 62.54932619 | G89: 64.36627157 | H89: 61.86346638 | I89: 60.18632294 | J89: 56.79325175 | K89: 55.98348787 | L89: 54.67206824 | M89: 56.90598071 | N89: =O64-N64+N76 -> 57.87596901 | O89: 58.65489902 | P89: 61.32971526 | Q89: 62.47606508 | R89: 62.31440036 | S89: 62.623033 | T89: 64.5924032 | U89: 62.60833621 | V89: 68.3400853 | W89: 73.23411721 | X89: 76.46741157 | Y89: 80.02403537 | Z89: 87.19607013 | AA89: 0
A90: =Model!$C$4 -> Silkeborg | B90: 85-89 år | C90: =E65-C65+C77 -> 47.2100813 | E90: 53.53831116 | F90: 54.6801136 | G90: 61.24873427 | H90: 66.72274134 | I90: 76.38121632 | J90: 86.39757641 | K90: 96.78499577 | L90: 98.25479431 | M90: 94.41747218 | N90: 92.77290555 | O90: 88.87109062 | P90: 88.93558343 | Q90: 86.5493495 | R90: 90.12870039 | S90: 92.22471668 | T90: 93.48232645 | U90: 98.67399756 | V90: 100.6732746 | W90: 100.2863178 | X90: 101.1247243 | Y90: 104.768568 | Z90: 102.6403053 | AA90: 0
A91: =Model!$C$4 -> Silkeborg | B91: 90-95 år | C91: =E66-C66+C78 -> 48.98405642 | E91: 43.34800718 | F91: 47.77341751 | G91: 52.85763892 | H91: 57.59272961 | I91: 59.54758611 | J91: 60.23175934 | K91: 63.51696254 | L91: 71.08237914 | M91: 76.88103335 | N91: 85.93735847 | O91: 96.23159853 | P91: 104.9621566 | Q91: 112.3244928 | R91: 106.7864523 | S91: 107.372833 | T91: 105.2879236 | U91: 107.1773728 | V91: 105.4833839 | W91: 105.9394578 | X91: 111.3471915 | Y91: 112.194186 | Z91: 121.0550508 | AA91: 0
A92: =Model!$C$4 -> Silkeborg | B92: 95+ år | C92: =E67-C67+C79 -> 22.75724197 | E92: 15.96333239 | F92: 17.1905411 | G92: 13.24386018 | H92: 13.64924107 | I92: 17.65424914 | J92: 13.89212766 | K92: 15.65090829 | L92: 20.26009994 | M92: 21.1623716 | N92: 22.31071734 | O92: 23.62311248 | P92: 23.70513718 | Q92: 28.29852016 | R92: 30.18508817 | S92: 34.69644645 | T92: 38.79768126 | U92: 41.83259502 | V92: 44.78548408 | W92: 41.50449623 | X92: 42.48879258 | Y92: 41.99664441 | Z92: 43.96523711 | AA92: 0
A94: =Model!$C$4 -> Silkeborg | B94: I alt | C94: =SUM(C86:C93) -> 248.9557975 | E94: =SUM(E86:E93) -> 245.8436102 | F94: =SUM(F86:F93) -> 258.4872791 | G94: 266.812185 | H94: 276.0284465 | I94: 290.4834172 | J94: 294.835232 | K94: 309.9917511 | L94: 325.341026 | M94: 331.8890261 | N94: 342.7087201 | O94: 353.4093946 | P94: 365.8318002 | Q94: 378.7163083 | R94: 380.2636804 | S94: 388.9636159 | T94: 395.7272951 | U94: 407.8732814 | V94: 415.7678256 | W94: 415.8590452 | X94: 425.7675074 | Y94: 432.8268156 | Z94: 447.0270391 | AA94: 0
A107: Plejeboliger i alt 2024 | B107: =Model!K26 -> 704
A109: Planlagte kapacitetsændringer
A110: År | C110: =C33 -> 2024 | E110: 2025 | F110: 2026 | G110: 2027 | H110: 2028 | I110: 2029 | J110: 2030 | K110: 2031 | L110: 2032 | M110: 2033 | N110: 2034 | O110: 2035 | P110: 2036 | Q110: 2037 | R110: 2038 | S110: 2039 | T110: 2040 | U110: 2041 | V110: 2042 | W110: 2043 | X110: 2044 | Y110: 2045 | Z110: 2046 | AA110: 2047
A111: Nyetablerede plejeboliger | C111: =IF(Model!$J32='Beregning 2024'!C110,Model!$K32)+IF(Model!$J33='Beregning 2024'!C110,Model!$K33)+IF(Model!$J34='Beregning 2024'!C110,Model!$K34)+IF(Model!$J35='Beregning 2024'!C110,Model!$K35)+IF(Model!$J36='Beregning 2024'!C110,Model!$K36)+IF(Model!$J38='Beregning 2024'!C110,Model!$K38)+IF(Model!$J39='Beregning 2024'!C110,Model!$K39)+IF(Model!$J40='Beregning 2024'!C110,Model!$K40) -> 0 | E111: =IFERROR(VLOOKUP(E$110,Model!$J$30:$M$35,2,FALSE),0) -> 0 | F111: =IFERROR(VLOOKUP(F$110,Model!$J$30:$M$35,2,FALSE),0) -> 0 | G111: =IFERROR(VLOOKUP(G$110,Model!$J$30:$M$35,2,FALSE),0) -> 0 | H111: =IFERROR(VLOOKUP(H$110,Model!$J$30:$M$35,2,FALSE),0) -> 0 | I111: =IFERROR(VLOOKUP(I$110,Model!$J$30:$M$35,2,FALSE),0) -> 0 | J111: =IFERROR(VLOOKUP(J$110,Model!$J$30:$M$35,2,FALSE),0) -> 0 | K111: =IFERROR(VLOOKUP(K$110,Model!$J$30:$M$35,2,FALSE),0) -> 0 | L111: =IFERROR(VLOOKUP(L$110,Model!$J$30:$M$35,2,FALSE),0) -> 0 | M111: =IFERROR(VLOOKUP(M$110,Model!$J$30:$M$35,2,FALSE),0) -> 0 | N111: =IFERROR(VLOOKUP(N$110,Model!$J$30:$M$35,2,FALSE),0) -> 0 | O111: =IFERROR(VLOOKUP(O$110,Model!$J$30:$M$35,2,FALSE),0) -> 0 | P111: =IFERROR(VLOOKUP(P$110,Model!$J$30:$M$35,2,FALSE),0) -> 0 | Q111: =IFERROR(VLOOKUP(Q$110,Model!$J$30:$M$35,2,FALSE),0) -> 0 | R111: =IFERROR(VLOOKUP(R$110,Model!$J$30:$M$35,2,FALSE),0) -> 0 | S111: =IFERROR(VLOOKUP(S$110,Model!$J$30:$M$35,2,FALSE),0) -> 0 | T111: =IFERROR(VLOOKUP(T$110,Model!$J$30:$M$35,2,FALSE),0) -> 0 | U111: =IFERROR(VLOOKUP(U$110,Model!$J$30:$M$35,2,FALSE),0) -> 0 | V111: =IFERROR(VLOOKUP(V$110,Model!$J$30:$M$35,2,FALSE),0) -> 0 | W111: =IFERROR(VLOOKUP(W$110,Model!$J$30:$M$35,2,FALSE),0) -> 0 | X111: =IFERROR(VLOOKUP(X$110,Model!$J$30:$M$35,2,FALSE),0) -> 0 | Y111: =IFERROR(VLOOKUP(Y$110,Model!$J$30:$M$35,2,FALSE),0) -> 0 | Z111: =IFERROR(VLOOKUP(Z$110,Model!$J$30:$M$35,2,FALSE),0) -> 0 | AA111: =IFERROR(VLOOKUP(AA$110,Model!$J$30:$M$35,2,FALSE),0) -> 0
A112: Konverterede ældreboliger | C112: =IF(Model!$L$39<>"Fejl!",IF(Model!$J30='Beregning 2024'!C110,Model!$L30)+IF(Model!$J31='Beregning 2024'!C110,Model!$L31)+IF(Model!$J32='Beregning 2024'!C110,Model!$L32)+IF(Model!$J33='Beregning 2024'!C110,Model!$L33)+IF(Model!$J34='Beregning 2024'!C110,Model!$L34)+IF(Model!$J35='Beregning 2024'!C110,Model!$L35)+IF(Model!$J36='Beregning 2024'!C110,Model!$L36)+IF(Model!$J38='Beregning 2024'!C110,Model!$L38),0) -> 0 | E112: =IFERROR(VLOOKUP(E$110,Model!$J$30:$M$35,3,FALSE),0) -> 0 | F112: =IFERROR(VLOOKUP(F$110,Model!$J$30:$M$35,3,FALSE),0) -> 0 | G112: =IFERROR(VLOOKUP(G$110,Model!$J$30:$M$35,3,FALSE),0) -> 0 | H112: =IFERROR(VLOOKUP(H$110,Model!$J$30:$M$35,3,FALSE),0) -> 0 | I112: =IFERROR(VLOOKUP(I$110,Model!$J$30:$M$35,3,FALSE),0) -> 0 | J112: =IFERROR(VLOOKUP(J$110,Model!$J$30:$M$35,3,FALSE),0) -> 0 | K112: =IFERROR(VLOOKUP(K$110,Model!$J$30:$M$35,3,FALSE),0) -> 0 | L112: =IFERROR(VLOOKUP(L$110,Model!$J$30:$M$35,3,FALSE),0) -> 0 | M112: =IFERROR(VLOOKUP(M$110,Model!$J$30:$M$35,3,FALSE),0) -> 0 | N112: =IFERROR(VLOOKUP(N$110,Model!$J$30:$M$35,3,FALSE),0) -> 0 | O112: =IFERROR(VLOOKUP(O$110,Model!$J$30:$M$35,3,FALSE),0) -> 0 | P112: =IFERROR(VLOOKUP(P$110,Model!$J$30:$M$35,3,FALSE),0) -> 0 | Q112: =IFERROR(VLOOKUP(Q$110,Model!$J$30:$M$35,3,FALSE),0) -> 0 | R112: =IFERROR(VLOOKUP(R$110,Model!$J$30:$M$35,3,FALSE),0) -> 0 | S112: =IFERROR(VLOOKUP(S$110,Model!$J$30:$M$35,3,FALSE),0) -> 0 | T112: =IFERROR(VLOOKUP(T$110,Model!$J$30:$M$35,3,FALSE),0) -> 0 | U112: =IFERROR(VLOOKUP(U$110,Model!$J$30:$M$35,3,FALSE),0) -> 0 | V112: =IFERROR(VLOOKUP(V$110,Model!$J$30:$M$35,3,FALSE),0) -> 0 | W112: =IFERROR(VLOOKUP(W$110,Model!$J$30:$M$35,3,FALSE),0) -> 0 | X112: =IFERROR(VLOOKUP(X$110,Model!$J$30:$M$35,3,FALSE),0) -> 0 | Y112: =IFERROR(VLOOKUP(Y$110,Model!$J$30:$M$35,3,FALSE),0) -> 0 | Z112: =IFERROR(VLOOKUP(Z$110,Model!$J$30:$M$35,3,FALSE),0) -> 0 | AA112: =IFERROR(VLOOKUP(AA$110,Model!$J$30:$M$35,3,FALSE),0) -> 0
A113: Nedlagte plejeboliger | C113: =IF(Model!$J30='Beregning 2024'!C110,Model!$M30)+IF(Model!$J31='Beregning 2024'!C110,Model!$M31)+IF(Model!$J32='Beregning 2024'!C110,Model!$M32)+IF(Model!$J33='Beregning 2024'!C110,Model!$M33)+IF(Model!$J34='Beregning 2024'!C110,Model!$M34)+IF(Model!$J35='Beregning 2024'!C110,Model!$M35)+IF(Model!$J36='Beregning 2024'!C110,Model!$M36)+IF(Model!$J38='Beregning 2024'!C110,Model!$M38) -> 0 | E113: =IFERROR(VLOOKUP(E$110,Model!$J$30:$M$35,4,FALSE),0) -> 0 | F113: =IFERROR(VLOOKUP(F$110,Model!$J$30:$M$35,4,FALSE),0) -> 0 | G113: =IFERROR(VLOOKUP(G$110,Model!$J$30:$M$35,4,FALSE),0) -> 0 | H113: =IFERROR(VLOOKUP(H$110,Model!$J$30:$M$35,4,FALSE),0) -> 0 | I113: =IFERROR(VLOOKUP(I$110,Model!$J$30:$M$35,4,FALSE),0) -> 0 | J113: =IFERROR(VLOOKUP(J$110,Model!$J$30:$M$35,4,FALSE),0) -> 0 | K113: =IFERROR(VLOOKUP(K$110,Model!$J$30:$M$35,4,FALSE),0) -> 0 | L113: =IFERROR(VLOOKUP(L$110,Model!$J$30:$M$35,4,FALSE),0) -> 0 | M113: =IFERROR(VLOOKUP(M$110,Model!$J$30:$M$35,4,FALSE),0) -> 0 | N113: =IFERROR(VLOOKUP(N$110,Model!$J$30:$M$35,4,FALSE),0) -> 0 | O113: =IFERROR(VLOOKUP(O$110,Model!$J$30:$M$35,4,FALSE),0) -> 0 | P113: =IFERROR(VLOOKUP(P$110,Model!$J$30:$M$35,4,FALSE),0) -> 0 | Q113: =IFERROR(VLOOKUP(Q$110,Model!$J$30:$M$35,4,FALSE),0) -> 0 | R113: =IFERROR(VLOOKUP(R$110,Model!$J$30:$M$35,4,FALSE),0) -> 0 | S113: =IFERROR(VLOOKUP(S$110,Model!$J$30:$M$35,4,FALSE),0) -> 0 | T113: =IFERROR(VLOOKUP(T$110,Model!$J$30:$M$35,4,FALSE),0) -> 0 | U113: =IFERROR(VLOOKUP(U$110,Model!$J$30:$M$35,4,FALSE),0) -> 0 | V113: =IFERROR(VLOOKUP(V$110,Model!$J$30:$M$35,4,FALSE),0) -> 0 | W113: =IFERROR(VLOOKUP(W$110,Model!$J$30:$M$35,4,FALSE),0) -> 0 | X113: =IFERROR(VLOOKUP(X$110,Model!$J$30:$M$35,4,FALSE),0) -> 0 | Y113: =IFERROR(VLOOKUP(Y$110,Model!$J$30:$M$35,4,FALSE),0) -> 0 | Z113: =IFERROR(VLOOKUP(Z$110,Model!$J$30:$M$35,4,FALSE),0) -> 0 | AA113: =IFERROR(VLOOKUP(AA$110,Model!$J$30:$M$35,4,FALSE),0) -> 0
A115: Tomgang md. | C115: =Model!C32 -> 1 | E115: =IF(Model!$G$32>Model!$C$32,IF(ISNUMBER(Model!$G$32),MIN(C115-(Model!$C$32-Model!$G$32)/MAX(INT(Model!$G$33),1),Model!$G32),Model!$C32),IF(ISNUMBER(Model!$G$32),MAX(C115-(Model!$C$32-Model!$G$32)/MAX(INT(Model!$G$33),1),Model!$G32),Model!$C32)) -> 1 | F115: =IF(Model!$G$32>Model!$C$32,IF(ISNUMBER(Model!$G$32),MIN(E115-(Model!$C$32-Model!$G$32)/MAX(INT(Model!$G$33),1),Model!$G32),Model!$C32),IF(ISNUMBER(Model!$G$32),MAX(E115-(Model!$C$32-Model!$G$32)/MAX(INT(Model!$G$33),1),Model!$G32),Model!$C32)) -> 1 | G115: =IF(Model!$G$32>Model!$C$32,IF(ISNUMBER(Model!$G$32),MIN(F115-(Model!$C$32-Model!$G$32)/MAX(INT(Model!$G$33),1),Model!$G32),Model!$C32),IF(ISNUMBER(Model!$G$32),MAX(F115-(Model!$C$32-Model!$G$32)/MAX(INT(Model!$G$33),1),Model!$G32),Model!$C32)) -> 1 | H115: =IF(Model!$G$32>Model!$C$32,IF(ISNUMBER(Model!$G$32),MIN(G115-(Model!$C$32-Model!$G$32)/MAX(INT(Model!$G$33),1),Model!$G32),Model!$C32),IF(ISNUMBER(Model!$G$32),MAX(G115-(Model!$C$32-Model!$G$32)/MAX(INT(Model!$G$33),1),Model!$G32),Model!$C32)) -> 1 | I115: =IF(Model!$G$32>Model!$C$32,IF(ISNUMBER(Model!$G$32),MIN(H115-(Model!$C$32-Model!$G$32)/MAX(INT(Model!$G$33),1),Model!$G32),Model!$C32),IF(ISNUMBER(Model!$G$32),MAX(H115-(Model!$C$32-Model!$G$32)/MAX(INT(Model!$G$33),1),Model!$G32),Model!$C32)) -> 1 | J115: =IF(Model!$G$32>Model!$C$32,IF(ISNUMBER(Model!$G$32),MIN(I115-(Model!$C$32-Model!$G$32)/MAX(INT(Model!$G$33),1),Model!$G32),Model!$C32),IF(ISNUMBER(Model!$G$32),MAX(I115-(Model!$C$32-Model!$G$32)/MAX(INT(Model!$G$33),1),Model!$G32),Model!$C32)) -> 1 | K115: =IF(Model!$G$32>Model!$C$32,IF(ISNUMBER(Model!$G$32),MIN(J115-(Model!$C$32-Model!$G$32)/MAX(INT(Model!$G$33),1),Model!$G32),Model!$C32),IF(ISNUMBER(Model!$G$32),MAX(J115-(Model!$C$32-Model!$G$32)/MAX(INT(Model!$G$33),1),Model!$G32),Model!$C32)) -> 1 | L115: =IF(Model!$G$32>Model!$C$32,IF(ISNUMBER(Model!$G$32),MIN(K115-(Model!$C$32-Model!$G$32)/MAX(INT(Model!$G$33),1),Model!$G32),Model!$C32),IF(ISNUMBER(Model!$G$32),MAX(K115-(Model!$C$32-Model!$G$32)/MAX(INT(Model!$G$33),1),Model!$G32),Model!$C32)) -> 1 | M115: =IF(Model!$G$32>Model!$C$32,IF(ISNUMBER(Model!$G$32),MIN(L115-(Model!$C$32-Model!$G$32)/MAX(INT(Model!$G$33),1),Model!$G32),Model!$C32),IF(ISNUMBER(Model!$G$32),MAX(L115-(Model!$C$32-Model!$G$32)/MAX(INT(Model!$G$33),1),Model!$G32),Model!$C32)) -> 1 | N115: =IF(Model!$G$32>Model!$C$32,IF(ISNUMBER(Model!$G$32),MIN(M115-(Model!$C$32-Model!$G$32)/MAX(INT(Model!$G$33),1),Model!$G32),Model!$C32),IF(ISNUMBER(Model!$G$32),MAX(M115-(Model!$C$32-Model!$G$32)/MAX(INT(Model!$G$33),1),Model!$G32),Model!$C32)) -> 1 | O115: =IF(Model!$G$32>Model!$C$32,IF(ISNUMBER(Model!$G$32),MIN(N115-(Model!$C$32-Model!$G$32)/MAX(INT(Model!$G$33),1),Model!$G32),Model!$C32),IF(ISNUMBER(Model!$G$32),MAX(N115-(Model!$C$32-Model!$G$32)/MAX(INT(Model!$G$33),1),Model!$G32),Model!$C32)) -> 1 | P115: =IF(Model!$G$32>Model!$C$32,IF(ISNUMBER(Model!$G$32),MIN(O115-(Model!$C$32-Model!$G$32)/MAX(INT(Model!$G$33),1),Model!$G32),Model!$C32),IF(ISNUMBER(Model!$G$32),MAX(O115-(Model!$C$32-Model!$G$32)/MAX(INT(Model!$G$33),1),Model!$G32),Model!$C32)) -> 1 | Q115: =IF(Model!$G$32>Model!$C$32,IF(ISNUMBER(Model!$G$32),MIN(P115-(Model!$C$32-Model!$G$32)/MAX(INT(Model!$G$33),1),Model!$G32),Model!$C32),IF(ISNUMBER(Model!$G$32),MAX(P115-(Model!$C$32-Model!$G$32)/MAX(INT(Model!$G$33),1),Model!$G32),Model!$C32)) -> 1 | R115: =IF(Model!$G$32>Model!$C$32,IF(ISNUMBER(Model!$G$32),MIN(Q115-(Model!$C$32-Model!$G$32)/MAX(INT(Model!$G$33),1),Model!$G32),Model!$C32),IF(ISNUMBER(Model!$G$32),MAX(Q115-(Model!$C$32-Model!$G$32)/MAX(INT(Model!$G$33),1),Model!$G32),Model!$C32)) -> 1 | S115: =IF(Model!$G$32>Model!$C$32,IF(ISNUMBER(Model!$G$32),MIN(R115-(Model!$C$32-Model!$G$32)/MAX(INT(Model!$G$33),1),Model!$G32),Model!$C32),IF(ISNUMBER(Model!$G$32),MAX(R115-(Model!$C$32-Model!$G$32)/MAX(INT(Model!$G$33),1),Model!$G32),Model!$C32)) -> 1 | T115: =IF(Model!$G$32>Model!$C$32,IF(ISNUMBER(Model!$G$32),MIN(S115-(Model!$C$32-Model!$G$32)/MAX(INT(Model!$G$33),1),Model!$G32),Model!$C32),IF(ISNUMBER(Model!$G$32),MAX(S115-(Model!$C$32-Model!$G$32)/MAX(INT(Model!$G$33),1),Model!$G32),Model!$C32)) -> 1 | U115: =IF(Model!$G$32>Model!$C$32,IF(ISNUMBER(Model!$G$32),MIN(T115-(Model!$C$32-Model!$G$32)/MAX(INT(Model!$G$33),1),Model!$G32),Model!$C32),IF(ISNUMBER(Model!$G$32),MAX(T115-(Model!$C$32-Model!$G$32)/MAX(INT(Model!$G$33),1),Model!$G32),Model!$C32)) -> 1 | V115: =IF(Model!$G$32>Model!$C$32,IF(ISNUMBER(Model!$G$32),MIN(U115-(Model!$C$32-Model!$G$32)/MAX(INT(Model!$G$33),1),Model!$G32),Model!$C32),IF(ISNUMBER(Model!$G$32),MAX(U115-(Model!$C$32-Model!$G$32)/MAX(INT(Model!$G$33),1),Model!$G32),Model!$C32)) -> 1 | W115: =IF(Model!$G$32>Model!$C$32,IF(ISNUMBER(Model!$G$32),MIN(V115-(Model!$C$32-Model!$G$32)/MAX(INT(Model!$G$33),1),Model!$G32),Model!$C32),IF(ISNUMBER(Model!$G$32),MAX(V115-(Model!$C$32-Model!$G$32)/MAX(INT(Model!$G$33),1),Model!$G32),Model!$C32)) -> 1 | X115: =IF(Model!$G$32>Model!$C$32,IF(ISNUMBER(Model!$G$32),MIN(W115-(Model!$C$32-Model!$G$32)/MAX(INT(Model!$G$33),1),Model!$G32),Model!$C32),IF(ISNUMBER(Model!$G$32),MAX(W115-(Model!$C$32-Model!$G$32)/MAX(INT(Model!$G$33),1),Model!$G32),Model!$C32)) -> 1 | Y115: =IF(Model!$G$32>Model!$C$32,IF(ISNUMBER(Model!$G$32),MIN(X115-(Model!$C$32-Model!$G$32)/MAX(INT(Model!$G$33),1),Model!$G32),Model!$C32),IF(ISNUMBER(Model!$G$32),MAX(X115-(Model!$C$32-Model!$G$32)/MAX(INT(Model!$G$33),1),Model!$G32),Model!$C32)) -> 1 | Z115: =IF(Model!$G$32>Model!$C$32,IF(ISNUMBER(Model!$G$32),MIN(Y115-(Model!$C$32-Model!$G$32)/MAX(INT(Model!$G$33),1),Model!$G32),Model!$C32),IF(ISNUMBER(Model!$G$32),MAX(Y115-(Model!$C$32-Model!$G$32)/MAX(INT(Model!$G$33),1),Model!$G32),Model!$C32)) -> 1 | AA115: =IF(Model!$G$32>Model!$C$32,IF(ISNUMBER(Model!$G$32),MIN(Z115-(Model!$C$32-Model!$G$32)/MAX(INT(Model!$G$33),1),Model!$G32),Model!$C32),IF(ISNUMBER(Model!$G$32),MAX(Z115-(Model!$C$32-Model!$G$32)/MAX(INT(Model!$G$33),1),Model!$G32),Model!$C32)) -> 1
A116: Tomgang boliger | C116: =MIN(C115*(B107+SUM($C$111:C112)-SUM($C$113:C113))/($B$19*12),C115*(C30)/($B$19*12)) -> 17.69444444 | E116: =MIN(E115*($B$107+SUM($C$111:E112)-SUM($C$113:E113))/($B$19*12),E115*E69/($B$19*12)) -> 18.71173511 | F116: =MIN(F115*($B$107+SUM($C$111:F112)-SUM($C$113:F113))/($B$19*12),F115*F69/($B$19*12)) -> 19.30347925 | G116: =MIN(G115*($B$107+SUM($C$111:G112)-SUM($C$113:G113))/($B$19*12),G115*G69/($B$19*12)) -> 19.55555556 | H116: =MIN(H115*($B$107+SUM($C$111:H112)-SUM($C$113:H113))/($B$19*12),H115*H69/($B$19*12)) -> 19.55555556 | I116: =MIN(I115*($B$107+SUM($C$111:I112)-SUM($C$113:I113))/($B$19*12),I115*I69/($B$19*12)) -> 19.55555556 | J116: =MIN(J115*($B$107+SUM($C$111:J112)-SUM($C$113:J113))/($B$19*12),J115*J69/($B$19*12)) -> 19.55555556 | K116: =MIN(K115*($B$107+SUM($C$111:K112)-SUM($C$113:K113))/($B$19*12),K115*K69/($B$19*12)) -> 19.55555556 | L116: =MIN(L115*($B$107+SUM($C$111:L112)-SUM($C$113:L113))/($B$19*12),L115*L69/($B$19*12)) -> 19.55555556 | M116: =MIN(M115*($B$107+SUM($C$111:M112)-SUM($C$113:M113))/($B$19*12),M115*M69/($B$19*12)) -> 19.55555556 | N116: =MIN(N115*($B$107+SUM($C$111:N112)-SUM($C$113:N113))/($B$19*12),N115*N69/($B$19*12)) -> 19.55555556 | O116: =MIN(O115*($B$107+SUM($C$111:O112)-SUM($C$113:O113))/($B$19*12),O115*O69/($B$19*12)) -> 19.55555556 | P116: =MIN(P115*($B$107+SUM($C$111:P112)-SUM($C$113:P113))/($B$19*12),P115*P69/($B$19*12)) -> 19.55555556 | Q116: =MIN(Q115*($B$107+SUM($C$111:Q112)-SUM($C$113:Q113))/($B$19*12),Q115*Q69/($B$19*12)) -> 19.55555556 | R116: =MIN(R115*($B$107+SUM($C$111:R112)-SUM($C$113:R113))/($B$19*12),R115*R69/($B$19*12)) -> 19.55555556 | S116: =MIN(S115*($B$107+SUM($C$111:S112)-SUM($C$113:S113))/($B$19*12),S115*S69/($B$19*12)) -> 19.55555556 | T116: =MIN(T115*($B$107+SUM($C$111:T112)-SUM($C$113:T113))/($B$19*12),T115*T69/($B$19*12)) -> 19.55555556 | U116: =MIN(U115*($B$107+SUM($C$111:U112)-SUM($C$113:U113))/($B$19*12),U115*U69/($B$19*12)) -> 19.55555556 | V116: =MIN(V115*($B$107+SUM($C$111:V112)-SUM($C$113:V113))/($B$19*12),V115*V69/($B$19*12)) -> 19.55555556 | W116: =MIN(W115*($B$107+SUM($C$111:W112)-SUM($C$113:W113))/($B$19*12),W115*W69/($B$19*12)) -> 19.55555556 | X116: =MIN(X115*($B$107+SUM($C$111:X112)-SUM($C$113:X113))/($B$19*12),X115*X69/($B$19*12)) -> 19.55555556 | Y116: =MIN(Y115*($B$107+SUM($C$111:Y112)-SUM($C$113:Y113))/($B$19*12),Y115*Y69/($B$19*12)) -> 19.55555556 | Z116: =MIN(Z115*($B$107+SUM($C$111:Z112)-SUM($C$113:Z113))/($B$19*12),Z115*Z69/($B$19*12)) -> 19.55555556 | AA116: =MIN(AA115*($B$107+SUM($C$111:AA112)-SUM($C$113:AA113))/($B$19*12),AA115*AA69/($B$19*12)) -> 19.55555556
C117: =MIN(C69,$C$103+SUM(C111:C113))/Model!$C$26*'Beregning 2023'!D114 -> 0 | E117: =MIN(E69,$C$103+SUM(E111:E113))/Model!$C$26*'Beregning 2023'!E114 -> 0 | F117: =MIN(F69,$C$103+SUM(F111:F113))/Model!$C$26*'Beregning 2023'!F114 -> 0 | G117: =MIN(G69,$C$103+SUM(G111:G113))/Model!$C$26*'Beregning 2023'!G114 -> 0 | H117: =MIN(H69,$C$103+SUM(H111:H113))/Model!$C$26*'Beregning 2023'!H114 -> 0 | I117: =MIN(I69,$C$103+SUM(I111:I113))/Model!$C$26*'Beregning 2023'!I114 -> 0 | J117: =MIN(J69,$C$103+SUM(J111:J113))/Model!$C$26*'Beregning 2023'!J114 -> 0 | K117: =MIN(K69,$C$103+SUM(K111:K113))/Model!$C$26*'Beregning 2023'!K114 -> 0 | L117: =MIN(L69,$C$103+SUM(L111:L113))/Model!$C$26*'Beregning 2023'!L114 -> 0 | M117: =MIN(M69,$C$103+SUM(M111:M113))/Model!$C$26*'Beregning 2023'!M114 -> 0 | N117: =MIN(N69,$C$103+SUM(N111:N113))/Model!$C$26*'Beregning 2023'!N114 -> 0 | O117: =MIN(O69,$C$103+SUM(O111:O113))/Model!$C$26*'Beregning 2023'!O114 -> 0 | P117: =MIN(P69,$C$103+SUM(P111:P113))/Model!$C$26*'Beregning 2023'!P114 -> 0 | Q117: =MIN(Q69,$C$103+SUM(Q111:Q113))/Model!$C$26*'Beregning 2023'!Q114 -> 0 | R117: =MIN(R69,$C$103+SUM(R111:R113))/Model!$C$26*'Beregning 2023'!R114 -> 0 | S117: =MIN(S69,$C$103+SUM(S111:S113))/Model!$C$26*'Beregning 2023'!S114 -> 0 | T117: =MIN(T69,$C$103+SUM(T111:T113))/Model!$C$26*'Beregning 2023'!T114 -> 0 | U117: =MIN(U69,$C$103+SUM(U111:U113))/Model!$C$26*'Beregning 2023'!U114 -> 0 | V117: =MIN(V69,$C$103+SUM(V111:V113))/Model!$C$26*'Beregning 2023'!V114 -> 0 | W117: =MIN(W69,$C$103+SUM(W111:W113))/Model!$C$26*'Beregning 2023'!W114 -> 0 | X117: =MIN(X69,$C$103+SUM(X111:X113))/Model!$C$26*'Beregning 2023'!X114 -> 0 | Y117: =MIN(Y69,$C$103+SUM(Y111:Y113))/Model!$C$26*'Beregning 2023'!Y114 -> 0 | Z117: =MIN(Z69,$C$103+SUM(Z111:Z113))/Model!$C$26*'Beregning 2023'!Z114 -> 0 | AA117: =MIN(AA69,$C$103+SUM(AA111:AA113))/Model!$C$26*'Beregning 2023'!AA114 -> 0
A120: Ventetid | B120: Personer på venteliste i alt | C120: Personer visiteret til den generelle venteliste | E120: Personer der vælger frit valg | F120: Andel af personer på venteliste i alt, der vælger frit valg, procent | G120: Andel af personer på generel venteliste
A121: =Model!$C$4 -> Silkeborg | B121: =IF(Model!C18>0,Model!C18,0) -> 0 | C121: =B121*Model!D20/100 -> 0 | E121: =B121-C121 -> 0 | F121: =E121/B121 ->  | G121: =C121/B121 -> 

Sheet Beregning 2023 (hidden)
B1: Beregninger
B2: 2023 | C2: Opdateret 24-06-2024
B3: Scenarier:
B4: Jeg har indtastet venteliste efter aldersgruppe
B5: Jeg har indtastet venteliste i alt
B7: Valgt scenarie: | C7: 1
B9: Under 60 år | C9: =IF($C$7=1,Model!C10,IF($C$7=2,M22,"")) -> 0
B10: 60-64 år | C10: =IF($C$7=1,Model!C11,IF($C$7=2,M23,IF($C$7=3,0,""))) -> 0
B11: 65-66 år | C11: =IF($C$7=1,Model!C12,IF($C$7=2,M24,IF($C$7=3,0,""))) -> 0
B12: 67-74 år | C12: =IF($C$7=1,Model!C13,IF($C$7=2,M25,IF($C$7=3,0,""))) -> 0
B13: 75-79 år | C13: =IF($C$7=1,Model!C14,IF($C$7=2,M26,IF($C$7=3,0,""))) -> 0
B14: 80-84 år | C14: =IF($C$7=1,Model!C15,IF($C$7=2,M27,IF($C$7=3,0,""))) -> 0
B15: 85-89 år | C15: =IF($C$7=1,Model!C16,IF($C$7=2,M28,IF($C$7=3,0,""))) -> 0
B16: Over 90 år | C16: =IF($C$7=1,Model!C17,IF($C$7=2,M29,IF($C$7=3,0,""))) -> 0
B17: I alt | C17: =IF($C$7=1,SUM(C9:C16),IF($C$7=2,M30,IF($C$7=3,0,""))) -> 0
B19: Gennemsnitligt antal år med behov | C19: =Model!C26/12 -> 3 | D19: Statistikbanken laver ikke længere opgørelser over antal i diverse boliger - fra 2023 er det derfor lavet på baggrund af registerdata på indskrevne. Derfor findes der kun en i alt kategori.
B20: =+CONCATENATE("Beregning af behovsgrad primo"," ",B2) -> Beregning af behovsgrad primo 2023 | D20: 33 | E20: 0 | F20: 0
B21: Kommune | C21: Aldersgruppe | D21: I alt | E21: Plejeboliger | F21: Friplejeboliger | G21: Indskrevne i alt | H21: Venteliste (alt efter valg af scenarie) | I21: Behov i alt | J21: I befolkningen | K21: Beboergrad | L21: Behovsgrad | M21: Venteliste (beregnet)
A22: =B22&C22 -> SilkeborgUnder 60 år | B22: =Model!$C$4 -> Silkeborg | C22: Under 60 år | D22: =VLOOKUP($A22,'GAMMEL Registerdata indskrevne'!$A$4:$AH$787,$D$20,FALSE) -> 11 | E22: 0 | F22: 0 | G22: =D22 -> 11 | H22: =C9 -> 0 | I22: =G22+H22 -> 11 | J22: =D34 -> 73479 | K22: =G22/J22*100 -> 0.01497026361 | L22: =+I22/J22*100 -> 0.01497026361 | M22: =+$M$30*G22/$G$30 -> 0
A23: =B23&C23 -> Silkeborg60-64 år | B23: =Model!$C$4 -> Silkeborg | C23: 60-64 år | D23: =VLOOKUP($A23,'GAMMEL Registerdata indskrevne'!$A$4:$AH$787,$D$20,FALSE) -> 23 | E23: 0 | F23: 0 | G23: =D23 -> 23 | H23: =C10 -> 0 | I23: =G23+H23 -> 23 | J23: =D35 -> 5881 | K23: =G23/J23*100 -> 0.3910899507 | L23: =+I23/J23*100 -> 0.3910899507 | M23: =+$M$30*G23/$G$30 -> 0
A24: Silkeborg65-66 år | B24: =Model!$C$4 -> Silkeborg | C24: 65-66 år | D24: =VLOOKUP($A24,'GAMMEL Registerdata indskrevne'!$A$4:$AH$787,$D$20,FALSE) -> 10 | E24: 0 | F24: 0 | G24: 10 | H24: 0 | I24: 10 | J24: 2359 | K24: 0.4239084358 | L24: 0.4239084358 | M24: =+$M$30*G24/$G$30 -> 0
A25: Silkeborg67-74 år | B25: =Model!$C$4 -> Silkeborg | C25: 67-74 år | D25: =VLOOKUP($A25,'GAMMEL Registerdata indskrevne'!$A$4:$AH$787,$D$20,FALSE) -> 81 | E25: 0 | F25: 0 | G25: 81 | H25: 0 | I25: 81 | J25: 8418 | K25: 0.9622238061 | L25: 0.9622238061 | M25: 0
A26: Silkeborg75-79 år | B26: =Model!$C$4 -> Silkeborg | C26: 75-79 år | D26: =VLOOKUP($A26,'GAMMEL Registerdata indskrevne'!$A$4:$AH$787,$D$20,FALSE) -> 101 | E26: 0 | F26: 0 | G26: =D26 -> 101 | H26: 0 | I26: 101 | J26: 4641 | K26: 2.176255117 | L26: 2.176255117 | M26: =+$M$30*G26/$G$30 -> 0
A27: Silkeborg80-84 år | B27: =Model!$C$4 -> Silkeborg | C27: 80-84 år | D27: =VLOOKUP($A27,'GAMMEL Registerdata indskrevne'!$A$4:$AH$787,$D$20,FALSE) -> 120 | E27: 0 | F27: 0 | G27: 120 | H27: 0 | I27: 120 | J27: 2571 | K27: 4.667444574 | L27: 4.667444574 | M27: 0
A28: Silkeborg85-89 år | B28: =Model!$C$4 -> Silkeborg | C28: 85-89 år | D28: =VLOOKUP($A28,'GAMMEL Registerdata indskrevne'!$A$4:$AH$787,$D$20,FALSE) -> 126 | E28: 0 | F28: 0 | G28: 126 | H28: 0 | I28: 126 | J28: 1368 | K28: 9.210526316 | L28: 9.210526316 | M28: 0
A29: SilkeborgOver 90 år | B29: =Model!$C$4 -> Silkeborg | C29: Over 90 år | D29: =VLOOKUP($A29,'GAMMEL Registerdata indskrevne'!$A$4:$AH$787,$D$20,FALSE) -> 180 | E29: 0 | F29: 0 | G29: 180 | H29: 0 | I29: 180 | J29: 683 | K29: 26.35431918 | L29: 26.35431918 | M29: =+$M$30*G29/$G$30 -> 0
A30: SilkeborgI alt | B30: =Model!$C$4 -> Silkeborg | C30: I alt | D30: =SUM(D22:D29) -> 652 | E30: =SUM(E22:E29) -> 0 | F30: 0 | G30: =D30 -> 652 | H30: 0 | I30: 652 | J30: =D42 -> 99400 | K30: =G30/J30*100 -> 0.6559356137 | L30: =+I30/J30*100 -> 0.6559356137 | M30: =Model!C18 -> 0
A32: Befolkningsfremskrivning (Fra Befolkningsfremskrivning og dermed befolkningsfremskriv - inddata) | B32: Befolkningsfremskrivning (Fra Befolkningsfremskrivning og dermed befolkningsfremskriv - inddata)
A33: KommuneAldersgruppe | B33: Kommune | C33: Aldersgruppe | D33: =B2 -> 2023 | E33: =D33+1 -> 2024 | F33: 2025 | G33: 2026 | H33: 2027 | I33: 2028 | J33: 2029 | K33: 2030 | L33: 2031 | M33: 2032 | N33: 2033 | O33: 2034 | P33: 2035 | Q33: 2036 | R33: 2037 | S33: 2038 | T33: 2039 | U33: 2040 | V33: 2041 | W33: 2042 | X33: 2043 | Y33: 2044 | Z33: 2045 | AA33: 2046
A34: SilkeborgUnder 60 år | B34: =Model!$C$4 -> Silkeborg | C34: Under 60 år | D34: =VLOOKUP($A34,'GAMMEL - Befolkningsfremskriv'!$A3:$AL886,D$33-2012,FALSE) -> 73479 | E34: =VLOOKUP($A34,'GAMMEL - Befolkningsfremskriv'!$A3:$AL886,E$33-2012,FALSE) -> 74149 | F34: =VLOOKUP($A34,'GAMMEL - Befolkningsfremskriv'!$A3:$AL886,F$33-2012,FALSE) -> 74987 | G34: =VLOOKUP($A34,'GAMMEL - Befolkningsfremskriv'!$A3:$AL886,G$33-2012,FALSE) -> 75381 | H34: =VLOOKUP($A34,'GAMMEL - Befolkningsfremskriv'!$A3:$AL886,H$33-2012,FALSE) -> 75985 | I34: =VLOOKUP($A34,'GAMMEL - Befolkningsfremskriv'!$A3:$AL886,I$33-2012,FALSE) -> 76702 | J34: =VLOOKUP($A34,'GAMMEL - Befolkningsfremskriv'!$A3:$AL886,J$33-2012,FALSE) -> 77530 | K34: =VLOOKUP($A34,'GAMMEL - Befolkningsfremskriv'!$A3:$AL886,K$33-2012,FALSE) -> 78411 | L34: =VLOOKUP($A34,'GAMMEL - Befolkningsfremskriv'!$A3:$AL886,L$33-2012,FALSE) -> 79289 | M34: =VLOOKUP($A34,'GAMMEL - Befolkningsfremskriv'!$A3:$AL886,M$33-2012,FALSE) -> 80031 | N34: =VLOOKUP($A34,'GAMMEL - Befolkningsfremskriv'!$A3:$AL886,N$33-2012,FALSE) -> 80775 | O34: =VLOOKUP($A34,'GAMMEL - Befolkningsfremskriv'!$A3:$AL886,O$33-2012,FALSE) -> 81588 | P34: =VLOOKUP($A34,'GAMMEL - Befolkningsfremskriv'!$A3:$AL886,P$33-2012,FALSE) -> 82401 | Q34: =VLOOKUP($A34,'GAMMEL - Befolkningsfremskriv'!$A3:$AL886,Q$33-2012,FALSE) -> 83194 | R34: =VLOOKUP($A34,'GAMMEL - Befolkningsfremskriv'!$A3:$AL886,R$33-2012,FALSE) -> 84022 | S34: =VLOOKUP($A34,'GAMMEL - Befolkningsfremskriv'!$A3:$AL886,S$33-2012,FALSE) -> 84862 | T34: =VLOOKUP($A34,'GAMMEL - Befolkningsfremskriv'!$A3:$AL886,T$33-2012,FALSE) -> 85676 | U34: =VLOOKUP($A34,'GAMMEL - Befolkningsfremskriv'!$A3:$AL886,U$33-2012,FALSE) -> 86474 | V34: =VLOOKUP($A34,'GAMMEL - Befolkningsfremskriv'!$A3:$AL886,V$33-2012,FALSE) -> 87214 | W34: =VLOOKUP($A34,'GAMMEL - Befolkningsfremskriv'!$A3:$AL886,W$33-2012,FALSE) -> 87982 | X34: =VLOOKUP($A34,'GAMMEL - Befolkningsfremskriv'!$A3:$AL886,X$33-2012,FALSE) -> 88669 | Y34: =VLOOKUP($A34,'GAMMEL - Befolkningsfremskriv'!$A3:$AL886,Y$33-2012,FALSE) -> 89350 | Z34: =VLOOKUP($A34,'GAMMEL - Befolkningsfremskriv'!$A3:$AL886,Z$33-2012,FALSE) -> 89975 | AA34: =VLOOKUP($A34,'GAMMEL - Befolkningsfremskriv'!$A3:$AL886,AA$33-2012,FALSE) -> 90481
A35: Silkeborg60-64 år | B35: =Model!$C$4 -> Silkeborg | C35: 60-64 år | D35: =VLOOKUP($A35,'GAMMEL - Befolkningsfremskriv'!$A4:$AL887,D$33-2012,FALSE) -> 5881 | E35: =VLOOKUP($A35,'GAMMEL - Befolkningsfremskriv'!$A4:$AL887,E$33-2012,FALSE) -> 6113 | F35: =VLOOKUP($A35,'GAMMEL - Befolkningsfremskriv'!$A4:$AL887,F$33-2012,FALSE) -> 6351 | G35: =VLOOKUP($A35,'GAMMEL - Befolkningsfremskriv'!$A4:$AL887,G$33-2012,FALSE) -> 6596 | H35: =VLOOKUP($A35,'GAMMEL - Befolkningsfremskriv'!$A4:$AL887,H$33-2012,FALSE) -> 7000 | I35: =VLOOKUP($A35,'GAMMEL - Befolkningsfremskriv'!$A4:$AL887,I$33-2012,FALSE) -> 7133 | J35: =VLOOKUP($A35,'GAMMEL - Befolkningsfremskriv'!$A4:$AL887,J$33-2012,FALSE) -> 7103 | K35: =VLOOKUP($A35,'GAMMEL - Befolkningsfremskriv'!$A4:$AL887,K$33-2012,FALSE) -> 7009 | L35: =VLOOKUP($A35,'GAMMEL - Befolkningsfremskriv'!$A4:$AL887,L$33-2012,FALSE) -> 6891 | M35: =VLOOKUP($A35,'GAMMEL - Befolkningsfremskriv'!$A4:$AL887,M$33-2012,FALSE) -> 6803 | N35: =VLOOKUP($A35,'GAMMEL - Befolkningsfremskriv'!$A4:$AL887,N$33-2012,FALSE) -> 6836 | O35: =VLOOKUP($A35,'GAMMEL - Befolkningsfremskriv'!$A4:$AL887,O$33-2012,FALSE) -> 6909 | P35: =VLOOKUP($A35,'GAMMEL - Befolkningsfremskriv'!$A4:$AL887,P$33-2012,FALSE) -> 7026 | Q35: =VLOOKUP($A35,'GAMMEL - Befolkningsfremskriv'!$A4:$AL887,Q$33-2012,FALSE) -> 7147 | R35: =VLOOKUP($A35,'GAMMEL - Befolkningsfremskriv'!$A4:$AL887,R$33-2012,FALSE) -> 7050 | S35: =VLOOKUP($A35,'GAMMEL - Befolkningsfremskriv'!$A4:$AL887,S$33-2012,FALSE) -> 6886 | T35: =VLOOKUP($A35,'GAMMEL - Befolkningsfremskriv'!$A4:$AL887,T$33-2012,FALSE) -> 6748 | U35: =VLOOKUP($A35,'GAMMEL - Befolkningsfremskriv'!$A4:$AL887,U$33-2012,FALSE) -> 6559 | V35: =VLOOKUP($A35,'GAMMEL - Befolkningsfremskriv'!$A4:$AL887,V$33-2012,FALSE) -> 6346 | W35: =VLOOKUP($A35,'GAMMEL - Befolkningsfremskriv'!$A4:$AL887,W$33-2012,FALSE) -> 6142 | X35: =VLOOKUP($A35,'GAMMEL - Befolkningsfremskriv'!$A4:$AL887,X$33-2012,FALSE) -> 6002 | Y35: =VLOOKUP($A35,'GAMMEL - Befolkningsfremskriv'!$A4:$AL887,Y$33-2012,FALSE) -> 5882 | Z35: =VLOOKUP($A35,'GAMMEL - Befolkningsfremskriv'!$A4:$AL887,Z$33-2012,FALSE) -> 5836 | AA35: =VLOOKUP($A35,'GAMMEL - Befolkningsfremskriv'!$A4:$AL887,AA$33-2012,FALSE) -> 5871
A36: Silkeborg65-66 år | B36: =Model!$C$4 -> Silkeborg | C36: 65-66 år | D36: =VLOOKUP($A36,'GAMMEL - Befolkningsfremskriv'!$A5:$AL888,D$33-2012,FALSE) -> 2359 | E36: =VLOOKUP($A36,'GAMMEL - Befolkningsfremskriv'!$A5:$AL888,E$33-2012,FALSE) -> 2290 | F36: =VLOOKUP($A36,'GAMMEL - Befolkningsfremskriv'!$A5:$AL888,F$33-2012,FALSE) -> 2251 | G36: =VLOOKUP($A36,'GAMMEL - Befolkningsfremskriv'!$A5:$AL888,G$33-2012,FALSE) -> 2274 | H36: =VLOOKUP($A36,'GAMMEL - Befolkningsfremskriv'!$A5:$AL888,H$33-2012,FALSE) -> 2272 | I36: =VLOOKUP($A36,'GAMMEL - Befolkningsfremskriv'!$A5:$AL888,I$33-2012,FALSE) -> 2415 | J36: =VLOOKUP($A36,'GAMMEL - Befolkningsfremskriv'!$A5:$AL888,J$33-2012,FALSE) -> 2627 | K36: =VLOOKUP($A36,'GAMMEL - Befolkningsfremskriv'!$A5:$AL888,K$33-2012,FALSE) -> 2703 | L36: =VLOOKUP($A36,'GAMMEL - Befolkningsfremskriv'!$A5:$AL888,L$33-2012,FALSE) -> 2766 | M36: =VLOOKUP($A36,'GAMMEL - Befolkningsfremskriv'!$A5:$AL888,M$33-2012,FALSE) -> 2925 | N36: =VLOOKUP($A36,'GAMMEL - Befolkningsfremskriv'!$A5:$AL888,N$33-2012,FALSE) -> 2938 | O36: =VLOOKUP($A36,'GAMMEL - Befolkningsfremskriv'!$A5:$AL888,O$33-2012,FALSE) -> 2733 | P36: =VLOOKUP($A36,'GAMMEL - Befolkningsfremskriv'!$A5:$AL888,P$33-2012,FALSE) -> 2589 | Q36: =VLOOKUP($A36,'GAMMEL - Befolkningsfremskriv'!$A5:$AL888,Q$33-2012,FALSE) -> 2565 | R36: =VLOOKUP($A36,'GAMMEL - Befolkningsfremskriv'!$A5:$AL888,R$33-2012,FALSE) -> 2717 | S36: =VLOOKUP($A36,'GAMMEL - Befolkningsfremskriv'!$A5:$AL888,S$33-2012,FALSE) -> 2875 | T36: =VLOOKUP($A36,'GAMMEL - Befolkningsfremskriv'!$A5:$AL888,T$33-2012,FALSE) -> 2835 | U36: =VLOOKUP($A36,'GAMMEL - Befolkningsfremskriv'!$A5:$AL888,U$33-2012,FALSE) -> 2777 | V36: =VLOOKUP($A36,'GAMMEL - Befolkningsfremskriv'!$A5:$AL888,V$33-2012,FALSE) -> 2803 | W36: =VLOOKUP($A36,'GAMMEL - Befolkningsfremskriv'!$A5:$AL888,W$33-2012,FALSE) -> 2741 | X36: =VLOOKUP($A36,'GAMMEL - Befolkningsfremskriv'!$A5:$AL888,X$33-2012,FALSE) -> 2619 | Y36: =VLOOKUP($A36,'GAMMEL - Befolkningsfremskriv'!$A5:$AL888,Y$33-2012,FALSE) -> 2542 | Z36: =VLOOKUP($A36,'GAMMEL - Befolkningsfremskriv'!$A5:$AL888,Z$33-2012,FALSE) -> 2465 | AA36: =VLOOKUP($A36,'GAMMEL - Befolkningsfremskriv'!$A5:$AL888,AA$33-2012,FALSE) -> 2417
A37: Silkeborg67-74 år | B37: =Model!$C$4 -> Silkeborg | C37: 67-74 år | D37: =VLOOKUP($A37,'GAMMEL - Befolkningsfremskriv'!$A6:$AL889,D$33-2012,FALSE) -> 8418 | E37: =VLOOKUP($A37,'GAMMEL - Befolkningsfremskriv'!$A6:$AL889,E$33-2012,FALSE) -> 8491 | F37: =VLOOKUP($A37,'GAMMEL - Befolkningsfremskriv'!$A6:$AL889,F$33-2012,FALSE) -> 8554 | G37: =VLOOKUP($A37,'GAMMEL - Befolkningsfremskriv'!$A6:$AL889,G$33-2012,FALSE) -> 8575 | H37: =VLOOKUP($A37,'GAMMEL - Befolkningsfremskriv'!$A6:$AL889,H$33-2012,FALSE) -> 8591 | I37: =VLOOKUP($A37,'GAMMEL - Befolkningsfremskriv'!$A6:$AL889,I$33-2012,FALSE) -> 8657 | J37: =VLOOKUP($A37,'GAMMEL - Befolkningsfremskriv'!$A6:$AL889,J$33-2012,FALSE) -> 8707 | K37: =VLOOKUP($A37,'GAMMEL - Befolkningsfremskriv'!$A6:$AL889,K$33-2012,FALSE) -> 8893 | L37: =VLOOKUP($A37,'GAMMEL - Befolkningsfremskriv'!$A6:$AL889,L$33-2012,FALSE) -> 9151 | M37: =VLOOKUP($A37,'GAMMEL - Befolkningsfremskriv'!$A6:$AL889,M$33-2012,FALSE) -> 9340 | N37: =VLOOKUP($A37,'GAMMEL - Befolkningsfremskriv'!$A6:$AL889,N$33-2012,FALSE) -> 9588 | O37: =VLOOKUP($A37,'GAMMEL - Befolkningsfremskriv'!$A6:$AL889,O$33-2012,FALSE) -> 9991 | P37: =VLOOKUP($A37,'GAMMEL - Befolkningsfremskriv'!$A6:$AL889,P$33-2012,FALSE) -> 10278 | Q37: =VLOOKUP($A37,'GAMMEL - Befolkningsfremskriv'!$A6:$AL889,Q$33-2012,FALSE) -> 10440 | R37: =VLOOKUP($A37,'GAMMEL - Befolkningsfremskriv'!$A6:$AL889,R$33-2012,FALSE) -> 10572 | S37: =VLOOKUP($A37,'GAMMEL - Befolkningsfremskriv'!$A6:$AL889,S$33-2012,FALSE) -> 10584 | T37: =VLOOKUP($A37,'GAMMEL - Befolkningsfremskriv'!$A6:$AL889,T$33-2012,FALSE) -> 10675 | U37: =VLOOKUP($A37,'GAMMEL - Befolkningsfremskriv'!$A6:$AL889,U$33-2012,FALSE) -> 10767 | V37: =VLOOKUP($A37,'GAMMEL - Befolkningsfremskriv'!$A6:$AL889,V$33-2012,FALSE) -> 10750 | W37: =VLOOKUP($A37,'GAMMEL - Befolkningsfremskriv'!$A6:$AL889,W$33-2012,FALSE) -> 10640 | X37: =VLOOKUP($A37,'GAMMEL - Befolkningsfremskriv'!$A6:$AL889,X$33-2012,FALSE) -> 10645 | Y37: =VLOOKUP($A37,'GAMMEL - Befolkningsfremskriv'!$A6:$AL889,Y$33-2012,FALSE) -> 10661 | Z37: =VLOOKUP($A37,'GAMMEL - Befolkningsfremskriv'!$A6:$AL889,Z$33-2012,FALSE) -> 10672 | AA37: =VLOOKUP($A37,'GAMMEL - Befolkningsfremskriv'!$A6:$AL889,AA$33-2012,FALSE) -> 10631
A38: Silkeborg75-79 år | B38: =Model!$C$4 -> Silkeborg | C38: 75-79 år | D38: =VLOOKUP($A38,'GAMMEL - Befolkningsfremskriv'!$A7:$AL890,D$33-2012,FALSE) -> 4641 | E38: =VLOOKUP($A38,'GAMMEL - Befolkningsfremskriv'!$A7:$AL890,E$33-2012,FALSE) -> 4824 | F38: =VLOOKUP($A38,'GAMMEL - Befolkningsfremskriv'!$A7:$AL890,F$33-2012,FALSE) -> 4886 | G38: =VLOOKUP($A38,'GAMMEL - Befolkningsfremskriv'!$A7:$AL890,G$33-2012,FALSE) -> 4830 | H38: =VLOOKUP($A38,'GAMMEL - Befolkningsfremskriv'!$A7:$AL890,H$33-2012,FALSE) -> 4774 | I38: =VLOOKUP($A38,'GAMMEL - Befolkningsfremskriv'!$A7:$AL890,I$33-2012,FALSE) -> 4669 | J38: =VLOOKUP($A38,'GAMMEL - Befolkningsfremskriv'!$A7:$AL890,J$33-2012,FALSE) -> 4658 | K38: =VLOOKUP($A38,'GAMMEL - Befolkningsfremskriv'!$A7:$AL890,K$33-2012,FALSE) -> 4673 | L38: =VLOOKUP($A38,'GAMMEL - Befolkningsfremskriv'!$A7:$AL890,L$33-2012,FALSE) -> 4698 | M38: =VLOOKUP($A38,'GAMMEL - Befolkningsfremskriv'!$A7:$AL890,M$33-2012,FALSE) -> 4782 | N38: =VLOOKUP($A38,'GAMMEL - Befolkningsfremskriv'!$A7:$AL890,N$33-2012,FALSE) -> 4865 | O38: =VLOOKUP($A38,'GAMMEL - Befolkningsfremskriv'!$A7:$AL890,O$33-2012,FALSE) -> 4910 | P38: =VLOOKUP($A38,'GAMMEL - Befolkningsfremskriv'!$A7:$AL890,P$33-2012,FALSE) -> 4948 | Q38: =VLOOKUP($A38,'GAMMEL - Befolkningsfremskriv'!$A7:$AL890,Q$33-2012,FALSE) -> 5019 | R38: =VLOOKUP($A38,'GAMMEL - Befolkningsfremskriv'!$A7:$AL890,R$33-2012,FALSE) -> 5001 | S38: =VLOOKUP($A38,'GAMMEL - Befolkningsfremskriv'!$A7:$AL890,S$33-2012,FALSE) -> 5135 | T38: =VLOOKUP($A38,'GAMMEL - Befolkningsfremskriv'!$A7:$AL890,T$33-2012,FALSE) -> 5352 | U38: =VLOOKUP($A38,'GAMMEL - Befolkningsfremskriv'!$A7:$AL890,U$33-2012,FALSE) -> 5577 | V38: =VLOOKUP($A38,'GAMMEL - Befolkningsfremskriv'!$A7:$AL890,V$33-2012,FALSE) -> 5819 | W38: =VLOOKUP($A38,'GAMMEL - Befolkningsfremskriv'!$A7:$AL890,W$33-2012,FALSE) -> 6166 | X38: =VLOOKUP($A38,'GAMMEL - Befolkningsfremskriv'!$A7:$AL890,X$33-2012,FALSE) -> 6298 | Y38: =VLOOKUP($A38,'GAMMEL - Befolkningsfremskriv'!$A7:$AL890,Y$33-2012,FALSE) -> 6286 | Z38: =VLOOKUP($A38,'GAMMEL - Befolkningsfremskriv'!$A7:$AL890,Z$33-2012,FALSE) -> 6216 | AA38: =VLOOKUP($A38,'GAMMEL - Befolkningsfremskriv'!$A7:$AL890,AA$33-2012,FALSE) -> 6125
A39: Silkeborg80-84 år | B39: =Model!$C$4 -> Silkeborg | C39: 80-84 år | D39: =VLOOKUP($A39,'GAMMEL - Befolkningsfremskriv'!$A8:$AL891,D$33-2012,FALSE) -> 2571 | E39: =VLOOKUP($A39,'GAMMEL - Befolkningsfremskriv'!$A8:$AL891,E$33-2012,FALSE) -> 2737 | F39: =VLOOKUP($A39,'GAMMEL - Befolkningsfremskriv'!$A8:$AL891,F$33-2012,FALSE) -> 2957 | G39: =VLOOKUP($A39,'GAMMEL - Befolkningsfremskriv'!$A8:$AL891,G$33-2012,FALSE) -> 3232 | H39: =VLOOKUP($A39,'GAMMEL - Befolkningsfremskriv'!$A8:$AL891,H$33-2012,FALSE) -> 3542 | I39: =VLOOKUP($A39,'GAMMEL - Befolkningsfremskriv'!$A8:$AL891,I$33-2012,FALSE) -> 3799 | J39: =VLOOKUP($A39,'GAMMEL - Befolkningsfremskriv'!$A8:$AL891,J$33-2012,FALSE) -> 3925 | K39: =VLOOKUP($A39,'GAMMEL - Befolkningsfremskriv'!$A8:$AL891,K$33-2012,FALSE) -> 3981 | L39: =VLOOKUP($A39,'GAMMEL - Befolkningsfremskriv'!$A8:$AL891,L$33-2012,FALSE) -> 3951 | M39: =VLOOKUP($A39,'GAMMEL - Befolkningsfremskriv'!$A8:$AL891,M$33-2012,FALSE) -> 3921 | N39: =VLOOKUP($A39,'GAMMEL - Befolkningsfremskriv'!$A8:$AL891,N$33-2012,FALSE) -> 3854 | O39: =VLOOKUP($A39,'GAMMEL - Befolkningsfremskriv'!$A8:$AL891,O$33-2012,FALSE) -> 3860 | P39: =VLOOKUP($A39,'GAMMEL - Befolkningsfremskriv'!$A8:$AL891,P$33-2012,FALSE) -> 3886 | Q39: =VLOOKUP($A39,'GAMMEL - Befolkningsfremskriv'!$A8:$AL891,Q$33-2012,FALSE) -> 3921 | R39: =VLOOKUP($A39,'GAMMEL - Befolkningsfremskriv'!$A8:$AL891,R$33-2012,FALSE) -> 4005 | S39: =VLOOKUP($A39,'GAMMEL - Befolkningsfremskriv'!$A8:$AL891,S$33-2012,FALSE) -> 4087 | T39: =VLOOKUP($A39,'GAMMEL - Befolkningsfremskriv'!$A8:$AL891,T$33-2012,FALSE) -> 4138 | U39: =VLOOKUP($A39,'GAMMEL - Befolkningsfremskriv'!$A8:$AL891,U$33-2012,FALSE) -> 4179 | V39: =VLOOKUP($A39,'GAMMEL - Befolkningsfremskriv'!$A8:$AL891,V$33-2012,FALSE) -> 4251 | W39: =VLOOKUP($A39,'GAMMEL - Befolkningsfremskriv'!$A8:$AL891,W$33-2012,FALSE) -> 4254 | X39: =VLOOKUP($A39,'GAMMEL - Befolkningsfremskriv'!$A8:$AL891,X$33-2012,FALSE) -> 4386 | Y39: =VLOOKUP($A39,'GAMMEL - Befolkningsfremskriv'!$A8:$AL891,Y$33-2012,FALSE) -> 4585 | Z39: =VLOOKUP($A39,'GAMMEL - Befolkningsfremskriv'!$A8:$AL891,Z$33-2012,FALSE) -> 4791 | AA39: =VLOOKUP($A39,'GAMMEL - Befolkningsfremskriv'!$A8:$AL891,AA$33-2012,FALSE) -> 5009
A40: Silkeborg85-89 år | B40: =Model!$C$4 -> Silkeborg | C40: 85-89 år | D40: =VLOOKUP($A40,'GAMMEL - Befolkningsfremskriv'!$A9:$AL892,D$33-2012,FALSE) -> 1368 | E40: =VLOOKUP($A40,'GAMMEL - Befolkningsfremskriv'!$A9:$AL892,E$33-2012,FALSE) -> 1465 | F40: =VLOOKUP($A40,'GAMMEL - Befolkningsfremskriv'!$A9:$AL892,F$33-2012,FALSE) -> 1513 | G40: =VLOOKUP($A40,'GAMMEL - Befolkningsfremskriv'!$A9:$AL892,G$33-2012,FALSE) -> 1607 | H40: =VLOOKUP($A40,'GAMMEL - Befolkningsfremskriv'!$A9:$AL892,H$33-2012,FALSE) -> 1670 | I40: =VLOOKUP($A40,'GAMMEL - Befolkningsfremskriv'!$A9:$AL892,I$33-2012,FALSE) -> 1773 | J40: =VLOOKUP($A40,'GAMMEL - Befolkningsfremskriv'!$A9:$AL892,J$33-2012,FALSE) -> 1888 | K40: =VLOOKUP($A40,'GAMMEL - Befolkningsfremskriv'!$A9:$AL892,K$33-2012,FALSE) -> 2054 | L40: =VLOOKUP($A40,'GAMMEL - Befolkningsfremskriv'!$A9:$AL892,L$33-2012,FALSE) -> 2254 | M40: =VLOOKUP($A40,'GAMMEL - Befolkningsfremskriv'!$A9:$AL892,M$33-2012,FALSE) -> 2477 | N40: =VLOOKUP($A40,'GAMMEL - Befolkningsfremskriv'!$A9:$AL892,N$33-2012,FALSE) -> 2667 | O40: =VLOOKUP($A40,'GAMMEL - Befolkningsfremskriv'!$A9:$AL892,O$33-2012,FALSE) -> 2754 | P40: =VLOOKUP($A40,'GAMMEL - Befolkningsfremskriv'!$A9:$AL892,P$33-2012,FALSE) -> 2795 | Q40: =VLOOKUP($A40,'GAMMEL - Befolkningsfremskriv'!$A9:$AL892,Q$33-2012,FALSE) -> 2782 | R40: =VLOOKUP($A40,'GAMMEL - Befolkningsfremskriv'!$A9:$AL892,R$33-2012,FALSE) -> 2774 | S40: =VLOOKUP($A40,'GAMMEL - Befolkningsfremskriv'!$A9:$AL892,S$33-2012,FALSE) -> 2744 | T40: =VLOOKUP($A40,'GAMMEL - Befolkningsfremskriv'!$A9:$AL892,T$33-2012,FALSE) -> 2761 | U40: =VLOOKUP($A40,'GAMMEL - Befolkningsfremskriv'!$A9:$AL892,U$33-2012,FALSE) -> 2794 | V40: =VLOOKUP($A40,'GAMMEL - Befolkningsfremskriv'!$A9:$AL892,V$33-2012,FALSE) -> 2829 | W40: =VLOOKUP($A40,'GAMMEL - Befolkningsfremskriv'!$A9:$AL892,W$33-2012,FALSE) -> 2906 | X40: =VLOOKUP($A40,'GAMMEL - Befolkningsfremskriv'!$A9:$AL892,X$33-2012,FALSE) -> 2978 | Y40: =VLOOKUP($A40,'GAMMEL - Befolkningsfremskriv'!$A9:$AL892,Y$33-2012,FALSE) -> 3022 | Z40: =VLOOKUP($A40,'GAMMEL - Befolkningsfremskriv'!$A9:$AL892,Z$33-2012,FALSE) -> 3060 | AA40: =VLOOKUP($A40,'GAMMEL - Befolkningsfremskriv'!$A9:$AL892,AA$33-2012,FALSE) -> 3123
A41: SilkeborgOver 90 år | B41: =Model!$C$4 -> Silkeborg | C41: Over 90 år | D41: =VLOOKUP($A41,'GAMMEL - Befolkningsfremskriv'!$A10:$AL893,D$33-2012,FALSE) -> 683 | E41: =VLOOKUP($A41,'GAMMEL - Befolkningsfremskriv'!$A10:$AL893,E$33-2012,FALSE) -> 678 | F41: =VLOOKUP($A41,'GAMMEL - Befolkningsfremskriv'!$A10:$AL893,F$33-2012,FALSE) -> 719 | G41: =VLOOKUP($A41,'GAMMEL - Befolkningsfremskriv'!$A10:$AL893,G$33-2012,FALSE) -> 724 | H41: =VLOOKUP($A41,'GAMMEL - Befolkningsfremskriv'!$A10:$AL893,H$33-2012,FALSE) -> 768 | I41: =VLOOKUP($A41,'GAMMEL - Befolkningsfremskriv'!$A10:$AL893,I$33-2012,FALSE) -> 808 | J41: =VLOOKUP($A41,'GAMMEL - Befolkningsfremskriv'!$A10:$AL893,J$33-2012,FALSE) -> 866 | K41: =VLOOKUP($A41,'GAMMEL - Befolkningsfremskriv'!$A10:$AL893,K$33-2012,FALSE) -> 918 | L41: =VLOOKUP($A41,'GAMMEL - Befolkningsfremskriv'!$A10:$AL893,L$33-2012,FALSE) -> 969 | M41: =VLOOKUP($A41,'GAMMEL - Befolkningsfremskriv'!$A10:$AL893,M$33-2012,FALSE) -> 1015 | N41: =VLOOKUP($A41,'GAMMEL - Befolkningsfremskriv'!$A10:$AL893,N$33-2012,FALSE) -> 1094 | O41: =VLOOKUP($A41,'GAMMEL - Befolkningsfremskriv'!$A10:$AL893,O$33-2012,FALSE) -> 1177 | P41: =VLOOKUP($A41,'GAMMEL - Befolkningsfremskriv'!$A10:$AL893,P$33-2012,FALSE) -> 1286 | Q41: =VLOOKUP($A41,'GAMMEL - Befolkningsfremskriv'!$A10:$AL893,Q$33-2012,FALSE) -> 1413 | R41: =VLOOKUP($A41,'GAMMEL - Befolkningsfremskriv'!$A10:$AL893,R$33-2012,FALSE) -> 1546 | S41: =VLOOKUP($A41,'GAMMEL - Befolkningsfremskriv'!$A10:$AL893,S$33-2012,FALSE) -> 1675 | T41: =VLOOKUP($A41,'GAMMEL - Befolkningsfremskriv'!$A10:$AL893,T$33-2012,FALSE) -> 1742 | U41: =VLOOKUP($A41,'GAMMEL - Befolkningsfremskriv'!$A10:$AL893,U$33-2012,FALSE) -> 1799 | V41: =VLOOKUP($A41,'GAMMEL - Befolkningsfremskriv'!$A10:$AL893,V$33-2012,FALSE) -> 1837 | W41: =VLOOKUP($A41,'GAMMEL - Befolkningsfremskriv'!$A10:$AL893,W$33-2012,FALSE) -> 1884 | X41: =VLOOKUP($A41,'GAMMEL - Befolkningsfremskriv'!$A10:$AL893,X$33-2012,FALSE) -> 1919 | Y41: =VLOOKUP($A41,'GAMMEL - Befolkningsfremskriv'!$A10:$AL893,Y$33-2012,FALSE) -> 1948 | Z41: =VLOOKUP($A41,'GAMMEL - Befolkningsfremskriv'!$A10:$AL893,Z$33-2012,FALSE) -> 1989 | AA41: =VLOOKUP($A41,'GAMMEL - Befolkningsfremskriv'!$A10:$AL893,AA$33-2012,FALSE) -> 2020
A42: SilkeborgI alt | B42: =Model!$C$4 -> Silkeborg | C42: I alt | D42: =SUM(D34:D41) -> 99400 | E42: =SUM(E34:E41) -> 100747 | F42: 102218 | G42: 103219 | H42: 104602 | I42: 105956 | J42: 107304 | K42: 108642 | L42: 109969 | M42: 111294 | N42: 112617 | O42: 113922 | P42: 115209 | Q42: 116481 | R42: 117687 | S42: 118848 | T42: 119927 | U42: 120926 | V42: 121849 | W42: 122715 | X42: 123516 | Y42: 124276 | Z42: 125004 | AA42: 125677
A44: Fremskrivning af behovsgrader | B44: Fremskrivning af behovsgrader
A45: KommuneAldersgruppe | B45: Kommune | C45: Aldersgruppe | D45: =D33 -> 2023 | E45: =D45+1 -> 2024 | F45: 2025 | G45: 2026 | H45: 2027 | I45: 2028 | J45: 2029 | K45: 2030 | L45: 2031 | M45: 2032 | N45: 2033 | O45: 2034 | P45: 2035 | Q45: 2036 | R45: 2037 | S45: 2038 | T45: 2039 | U45: 2040 | V45: 2041 | W45: 2042 | X45: 2043 | Y45: 2044 | Z45: 2045 | AA45: 2046
A46: SilkeborgUnder 60 år | B46: =Model!$C$4 -> Silkeborg | C46: Under 60 år | D46: =L22 -> 0.01497026361 | E46: =MIN(MAX(0,D46+IF(E$45-$D$45<=Model!$M$10,IF(AND(ISNUMBER(Model!$K10),ISNUMBER(Model!$M$10)),(Model!$K10-Model!$E10)/Model!$M$10),0)),100) -> 0.01561804831 | F46: =MIN(MAX(0,E46+IF(F$45-$D$45<=Model!$M$10,IF(AND(ISNUMBER(Model!$K10),ISNUMBER(Model!$M$10)),(Model!$K10-Model!$E10)/Model!$M$10),0)),100) -> 0.01626583301 | G46: =MIN(MAX(0,F46+IF(G$45-$D$45<=Model!$M$10,IF(AND(ISNUMBER(Model!$K10),ISNUMBER(Model!$M$10)),(Model!$K10-Model!$E10)/Model!$M$10),0)),100) -> 0.01691361771 | H46: =MIN(MAX(0,G46+IF(H$45-$D$45<=Model!$M$10,IF(AND(ISNUMBER(Model!$K10),ISNUMBER(Model!$M$10)),(Model!$K10-Model!$E10)/Model!$M$10),0)),100) -> 0.01756140241 | I46: =MIN(MAX(0,H46+IF(I$45-$D$45<=Model!$M$10,IF(AND(ISNUMBER(Model!$K10),ISNUMBER(Model!$M$10)),(Model!$K10-Model!$E10)/Model!$M$10),0)),100) -> 0.0182091871 | J46: =MIN(MAX(0,I46+IF(J$45-$D$45<=Model!$M$10,IF(AND(ISNUMBER(Model!$K10),ISNUMBER(Model!$M$10)),(Model!$K10-Model!$E10)/Model!$M$10),0)),100) -> 0.0188569718 | K46: =MIN(MAX(0,J46+IF(K$45-$D$45<=Model!$M$10,IF(AND(ISNUMBER(Model!$K10),ISNUMBER(Model!$M$10)),(Model!$K10-Model!$E10)/Model!$M$10),0)),100) -> 0.0195047565 | L46: =MIN(MAX(0,K46+IF(L$45-$D$45<=Model!$M$10,IF(AND(ISNUMBER(Model!$K10),ISNUMBER(Model!$M$10)),(Model!$K10-Model!$E10)/Model!$M$10),0)),100) -> 0.0201525412 | M46: =MIN(MAX(0,L46+IF(M$45-$D$45<=Model!$M$10,IF(AND(ISNUMBER(Model!$K10),ISNUMBER(Model!$M$10)),(Model!$K10-Model!$E10)/Model!$M$10),0)),100) -> 0.0201525412 | N46: =MIN(MAX(0,M46+IF(N$45-$D$45<=Model!$M$10,IF(AND(ISNUMBER(Model!$K10),ISNUMBER(Model!$M$10)),(Model!$K10-Model!$E10)/Model!$M$10),0)),100) -> 0.0201525412 | O46: =MIN(MAX(0,N46+IF(O$45-$D$45<=Model!$M$10,IF(AND(ISNUMBER(Model!$K10),ISNUMBER(Model!$M$10)),(Model!$K10-Model!$E10)/Model!$M$10),0)),100) -> 0.0201525412 | P46: =MIN(MAX(0,O46+IF(P$45-$D$45<=Model!$M$10,IF(AND(ISNUMBER(Model!$K10),ISNUMBER(Model!$M$10)),(Model!$K10-Model!$E10)/Model!$M$10),0)),100) -> 0.0201525412 | Q46: =MIN(MAX(0,P46+IF(Q$45-$D$45<=Model!$M$10,IF(AND(ISNUMBER(Model!$K10),ISNUMBER(Model!$M$10)),(Model!$K10-Model!$E10)/Model!$M$10),0)),100) -> 0.0201525412 | R46: =MIN(MAX(0,Q46+IF(R$45-$D$45<=Model!$M$10,IF(AND(ISNUMBER(Model!$K10),ISNUMBER(Model!$M$10)),(Model!$K10-Model!$E10)/Model!$M$10),0)),100) -> 0.0201525412 | S46: =MIN(MAX(0,R46+IF(S$45-$D$45<=Model!$M$10,IF(AND(ISNUMBER(Model!$K10),ISNUMBER(Model!$M$10)),(Model!$K10-Model!$E10)/Model!$M$10),0)),100) -> 0.0201525412 | T46: =MIN(MAX(0,S46+IF(T$45-$D$45<=Model!$M$10,IF(AND(ISNUMBER(Model!$K10),ISNUMBER(Model!$M$10)),(Model!$K10-Model!$E10)/Model!$M$10),0)),100) -> 0.0201525412 | U46: =MIN(MAX(0,T46+IF(U$45-$D$45<=Model!$M$10,IF(AND(ISNUMBER(Model!$K10),ISNUMBER(Model!$M$10)),(Model!$K10-Model!$E10)/Model!$M$10),0)),100) -> 0.0201525412 | V46: =MIN(MAX(0,U46+IF(V$45-$D$45<=Model!$M$10,IF(AND(ISNUMBER(Model!$K10),ISNUMBER(Model!$M$10)),(Model!$K10-Model!$E10)/Model!$M$10),0)),100) -> 0.0201525412 | W46: =MIN(MAX(0,V46+IF(W$45-$D$45<=Model!$M$10,IF(AND(ISNUMBER(Model!$K10),ISNUMBER(Model!$M$10)),(Model!$K10-Model!$E10)/Model!$M$10),0)),100) -> 0.0201525412 | X46: =MIN(MAX(0,W46+IF(X$45-$D$45<=Model!$M$10,IF(AND(ISNUMBER(Model!$K10),ISNUMBER(Model!$M$10)),(Model!$K10-Model!$E10)/Model!$M$10),0)),100) -> 0.0201525412 | Y46: =MIN(MAX(0,X46+IF(Y$45-$D$45<=Model!$M$10,IF(AND(ISNUMBER(Model!$K10),ISNUMBER(Model!$M$10)),(Model!$K10-Model!$E10)/Model!$M$10),0)),100) -> 0.0201525412 | Z46: =MIN(MAX(0,Y46+IF(Z$45-$D$45<=Model!$M$10,IF(AND(ISNUMBER(Model!$K10),ISNUMBER(Model!$M$10)),(Model!$K10-Model!$E10)/Model!$M$10),0)),100) -> 0.0201525412 | AA46: =MIN(MAX(0,Z46+IF(AA$45-$D$45<=Model!$M$10,IF(AND(ISNUMBER(Model!$K10),ISNUMBER(Model!$M$10)),(Model!$K10-Model!$E10)/Model!$M$10),0)),100) -> 0.0201525412
A47: Silkeborg60-64 år | B47: =Model!$C$4 -> Silkeborg | C47: 60-64 år | D47: =L23 -> 0.3910899507 | E47: =MIN(MAX(0,D47+IF(E$45-$D$45<=Model!$M$10,IF(AND(ISNUMBER(Model!$K11),ISNUMBER(Model!$M$10)),(Model!$K11-Model!$E11)/Model!$M$10),0)),100) -> 0.3773631264 | F47: =MIN(MAX(0,E47+IF(F$45-$D$45<=Model!$M$10,IF(AND(ISNUMBER(Model!$K11),ISNUMBER(Model!$M$10)),(Model!$K11-Model!$E11)/Model!$M$10),0)),100) -> 0.3636363022 | G47: =MIN(MAX(0,F47+IF(G$45-$D$45<=Model!$M$10,IF(AND(ISNUMBER(Model!$K11),ISNUMBER(Model!$M$10)),(Model!$K11-Model!$E11)/Model!$M$10),0)),100) -> 0.3499094779 | H47: =MIN(MAX(0,G47+IF(H$45-$D$45<=Model!$M$10,IF(AND(ISNUMBER(Model!$K11),ISNUMBER(Model!$M$10)),(Model!$K11-Model!$E11)/Model!$M$10),0)),100) -> 0.3361826536 | I47: =MIN(MAX(0,H47+IF(I$45-$D$45<=Model!$M$10,IF(AND(ISNUMBER(Model!$K11),ISNUMBER(Model!$M$10)),(Model!$K11-Model!$E11)/Model!$M$10),0)),100) -> 0.3224558294 | J47: =MIN(MAX(0,I47+IF(J$45-$D$45<=Model!$M$10,IF(AND(ISNUMBER(Model!$K11),ISNUMBER(Model!$M$10)),(Model!$K11-Model!$E11)/Model!$M$10),0)),100) -> 0.3087290051 | K47: =MIN(MAX(0,J47+IF(K$45-$D$45<=Model!$M$10,IF(AND(ISNUMBER(Model!$K11),ISNUMBER(Model!$M$10)),(Model!$K11-Model!$E11)/Model!$M$10),0)),100) -> 0.2950021809 | L47: =MIN(MAX(0,K47+IF(L$45-$D$45<=Model!$M$10,IF(AND(ISNUMBER(Model!$K11),ISNUMBER(Model!$M$10)),(Model!$K11-Model!$E11)/Model!$M$10),0)),100) -> 0.2812753566 | M47: =MIN(MAX(0,L47+IF(M$45-$D$45<=Model!$M$10,IF(AND(ISNUMBER(Model!$K11),ISNUMBER(Model!$M$10)),(Model!$K11-Model!$E11)/Model!$M$10),0)),100) -> 0.2812753566 | N47: =MIN(MAX(0,M47+IF(N$45-$D$45<=Model!$M$10,IF(AND(ISNUMBER(Model!$K11),ISNUMBER(Model!$M$10)),(Model!$K11-Model!$E11)/Model!$M$10),0)),100) -> 0.2812753566 | O47: =MIN(MAX(0,N47+IF(O$45-$D$45<=Model!$M$10,IF(AND(ISNUMBER(Model!$K11),ISNUMBER(Model!$M$10)),(Model!$K11-Model!$E11)/Model!$M$10),0)),100) -> 0.2812753566 | P47: =MIN(MAX(0,O47+IF(P$45-$D$45<=Model!$M$10,IF(AND(ISNUMBER(Model!$K11),ISNUMBER(Model!$M$10)),(Model!$K11-Model!$E11)/Model!$M$10),0)),100) -> 0.2812753566 | Q47: =MIN(MAX(0,P47+IF(Q$45-$D$45<=Model!$M$10,IF(AND(ISNUMBER(Model!$K11),ISNUMBER(Model!$M$10)),(Model!$K11-Model!$E11)/Model!$M$10),0)),100) -> 0.2812753566 | R47: =MIN(MAX(0,Q47+IF(R$45-$D$45<=Model!$M$10,IF(AND(ISNUMBER(Model!$K11),ISNUMBER(Model!$M$10)),(Model!$K11-Model!$E11)/Model!$M$10),0)),100) -> 0.2812753566 | S47: =MIN(MAX(0,R47+IF(S$45-$D$45<=Model!$M$10,IF(AND(ISNUMBER(Model!$K11),ISNUMBER(Model!$M$10)),(Model!$K11-Model!$E11)/Model!$M$10),0)),100) -> 0.2812753566 | T47: =MIN(MAX(0,S47+IF(T$45-$D$45<=Model!$M$10,IF(AND(ISNUMBER(Model!$K11),ISNUMBER(Model!$M$10)),(Model!$K11-Model!$E11)/Model!$M$10),0)),100) -> 0.2812753566 | U47: =MIN(MAX(0,T47+IF(U$45-$D$45<=Model!$M$10,IF(AND(ISNUMBER(Model!$K11),ISNUMBER(Model!$M$10)),(Model!$K11-Model!$E11)/Model!$M$10),0)),100) -> 0.2812753566 | V47: =MIN(MAX(0,U47+IF(V$45-$D$45<=Model!$M$10,IF(AND(ISNUMBER(Model!$K11),ISNUMBER(Model!$M$10)),(Model!$K11-Model!$E11)/Model!$M$10),0)),100) -> 0.2812753566 | W47: =MIN(MAX(0,V47+IF(W$45-$D$45<=Model!$M$10,IF(AND(ISNUMBER(Model!$K11),ISNUMBER(Model!$M$10)),(Model!$K11-Model!$E11)/Model!$M$10),0)),100) -> 0.2812753566 | X47: =MIN(MAX(0,W47+IF(X$45-$D$45<=Model!$M$10,IF(AND(ISNUMBER(Model!$K11),ISNUMBER(Model!$M$10)),(Model!$K11-Model!$E11)/Model!$M$10),0)),100) -> 0.2812753566 | Y47: =MIN(MAX(0,X47+IF(Y$45-$D$45<=Model!$M$10,IF(AND(ISNUMBER(Model!$K11),ISNUMBER(Model!$M$10)),(Model!$K11-Model!$E11)/Model!$M$10),0)),100) -> 0.2812753566 | Z47: =MIN(MAX(0,Y47+IF(Z$45-$D$45<=Model!$M$10,IF(AND(ISNUMBER(Model!$K11),ISNUMBER(Model!$M$10)),(Model!$K11-Model!$E11)/Model!$M$10),0)),100) -> 0.2812753566 | AA47: =MIN(MAX(0,Z47+IF(AA$45-$D$45<=Model!$M$10,IF(AND(ISNUMBER(Model!$K11),ISNUMBER(Model!$M$10)),(Model!$K11-Model!$E11)/Model!$M$10),0)),100) -> 0.2812753566
A48: Silkeborg65-66 år | B48: =Model!$C$4 -> Silkeborg | C48: 65-66 år | D48: 0.4239084358 | E48: =MIN(MAX(0,D48+IF(E$45-$D$45<=Model!$M$10,IF(AND(ISNUMBER(Model!$K12),ISNUMBER(Model!$M$10)),(Model!$K12-Model!$E12)/Model!$M$10),0)),100) -> 0.4089517302 | F48: =MIN(MAX(0,E48+IF(F$45-$D$45<=Model!$M$10,IF(AND(ISNUMBER(Model!$K12),ISNUMBER(Model!$M$10)),(Model!$K12-Model!$E12)/Model!$M$10),0)),100) -> 0.3939950247 | G48: =MIN(MAX(0,F48+IF(G$45-$D$45<=Model!$M$10,IF(AND(ISNUMBER(Model!$K12),ISNUMBER(Model!$M$10)),(Model!$K12-Model!$E12)/Model!$M$10),0)),100) -> 0.3790383192 | H48: =MIN(MAX(0,G48+IF(H$45-$D$45<=Model!$M$10,IF(AND(ISNUMBER(Model!$K12),ISNUMBER(Model!$M$10)),(Model!$K12-Model!$E12)/Model!$M$10),0)),100) -> 0.3640816136 | I48: =MIN(MAX(0,H48+IF(I$45-$D$45<=Model!$M$10,IF(AND(ISNUMBER(Model!$K12),ISNUMBER(Model!$M$10)),(Model!$K12-Model!$E12)/Model!$M$10),0)),100) -> 0.3491249081 | J48: =MIN(MAX(0,I48+IF(J$45-$D$45<=Model!$M$10,IF(AND(ISNUMBER(Model!$K12),ISNUMBER(Model!$M$10)),(Model!$K12-Model!$E12)/Model!$M$10),0)),100) -> 0.3341682026 | K48: =MIN(MAX(0,J48+IF(K$45-$D$45<=Model!$M$10,IF(AND(ISNUMBER(Model!$K12),ISNUMBER(Model!$M$10)),(Model!$K12-Model!$E12)/Model!$M$10),0)),100) -> 0.319211497 | L48: =MIN(MAX(0,K48+IF(L$45-$D$45<=Model!$M$10,IF(AND(ISNUMBER(Model!$K12),ISNUMBER(Model!$M$10)),(Model!$K12-Model!$E12)/Model!$M$10),0)),100) -> 0.3042547915 | M48: =MIN(MAX(0,L48+IF(M$45-$D$45<=Model!$M$10,IF(AND(ISNUMBER(Model!$K12),ISNUMBER(Model!$M$10)),(Model!$K12-Model!$E12)/Model!$M$10),0)),100) -> 0.3042547915 | N48: =MIN(MAX(0,M48+IF(N$45-$D$45<=Model!$M$10,IF(AND(ISNUMBER(Model!$K12),ISNUMBER(Model!$M$10)),(Model!$K12-Model!$E12)/Model!$M$10),0)),100) -> 0.3042547915 | O48: =MIN(MAX(0,N48+IF(O$45-$D$45<=Model!$M$10,IF(AND(ISNUMBER(Model!$K12),ISNUMBER(Model!$M$10)),(Model!$K12-Model!$E12)/Model!$M$10),0)),100) -> 0.3042547915 | P48: =MIN(MAX(0,O48+IF(P$45-$D$45<=Model!$M$10,IF(AND(ISNUMBER(Model!$K12),ISNUMBER(Model!$M$10)),(Model!$K12-Model!$E12)/Model!$M$10),0)),100) -> 0.3042547915 | Q48: =MIN(MAX(0,P48+IF(Q$45-$D$45<=Model!$M$10,IF(AND(ISNUMBER(Model!$K12),ISNUMBER(Model!$M$10)),(Model!$K12-Model!$E12)/Model!$M$10),0)),100) -> 0.3042547915 | R48: =MIN(MAX(0,Q48+IF(R$45-$D$45<=Model!$M$10,IF(AND(ISNUMBER(Model!$K12),ISNUMBER(Model!$M$10)),(Model!$K12-Model!$E12)/Model!$M$10),0)),100) -> 0.3042547915 | S48: =MIN(MAX(0,R48+IF(S$45-$D$45<=Model!$M$10,IF(AND(ISNUMBER(Model!$K12),ISNUMBER(Model!$M$10)),(Model!$K12-Model!$E12)/Model!$M$10),0)),100) -> 0.3042547915 | T48: =MIN(MAX(0,S48+IF(T$45-$D$45<=Model!$M$10,IF(AND(ISNUMBER(Model!$K12),ISNUMBER(Model!$M$10)),(Model!$K12-Model!$E12)/Model!$M$10),0)),100) -> 0.3042547915 | U48: =MIN(MAX(0,T48+IF(U$45-$D$45<=Model!$M$10,IF(AND(ISNUMBER(Model!$K12),ISNUMBER(Model!$M$10)),(Model!$K12-Model!$E12)/Model!$M$10),0)),100) -> 0.3042547915 | V48: =MIN(MAX(0,U48+IF(V$45-$D$45<=Model!$M$10,IF(AND(ISNUMBER(Model!$K12),ISNUMBER(Model!$M$10)),(Model!$K12-Model!$E12)/Model!$M$10),0)),100) -> 0.3042547915 | W48: =MIN(MAX(0,V48+IF(W$45-$D$45<=Model!$M$10,IF(AND(ISNUMBER(Model!$K12),ISNUMBER(Model!$M$10)),(Model!$K12-Model!$E12)/Model!$M$10),0)),100) -> 0.3042547915 | X48: =MIN(MAX(0,W48+IF(X$45-$D$45<=Model!$M$10,IF(AND(ISNUMBER(Model!$K12),ISNUMBER(Model!$M$10)),(Model!$K12-Model!$E12)/Model!$M$10),0)),100) -> 0.3042547915 | Y48: =MIN(MAX(0,X48+IF(Y$45-$D$45<=Model!$M$10,IF(AND(ISNUMBER(Model!$K12),ISNUMBER(Model!$M$10)),(Model!$K12-Model!$E12)/Model!$M$10),0)),100) -> 0.3042547915 | Z48: =MIN(MAX(0,Y48+IF(Z$45-$D$45<=Model!$M$10,IF(AND(ISNUMBER(Model!$K12),ISNUMBER(Model!$M$10)),(Model!$K12-Model!$E12)/Model!$M$10),0)),100) -> 0.3042547915 | AA48: =MIN(MAX(0,Z48+IF(AA$45-$D$45<=Model!$M$10,IF(AND(ISNUMBER(Model!$K12),ISNUMBER(Model!$M$10)),(Model!$K12-Model!$E12)/Model!$M$10),0)),100) -> 0.3042547915
A49: Silkeborg67-74 år | B49: =Model!$C$4 -> Silkeborg | C49: 67-74 år | D49: =L25 -> 0.9622238061 | E49: =MIN(MAX(0,D49+IF(E$45-$D$45<=Model!$M$10,IF(AND(ISNUMBER(Model!$K13),ISNUMBER(Model!$M$10)),(Model!$K13-Model!$E13)/Model!$M$10),0)),100) -> 0.9333389117 | F49: =MIN(MAX(0,E49+IF(F$45-$D$45<=Model!$M$10,IF(AND(ISNUMBER(Model!$K13),ISNUMBER(Model!$M$10)),(Model!$K13-Model!$E13)/Model!$M$10),0)),100) -> 0.9044540174 | G49: =MIN(MAX(0,F49+IF(G$45-$D$45<=Model!$M$10,IF(AND(ISNUMBER(Model!$K13),ISNUMBER(Model!$M$10)),(Model!$K13-Model!$E13)/Model!$M$10),0)),100) -> 0.875569123 | H49: =MIN(MAX(0,G49+IF(H$45-$D$45<=Model!$M$10,IF(AND(ISNUMBER(Model!$K13),ISNUMBER(Model!$M$10)),(Model!$K13-Model!$E13)/Model!$M$10),0)),100) -> 0.8466842286 | I49: =MIN(MAX(0,H49+IF(I$45-$D$45<=Model!$M$10,IF(AND(ISNUMBER(Model!$K13),ISNUMBER(Model!$M$10)),(Model!$K13-Model!$E13)/Model!$M$10),0)),100) -> 0.8177993342 | J49: =MIN(MAX(0,I49+IF(J$45-$D$45<=Model!$M$10,IF(AND(ISNUMBER(Model!$K13),ISNUMBER(Model!$M$10)),(Model!$K13-Model!$E13)/Model!$M$10),0)),100) -> 0.7889144398 | K49: =MIN(MAX(0,J49+IF(K$45-$D$45<=Model!$M$10,IF(AND(ISNUMBER(Model!$K13),ISNUMBER(Model!$M$10)),(Model!$K13-Model!$E13)/Model!$M$10),0)),100) -> 0.7600295455 | L49: =MIN(MAX(0,K49+IF(L$45-$D$45<=Model!$M$10,IF(AND(ISNUMBER(Model!$K13),ISNUMBER(Model!$M$10)),(Model!$K13-Model!$E13)/Model!$M$10),0)),100) -> 0.7311446511 | M49: =MIN(MAX(0,L49+IF(M$45-$D$45<=Model!$M$10,IF(AND(ISNUMBER(Model!$K13),ISNUMBER(Model!$M$10)),(Model!$K13-Model!$E13)/Model!$M$10),0)),100) -> 0.7311446511 | N49: =MIN(MAX(0,M49+IF(N$45-$D$45<=Model!$M$10,IF(AND(ISNUMBER(Model!$K13),ISNUMBER(Model!$M$10)),(Model!$K13-Model!$E13)/Model!$M$10),0)),100) -> 0.7311446511 | O49: =MIN(MAX(0,N49+IF(O$45-$D$45<=Model!$M$10,IF(AND(ISNUMBER(Model!$K13),ISNUMBER(Model!$M$10)),(Model!$K13-Model!$E13)/Model!$M$10),0)),100) -> 0.7311446511 | P49: =MIN(MAX(0,O49+IF(P$45-$D$45<=Model!$M$10,IF(AND(ISNUMBER(Model!$K13),ISNUMBER(Model!$M$10)),(Model!$K13-Model!$E13)/Model!$M$10),0)),100) -> 0.7311446511 | Q49: =MIN(MAX(0,P49+IF(Q$45-$D$45<=Model!$M$10,IF(AND(ISNUMBER(Model!$K13),ISNUMBER(Model!$M$10)),(Model!$K13-Model!$E13)/Model!$M$10),0)),100) -> 0.7311446511 | R49: =MIN(MAX(0,Q49+IF(R$45-$D$45<=Model!$M$10,IF(AND(ISNUMBER(Model!$K13),ISNUMBER(Model!$M$10)),(Model!$K13-Model!$E13)/Model!$M$10),0)),100) -> 0.7311446511 | S49: =MIN(MAX(0,R49+IF(S$45-$D$45<=Model!$M$10,IF(AND(ISNUMBER(Model!$K13),ISNUMBER(Model!$M$10)),(Model!$K13-Model!$E13)/Model!$M$10),0)),100) -> 0.7311446511 | T49: =MIN(MAX(0,S49+IF(T$45-$D$45<=Model!$M$10,IF(AND(ISNUMBER(Model!$K13),ISNUMBER(Model!$M$10)),(Model!$K13-Model!$E13)/Model!$M$10),0)),100) -> 0.7311446511 | U49: =MIN(MAX(0,T49+IF(U$45-$D$45<=Model!$M$10,IF(AND(ISNUMBER(Model!$K13),ISNUMBER(Model!$M$10)),(Model!$K13-Model!$E13)/Model!$M$10),0)),100) -> 0.7311446511 | V49: =MIN(MAX(0,U49+IF(V$45-$D$45<=Model!$M$10,IF(AND(ISNUMBER(Model!$K13),ISNUMBER(Model!$M$10)),(Model!$K13-Model!$E13)/Model!$M$10),0)),100) -> 0.7311446511 | W49: =MIN(MAX(0,V49+IF(W$45-$D$45<=Model!$M$10,IF(AND(ISNUMBER(Model!$K13),ISNUMBER(Model!$M$10)),(Model!$K13-Model!$E13)/Model!$M$10),0)),100) -> 0.7311446511 | X49: =MIN(MAX(0,W49+IF(X$45-$D$45<=Model!$M$10,IF(AND(ISNUMBER(Model!$K13),ISNUMBER(Model!$M$10)),(Model!$K13-Model!$E13)/Model!$M$10),0)),100) -> 0.7311446511 | Y49: =MIN(MAX(0,X49+IF(Y$45-$D$45<=Model!$M$10,IF(AND(ISNUMBER(Model!$K13),ISNUMBER(Model!$M$10)),(Model!$K13-Model!$E13)/Model!$M$10),0)),100) -> 0.7311446511 | Z49: =MIN(MAX(0,Y49+IF(Z$45-$D$45<=Model!$M$10,IF(AND(ISNUMBER(Model!$K13),ISNUMBER(Model!$M$10)),(Model!$K13-Model!$E13)/Model!$M$10),0)),100) -> 0.7311446511 | AA49: =MIN(MAX(0,Z49+IF(AA$45-$D$45<=Model!$M$10,IF(AND(ISNUMBER(Model!$K13),ISNUMBER(Model!$M$10)),(Model!$K13-Model!$E13)/Model!$M$10),0)),100) -> 0.7311446511
A50: Silkeborg75-79 år | B50: =Model!$C$4 -> Silkeborg | C50: 75-79 år | D50: 2.176255117 | E50: =MIN(MAX(0,D50+IF(E$45-$D$45<=Model!$M$10,IF(AND(ISNUMBER(Model!$K14),ISNUMBER(Model!$M$10)),(Model!$K14-Model!$E14)/Model!$M$10),0)),100) -> 2.344539652 | F50: =MIN(MAX(0,E50+IF(F$45-$D$45<=Model!$M$10,IF(AND(ISNUMBER(Model!$K14),ISNUMBER(Model!$M$10)),(Model!$K14-Model!$E14)/Model!$M$10),0)),100) -> 2.512824187 | G50: =MIN(MAX(0,F50+IF(G$45-$D$45<=Model!$M$10,IF(AND(ISNUMBER(Model!$K14),ISNUMBER(Model!$M$10)),(Model!$K14-Model!$E14)/Model!$M$10),0)),100) -> 2.681108722 | H50: =MIN(MAX(0,G50+IF(H$45-$D$45<=Model!$M$10,IF(AND(ISNUMBER(Model!$K14),ISNUMBER(Model!$M$10)),(Model!$K14-Model!$E14)/Model!$M$10),0)),100) -> 2.849393257 | I50: =MIN(MAX(0,H50+IF(I$45-$D$45<=Model!$M$10,IF(AND(ISNUMBER(Model!$K14),ISNUMBER(Model!$M$10)),(Model!$K14-Model!$E14)/Model!$M$10),0)),100) -> 3.017677792 | J50: =MIN(MAX(0,I50+IF(J$45-$D$45<=Model!$M$10,IF(AND(ISNUMBER(Model!$K14),ISNUMBER(Model!$M$10)),(Model!$K14-Model!$E14)/Model!$M$10),0)),100) -> 3.185962326 | K50: =MIN(MAX(0,J50+IF(K$45-$D$45<=Model!$M$10,IF(AND(ISNUMBER(Model!$K14),ISNUMBER(Model!$M$10)),(Model!$K14-Model!$E14)/Model!$M$10),0)),100) -> 3.354246861 | L50: =MIN(MAX(0,K50+IF(L$45-$D$45<=Model!$M$10,IF(AND(ISNUMBER(Model!$K14),ISNUMBER(Model!$M$10)),(Model!$K14-Model!$E14)/Model!$M$10),0)),100) -> 3.522531396 | M50: =MIN(MAX(0,L50+IF(M$45-$D$45<=Model!$M$10,IF(AND(ISNUMBER(Model!$K14),ISNUMBER(Model!$M$10)),(Model!$K14-Model!$E14)/Model!$M$10),0)),100) -> 3.522531396 | N50: =MIN(MAX(0,M50+IF(N$45-$D$45<=Model!$M$10,IF(AND(ISNUMBER(Model!$K14),ISNUMBER(Model!$M$10)),(Model!$K14-Model!$E14)/Model!$M$10),0)),100) -> 3.522531396 | O50: =MIN(MAX(0,N50+IF(O$45-$D$45<=Model!$M$10,IF(AND(ISNUMBER(Model!$K14),ISNUMBER(Model!$M$10)),(Model!$K14-Model!$E14)/Model!$M$10),0)),100) -> 3.522531396 | P50: =MIN(MAX(0,O50+IF(P$45-$D$45<=Model!$M$10,IF(AND(ISNUMBER(Model!$K14),ISNUMBER(Model!$M$10)),(Model!$K14-Model!$E14)/Model!$M$10),0)),100) -> 3.522531396 | Q50: =MIN(MAX(0,P50+IF(Q$45-$D$45<=Model!$M$10,IF(AND(ISNUMBER(Model!$K14),ISNUMBER(Model!$M$10)),(Model!$K14-Model!$E14)/Model!$M$10),0)),100) -> 3.522531396 | R50: =MIN(MAX(0,Q50+IF(R$45-$D$45<=Model!$M$10,IF(AND(ISNUMBER(Model!$K14),ISNUMBER(Model!$M$10)),(Model!$K14-Model!$E14)/Model!$M$10),0)),100) -> 3.522531396 | S50: =MIN(MAX(0,R50+IF(S$45-$D$45<=Model!$M$10,IF(AND(ISNUMBER(Model!$K14),ISNUMBER(Model!$M$10)),(Model!$K14-Model!$E14)/Model!$M$10),0)),100) -> 3.522531396 | T50: =MIN(MAX(0,S50+IF(T$45-$D$45<=Model!$M$10,IF(AND(ISNUMBER(Model!$K14),ISNUMBER(Model!$M$10)),(Model!$K14-Model!$E14)/Model!$M$10),0)),100) -> 3.522531396 | U50: =MIN(MAX(0,T50+IF(U$45-$D$45<=Model!$M$10,IF(AND(ISNUMBER(Model!$K14),ISNUMBER(Model!$M$10)),(Model!$K14-Model!$E14)/Model!$M$10),0)),100) -> 3.522531396 | V50: =MIN(MAX(0,U50+IF(V$45-$D$45<=Model!$M$10,IF(AND(ISNUMBER(Model!$K14),ISNUMBER(Model!$M$10)),(Model!$K14-Model!$E14)/Model!$M$10),0)),100) -> 3.522531396 | W50: =MIN(MAX(0,V50+IF(W$45-$D$45<=Model!$M$10,IF(AND(ISNUMBER(Model!$K14),ISNUMBER(Model!$M$10)),(Model!$K14-Model!$E14)/Model!$M$10),0)),100) -> 3.522531396 | X50: =MIN(MAX(0,W50+IF(X$45-$D$45<=Model!$M$10,IF(AND(ISNUMBER(Model!$K14),ISNUMBER(Model!$M$10)),(Model!$K14-Model!$E14)/Model!$M$10),0)),100) -> 3.522531396 | Y50: =MIN(MAX(0,X50+IF(Y$45-$D$45<=Model!$M$10,IF(AND(ISNUMBER(Model!$K14),ISNUMBER(Model!$M$10)),(Model!$K14-Model!$E14)/Model!$M$10),0)),100) -> 3.522531396 | Z50: =MIN(MAX(0,Y50+IF(Z$45-$D$45<=Model!$M$10,IF(AND(ISNUMBER(Model!$K14),ISNUMBER(Model!$M$10)),(Model!$K14-Model!$E14)/Model!$M$10),0)),100) -> 3.522531396 | AA50: =MIN(MAX(0,Z50+IF(AA$45-$D$45<=Model!$M$10,IF(AND(ISNUMBER(Model!$K14),ISNUMBER(Model!$M$10)),(Model!$K14-Model!$E14)/Model!$M$10),0)),100) -> 3.522531396
A51: Silkeborg80-84 år | B51: =Model!$C$4 -> Silkeborg | C51: 80-84 år | D51: 4.667444574 | E51: =MIN(MAX(0,D51+IF(E$45-$D$45<=Model!$M$10,IF(AND(ISNUMBER(Model!$K15),ISNUMBER(Model!$M$10)),(Model!$K15-Model!$E15)/Model!$M$10),0)),100) -> 4.539775767 | F51: =MIN(MAX(0,E51+IF(F$45-$D$45<=Model!$M$10,IF(AND(ISNUMBER(Model!$K15),ISNUMBER(Model!$M$10)),(Model!$K15-Model!$E15)/Model!$M$10),0)),100) -> 4.41210696 | G51: =MIN(MAX(0,F51+IF(G$45-$D$45<=Model!$M$10,IF(AND(ISNUMBER(Model!$K15),ISNUMBER(Model!$M$10)),(Model!$K15-Model!$E15)/Model!$M$10),0)),100) -> 4.284438153 | H51: =MIN(MAX(0,G51+IF(H$45-$D$45<=Model!$M$10,IF(AND(ISNUMBER(Model!$K15),ISNUMBER(Model!$M$10)),(Model!$K15-Model!$E15)/Model!$M$10),0)),100) -> 4.156769345 | I51: =MIN(MAX(0,H51+IF(I$45-$D$45<=Model!$M$10,IF(AND(ISNUMBER(Model!$K15),ISNUMBER(Model!$M$10)),(Model!$K15-Model!$E15)/Model!$M$10),0)),100) -> 4.029100538 | J51: =MIN(MAX(0,I51+IF(J$45-$D$45<=Model!$M$10,IF(AND(ISNUMBER(Model!$K15),ISNUMBER(Model!$M$10)),(Model!$K15-Model!$E15)/Model!$M$10),0)),100) -> 3.901431731 | K51: =MIN(MAX(0,J51+IF(K$45-$D$45<=Model!$M$10,IF(AND(ISNUMBER(Model!$K15),ISNUMBER(Model!$M$10)),(Model!$K15-Model!$E15)/Model!$M$10),0)),100) -> 3.773762924 | L51: =MIN(MAX(0,K51+IF(L$45-$D$45<=Model!$M$10,IF(AND(ISNUMBER(Model!$K15),ISNUMBER(Model!$M$10)),(Model!$K15-Model!$E15)/Model!$M$10),0)),100) -> 3.646094117 | M51: =MIN(MAX(0,L51+IF(M$45-$D$45<=Model!$M$10,IF(AND(ISNUMBER(Model!$K15),ISNUMBER(Model!$M$10)),(Model!$K15-Model!$E15)/Model!$M$10),0)),100) -> 3.646094117 | N51: =MIN(MAX(0,M51+IF(N$45-$D$45<=Model!$M$10,IF(AND(ISNUMBER(Model!$K15),ISNUMBER(Model!$M$10)),(Model!$K15-Model!$E15)/Model!$M$10),0)),100) -> 3.646094117 | O51: =MIN(MAX(0,N51+IF(O$45-$D$45<=Model!$M$10,IF(AND(ISNUMBER(Model!$K15),ISNUMBER(Model!$M$10)),(Model!$K15-Model!$E15)/Model!$M$10),0)),100) -> 3.646094117 | P51: =MIN(MAX(0,O51+IF(P$45-$D$45<=Model!$M$10,IF(AND(ISNUMBER(Model!$K15),ISNUMBER(Model!$M$10)),(Model!$K15-Model!$E15)/Model!$M$10),0)),100) -> 3.646094117 | Q51: =MIN(MAX(0,P51+IF(Q$45-$D$45<=Model!$M$10,IF(AND(ISNUMBER(Model!$K15),ISNUMBER(Model!$M$10)),(Model!$K15-Model!$E15)/Model!$M$10),0)),100) -> 3.646094117 | R51: =MIN(MAX(0,Q51+IF(R$45-$D$45<=Model!$M$10,IF(AND(ISNUMBER(Model!$K15),ISNUMBER(Model!$M$10)),(Model!$K15-Model!$E15)/Model!$M$10),0)),100) -> 3.646094117 | S51: =MIN(MAX(0,R51+IF(S$45-$D$45<=Model!$M$10,IF(AND(ISNUMBER(Model!$K15),ISNUMBER(Model!$M$10)),(Model!$K15-Model!$E15)/Model!$M$10),0)),100) -> 3.646094117 | T51: =MIN(MAX(0,S51+IF(T$45-$D$45<=Model!$M$10,IF(AND(ISNUMBER(Model!$K15),ISNUMBER(Model!$M$10)),(Model!$K15-Model!$E15)/Model!$M$10),0)),100) -> 3.646094117 | U51: =MIN(MAX(0,T51+IF(U$45-$D$45<=Model!$M$10,IF(AND(ISNUMBER(Model!$K15),ISNUMBER(Model!$M$10)),(Model!$K15-Model!$E15)/Model!$M$10),0)),100) -> 3.646094117 | V51: =MIN(MAX(0,U51+IF(V$45-$D$45<=Model!$M$10,IF(AND(ISNUMBER(Model!$K15),ISNUMBER(Model!$M$10)),(Model!$K15-Model!$E15)/Model!$M$10),0)),100) -> 3.646094117 | W51: =MIN(MAX(0,V51+IF(W$45-$D$45<=Model!$M$10,IF(AND(ISNUMBER(Model!$K15),ISNUMBER(Model!$M$10)),(Model!$K15-Model!$E15)/Model!$M$10),0)),100) -> 3.646094117 | X51: =MIN(MAX(0,W51+IF(X$45-$D$45<=Model!$M$10,IF(AND(ISNUMBER(Model!$K15),ISNUMBER(Model!$M$10)),(Model!$K15-Model!$E15)/Model!$M$10),0)),100) -> 3.646094117 | Y51: =MIN(MAX(0,X51+IF(Y$45-$D$45<=Model!$M$10,IF(AND(ISNUMBER(Model!$K15),ISNUMBER(Model!$M$10)),(Model!$K15-Model!$E15)/Model!$M$10),0)),100) -> 3.646094117 | Z51: =MIN(MAX(0,Y51+IF(Z$45-$D$45<=Model!$M$10,IF(AND(ISNUMBER(Model!$K15),ISNUMBER(Model!$M$10)),(Model!$K15-Model!$E15)/Model!$M$10),0)),100) -> 3.646094117 | AA51: =MIN(MAX(0,Z51+IF(AA$45-$D$45<=Model!$M$10,IF(AND(ISNUMBER(Model!$K15),ISNUMBER(Model!$M$10)),(Model!$K15-Model!$E15)/Model!$M$10),0)),100) -> 3.646094117
A52: Silkeborg85-89 år | B52: =Model!$C$4 -> Silkeborg | C52: 85-89 år | D52: 9.210526316 | E52: =MIN(MAX(0,D52+IF(E$45-$D$45<=Model!$M$10,IF(AND(ISNUMBER(Model!$K16),ISNUMBER(Model!$M$10)),(Model!$K16-Model!$E16)/Model!$M$10),0)),100) -> 7.790838385 | F52: =MIN(MAX(0,E52+IF(F$45-$D$45<=Model!$M$10,IF(AND(ISNUMBER(Model!$K16),ISNUMBER(Model!$M$10)),(Model!$K16-Model!$E16)/Model!$M$10),0)),100) -> 6.371150454 | G52: =MIN(MAX(0,F52+IF(G$45-$D$45<=Model!$M$10,IF(AND(ISNUMBER(Model!$K16),ISNUMBER(Model!$M$10)),(Model!$K16-Model!$E16)/Model!$M$10),0)),100) -> 4.951462523 | H52: =MIN(MAX(0,G52+IF(H$45-$D$45<=Model!$M$10,IF(AND(ISNUMBER(Model!$K16),ISNUMBER(Model!$M$10)),(Model!$K16-Model!$E16)/Model!$M$10),0)),100) -> 3.531774592 | I52: =MIN(MAX(0,H52+IF(I$45-$D$45<=Model!$M$10,IF(AND(ISNUMBER(Model!$K16),ISNUMBER(Model!$M$10)),(Model!$K16-Model!$E16)/Model!$M$10),0)),100) -> 2.112086661 | J52: =MIN(MAX(0,I52+IF(J$45-$D$45<=Model!$M$10,IF(AND(ISNUMBER(Model!$K16),ISNUMBER(Model!$M$10)),(Model!$K16-Model!$E16)/Model!$M$10),0)),100) -> 0.6923987299 | K52: =MIN(MAX(0,J52+IF(K$45-$D$45<=Model!$M$10,IF(AND(ISNUMBER(Model!$K16),ISNUMBER(Model!$M$10)),(Model!$K16-Model!$E16)/Model!$M$10),0)),100) -> 0 | L52: =MIN(MAX(0,K52+IF(L$45-$D$45<=Model!$M$10,IF(AND(ISNUMBER(Model!$K16),ISNUMBER(Model!$M$10)),(Model!$K16-Model!$E16)/Model!$M$10),0)),100) -> 0 | M52: =MIN(MAX(0,L52+IF(M$45-$D$45<=Model!$M$10,IF(AND(ISNUMBER(Model!$K16),ISNUMBER(Model!$M$10)),(Model!$K16-Model!$E16)/Model!$M$10),0)),100) -> 0 | N52: =MIN(MAX(0,M52+IF(N$45-$D$45<=Model!$M$10,IF(AND(ISNUMBER(Model!$K16),ISNUMBER(Model!$M$10)),(Model!$K16-Model!$E16)/Model!$M$10),0)),100) -> 0 | O52: =MIN(MAX(0,N52+IF(O$45-$D$45<=Model!$M$10,IF(AND(ISNUMBER(Model!$K16),ISNUMBER(Model!$M$10)),(Model!$K16-Model!$E16)/Model!$M$10),0)),100) -> 0 | P52: =MIN(MAX(0,O52+IF(P$45-$D$45<=Model!$M$10,IF(AND(ISNUMBER(Model!$K16),ISNUMBER(Model!$M$10)),(Model!$K16-Model!$E16)/Model!$M$10),0)),100) -> 0 | Q52: =MIN(MAX(0,P52+IF(Q$45-$D$45<=Model!$M$10,IF(AND(ISNUMBER(Model!$K16),ISNUMBER(Model!$M$10)),(Model!$K16-Model!$E16)/Model!$M$10),0)),100) -> 0 | R52: =MIN(MAX(0,Q52+IF(R$45-$D$45<=Model!$M$10,IF(AND(ISNUMBER(Model!$K16),ISNUMBER(Model!$M$10)),(Model!$K16-Model!$E16)/Model!$M$10),0)),100) -> 0 | S52: =MIN(MAX(0,R52+IF(S$45-$D$45<=Model!$M$10,IF(AND(ISNUMBER(Model!$K16),ISNUMBER(Model!$M$10)),(Model!$K16-Model!$E16)/Model!$M$10),0)),100) -> 0 | T52: =MIN(MAX(0,S52+IF(T$45-$D$45<=Model!$M$10,IF(AND(ISNUMBER(Model!$K16),ISNUMBER(Model!$M$10)),(Model!$K16-Model!$E16)/Model!$M$10),0)),100) -> 0 | U52: =MIN(MAX(0,T52+IF(U$45-$D$45<=Model!$M$10,IF(AND(ISNUMBER(Model!$K16),ISNUMBER(Model!$M$10)),(Model!$K16-Model!$E16)/Model!$M$10),0)),100) -> 0 | V52: =MIN(MAX(0,U52+IF(V$45-$D$45<=Model!$M$10,IF(AND(ISNUMBER(Model!$K16),ISNUMBER(Model!$M$10)),(Model!$K16-Model!$E16)/Model!$M$10),0)),100) -> 0 | W52: =MIN(MAX(0,V52+IF(W$45-$D$45<=Model!$M$10,IF(AND(ISNUMBER(Model!$K16),ISNUMBER(Model!$M$10)),(Model!$K16-Model!$E16)/Model!$M$10),0)),100) -> 0 | X52: =MIN(MAX(0,W52+IF(X$45-$D$45<=Model!$M$10,IF(AND(ISNUMBER(Model!$K16),ISNUMBER(Model!$M$10)),(Model!$K16-Model!$E16)/Model!$M$10),0)),100) -> 0 | Y52: =MIN(MAX(0,X52+IF(Y$45-$D$45<=Model!$M$10,IF(AND(ISNUMBER(Model!$K16),ISNUMBER(Model!$M$10)),(Model!$K16-Model!$E16)/Model!$M$10),0)),100) -> 0 | Z52: =MIN(MAX(0,Y52+IF(Z$45-$D$45<=Model!$M$10,IF(AND(ISNUMBER(Model!$K16),ISNUMBER(Model!$M$10)),(Model!$K16-Model!$E16)/Model!$M$10),0)),100) -> 0 | AA52: =MIN(MAX(0,Z52+IF(AA$45-$D$45<=Model!$M$10,IF(AND(ISNUMBER(Model!$K16),ISNUMBER(Model!$M$10)),(Model!$K16-Model!$E16)/Model!$M$10),0)),100) -> 0
A53: SilkeborgOver 90 år | B53: =Model!$C$4 -> Silkeborg | C53: Over 90 år | D53: =L29 -> 26.35431918 | E53: =MIN(MAX(0,D53+IF(E$45-$D$45<=Model!$M$10,IF(AND(ISNUMBER(Model!$K17),ISNUMBER(Model!$M$10)),(Model!$K17-Model!$E17)/Model!$M$10),0)),100) -> 26.35431918 | F53: =MIN(MAX(0,E53+IF(F$45-$D$45<=Model!$M$10,IF(AND(ISNUMBER(Model!$K17),ISNUMBER(Model!$M$10)),(Model!$K17-Model!$E17)/Model!$M$10),0)),100) -> 26.35431918 | G53: =MIN(MAX(0,F53+IF(G$45-$D$45<=Model!$M$10,IF(AND(ISNUMBER(Model!$K17),ISNUMBER(Model!$M$10)),(Model!$K17-Model!$E17)/Model!$M$10),0)),100) -> 26.35431918 | H53: =MIN(MAX(0,G53+IF(H$45-$D$45<=Model!$M$10,IF(AND(ISNUMBER(Model!$K17),ISNUMBER(Model!$M$10)),(Model!$K17-Model!$E17)/Model!$M$10),0)),100) -> 26.35431918 | I53: =MIN(MAX(0,H53+IF(I$45-$D$45<=Model!$M$10,IF(AND(ISNUMBER(Model!$K17),ISNUMBER(Model!$M$10)),(Model!$K17-Model!$E17)/Model!$M$10),0)),100) -> 26.35431918 | J53: =MIN(MAX(0,I53+IF(J$45-$D$45<=Model!$M$10,IF(AND(ISNUMBER(Model!$K17),ISNUMBER(Model!$M$10)),(Model!$K17-Model!$E17)/Model!$M$10),0)),100) -> 26.35431918 | K53: =MIN(MAX(0,J53+IF(K$45-$D$45<=Model!$M$10,IF(AND(ISNUMBER(Model!$K17),ISNUMBER(Model!$M$10)),(Model!$K17-Model!$E17)/Model!$M$10),0)),100) -> 26.35431918 | L53: =MIN(MAX(0,K53+IF(L$45-$D$45<=Model!$M$10,IF(AND(ISNUMBER(Model!$K17),ISNUMBER(Model!$M$10)),(Model!$K17-Model!$E17)/Model!$M$10),0)),100) -> 26.35431918 | M53: =MIN(MAX(0,L53+IF(M$45-$D$45<=Model!$M$10,IF(AND(ISNUMBER(Model!$K17),ISNUMBER(Model!$M$10)),(Model!$K17-Model!$E17)/Model!$M$10),0)),100) -> 26.35431918 | N53: =MIN(MAX(0,M53+IF(N$45-$D$45<=Model!$M$10,IF(AND(ISNUMBER(Model!$K17),ISNUMBER(Model!$M$10)),(Model!$K17-Model!$E17)/Model!$M$10),0)),100) -> 26.35431918 | O53: =MIN(MAX(0,N53+IF(O$45-$D$45<=Model!$M$10,IF(AND(ISNUMBER(Model!$K17),ISNUMBER(Model!$M$10)),(Model!$K17-Model!$E17)/Model!$M$10),0)),100) -> 26.35431918 | P53: =MIN(MAX(0,O53+IF(P$45-$D$45<=Model!$M$10,IF(AND(ISNUMBER(Model!$K17),ISNUMBER(Model!$M$10)),(Model!$K17-Model!$E17)/Model!$M$10),0)),100) -> 26.35431918 | Q53: =MIN(MAX(0,P53+IF(Q$45-$D$45<=Model!$M$10,IF(AND(ISNUMBER(Model!$K17),ISNUMBER(Model!$M$10)),(Model!$K17-Model!$E17)/Model!$M$10),0)),100) -> 26.35431918 | R53: =MIN(MAX(0,Q53+IF(R$45-$D$45<=Model!$M$10,IF(AND(ISNUMBER(Model!$K17),ISNUMBER(Model!$M$10)),(Model!$K17-Model!$E17)/Model!$M$10),0)),100) -> 26.35431918 | S53: =MIN(MAX(0,R53+IF(S$45-$D$45<=Model!$M$10,IF(AND(ISNUMBER(Model!$K17),ISNUMBER(Model!$M$10)),(Model!$K17-Model!$E17)/Model!$M$10),0)),100) -> 26.35431918 | T53: =MIN(MAX(0,S53+IF(T$45-$D$45<=Model!$M$10,IF(AND(ISNUMBER(Model!$K17),ISNUMBER(Model!$M$10)),(Model!$K17-Model!$E17)/Model!$M$10),0)),100) -> 26.35431918 | U53: =MIN(MAX(0,T53+IF(U$45-$D$45<=Model!$M$10,IF(AND(ISNUMBER(Model!$K17),ISNUMBER(Model!$M$10)),(Model!$K17-Model!$E17)/Model!$M$10),0)),100) -> 26.35431918 | V53: =MIN(MAX(0,U53+IF(V$45-$D$45<=Model!$M$10,IF(AND(ISNUMBER(Model!$K17),ISNUMBER(Model!$M$10)),(Model!$K17-Model!$E17)/Model!$M$10),0)),100) -> 26.35431918 | W53: =MIN(MAX(0,V53+IF(W$45-$D$45<=Model!$M$10,IF(AND(ISNUMBER(Model!$K17),ISNUMBER(Model!$M$10)),(Model!$K17-Model!$E17)/Model!$M$10),0)),100) -> 26.35431918 | X53: =MIN(MAX(0,W53+IF(X$45-$D$45<=Model!$M$10,IF(AND(ISNUMBER(Model!$K17),ISNUMBER(Model!$M$10)),(Model!$K17-Model!$E17)/Model!$M$10),0)),100) -> 26.35431918 | Y53: =MIN(MAX(0,X53+IF(Y$45-$D$45<=Model!$M$10,IF(AND(ISNUMBER(Model!$K17),ISNUMBER(Model!$M$10)),(Model!$K17-Model!$E17)/Model!$M$10),0)),100) -> 26.35431918 | Z53: =MIN(MAX(0,Y53+IF(Z$45-$D$45<=Model!$M$10,IF(AND(ISNUMBER(Model!$K17),ISNUMBER(Model!$M$10)),(Model!$K17-Model!$E17)/Model!$M$10),0)),100) -> 26.35431918 | AA53: =MIN(MAX(0,Z53+IF(AA$45-$D$45<=Model!$M$10,IF(AND(ISNUMBER(Model!$K17),ISNUMBER(Model!$M$10)),(Model!$K17-Model!$E17)/Model!$M$10),0)),100) -> 26.35431918
A54: SilkeborgI alt over 60 | B54: =Model!$C$4 -> Silkeborg | C54: I alt over 60 | D54: =SUM(D62:D68)/SUM(D35:D41)*100 -> 2.472898422 | E54: =SUM(E62:E68)/SUM(E35:E41)*100 -> 2.413171409 | F54: =SUM(F62:F68)/SUM(F35:F41)*100 -> 2.381315486 | G54: 2.317426822 | H54: 2.268539586 | I54: 2.210228106 | J54: 2.157024964 | K54: =SUM(K62:K68)/SUM(K35:K41)*100 -> 2.136232758 | L54: 2.150014589 | M54: 2.159839641 | N54: 2.193571414 | O54: 2.241241792 | P54: 2.309452651 | Q54: 2.392477898 | R54: 2.480376554 | S54: 2.579982923 | T54: 2.639774812 | U54: 2.6952177 | V54: 2.740223624 | W54: 2.799150232 | X54: 2.841527329 | Y54: 2.875244749 | Z54: 2.911231256 | AA54: =SUM(AA62:AA68)/SUM(AA35:AA41)*100 -> 2.933119252
A56: Forventede behovsgraderI alt over 60 | B56: Forventede behovsgrader | C56: I alt over 60 | D56: =SUMPRODUCT(D35:D41,$L23:$L29)/SUM(D35:D41) -> 2.472898422 | E56: 2.487646645 | F56: 2.533435809 | G56: 2.560277398 | H56: 2.603712515 | I56: 2.654695601 | J56: 2.718433279 | K56: 2.7887418 | L56: 2.856447956 | M56: 2.915897299 | N56: 2.987144248 | O56: 3.048207215 | P56: 3.117407604 | Q56: 3.184849141 | R56: 3.266060248 | S56: 3.34737962 | T56: 3.398828786 | U56: 3.450901917 | V56: 3.493240271 | W56: 3.555508994 | X56: 3.612384509 | Y56: 3.661708517 | Z56: 3.713736271 | AA56: 3.757786907
A57: Forskel til forventetI alt over 60 | B57: Forskel til forventet | C57: I alt over 60 | D57: =D54-D56 -> 0 | E57: =E54-E56 -> -0.07447523568 | F57: =F54-F56 -> -0.1521203229 | G57: -0.2428505752 | H57: -0.3351729284 | I57: -0.4444674949 | J57: -0.5614083144 | K57: -0.652509042 | L57: -0.7064333674 | M57: -0.7560576581 | N57: -0.7935728334 | O57: -0.8069654231 | P57: -0.8079549525 | Q57: -0.7923712438 | R57: -0.7856836946 | S57: -0.7673966968 | T57: -0.7590539736 | U57: -0.7556842168 | V57: -0.7530166471 | W57: -0.7563587617 | X57: =X54-X56 -> -0.7708571804 | Y57: =Y54-Y56 -> -0.7864637681 | Z57: -0.8025050149 | AA57: -0.8246676542
A59: Behovsfremskrivning | B59: Behovsfremskrivning
A60: KommuneAldersgruppe | B60: Kommune | C60: Aldersgruppe | D60: =D33 -> 2023 | E60: 2024 | F60: 2025 | G60: 2026 | H60: 2027 | I60: 2028 | J60: 2029 | K60: 2030 | L60: 2031 | M60: 2032 | N60: 2033 | O60: 2034 | P60: 2035 | Q60: 2036 | R60: 2037 | S60: 2038 | T60: 2039 | U60: 2040 | V60: 2041 | W60: 2042 | X60: 2043 | Y60: 2044 | Z60: 2045 | AA60: 2046
A61: SilkeborgUnder 60 år | B61: =Model!$C$4 -> Silkeborg | C61: Under 60 år | D61: =D34*(D46/100) -> 11 | E61: =E34*(E46/100) -> 11.58062664 | F61: =F34*(F46/100) -> 12.1972602 | G61: 12.74965416 | H61: 13.34403162 | I61: 13.96681069 | J61: 14.61981024 | K61: 15.29387462 | L61: 15.97874839 | M61: 16.12828025 | N61: 16.27821515 | O61: 16.44205531 | P61: 16.60589547 | Q61: 16.76570513 | R61: 16.93256817 | S61: 17.10184951 | T61: 17.2658912 | U61: 17.42670848 | V61: 17.57583728 | W61: 17.7306088 | X61: 17.86905676 | Y61: 18.00629556 | Z61: 18.13224894 | AA61: 18.2342208
A62: Silkeborg60-64 år | B62: =Model!$C$4 -> Silkeborg | C62: 60-64 år | D62: =D35*(D47/100) -> 23 | E62: 23.06820792 | F62: 23.09454155 | G62: 23.08002916 | H62: 23.53278575 | I62: 23.00077431 | J62: 21.92902123 | K62: 20.67670286 | L62: 19.38268482 | M62: 19.13516251 | N62: 19.22798338 | O62: 19.43331439 | P62: 19.76240655 | Q62: 20.10274974 | R62: 19.82991264 | S62: 19.36862105 | T62: 18.98046106 | U62: 18.44885064 | V62: 17.84973413 | W62: 17.2759324 | X62: 16.8821469 | Y62: 16.54461647 | Z62: 16.41522981 | AA62: 16.51367619
A63: Silkeborg65-66 år | B63: =Model!$C$4 -> Silkeborg | C63: 65-66 år | D63: 10 | E63: 9.364994623 | F63: 8.868828006 | G63: 8.619331378 | H63: 8.271934262 | I63: 8.431366531 | J63: 8.778598682 | K63: 8.628286765 | L63: 8.415687533 | M63: 8.899452651 | N63: 8.939005774 | O63: 8.315283452 | P63: 7.877156552 | Q63: 7.804135402 | R63: 8.266602685 | S63: 8.747325256 | T63: 8.625623339 | U63: 8.44915556 | V63: 8.528261806 | W63: 8.339623835 | X63: 7.968432989 | Y63: 7.7341568 | Z63: 7.499880611 | AA63: 7.353838311
A64: Silkeborg67-74 år | B64: =Model!$C$4 -> Silkeborg | C64: 67-74 år | D64: 81 | E64: 79.249807 | F64: 77.36699665 | G64: 75.0800523 | H64: 72.73864208 | I64: 70.79688836 | J64: 68.69078028 | K64: 67.58942748 | L64: 66.90704702 | M64: 68.28891041 | N64: 70.10214914 | O64: 73.04866209 | P64: 75.14704724 | Q64: 76.33150157 | R64: 77.29661251 | S64: 77.38434987 | T64: 78.0496915 | U64: 78.72234458 | V64: 78.59804999 | W64: 77.79379087 | X64: 77.83034811 | Y64: 77.94733125 | Z64: 78.02775716 | AA64: 77.72798786
A65: Silkeborg75-79 år | B65: =Model!$C$4 -> Silkeborg | C65: 75-79 år | D65: 101 | E65: 113.1005928 | F65: 122.7765898 | G65: 129.4975513 | H65: 136.0300341 | I65: 140.8953761 | J65: 148.4021252 | K65: 156.7439558 | L65: 165.488525 | M65: 168.4474514 | N65: 171.3711524 | O65: 172.9562915 | P65: 174.2948535 | Q65: 176.7958508 | R65: 176.1617951 | S65: 180.8819872 | T65: 188.5258803 | U65: 196.451576 | V65: 204.9761019 | W65: 217.1992859 | X65: 221.8490273 | Y65: 221.4263236 | Z65: 218.9605516 | AA65: 215.755048
A66: Silkeborg80-84 år | B66: =Model!$C$4 -> Silkeborg | C66: 80-84 år | D66: =D39*(D51/100) -> 120 | E66: 124.2536627 | F66: 130.4660028 | G66: 138.4730411 | H66: 147.2327702 | I66: 153.0655294 | J66: 153.1311954 | K66: 150.233502 | L66: 144.0571785 | M66: 142.9633503 | N66: 140.5204673 | O66: 140.7392329 | P66: 141.6872174 | Q66: 142.9633503 | R66: 146.0260694 | S66: 149.0158665 | T66: 150.8753745 | U66: 152.3702731 | V66: 154.9954609 | W66: 155.1048437 | X66: 159.917688 | Y66: 167.1734152 | Z66: 174.6843691 | AA66: 182.6328543
A67: Silkeborg85-89 år | B67: =Model!$C$4 -> Silkeborg | C67: 85-89 år | D67: =D40*(D52/100) -> 126 | E67: 114.1357823 | F67: 96.39550637 | G67: 79.57000274 | H67: 58.98063568 | I67: 37.4472965 | J67: 13.07248802 | K67: 0 | L67: 0 | M67: 0 | N67: 0 | O67: 0 | P67: 0 | Q67: 0 | R67: 0 | S67: 0 | T67: 0 | U67: 0 | V67: 0 | W67: 0 | X67: 0 | Y67: 0 | Z67: 0 | AA67: 0
A68: SilkeborgOver 90 år | B68: =Model!$C$4 -> Silkeborg | C68: Over 90 år | D68: 180 | E68: 178.682284 | F68: 189.4875549 | G68: 190.8052709 | H68: 202.4011713 | I68: 212.942899 | J68: 228.2284041 | K68: 241.9326501 | L68: 255.3733529 | M68: 267.4963397 | N68: 288.3162518 | O68: 310.1903367 | P68: 338.9165447 | Q68: 372.38653 | R68: 407.4377745 | S68: 441.4348463 | T68: 459.0922401 | U68: 474.114202 | V68: 484.1288433 | W68: 496.5153734 | X68: 505.7393851 | Y68: 513.3821376 | Z68: 524.1874085 | AA68: 532.3572474
A69: SilkeborgI alt | B69: =Model!$C$4 -> Silkeborg | C69: I alt | D69: =SUM(D61:D68) -> 652 | E69: =SUM(E61:E68) -> 653.4359581 | F69: =SUM(F61:F68) -> 660.6532803 | G69: 657.874933 | H69: 662.532005 | I69: 660.5469409 | J69: 656.8524232 | K69: 661.0983996 | L69: 675.6032242 | M69: 691.3589472 | N69: 714.755225 | O69: 741.1251764 | P69: 774.2911213 | Q69: 813.1498229 | R69: 851.951335 | S69: 893.9348457 | T69: 921.4151621 | U69: 945.9831104 | V69: 966.6522894 | W69: 989.9594589 | X69: 1008.056085 | Y69: 1022.214277 | Z69: 1037.907446 | AA69: 1050.574873
A71: Afgang (Obs. For de enkelte aldersgrupper er udregnet på baggrund af antal personer med behov, og altså ikke taget højde for, om der er plads i plejeboliger til alle disse personer) | B71: Afgang (Obs. For de enkelte aldersgrupper er udregnet på baggrund af antal personer med behov, og altså ikke taget højde for, om der er plads i plejeboliger til alle disse personer)
A72: KommuneAldersgruppe | B72: Kommune | C72: Aldersgruppe | D72: =D60 -> 2023 | E72: 2024 | F72: 2025 | G72: 2026 | H72: 2027 | I72: 2028 | J72: 2029 | K72: 2030 | L72: 2031 | M72: 2032 | N72: 2033 | O72: 2034 | P72: 2035 | Q72: 2036 | R72: 2037 | S72: 2038 | T72: 2039 | U72: 2040 | V72: 2041 | W72: 2042 | X72: 2043 | Y72: 2044 | Z72: 2045 | AA72: 2046
A73: SilkeborgUnder 60 år | B73: =Model!$C$4 -> Silkeborg | C73: Under 60 år | D73: =D61/$C$19 -> 3.666666667 | E73: =E61/$C$19 -> 3.860208881 | F73: 4.0657534 | G73: 4.249884721 | H73: 4.448010539 | I73: 4.655603564 | J73: 4.87327008 | K73: 5.097958207 | L73: 5.326249464 | M73: 5.376093416 | N73: 5.426071718 | O73: 5.480685105 | P73: 5.535298491 | Q73: 5.588568375 | R73: 5.644189389 | S73: 5.700616504 | T73: 5.755297066 | U73: 5.808902826 | V73: 5.858612427 | W73: 5.910202933 | X73: 5.956352252 | Y73: 6.00209852 | Z73: 6.044082981 | AA73: 6.078073601
A74: Silkeborg60-64 år | B74: =Model!$C$4 -> Silkeborg | C74: 60-64 år | D74: =D62/$C$19 -> 7.666666667 | E74: 7.689402639 | F74: 7.698180517 | G74: 7.693343054 | H74: 7.844261918 | I74: 7.66692477 | J74: 7.309673744 | K74: 6.892234285 | L74: 6.460894941 | M74: 6.378387503 | N74: 6.409327792 | O74: 6.477771462 | P74: 6.587468851 | Q74: 6.700916579 | R74: 6.60997088 | S74: 6.456207018 | T74: 6.326820354 | U74: 6.14961688 | V74: 5.949911376 | W74: 5.758644134 | X74: 5.627382301 | Y74: 5.514872158 | Z74: 5.47174327 | AA74: 5.504558728
A75: Silkeborg65-66 år | B75: =Model!$C$4 -> Silkeborg | C75: 65-66 år | D75: =D63/$C$19 -> 3.333333333 | E75: 3.121664874 | F75: 2.956276002 | G75: 2.873110459 | H75: 2.757311421 | I75: 2.81045551 | J75: 2.926199561 | K75: 2.876095588 | L75: 2.805229178 | M75: 2.966484217 | N75: 2.979668591 | O75: 2.771761151 | P75: 2.625718851 | Q75: 2.601378467 | R75: 2.755534228 | S75: 2.915775085 | T75: 2.87520778 | U75: 2.816385187 | V75: 2.842753935 | W75: 2.779874612 | X75: 2.65614433 | Y75: 2.578052267 | Z75: 2.499960204 | AA75: 2.451279437
A76: Silkeborg67-74 år | B76: =Model!$C$4 -> Silkeborg | C76: 67-74 år | D76: 27 | E76: 26.41660233 | F76: 25.78899888 | G76: 25.0266841 | H76: 24.24621403 | I76: 23.59896279 | J76: 22.89692676 | K76: 22.52980916 | L76: 22.30234901 | M76: 22.76297014 | N76: 23.36738305 | O76: 24.34955403 | P76: 25.04901575 | Q76: 25.44383386 | R76: 25.7655375 | S76: 25.79478329 | T76: 26.01656383 | U76: 26.24078153 | V76: 26.19935 | W76: 25.93126362 | X76: 25.94344937 | Y76: 25.98244375 | Z76: 26.00925239 | AA76: 25.90932929
A77: Silkeborg75-79 år | B77: =Model!$C$4 -> Silkeborg | C77: 75-79 år | D77: 33.66666667 | E77: 37.70019761 | F77: 40.92552993 | G77: 43.16585042 | H77: 45.34334469 | I77: 46.96512536 | J77: 49.46737506 | K77: 52.24798528 | L77: 55.16284166 | M77: 56.14915045 | N77: 57.12371747 | O77: 57.65209718 | P77: 58.09828449 | Q77: 58.93195026 | R77: 58.72059837 | S77: 60.29399573 | T77: 62.84196011 | U77: 65.48385865 | V77: 68.32536731 | W77: 72.39976196 | X77: 73.94967578 | Y77: 73.80877452 | Z77: 72.98685053 | AA77: 71.91834934
A78: Silkeborg80-84 år | B78: =Model!$C$4 -> Silkeborg | C78: 80-84 år | D78: 40 | E78: 41.41788758 | F78: 43.4886676 | G78: 46.15768036 | H78: 49.07759007 | I78: 51.02184315 | J78: 51.04373181 | K78: 50.077834 | L78: 48.01905952 | M78: 47.6544501 | N78: 46.84015575 | O78: 46.91307763 | P78: 47.22907246 | Q78: 47.6544501 | R78: 48.67535646 | S78: 49.67195551 | T78: 50.29179151 | U78: 50.79009104 | V78: 51.66515363 | W78: 51.70161457 | X78: 53.30589598 | Y78: 55.72447175 | Z78: 58.22812304 | AA78: 60.8776181
A79: Silkeborg85-89 år | B79: =Model!$C$4 -> Silkeborg | C79: 85-89 år | D79: 42 | E79: 38.04526078 | F79: 32.13183546 | G79: 26.52333425 | H79: 19.66021189 | I79: 12.48243217 | J79: 4.357496007 | K79: 0 | L79: 0 | M79: 0 | N79: 0 | O79: 0 | P79: 0 | Q79: 0 | R79: 0 | S79: 0 | T79: 0 | U79: 0 | V79: 0 | W79: 0 | X79: 0 | Y79: 0 | Z79: 0 | AA79: 0
A80: SilkeborgOver 90 år | B80: =Model!$C$4 -> Silkeborg | C80: Over 90 år | D80: 60 | E80: 59.56076135 | F80: 63.1625183 | G80: 63.60175695 | H80: 67.4670571 | I80: 70.98096633 | J80: 76.0761347 | K80: 80.64421669 | L80: 85.12445095 | M80: 89.16544656 | N80: 96.10541728 | O80: 103.3967789 | P80: 112.9721816 | Q80: 124.1288433 | R80: 135.8125915 | S80: 147.1449488 | T80: 153.0307467 | U80: 158.0380673 | V80: 161.3762811 | W80: 165.5051245 | X80: 168.579795 | Y80: 171.1273792 | Z80: 174.7291362 | AA80: 177.4524158
A81: SilkeborgI alt (Returnerer mindsteværdi) | B81: =Model!$C$4 -> Silkeborg | C81: I alt (Returnerer mindsteværdi) | D81: =MIN(D69,$D$103+SUM($D$110:D$111)-SUM($D$112:D112))/$C$19 -> 217.3333333 | E81: =MIN(E69,$D$103+SUM($D$110:E$111)-SUM($D$112:E112))/$C$19 -> 217.811986 | F81: =MIN(F69,$D$103+SUM($D$110:F$111)-SUM($D$112:F112))/$C$19 -> 220.2177601 | G81: =MIN(G69,$D$103+SUM($D$110:G$111)-SUM($D$112:G112))/$C$19 -> 219.2916443 | H81: =MIN(H69,$D$103+SUM($D$110:H$111)-SUM($D$112:H112))/$C$19 -> 220.8440017 | I81: =MIN(I69,$D$103+SUM($D$110:I$111)-SUM($D$112:I112))/$C$19 -> 220.1823136 | J81: =MIN(J69,$D$103+SUM($D$110:J$111)-SUM($D$112:J112))/$C$19 -> 218.9508077 | K81: =MIN(K69,$D$103+SUM($D$110:K$111)-SUM($D$112:K112))/$C$19 -> 220.3661332 | L81: =MIN(L69,$D$103+SUM($D$110:L$111)-SUM($D$112:L112))/$C$19 -> 225.2010747 | M81: =MIN(M69,$D$103+SUM($D$110:M$111)-SUM($D$112:M112))/$C$19 -> 230 | N81: =MIN(N69,$D$103+SUM($D$110:N$111)-SUM($D$112:N112))/$C$19 -> 230 | O81: =MIN(O69,$D$103+SUM($D$110:O$111)-SUM($D$112:O112))/$C$19 -> 230 | P81: =MIN(P69,$D$103+SUM($D$110:P$111)-SUM($D$112:P112))/$C$19 -> 230 | Q81: =MIN(Q69,$D$103+SUM($D$110:Q$111)-SUM($D$112:Q112))/$C$19 -> 230 | R81: =MIN(R69,$D$103+SUM($D$110:R$111)-SUM($D$112:R112))/$C$19 -> 230 | S81: =MIN(S69,$D$103+SUM($D$110:S$111)-SUM($D$112:S112))/$C$19 -> 230 | T81: =MIN(T69,$D$103+SUM($D$110:T$111)-SUM($D$112:T112))/$C$19 -> 230 | U81: =MIN(U69,$D$103+SUM($D$110:U$111)-SUM($D$112:U112))/$C$19 -> 230 | V81: =MIN(V69,$D$103+SUM($D$110:V$111)-SUM($D$112:V112))/$C$19 -> 230 | W81: =MIN(W69,$D$103+SUM($D$110:W$111)-SUM($D$112:W112))/$C$19 -> 230 | X81: =MIN(X69,$D$103+SUM($D$110:X$111)-SUM($D$112:X112))/$C$19 -> 230 | Y81: =MIN(Y69,$D$103+SUM($D$110:Y$111)-SUM($D$112:Y112))/$C$19 -> 230 | Z81: =MIN(Z69,$D$103+SUM($D$110:Z$111)-SUM($D$112:Z112))/$C$19 -> 230 | AA81: =MIN(AA69,$D$103+SUM($D$110:AA$111)-SUM($D$112:AA112))/$C$19 -> 230
A82: Alternativ afgang 1 (Kun behov/gns. År) | C82: Alternativ afgang 1 (Kun behov/gns. År) | D82: =SUM(D73:D80) -> 217.3333333 | E82: =SUM(E73:E80) -> 217.811986 | F82: =SUM(F73:F80) -> 220.2177601 | G82: 219.2916443 | H82: 220.8440017 | I82: 220.1823136 | J82: 218.9508077 | K82: 220.3661332 | L82: 225.2010747 | M82: 230.4529824 | N82: 238.2517417 | O82: 247.0417255 | P82: 258.0970404 | Q82: 271.049941 | R82: 283.9837783 | S82: 297.9782819 | T82: 307.1383874 | U82: 315.3277035 | V82: 322.2174298 | W82: 329.9864863 | X82: 336.018695 | Y82: 340.7380922 | Z82: 345.9691486 | AA82: 350.1916243
A83: Alternativ afgang 2 (MAKS()) | C83: Alternativ afgang 2 (MAKS()) | D83: =MAX(D69,$D$103+SUM($D$110:D$111)-SUM($D$112:D112))/$C$19 -> 230 | E83: =MAX(E69,$D$103+SUM($D$110:E$111)-SUM($D$112:E112))/$C$19 -> 230 | F83: =MAX(F69,$D$103+SUM($D$110:F$111)-SUM($D$112:F112))/$C$19 -> 230 | G83: =MAX(G69,$D$103+SUM($D$110:G$111)-SUM($D$112:G112))/$C$19 -> 230 | H83: =MAX(H69,$D$103+SUM($D$110:H$111)-SUM($D$112:H112))/$C$19 -> 230 | I83: =MAX(I69,$D$103+SUM($D$110:I$111)-SUM($D$112:I112))/$C$19 -> 230 | J83: =MAX(J69,$D$103+SUM($D$110:J$111)-SUM($D$112:J112))/$C$19 -> 230 | K83: =MAX(K69,$D$103+SUM($D$110:K$111)-SUM($D$112:K112))/$C$19 -> 230 | L83: =MAX(L69,$D$103+SUM($D$110:L$111)-SUM($D$112:L112))/$C$19 -> 230 | M83: =MAX(M69,$D$103+SUM($D$110:M$111)-SUM($D$112:M112))/$C$19 -> 230.4529824 | N83: =MAX(N69,$D$103+SUM($D$110:N$111)-SUM($D$112:N112))/$C$19 -> 238.2517417 | O83: =MAX(O69,$D$103+SUM($D$110:O$111)-SUM($D$112:O112))/$C$19 -> 247.0417255 | P83: =MAX(P69,$D$103+SUM($D$110:P$111)-SUM($D$112:P112))/$C$19 -> 258.0970404 | Q83: =MAX(Q69,$D$103+SUM($D$110:Q$111)-SUM($D$112:Q112))/$C$19 -> 271.049941 | R83: =MAX(R69,$D$103+SUM($D$110:R$111)-SUM($D$112:R112))/$C$19 -> 283.9837783 | S83: =MAX(S69,$D$103+SUM($D$110:S$111)-SUM($D$112:S112))/$C$19 -> 297.9782819 | T83: =MAX(T69,$D$103+SUM($D$110:T$111)-SUM($D$112:T112))/$C$19 -> 307.1383874 | U83: =MAX(U69,$D$103+SUM($D$110:U$111)-SUM($D$112:U112))/$C$19 -> 315.3277035 | V83: =MAX(V69,$D$103+SUM($D$110:V$111)-SUM($D$112:V112))/$C$19 -> 322.2174298 | W83: =MAX(W69,$D$103+SUM($D$110:W$111)-SUM($D$112:W112))/$C$19 -> 329.9864863 | X83: =MAX(X69,$D$103+SUM($D$110:X$111)-SUM($D$112:X112))/$C$19 -> 336.018695 | Y83: =MAX(Y69,$D$103+SUM($D$110:Y$111)-SUM($D$112:Y112))/$C$19 -> 340.7380922 | Z83: =MAX(Z69,$D$103+SUM($D$110:Z$111)-SUM($D$112:Z112))/$C$19 -> 345.9691486 | AA83: =MAX(AA69,$D$103+SUM($D$110:AA$111)-SUM($D$112:AA112))/$C$19 -> 350.1916243
A84: Tilgang | B84: Tilgang
A85: KommuneAldersgruppe | B85: Kommune | C85: Aldersgruppe | D85: =D72 -> 2023 | E85: 2024 | F85: 2025 | G85: 2026 | H85: 2027 | I85: 2028 | J85: 2029 | K85: 2030 | L85: 2031 | M85: 2032 | N85: 2033 | O85: 2034 | P85: 2035 | Q85: 2036 | R85: 2037 | S85: 2038 | T85: 2039 | U85: 2040 | V85: 2041 | W85: 2042 | X85: 2043 | Y85: 2044 | Z85: 2045 | AA85: 2046
A86: SilkeborgUnder 60 år | B86: =Model!$C$4 -> Silkeborg | C86: Under 60 år | D86: =E61-D61+D73 -> 4.247293309 | E86: =F61-E61+E73 -> 4.476842437 | F86: 4.618147365 | G86: 4.844262175 | H86: 5.070789614 | I86: 5.30860311 | J86: 5.547334461 | K86: 5.782831978 | L86: 5.47578132 | M86: 5.526028322 | N86: 5.589911878 | O86: 5.644525264 | P86: 5.695108143 | Q86: 5.755431416 | R86: 5.813470735 | S86: 5.86465819 | T86: 5.916114345 | U86: 5.95803163 | V86: 6.013383944 | W86: 6.048650891 | X86: 6.093591058 | Y86: 6.128051903 | Z86: =AA61-Z61+Z73 -> 6.14605484 | AA86: =MAX(0,AB61-AA61+AA73) -> 0
A87: =B87&C87 -> Silkeborg60-64 år | B87: =Model!$C$4 -> Silkeborg | C87: 60-64 år | D87: =E62-D62+D74 -> 7.734874585 | E87: 7.715736271 | F87: 7.683668129 | G87: 8.146099647 | H87: 7.312250473 | I87: 6.595171694 | J87: 6.057355367 | K87: 5.598216252 | L87: 6.213372627 | M87: 6.471208371 | N87: 6.614658802 | O87: 6.806863629 | P87: 6.927812033 | Q87: 6.428079483 | R87: 6.148679295 | S87: 6.068047026 | T87: 5.79520993 | U87: 5.55050037 | V87: 5.376109649 | W87: 5.364858635 | X87: 5.289851873 | Y87: 5.385485494 | Z87: =AA62-Z62+Z74 -> 5.570189645 | AA87: 0
A88: Silkeborg65-66 år | B88: =Model!$C$4 -> Silkeborg | C88: 65-66 år | D88: =E63-D63+D75 -> 2.698327956 | E88: 2.625498258 | F88: 2.706779374 | G88: 2.525713343 | H88: 2.916743689 | I88: 3.157687661 | J88: 2.775887644 | K88: 2.663496356 | L88: 3.288994296 | M88: 3.00603734 | N88: 2.355946269 | O88: 2.333634251 | P88: 2.552697701 | Q88: 3.06384575 | R88: 3.236256799 | S88: 2.794073169 | T88: 2.698740001 | U88: 2.895491432 | V88: 2.654115965 | W88: 2.408683766 | X88: 2.42186814 | Y88: 2.343776077 | Z88: 2.353917904 | AA88: 0
A89: Silkeborg67-74 år | B89: =Model!$C$4 -> Silkeborg | C89: 67-74 år | D89: 25.249807 | E89: 24.53379198 | F89: 23.50205453 | G89: 22.68527388 | H89: 22.30446031 | I89: 21.4928547 | J89: 21.79557396 | K89: 21.8474287 | L89: 23.6842124 | M89: 24.57620887 | N89: 26.31389599 | O89: 26.44793918 | P89: 26.23347008 | Q89: 26.4089448 | R89: 25.85327486 | S89: 26.46012492 | T89: 26.68921691 | U89: 26.11648694 | V89: 25.39509088 | W89: 25.96782086 | X89: 26.06043251 | Y89: 26.06286966 | Z89: 25.70948308 | AA89: 0
A90: Silkeborg75-79 år | B90: =Model!$C$4 -> Silkeborg | C90: 75-79 år | D90: 45.76725949 | E90: 47.37619456 | F90: 47.64649142 | G90: 49.69833323 | H90: 50.2086867 | I90: 54.47187444 | J90: 57.80920572 | K90: 60.99255444 | L90: 58.12176804 | M90: 59.07285151 | N90: 58.7088566 | O90: 58.99065911 | P90: 60.59928178 | Q90: 58.29789461 | R90: 63.44079044 | S90: 67.93788886 | T90: 70.76765575 | U90: 74.00838463 | V90: 80.54855126 | W90: 77.0495034 | X90: 73.52697201 | Y90: 71.34300254 | Z90: 69.78134696 | AA90: 0
A91: Silkeborg80-84 år | B91: =Model!$C$4 -> Silkeborg | C91: 80-84 år | D91: 44.25366274 | E91: 47.63022764 | F91: 51.49570589 | G91: 54.91740949 | H91: 54.9103493 | I91: 51.08750914 | J91: 48.14603837 | K91: 43.90151055 | L91: 46.92523128 | M91: 45.21156705 | N91: 47.0589214 | O91: 47.8610621 | P91: 48.5052054 | Q91: 50.71716916 | R91: 51.66515363 | S91: 51.53146351 | T91: 51.7866901 | U91: 53.41527881 | V91: 51.77453646 | W91: 56.51445881 | X91: 60.56162328 | Y91: 63.23542563 | Z91: 66.17660822 | AA91: 0
A92: Silkeborg85-89 år | B92: =Model!$C$4 -> Silkeborg | C92: 85-89 år | D92: 30.13578234 | E92: 20.30498481 | F92: 15.30633183 | G92: 5.933967189 | H92: -1.873127292 | I92: -11.89237631 | J92: -8.714992014 | K92: 0 | L92: 0 | M92: 0 | N92: 0 | O92: 0 | P92: 0 | Q92: 0 | R92: 0 | S92: 0 | T92: 0 | U92: 0 | V92: 0 | W92: 0 | X92: 0 | Y92: 0 | Z92: 0 | AA92: 0
A93: SilkeborgOver 90 år | B93: =Model!$C$4 -> Silkeborg | C93: Over 90 år | D93: 58.68228404 | E93: =F68-E68+E80 -> 70.36603221 | F93: 64.48023426 | G93: =H68-G68+G80 -> 75.19765739 | H93: 78.00878477 | I93: 86.26647145 | J93: 89.78038067 | K93: 94.08491947 | L93: 97.24743777 | M93: 109.9853587 | N93: 117.9795022 | O93: 132.1229868 | P93: 146.4421669 | Q93: 159.1800878 | R93: 169.8096633 | S93: 164.8023426 | T93: 168.0527086 | U93: 168.0527086 | V93: 173.7628111 | W93: 174.7291362 | X93: 176.2225476 | Y93: 181.9326501 | Z93: 182.8989751 | AA93: 0
A94: SilkeborgI alt | B94: =Model!$C$4 -> Silkeborg | C94: I alt | D94: =SUM(D86:D93) -> 218.7692915 | E94: =SUM(E86:E93) -> 225.0293082 | F94: =SUM(F86:F93) -> 217.4394128 | G94: 223.9487163 | H94: 218.8589376 | I94: 216.4877959 | J94: 223.1967842 | K94: 234.8709577 | L94: 240.9567977 | M94: 253.8492602 | N94: 264.6216931 | O94: 280.2076704 | P94: 296.955742 | Q94: 309.8514531 | R94: 325.967289 | S94: 325.4585983 | T94: 331.7063357 | U94: 335.9968824 | V94: 345.5245993 | W94: 348.0831125 | X94: 350.1768865 | Y94: 356.4312614 | Z94: 358.6365758 | AA94: 0
A97: Antal boliger | B97: Antal boliger
A98: KommuneBoligtype | B98: Kommune | C98: Boligtype | D98: Pladser
A99: SilkeborgPlejehjem | B99: =Model!$C$4 -> Silkeborg | C99: Plejehjem | D99: =VLOOKUP($B99,'GAMMEL - Registerdata pladser'!B$4:H$101,2,FALSE) -> 0
A100: SilkeborgPlejeboliger (2006-) | B100: =Model!$C$4 -> Silkeborg | C100: Plejeboliger (2006-) | D100: =VLOOKUP($B100,'GAMMEL - Registerdata pladser'!B$4:H$101,4,FALSE) -> 630
A101: SilkeborgFriplejeboliger | B101: =Model!$C$4 -> Silkeborg | C101: Friplejeboliger | D101: =VLOOKUP($B101,'GAMMEL - Registerdata pladser'!B$4:H$101,7,FALSE) -> 60
A102: SilkeborgAndre boliger for ældre | B102: =Model!$C$4 -> Silkeborg | C102: Andre boliger for ældre | D102: =VLOOKUP($B102,'GAMMEL - Registerdata pladser'!B$4:H$101,6,FALSE) -> 0
A103: SilkeborgPlejeboliger i alt | B103: =Model!$C$4 -> Silkeborg | C103: Plejeboliger i alt | D103: =SUM(D99:D102) -> 690
A105: SilkeborgÆldreboliger | B105: =Model!$C$4 -> Silkeborg | C105: Ældreboliger | D105: =VLOOKUP($B105,'GAMMEL - Registerdata pladser'!B$4:H$101,5,FALSE) -> 324
A108: Planlagte kapacitetsændringer | B108: Planlagte kapacitetsændringer
A109: År | B109: År | D109: =D33 -> 2023 | E109: 2024 | F109: 2025 | G109: 2026 | H109: 2027 | I109: 2028 | J109: 2029 | K109: 2030 | L109: 2031 | M109: 2032 | N109: 2033 | O109: 2034 | P109: 2035 | Q109: 2036 | R109: 2037 | S109: 2038 | T109: 2039 | U109: 2040 | V109: 2041 | W109: 2042 | X109: 2043 | Y109: 2044 | Z109: 2045 | AA109: 2046
A110: Nyetablerede plejeboliger | B110: Nyetablerede plejeboliger | D110: =IF(Model!$J32='Beregning 2024'!C110,Model!$K32)+IF(Model!$J33='Beregning 2024'!C110,Model!$K33)+IF(Model!$J34='Beregning 2024'!C110,Model!$K34)+IF(Model!$J35='Beregning 2024'!C110,Model!$K35)+IF(Model!$J36='Beregning 2024'!C110,Model!$K36)+IF(Model!$J38='Beregning 2024'!C110,Model!$K38)+IF(Model!$J39='Beregning 2024'!C110,Model!$K39)+IF(Model!$J40='Beregning 2024'!C110,Model!$K40) -> 0 | E110: =IF(Model!$J32='Beregning 2024'!E110,Model!$K32)+IF(Model!$J33='Beregning 2024'!E110,Model!$K33)+IF(Model!$J34='Beregning 2024'!E110,Model!$K34)+IF(Model!$J35='Beregning 2024'!E110,Model!$K35)+IF(Model!$J36='Beregning 2024'!E110,Model!$K36)+IF(Model!$J38='Beregning 2024'!E110,Model!$K38)+IF(Model!$J39='Beregning 2024'!E110,Model!$K39)+IF(Model!$J40='Beregning 2024'!E110,Model!$K40) -> 0 | F110: =IF(Model!$J32='Beregning 2024'!F110,Model!$K32)+IF(Model!$J33='Beregning 2024'!F110,Model!$K33)+IF(Model!$J34='Beregning 2024'!F110,Model!$K34)+IF(Model!$J35='Beregning 2024'!F110,Model!$K35)+IF(Model!$J36='Beregning 2024'!F110,Model!$K36)+IF(Model!$J38='Beregning 2024'!F110,Model!$K38)+IF(Model!$J39='Beregning 2024'!F110,Model!$K39)+IF(Model!$J40='Beregning 2024'!F110,Model!$K40) -> 0 | G110: =IF(Model!$J32='Beregning 2024'!G110,Model!$K32)+IF(Model!$J33='Beregning 2024'!G110,Model!$K33)+IF(Model!$J34='Beregning 2024'!G110,Model!$K34)+IF(Model!$J35='Beregning 2024'!G110,Model!$K35)+IF(Model!$J36='Beregning 2024'!G110,Model!$K36)+IF(Model!$J38='Beregning 2024'!G110,Model!$K38)+IF(Model!$J39='Beregning 2024'!G110,Model!$K39)+IF(Model!$J40='Beregning 2024'!G110,Model!$K40) -> 0 | H110: =IF(Model!$J32='Beregning 2024'!H110,Model!$K32)+IF(Model!$J33='Beregning 2024'!H110,Model!$K33)+IF(Model!$J34='Beregning 2024'!H110,Model!$K34)+IF(Model!$J35='Beregning 2024'!H110,Model!$K35)+IF(Model!$J36='Beregning 2024'!H110,Model!$K36)+IF(Model!$J38='Beregning 2024'!H110,Model!$K38)+IF(Model!$J39='Beregning 2024'!H110,Model!$K39)+IF(Model!$J40='Beregning 2024'!H110,Model!$K40) -> 0 | I110: =IF(Model!$J32='Beregning 2024'!I110,Model!$K32)+IF(Model!$J33='Beregning 2024'!I110,Model!$K33)+IF(Model!$J34='Beregning 2024'!I110,Model!$K34)+IF(Model!$J35='Beregning 2024'!I110,Model!$K35)+IF(Model!$J36='Beregning 2024'!I110,Model!$K36)+IF(Model!$J38='Beregning 2024'!I110,Model!$K38)+IF(Model!$J39='Beregning 2024'!I110,Model!$K39)+IF(Model!$J40='Beregning 2024'!I110,Model!$K40) -> 0 | J110: =IF(Model!$J32='Beregning 2024'!J110,Model!$K32)+IF(Model!$J33='Beregning 2024'!J110,Model!$K33)+IF(Model!$J34='Beregning 2024'!J110,Model!$K34)+IF(Model!$J35='Beregning 2024'!J110,Model!$K35)+IF(Model!$J36='Beregning 2024'!J110,Model!$K36)+IF(Model!$J38='Beregning 2024'!J110,Model!$K38)+IF(Model!$J39='Beregning 2024'!J110,Model!$K39)+IF(Model!$J40='Beregning 2024'!J110,Model!$K40) -> 0 | K110: =IF(Model!$J32='Beregning 2024'!K110,Model!$K32)+IF(Model!$J33='Beregning 2024'!K110,Model!$K33)+IF(Model!$J34='Beregning 2024'!K110,Model!$K34)+IF(Model!$J35='Beregning 2024'!K110,Model!$K35)+IF(Model!$J36='Beregning 2024'!K110,Model!$K36)+IF(Model!$J38='Beregning 2024'!K110,Model!$K38)+IF(Model!$J39='Beregning 2024'!K110,Model!$K39)+IF(Model!$J40='Beregning 2024'!K110,Model!$K40) -> 0 | L110: =IF(Model!$J32='Beregning 2024'!L110,Model!$K32)+IF(Model!$J33='Beregning 2024'!L110,Model!$K33)+IF(Model!$J34='Beregning 2024'!L110,Model!$K34)+IF(Model!$J35='Beregning 2024'!L110,Model!$K35)+IF(Model!$J36='Beregning 2024'!L110,Model!$K36)+IF(Model!$J38='Beregning 2024'!L110,Model!$K38)+IF(Model!$J39='Beregning 2024'!L110,Model!$K39)+IF(Model!$J40='Beregning 2024'!L110,Model!$K40) -> 0 | M110: =IF(Model!$J32='Beregning 2024'!M110,Model!$K32)+IF(Model!$J33='Beregning 2024'!M110,Model!$K33)+IF(Model!$J34='Beregning 2024'!M110,Model!$K34)+IF(Model!$J35='Beregning 2024'!M110,Model!$K35)+IF(Model!$J36='Beregning 2024'!M110,Model!$K36)+IF(Model!$J38='Beregning 2024'!M110,Model!$K38)+IF(Model!$J39='Beregning 2024'!M110,Model!$K39)+IF(Model!$J40='Beregning 2024'!M110,Model!$K40) -> 0 | N110: =IF(Model!$J32='Beregning 2024'!N110,Model!$K32)+IF(Model!$J33='Beregning 2024'!N110,Model!$K33)+IF(Model!$J34='Beregning 2024'!N110,Model!$K34)+IF(Model!$J35='Beregning 2024'!N110,Model!$K35)+IF(Model!$J36='Beregning 2024'!N110,Model!$K36)+IF(Model!$J38='Beregning 2024'!N110,Model!$K38)+IF(Model!$J39='Beregning 2024'!N110,Model!$K39)+IF(Model!$J40='Beregning 2024'!N110,Model!$K40) -> 0 | O110: =IF(Model!$J32='Beregning 2024'!O110,Model!$K32)+IF(Model!$J33='Beregning 2024'!O110,Model!$K33)+IF(Model!$J34='Beregning 2024'!O110,Model!$K34)+IF(Model!$J35='Beregning 2024'!O110,Model!$K35)+IF(Model!$J36='Beregning 2024'!O110,Model!$K36)+IF(Model!$J38='Beregning 2024'!O110,Model!$K38)+IF(Model!$J39='Beregning 2024'!O110,Model!$K39)+IF(Model!$J40='Beregning 2024'!O110,Model!$K40) -> 0 | P110: =IF(Model!$J32='Beregning 2024'!P110,Model!$K32)+IF(Model!$J33='Beregning 2024'!P110,Model!$K33)+IF(Model!$J34='Beregning 2024'!P110,Model!$K34)+IF(Model!$J35='Beregning 2024'!P110,Model!$K35)+IF(Model!$J36='Beregning 2024'!P110,Model!$K36)+IF(Model!$J38='Beregning 2024'!P110,Model!$K38)+IF(Model!$J39='Beregning 2024'!P110,Model!$K39)+IF(Model!$J40='Beregning 2024'!P110,Model!$K40) -> 0 | Q110: =IF(Model!$J32='Beregning 2024'!Q110,Model!$K32)+IF(Model!$J33='Beregning 2024'!Q110,Model!$K33)+IF(Model!$J34='Beregning 2024'!Q110,Model!$K34)+IF(Model!$J35='Beregning 2024'!Q110,Model!$K35)+IF(Model!$J36='Beregning 2024'!Q110,Model!$K36)+IF(Model!$J38='Beregning 2024'!Q110,Model!$K38)+IF(Model!$J39='Beregning 2024'!Q110,Model!$K39)+IF(Model!$J40='Beregning 2024'!Q110,Model!$K40) -> 0 | R110: =IF(Model!$J32='Beregning 2024'!R110,Model!$K32)+IF(Model!$J33='Beregning 2024'!R110,Model!$K33)+IF(Model!$J34='Beregning 2024'!R110,Model!$K34)+IF(Model!$J35='Beregning 2024'!R110,Model!$K35)+IF(Model!$J36='Beregning 2024'!R110,Model!$K36)+IF(Model!$J38='Beregning 2024'!R110,Model!$K38)+IF(Model!$J39='Beregning 2024'!R110,Model!$K39)+IF(Model!$J40='Beregning 2024'!R110,Model!$K40) -> 0 | S110: =IF(Model!$J32='Beregning 2024'!S110,Model!$K32)+IF(Model!$J33='Beregning 2024'!S110,Model!$K33)+IF(Model!$J34='Beregning 2024'!S110,Model!$K34)+IF(Model!$J35='Beregning 2024'!S110,Model!$K35)+IF(Model!$J36='Beregning 2024'!S110,Model!$K36)+IF(Model!$J38='Beregning 2024'!S110,Model!$K38)+IF(Model!$J39='Beregning 2024'!S110,Model!$K39)+IF(Model!$J40='Beregning 2024'!S110,Model!$K40) -> 0 | T110: =IF(Model!$J32='Beregning 2024'!T110,Model!$K32)+IF(Model!$J33='Beregning 2024'!T110,Model!$K33)+IF(Model!$J34='Beregning 2024'!T110,Model!$K34)+IF(Model!$J35='Beregning 2024'!T110,Model!$K35)+IF(Model!$J36='Beregning 2024'!T110,Model!$K36)+IF(Model!$J38='Beregning 2024'!T110,Model!$K38)+IF(Model!$J39='Beregning 2024'!T110,Model!$K39)+IF(Model!$J40='Beregning 2024'!T110,Model!$K40) -> 0 | U110: =IF(Model!$J32='Beregning 2024'!U110,Model!$K32)+IF(Model!$J33='Beregning 2024'!U110,Model!$K33)+IF(Model!$J34='Beregning 2024'!U110,Model!$K34)+IF(Model!$J35='Beregning 2024'!U110,Model!$K35)+IF(Model!$J36='Beregning 2024'!U110,Model!$K36)+IF(Model!$J38='Beregning 2024'!U110,Model!$K38)+IF(Model!$J39='Beregning 2024'!U110,Model!$K39)+IF(Model!$J40='Beregning 2024'!U110,Model!$K40) -> 0 | V110: =IF(Model!$J32='Beregning 2024'!V110,Model!$K32)+IF(Model!$J33='Beregning 2024'!V110,Model!$K33)+IF(Model!$J34='Beregning 2024'!V110,Model!$K34)+IF(Model!$J35='Beregning 2024'!V110,Model!$K35)+IF(Model!$J36='Beregning 2024'!V110,Model!$K36)+IF(Model!$J38='Beregning 2024'!V110,Model!$K38)+IF(Model!$J39='Beregning 2024'!V110,Model!$K39)+IF(Model!$J40='Beregning 2024'!V110,Model!$K40) -> 0 | W110: =IF(Model!$J32='Beregning 2024'!W110,Model!$K32)+IF(Model!$J33='Beregning 2024'!W110,Model!$K33)+IF(Model!$J34='Beregning 2024'!W110,Model!$K34)+IF(Model!$J35='Beregning 2024'!W110,Model!$K35)+IF(Model!$J36='Beregning 2024'!W110,Model!$K36)+IF(Model!$J38='Beregning 2024'!W110,Model!$K38)+IF(Model!$J39='Beregning 2024'!W110,Model!$K39)+IF(Model!$J40='Beregning 2024'!W110,Model!$K40) -> 0 | X110: =IF(Model!$J32='Beregning 2024'!X110,Model!$K32)+IF(Model!$J33='Beregning 2024'!X110,Model!$K33)+IF(Model!$J34='Beregning 2024'!X110,Model!$K34)+IF(Model!$J35='Beregning 2024'!X110,Model!$K35)+IF(Model!$J36='Beregning 2024'!X110,Model!$K36)+IF(Model!$J38='Beregning 2024'!X110,Model!$K38)+IF(Model!$J39='Beregning 2024'!X110,Model!$K39)+IF(Model!$J40='Beregning 2024'!X110,Model!$K40) -> 0 | Y110: =IF(Model!$J32='Beregning 2024'!Y110,Model!$K32)+IF(Model!$J33='Beregning 2024'!Y110,Model!$K33)+IF(Model!$J34='Beregning 2024'!Y110,Model!$K34)+IF(Model!$J35='Beregning 2024'!Y110,Model!$K35)+IF(Model!$J36='Beregning 2024'!Y110,Model!$K36)+IF(Model!$J38='Beregning 2024'!Y110,Model!$K38)+IF(Model!$J39='Beregning 2024'!Y110,Model!$K39)+IF(Model!$J40='Beregning 2024'!Y110,Model!$K40) -> 0 | Z110: =IF(Model!$J32='Beregning 2024'!Z110,Model!$K32)+IF(Model!$J33='Beregning 2024'!Z110,Model!$K33)+IF(Model!$J34='Beregning 2024'!Z110,Model!$K34)+IF(Model!$J35='Beregning 2024'!Z110,Model!$K35)+IF(Model!$J36='Beregning 2024'!Z110,Model!$K36)+IF(Model!$J38='Beregning 2024'!Z110,Model!$K38)+IF(Model!$J39='Beregning 2024'!Z110,Model!$K39)+IF(Model!$J40='Beregning 2024'!Z110,Model!$K40) -> 0 | AA110: =IF(Model!$J32='Beregning 2024'!AA110,Model!$K32)+IF(Model!$J33='Beregning 2024'!AA110,Model!$K33)+IF(Model!$J34='Beregning 2024'!AA110,Model!$K34)+IF(Model!$J35='Beregning 2024'!AA110,Model!$K35)+IF(Model!$J36='Beregning 2024'!AA110,Model!$K36)+IF(Model!$J38='Beregning 2024'!AA110,Model!$K38)+IF(Model!$J39='Beregning 2024'!AA110,Model!$K39)+IF(Model!$J40='Beregning 2024'!AA110,Model!$K40) -> 0
A111: Konverterede ældreboliger | B111: Konverterede ældreboliger | D111: =IF(Model!$J33='Beregning 2024'!C111,Model!$K33)+IF(Model!$J34='Beregning 2024'!C111,Model!$K34)+IF(Model!$J35='Beregning 2024'!C111,Model!$K35)+IF(Model!$J36='Beregning 2024'!C111,Model!$K36)+IF(Model!$J38='Beregning 2024'!C111,Model!$K38)+IF(Model!$J39='Beregning 2024'!C111,Model!$K39)+IF(Model!$J40='Beregning 2024'!C111,Model!$K40)+IF(Model!$J41='Beregning 2024'!C111,Model!$K41) -> 0 | E111: =IF(Model!$J33='Beregning 2024'!E111,Model!$K33)+IF(Model!$J34='Beregning 2024'!E111,Model!$K34)+IF(Model!$J35='Beregning 2024'!E111,Model!$K35)+IF(Model!$J36='Beregning 2024'!E111,Model!$K36)+IF(Model!$J38='Beregning 2024'!E111,Model!$K38)+IF(Model!$J39='Beregning 2024'!E111,Model!$K39)+IF(Model!$J40='Beregning 2024'!E111,Model!$K40)+IF(Model!$J41='Beregning 2024'!E111,Model!$K41) -> 0 | F111: =IF(Model!$J33='Beregning 2024'!F111,Model!$K33)+IF(Model!$J34='Beregning 2024'!F111,Model!$K34)+IF(Model!$J35='Beregning 2024'!F111,Model!$K35)+IF(Model!$J36='Beregning 2024'!F111,Model!$K36)+IF(Model!$J38='Beregning 2024'!F111,Model!$K38)+IF(Model!$J39='Beregning 2024'!F111,Model!$K39)+IF(Model!$J40='Beregning 2024'!F111,Model!$K40)+IF(Model!$J41='Beregning 2024'!F111,Model!$K41) -> 0 | G111: =IF(Model!$J33='Beregning 2024'!G111,Model!$K33)+IF(Model!$J34='Beregning 2024'!G111,Model!$K34)+IF(Model!$J35='Beregning 2024'!G111,Model!$K35)+IF(Model!$J36='Beregning 2024'!G111,Model!$K36)+IF(Model!$J38='Beregning 2024'!G111,Model!$K38)+IF(Model!$J39='Beregning 2024'!G111,Model!$K39)+IF(Model!$J40='Beregning 2024'!G111,Model!$K40)+IF(Model!$J41='Beregning 2024'!G111,Model!$K41) -> 0 | H111: =IF(Model!$J33='Beregning 2024'!H111,Model!$K33)+IF(Model!$J34='Beregning 2024'!H111,Model!$K34)+IF(Model!$J35='Beregning 2024'!H111,Model!$K35)+IF(Model!$J36='Beregning 2024'!H111,Model!$K36)+IF(Model!$J38='Beregning 2024'!H111,Model!$K38)+IF(Model!$J39='Beregning 2024'!H111,Model!$K39)+IF(Model!$J40='Beregning 2024'!H111,Model!$K40)+IF(Model!$J41='Beregning 2024'!H111,Model!$K41) -> 0 | I111: =IF(Model!$J33='Beregning 2024'!I111,Model!$K33)+IF(Model!$J34='Beregning 2024'!I111,Model!$K34)+IF(Model!$J35='Beregning 2024'!I111,Model!$K35)+IF(Model!$J36='Beregning 2024'!I111,Model!$K36)+IF(Model!$J38='Beregning 2024'!I111,Model!$K38)+IF(Model!$J39='Beregning 2024'!I111,Model!$K39)+IF(Model!$J40='Beregning 2024'!I111,Model!$K40)+IF(Model!$J41='Beregning 2024'!I111,Model!$K41) -> 0 | J111: =IF(Model!$J33='Beregning 2024'!J111,Model!$K33)+IF(Model!$J34='Beregning 2024'!J111,Model!$K34)+IF(Model!$J35='Beregning 2024'!J111,Model!$K35)+IF(Model!$J36='Beregning 2024'!J111,Model!$K36)+IF(Model!$J38='Beregning 2024'!J111,Model!$K38)+IF(Model!$J39='Beregning 2024'!J111,Model!$K39)+IF(Model!$J40='Beregning 2024'!J111,Model!$K40)+IF(Model!$J41='Beregning 2024'!J111,Model!$K41) -> 0 | K111: =IF(Model!$J33='Beregning 2024'!K111,Model!$K33)+IF(Model!$J34='Beregning 2024'!K111,Model!$K34)+IF(Model!$J35='Beregning 2024'!K111,Model!$K35)+IF(Model!$J36='Beregning 2024'!K111,Model!$K36)+IF(Model!$J38='Beregning 2024'!K111,Model!$K38)+IF(Model!$J39='Beregning 2024'!K111,Model!$K39)+IF(Model!$J40='Beregning 2024'!K111,Model!$K40)+IF(Model!$J41='Beregning 2024'!K111,Model!$K41) -> 0 | L111: =IF(Model!$J33='Beregning 2024'!L111,Model!$K33)+IF(Model!$J34='Beregning 2024'!L111,Model!$K34)+IF(Model!$J35='Beregning 2024'!L111,Model!$K35)+IF(Model!$J36='Beregning 2024'!L111,Model!$K36)+IF(Model!$J38='Beregning 2024'!L111,Model!$K38)+IF(Model!$J39='Beregning 2024'!L111,Model!$K39)+IF(Model!$J40='Beregning 2024'!L111,Model!$K40)+IF(Model!$J41='Beregning 2024'!L111,Model!$K41) -> 0 | M111: =IF(Model!$J33='Beregning 2024'!M111,Model!$K33)+IF(Model!$J34='Beregning 2024'!M111,Model!$K34)+IF(Model!$J35='Beregning 2024'!M111,Model!$K35)+IF(Model!$J36='Beregning 2024'!M111,Model!$K36)+IF(Model!$J38='Beregning 2024'!M111,Model!$K38)+IF(Model!$J39='Beregning 2024'!M111,Model!$K39)+IF(Model!$J40='Beregning 2024'!M111,Model!$K40)+IF(Model!$J41='Beregning 2024'!M111,Model!$K41) -> 0 | N111: =IF(Model!$J33='Beregning 2024'!N111,Model!$K33)+IF(Model!$J34='Beregning 2024'!N111,Model!$K34)+IF(Model!$J35='Beregning 2024'!N111,Model!$K35)+IF(Model!$J36='Beregning 2024'!N111,Model!$K36)+IF(Model!$J38='Beregning 2024'!N111,Model!$K38)+IF(Model!$J39='Beregning 2024'!N111,Model!$K39)+IF(Model!$J40='Beregning 2024'!N111,Model!$K40)+IF(Model!$J41='Beregning 2024'!N111,Model!$K41) -> 0 | O111: =IF(Model!$J33='Beregning 2024'!O111,Model!$K33)+IF(Model!$J34='Beregning 2024'!O111,Model!$K34)+IF(Model!$J35='Beregning 2024'!O111,Model!$K35)+IF(Model!$J36='Beregning 2024'!O111,Model!$K36)+IF(Model!$J38='Beregning 2024'!O111,Model!$K38)+IF(Model!$J39='Beregning 2024'!O111,Model!$K39)+IF(Model!$J40='Beregning 2024'!O111,Model!$K40)+IF(Model!$J41='Beregning 2024'!O111,Model!$K41) -> 0 | P111: =IF(Model!$J33='Beregning 2024'!P111,Model!$K33)+IF(Model!$J34='Beregning 2024'!P111,Model!$K34)+IF(Model!$J35='Beregning 2024'!P111,Model!$K35)+IF(Model!$J36='Beregning 2024'!P111,Model!$K36)+IF(Model!$J38='Beregning 2024'!P111,Model!$K38)+IF(Model!$J39='Beregning 2024'!P111,Model!$K39)+IF(Model!$J40='Beregning 2024'!P111,Model!$K40)+IF(Model!$J41='Beregning 2024'!P111,Model!$K41) -> 0 | Q111: =IF(Model!$J33='Beregning 2024'!Q111,Model!$K33)+IF(Model!$J34='Beregning 2024'!Q111,Model!$K34)+IF(Model!$J35='Beregning 2024'!Q111,Model!$K35)+IF(Model!$J36='Beregning 2024'!Q111,Model!$K36)+IF(Model!$J38='Beregning 2024'!Q111,Model!$K38)+IF(Model!$J39='Beregning 2024'!Q111,Model!$K39)+IF(Model!$J40='Beregning 2024'!Q111,Model!$K40)+IF(Model!$J41='Beregning 2024'!Q111,Model!$K41) -> 0 | R111: =IF(Model!$J33='Beregning 2024'!R111,Model!$K33)+IF(Model!$J34='Beregning 2024'!R111,Model!$K34)+IF(Model!$J35='Beregning 2024'!R111,Model!$K35)+IF(Model!$J36='Beregning 2024'!R111,Model!$K36)+IF(Model!$J38='Beregning 2024'!R111,Model!$K38)+IF(Model!$J39='Beregning 2024'!R111,Model!$K39)+IF(Model!$J40='Beregning 2024'!R111,Model!$K40)+IF(Model!$J41='Beregning 2024'!R111,Model!$K41) -> 0 | S111: =IF(Model!$J33='Beregning 2024'!S111,Model!$K33)+IF(Model!$J34='Beregning 2024'!S111,Model!$K34)+IF(Model!$J35='Beregning 2024'!S111,Model!$K35)+IF(Model!$J36='Beregning 2024'!S111,Model!$K36)+IF(Model!$J38='Beregning 2024'!S111,Model!$K38)+IF(Model!$J39='Beregning 2024'!S111,Model!$K39)+IF(Model!$J40='Beregning 2024'!S111,Model!$K40)+IF(Model!$J41='Beregning 2024'!S111,Model!$K41) -> 0 | T111: =IF(Model!$J33='Beregning 2024'!T111,Model!$K33)+IF(Model!$J34='Beregning 2024'!T111,Model!$K34)+IF(Model!$J35='Beregning 2024'!T111,Model!$K35)+IF(Model!$J36='Beregning 2024'!T111,Model!$K36)+IF(Model!$J38='Beregning 2024'!T111,Model!$K38)+IF(Model!$J39='Beregning 2024'!T111,Model!$K39)+IF(Model!$J40='Beregning 2024'!T111,Model!$K40)+IF(Model!$J41='Beregning 2024'!T111,Model!$K41) -> 0 | U111: =IF(Model!$J33='Beregning 2024'!U111,Model!$K33)+IF(Model!$J34='Beregning 2024'!U111,Model!$K34)+IF(Model!$J35='Beregning 2024'!U111,Model!$K35)+IF(Model!$J36='Beregning 2024'!U111,Model!$K36)+IF(Model!$J38='Beregning 2024'!U111,Model!$K38)+IF(Model!$J39='Beregning 2024'!U111,Model!$K39)+IF(Model!$J40='Beregning 2024'!U111,Model!$K40)+IF(Model!$J41='Beregning 2024'!U111,Model!$K41) -> 0 | V111: =IF(Model!$J33='Beregning 2024'!V111,Model!$K33)+IF(Model!$J34='Beregning 2024'!V111,Model!$K34)+IF(Model!$J35='Beregning 2024'!V111,Model!$K35)+IF(Model!$J36='Beregning 2024'!V111,Model!$K36)+IF(Model!$J38='Beregning 2024'!V111,Model!$K38)+IF(Model!$J39='Beregning 2024'!V111,Model!$K39)+IF(Model!$J40='Beregning 2024'!V111,Model!$K40)+IF(Model!$J41='Beregning 2024'!V111,Model!$K41) -> 0 | W111: =IF(Model!$J33='Beregning 2024'!W111,Model!$K33)+IF(Model!$J34='Beregning 2024'!W111,Model!$K34)+IF(Model!$J35='Beregning 2024'!W111,Model!$K35)+IF(Model!$J36='Beregning 2024'!W111,Model!$K36)+IF(Model!$J38='Beregning 2024'!W111,Model!$K38)+IF(Model!$J39='Beregning 2024'!W111,Model!$K39)+IF(Model!$J40='Beregning 2024'!W111,Model!$K40)+IF(Model!$J41='Beregning 2024'!W111,Model!$K41) -> 0 | X111: =IF(Model!$J33='Beregning 2024'!X111,Model!$K33)+IF(Model!$J34='Beregning 2024'!X111,Model!$K34)+IF(Model!$J35='Beregning 2024'!X111,Model!$K35)+IF(Model!$J36='Beregning 2024'!X111,Model!$K36)+IF(Model!$J38='Beregning 2024'!X111,Model!$K38)+IF(Model!$J39='Beregning 2024'!X111,Model!$K39)+IF(Model!$J40='Beregning 2024'!X111,Model!$K40)+IF(Model!$J41='Beregning 2024'!X111,Model!$K41) -> 0 | Y111: =IF(Model!$J33='Beregning 2024'!Y111,Model!$K33)+IF(Model!$J34='Beregning 2024'!Y111,Model!$K34)+IF(Model!$J35='Beregning 2024'!Y111,Model!$K35)+IF(Model!$J36='Beregning 2024'!Y111,Model!$K36)+IF(Model!$J38='Beregning 2024'!Y111,Model!$K38)+IF(Model!$J39='Beregning 2024'!Y111,Model!$K39)+IF(Model!$J40='Beregning 2024'!Y111,Model!$K40)+IF(Model!$J41='Beregning 2024'!Y111,Model!$K41) -> 0 | Z111: =IF(Model!$J33='Beregning 2024'!Z111,Model!$K33)+IF(Model!$J34='Beregning 2024'!Z111,Model!$K34)+IF(Model!$J35='Beregning 2024'!Z111,Model!$K35)+IF(Model!$J36='Beregning 2024'!Z111,Model!$K36)+IF(Model!$J38='Beregning 2024'!Z111,Model!$K38)+IF(Model!$J39='Beregning 2024'!Z111,Model!$K39)+IF(Model!$J40='Beregning 2024'!Z111,Model!$K40)+IF(Model!$J41='Beregning 2024'!Z111,Model!$K41) -> 0 | AA111: =IF(Model!$J33='Beregning 2024'!AA111,Model!$K33)+IF(Model!$J34='Beregning 2024'!AA111,Model!$K34)+IF(Model!$J35='Beregning 2024'!AA111,Model!$K35)+IF(Model!$J36='Beregning 2024'!AA111,Model!$K36)+IF(Model!$J38='Beregning 2024'!AA111,Model!$K38)+IF(Model!$J39='Beregning 2024'!AA111,Model!$K39)+IF(Model!$J40='Beregning 2024'!AA111,Model!$K40)+IF(Model!$J41='Beregning 2024'!AA111,Model!$K41) -> 0
A112: Nedlagte plejeboliger | B112: Nedlagte plejeboliger | D112: =IF(Model!$J34='Beregning 2024'!C112,Model!$K34)+IF(Model!$J35='Beregning 2024'!C112,Model!$K35)+IF(Model!$J36='Beregning 2024'!C112,Model!$K36)+IF(Model!$J38='Beregning 2024'!C112,Model!$K38)+IF(Model!$J39='Beregning 2024'!C112,Model!$K39)+IF(Model!$J40='Beregning 2024'!C112,Model!$K40)+IF(Model!$J41='Beregning 2024'!C112,Model!$K41)+IF(Model!$J42='Beregning 2024'!C112,Model!$K42) -> 0 | E112: =IF(Model!$J34='Beregning 2024'!E112,Model!$K34)+IF(Model!$J35='Beregning 2024'!E112,Model!$K35)+IF(Model!$J36='Beregning 2024'!E112,Model!$K36)+IF(Model!$J38='Beregning 2024'!E112,Model!$K38)+IF(Model!$J39='Beregning 2024'!E112,Model!$K39)+IF(Model!$J40='Beregning 2024'!E112,Model!$K40)+IF(Model!$J41='Beregning 2024'!E112,Model!$K41)+IF(Model!$J42='Beregning 2024'!E112,Model!$K42) -> 0 | F112: =IF(Model!$J34='Beregning 2024'!F112,Model!$K34)+IF(Model!$J35='Beregning 2024'!F112,Model!$K35)+IF(Model!$J36='Beregning 2024'!F112,Model!$K36)+IF(Model!$J38='Beregning 2024'!F112,Model!$K38)+IF(Model!$J39='Beregning 2024'!F112,Model!$K39)+IF(Model!$J40='Beregning 2024'!F112,Model!$K40)+IF(Model!$J41='Beregning 2024'!F112,Model!$K41)+IF(Model!$J42='Beregning 2024'!F112,Model!$K42) -> 0 | G112: =IF(Model!$J34='Beregning 2024'!G112,Model!$K34)+IF(Model!$J35='Beregning 2024'!G112,Model!$K35)+IF(Model!$J36='Beregning 2024'!G112,Model!$K36)+IF(Model!$J38='Beregning 2024'!G112,Model!$K38)+IF(Model!$J39='Beregning 2024'!G112,Model!$K39)+IF(Model!$J40='Beregning 2024'!G112,Model!$K40)+IF(Model!$J41='Beregning 2024'!G112,Model!$K41)+IF(Model!$J42='Beregning 2024'!G112,Model!$K42) -> 0 | H112: =IF(Model!$J34='Beregning 2024'!H112,Model!$K34)+IF(Model!$J35='Beregning 2024'!H112,Model!$K35)+IF(Model!$J36='Beregning 2024'!H112,Model!$K36)+IF(Model!$J38='Beregning 2024'!H112,Model!$K38)+IF(Model!$J39='Beregning 2024'!H112,Model!$K39)+IF(Model!$J40='Beregning 2024'!H112,Model!$K40)+IF(Model!$J41='Beregning 2024'!H112,Model!$K41)+IF(Model!$J42='Beregning 2024'!H112,Model!$K42) -> 0 | I112: =IF(Model!$J34='Beregning 2024'!I112,Model!$K34)+IF(Model!$J35='Beregning 2024'!I112,Model!$K35)+IF(Model!$J36='Beregning 2024'!I112,Model!$K36)+IF(Model!$J38='Beregning 2024'!I112,Model!$K38)+IF(Model!$J39='Beregning 2024'!I112,Model!$K39)+IF(Model!$J40='Beregning 2024'!I112,Model!$K40)+IF(Model!$J41='Beregning 2024'!I112,Model!$K41)+IF(Model!$J42='Beregning 2024'!I112,Model!$K42) -> 0 | J112: =IF(Model!$J34='Beregning 2024'!J112,Model!$K34)+IF(Model!$J35='Beregning 2024'!J112,Model!$K35)+IF(Model!$J36='Beregning 2024'!J112,Model!$K36)+IF(Model!$J38='Beregning 2024'!J112,Model!$K38)+IF(Model!$J39='Beregning 2024'!J112,Model!$K39)+IF(Model!$J40='Beregning 2024'!J112,Model!$K40)+IF(Model!$J41='Beregning 2024'!J112,Model!$K41)+IF(Model!$J42='Beregning 2024'!J112,Model!$K42) -> 0 | K112: =IF(Model!$J34='Beregning 2024'!K112,Model!$K34)+IF(Model!$J35='Beregning 2024'!K112,Model!$K35)+IF(Model!$J36='Beregning 2024'!K112,Model!$K36)+IF(Model!$J38='Beregning 2024'!K112,Model!$K38)+IF(Model!$J39='Beregning 2024'!K112,Model!$K39)+IF(Model!$J40='Beregning 2024'!K112,Model!$K40)+IF(Model!$J41='Beregning 2024'!K112,Model!$K41)+IF(Model!$J42='Beregning 2024'!K112,Model!$K42) -> 0 | L112: =IF(Model!$J34='Beregning 2024'!L112,Model!$K34)+IF(Model!$J35='Beregning 2024'!L112,Model!$K35)+IF(Model!$J36='Beregning 2024'!L112,Model!$K36)+IF(Model!$J38='Beregning 2024'!L112,Model!$K38)+IF(Model!$J39='Beregning 2024'!L112,Model!$K39)+IF(Model!$J40='Beregning 2024'!L112,Model!$K40)+IF(Model!$J41='Beregning 2024'!L112,Model!$K41)+IF(Model!$J42='Beregning 2024'!L112,Model!$K42) -> 0 | M112: =IF(Model!$J34='Beregning 2024'!M112,Model!$K34)+IF(Model!$J35='Beregning 2024'!M112,Model!$K35)+IF(Model!$J36='Beregning 2024'!M112,Model!$K36)+IF(Model!$J38='Beregning 2024'!M112,Model!$K38)+IF(Model!$J39='Beregning 2024'!M112,Model!$K39)+IF(Model!$J40='Beregning 2024'!M112,Model!$K40)+IF(Model!$J41='Beregning 2024'!M112,Model!$K41)+IF(Model!$J42='Beregning 2024'!M112,Model!$K42) -> 0 | N112: =IF(Model!$J34='Beregning 2024'!N112,Model!$K34)+IF(Model!$J35='Beregning 2024'!N112,Model!$K35)+IF(Model!$J36='Beregning 2024'!N112,Model!$K36)+IF(Model!$J38='Beregning 2024'!N112,Model!$K38)+IF(Model!$J39='Beregning 2024'!N112,Model!$K39)+IF(Model!$J40='Beregning 2024'!N112,Model!$K40)+IF(Model!$J41='Beregning 2024'!N112,Model!$K41)+IF(Model!$J42='Beregning 2024'!N112,Model!$K42) -> 0 | O112: =IF(Model!$J34='Beregning 2024'!O112,Model!$K34)+IF(Model!$J35='Beregning 2024'!O112,Model!$K35)+IF(Model!$J36='Beregning 2024'!O112,Model!$K36)+IF(Model!$J38='Beregning 2024'!O112,Model!$K38)+IF(Model!$J39='Beregning 2024'!O112,Model!$K39)+IF(Model!$J40='Beregning 2024'!O112,Model!$K40)+IF(Model!$J41='Beregning 2024'!O112,Model!$K41)+IF(Model!$J42='Beregning 2024'!O112,Model!$K42) -> 0 | P112: =IF(Model!$J34='Beregning 2024'!P112,Model!$K34)+IF(Model!$J35='Beregning 2024'!P112,Model!$K35)+IF(Model!$J36='Beregning 2024'!P112,Model!$K36)+IF(Model!$J38='Beregning 2024'!P112,Model!$K38)+IF(Model!$J39='Beregning 2024'!P112,Model!$K39)+IF(Model!$J40='Beregning 2024'!P112,Model!$K40)+IF(Model!$J41='Beregning 2024'!P112,Model!$K41)+IF(Model!$J42='Beregning 2024'!P112,Model!$K42) -> 0 | Q112: =IF(Model!$J34='Beregning 2024'!Q112,Model!$K34)+IF(Model!$J35='Beregning 2024'!Q112,Model!$K35)+IF(Model!$J36='Beregning 2024'!Q112,Model!$K36)+IF(Model!$J38='Beregning 2024'!Q112,Model!$K38)+IF(Model!$J39='Beregning 2024'!Q112,Model!$K39)+IF(Model!$J40='Beregning 2024'!Q112,Model!$K40)+IF(Model!$J41='Beregning 2024'!Q112,Model!$K41)+IF(Model!$J42='Beregning 2024'!Q112,Model!$K42) -> 0 | R112: =IF(Model!$J34='Beregning 2024'!R112,Model!$K34)+IF(Model!$J35='Beregning 2024'!R112,Model!$K35)+IF(Model!$J36='Beregning 2024'!R112,Model!$K36)+IF(Model!$J38='Beregning 2024'!R112,Model!$K38)+IF(Model!$J39='Beregning 2024'!R112,Model!$K39)+IF(Model!$J40='Beregning 2024'!R112,Model!$K40)+IF(Model!$J41='Beregning 2024'!R112,Model!$K41)+IF(Model!$J42='Beregning 2024'!R112,Model!$K42) -> 0 | S112: =IF(Model!$J34='Beregning 2024'!S112,Model!$K34)+IF(Model!$J35='Beregning 2024'!S112,Model!$K35)+IF(Model!$J36='Beregning 2024'!S112,Model!$K36)+IF(Model!$J38='Beregning 2024'!S112,Model!$K38)+IF(Model!$J39='Beregning 2024'!S112,Model!$K39)+IF(Model!$J40='Beregning 2024'!S112,Model!$K40)+IF(Model!$J41='Beregning 2024'!S112,Model!$K41)+IF(Model!$J42='Beregning 2024'!S112,Model!$K42) -> 0 | T112: =IF(Model!$J34='Beregning 2024'!T112,Model!$K34)+IF(Model!$J35='Beregning 2024'!T112,Model!$K35)+IF(Model!$J36='Beregning 2024'!T112,Model!$K36)+IF(Model!$J38='Beregning 2024'!T112,Model!$K38)+IF(Model!$J39='Beregning 2024'!T112,Model!$K39)+IF(Model!$J40='Beregning 2024'!T112,Model!$K40)+IF(Model!$J41='Beregning 2024'!T112,Model!$K41)+IF(Model!$J42='Beregning 2024'!T112,Model!$K42) -> 0 | U112: =IF(Model!$J34='Beregning 2024'!U112,Model!$K34)+IF(Model!$J35='Beregning 2024'!U112,Model!$K35)+IF(Model!$J36='Beregning 2024'!U112,Model!$K36)+IF(Model!$J38='Beregning 2024'!U112,Model!$K38)+IF(Model!$J39='Beregning 2024'!U112,Model!$K39)+IF(Model!$J40='Beregning 2024'!U112,Model!$K40)+IF(Model!$J41='Beregning 2024'!U112,Model!$K41)+IF(Model!$J42='Beregning 2024'!U112,Model!$K42) -> 0 | V112: =IF(Model!$J34='Beregning 2024'!V112,Model!$K34)+IF(Model!$J35='Beregning 2024'!V112,Model!$K35)+IF(Model!$J36='Beregning 2024'!V112,Model!$K36)+IF(Model!$J38='Beregning 2024'!V112,Model!$K38)+IF(Model!$J39='Beregning 2024'!V112,Model!$K39)+IF(Model!$J40='Beregning 2024'!V112,Model!$K40)+IF(Model!$J41='Beregning 2024'!V112,Model!$K41)+IF(Model!$J42='Beregning 2024'!V112,Model!$K42) -> 0 | W112: =IF(Model!$J34='Beregning 2024'!W112,Model!$K34)+IF(Model!$J35='Beregning 2024'!W112,Model!$K35)+IF(Model!$J36='Beregning 2024'!W112,Model!$K36)+IF(Model!$J38='Beregning 2024'!W112,Model!$K38)+IF(Model!$J39='Beregning 2024'!W112,Model!$K39)+IF(Model!$J40='Beregning 2024'!W112,Model!$K40)+IF(Model!$J41='Beregning 2024'!W112,Model!$K41)+IF(Model!$J42='Beregning 2024'!W112,Model!$K42) -> 0 | X112: =IF(Model!$J34='Beregning 2024'!X112,Model!$K34)+IF(Model!$J35='Beregning 2024'!X112,Model!$K35)+IF(Model!$J36='Beregning 2024'!X112,Model!$K36)+IF(Model!$J38='Beregning 2024'!X112,Model!$K38)+IF(Model!$J39='Beregning 2024'!X112,Model!$K39)+IF(Model!$J40='Beregning 2024'!X112,Model!$K40)+IF(Model!$J41='Beregning 2024'!X112,Model!$K41)+IF(Model!$J42='Beregning 2024'!X112,Model!$K42) -> 0 | Y112: =IF(Model!$J34='Beregning 2024'!Y112,Model!$K34)+IF(Model!$J35='Beregning 2024'!Y112,Model!$K35)+IF(Model!$J36='Beregning 2024'!Y112,Model!$K36)+IF(Model!$J38='Beregning 2024'!Y112,Model!$K38)+IF(Model!$J39='Beregning 2024'!Y112,Model!$K39)+IF(Model!$J40='Beregning 2024'!Y112,Model!$K40)+IF(Model!$J41='Beregning 2024'!Y112,Model!$K41)+IF(Model!$J42='Beregning 2024'!Y112,Model!$K42) -> 0 | Z112: =IF(Model!$J34='Beregning 2024'!Z112,Model!$K34)+IF(Model!$J35='Beregning 2024'!Z112,Model!$K35)+IF(Model!$J36='Beregning 2024'!Z112,Model!$K36)+IF(Model!$J38='Beregning 2024'!Z112,Model!$K38)+IF(Model!$J39='Beregning 2024'!Z112,Model!$K39)+IF(Model!$J40='Beregning 2024'!Z112,Model!$K40)+IF(Model!$J41='Beregning 2024'!Z112,Model!$K41)+IF(Model!$J42='Beregning 2024'!Z112,Model!$K42) -> 0 | AA112: =IF(Model!$J34='Beregning 2024'!AA112,Model!$K34)+IF(Model!$J35='Beregning 2024'!AA112,Model!$K35)+IF(Model!$J36='Beregning 2024'!AA112,Model!$K36)+IF(Model!$J38='Beregning 2024'!AA112,Model!$K38)+IF(Model!$J39='Beregning 2024'!AA112,Model!$K39)+IF(Model!$J40='Beregning 2024'!AA112,Model!$K40)+IF(Model!$J41='Beregning 2024'!AA112,Model!$K41)+IF(Model!$J42='Beregning 2024'!AA112,Model!$K42) -> 0
A114: Tomgang md. | B114: Tomgang md. | D114: =Model!C43 -> 0 | E114: =IF(Model!$G$32>Model!$C$43,IF(ISNUMBER(Model!$G$32),MIN(D114-(Model!$C$43-Model!$G$32)/MAX(INT(Model!$G$33),1),Model!$G32),Model!$C43),IF(ISNUMBER(Model!$G$32),MAX(D114-(Model!$C$43-Model!$G$32)/MAX(INT(Model!$G$33),1),Model!$G32),Model!$C43)) -> 1 | F114: =IF(Model!$G$32>Model!$C$43,IF(ISNUMBER(Model!$G$32),MIN(E114-(Model!$C$43-Model!$G$32)/MAX(INT(Model!$G$33),1),Model!$G32),Model!$C43),IF(ISNUMBER(Model!$G$32),MAX(E114-(Model!$C$43-Model!$G$32)/MAX(INT(Model!$G$33),1),Model!$G32),Model!$C43)) -> 1 | G114: =IF(Model!$G$32>Model!$C$43,IF(ISNUMBER(Model!$G$32),MIN(F114-(Model!$C$43-Model!$G$32)/MAX(INT(Model!$G$33),1),Model!$G32),Model!$C43),IF(ISNUMBER(Model!$G$32),MAX(F114-(Model!$C$43-Model!$G$32)/MAX(INT(Model!$G$33),1),Model!$G32),Model!$C43)) -> 1 | H114: =IF(Model!$G$32>Model!$C$43,IF(ISNUMBER(Model!$G$32),MIN(G114-(Model!$C$43-Model!$G$32)/MAX(INT(Model!$G$33),1),Model!$G32),Model!$C43),IF(ISNUMBER(Model!$G$32),MAX(G114-(Model!$C$43-Model!$G$32)/MAX(INT(Model!$G$33),1),Model!$G32),Model!$C43)) -> 1 | I114: =IF(Model!$G$32>Model!$C$43,IF(ISNUMBER(Model!$G$32),MIN(H114-(Model!$C$43-Model!$G$32)/MAX(INT(Model!$G$33),1),Model!$G32),Model!$C43),IF(ISNUMBER(Model!$G$32),MAX(H114-(Model!$C$43-Model!$G$32)/MAX(INT(Model!$G$33),1),Model!$G32),Model!$C43)) -> 1 | J114: =IF(Model!$G$32>Model!$C$43,IF(ISNUMBER(Model!$G$32),MIN(I114-(Model!$C$43-Model!$G$32)/MAX(INT(Model!$G$33),1),Model!$G32),Model!$C43),IF(ISNUMBER(Model!$G$32),MAX(I114-(Model!$C$43-Model!$G$32)/MAX(INT(Model!$G$33),1),Model!$G32),Model!$C43)) -> 1 | K114: =IF(Model!$G$32>Model!$C$43,IF(ISNUMBER(Model!$G$32),MIN(J114-(Model!$C$43-Model!$G$32)/MAX(INT(Model!$G$33),1),Model!$G32),Model!$C43),IF(ISNUMBER(Model!$G$32),MAX(J114-(Model!$C$43-Model!$G$32)/MAX(INT(Model!$G$33),1),Model!$G32),Model!$C43)) -> 1 | L114: =IF(Model!$G$32>Model!$C$43,IF(ISNUMBER(Model!$G$32),MIN(K114-(Model!$C$43-Model!$G$32)/MAX(INT(Model!$G$33),1),Model!$G32),Model!$C43),IF(ISNUMBER(Model!$G$32),MAX(K114-(Model!$C$43-Model!$G$32)/MAX(INT(Model!$G$33),1),Model!$G32),Model!$C43)) -> 1 | M114: =IF(Model!$G$32>Model!$C$43,IF(ISNUMBER(Model!$G$32),MIN(L114-(Model!$C$43-Model!$G$32)/MAX(INT(Model!$G$33),1),Model!$G32),Model!$C43),IF(ISNUMBER(Model!$G$32),MAX(L114-(Model!$C$43-Model!$G$32)/MAX(INT(Model!$G$33),1),Model!$G32),Model!$C43)) -> 1 | N114: =IF(Model!$G$32>Model!$C$43,IF(ISNUMBER(Model!$G$32),MIN(M114-(Model!$C$43-Model!$G$32)/MAX(INT(Model!$G$33),1),Model!$G32),Model!$C43),IF(ISNUMBER(Model!$G$32),MAX(M114-(Model!$C$43-Model!$G$32)/MAX(INT(Model!$G$33),1),Model!$G32),Model!$C43)) -> 1 | O114: =IF(Model!$G$32>Model!$C$43,IF(ISNUMBER(Model!$G$32),MIN(N114-(Model!$C$43-Model!$G$32)/MAX(INT(Model!$G$33),1),Model!$G32),Model!$C43),IF(ISNUMBER(Model!$G$32),MAX(N114-(Model!$C$43-Model!$G$32)/MAX(INT(Model!$G$33),1),Model!$G32),Model!$C43)) -> 1 | P114: =IF(Model!$G$32>Model!$C$43,IF(ISNUMBER(Model!$G$32),MIN(O114-(Model!$C$43-Model!$G$32)/MAX(INT(Model!$G$33),1),Model!$G32),Model!$C43),IF(ISNUMBER(Model!$G$32),MAX(O114-(Model!$C$43-Model!$G$32)/MAX(INT(Model!$G$33),1),Model!$G32),Model!$C43)) -> 1 | Q114: =IF(Model!$G$32>Model!$C$43,IF(ISNUMBER(Model!$G$32),MIN(P114-(Model!$C$43-Model!$G$32)/MAX(INT(Model!$G$33),1),Model!$G32),Model!$C43),IF(ISNUMBER(Model!$G$32),MAX(P114-(Model!$C$43-Model!$G$32)/MAX(INT(Model!$G$33),1),Model!$G32),Model!$C43)) -> 1 | R114: =IF(Model!$G$32>Model!$C$43,IF(ISNUMBER(Model!$G$32),MIN(Q114-(Model!$C$43-Model!$G$32)/MAX(INT(Model!$G$33),1),Model!$G32),Model!$C43),IF(ISNUMBER(Model!$G$32),MAX(Q114-(Model!$C$43-Model!$G$32)/MAX(INT(Model!$G$33),1),Model!$G32),Model!$C43)) -> 1 | S114: =IF(Model!$G$32>Model!$C$43,IF(ISNUMBER(Model!$G$32),MIN(R114-(Model!$C$43-Model!$G$32)/MAX(INT(Model!$G$33),1),Model!$G32),Model!$C43),IF(ISNUMBER(Model!$G$32),MAX(R114-(Model!$C$43-Model!$G$32)/MAX(INT(Model!$G$33),1),Model!$G32),Model!$C43)) -> 1 | T114: =IF(Model!$G$32>Model!$C$43,IF(ISNUMBER(Model!$G$32),MIN(S114-(Model!$C$43-Model!$G$32)/MAX(INT(Model!$G$33),1),Model!$G32),Model!$C43),IF(ISNUMBER(Model!$G$32),MAX(S114-(Model!$C$43-Model!$G$32)/MAX(INT(Model!$G$33),1),Model!$G32),Model!$C43)) -> 1 | U114: =IF(Model!$G$32>Model!$C$43,IF(ISNUMBER(Model!$G$32),MIN(T114-(Model!$C$43-Model!$G$32)/MAX(INT(Model!$G$33),1),Model!$G32),Model!$C43),IF(ISNUMBER(Model!$G$32),MAX(T114-(Model!$C$43-Model!$G$32)/MAX(INT(Model!$G$33),1),Model!$G32),Model!$C43)) -> 1 | V114: =IF(Model!$G$32>Model!$C$43,IF(ISNUMBER(Model!$G$32),MIN(U114-(Model!$C$43-Model!$G$32)/MAX(INT(Model!$G$33),1),Model!$G32),Model!$C43),IF(ISNUMBER(Model!$G$32),MAX(U114-(Model!$C$43-Model!$G$32)/MAX(INT(Model!$G$33),1),Model!$G32),Model!$C43)) -> 1 | W114: =IF(Model!$G$32>Model!$C$43,IF(ISNUMBER(Model!$G$32),MIN(V114-(Model!$C$43-Model!$G$32)/MAX(INT(Model!$G$33),1),Model!$G32),Model!$C43),IF(ISNUMBER(Model!$G$32),MAX(V114-(Model!$C$43-Model!$G$32)/MAX(INT(Model!$G$33),1),Model!$G32),Model!$C43)) -> 1 | X114: =IF(Model!$G$32>Model!$C$43,IF(ISNUMBER(Model!$G$32),MIN(W114-(Model!$C$43-Model!$G$32)/MAX(INT(Model!$G$33),1),Model!$G32),Model!$C43),IF(ISNUMBER(Model!$G$32),MAX(W114-(Model!$C$43-Model!$G$32)/MAX(INT(Model!$G$33),1),Model!$G32),Model!$C43)) -> 1 | Y114: =IF(Model!$G$32>Model!$C$43,IF(ISNUMBER(Model!$G$32),MIN(X114-(Model!$C$43-Model!$G$32)/MAX(INT(Model!$G$33),1),Model!$G32),Model!$C43),IF(ISNUMBER(Model!$G$32),MAX(X114-(Model!$C$43-Model!$G$32)/MAX(INT(Model!$G$33),1),Model!$G32),Model!$C43)) -> 1 | Z114: =IF(Model!$G$32>Model!$C$43,IF(ISNUMBER(Model!$G$32),MIN(Y114-(Model!$C$43-Model!$G$32)/MAX(INT(Model!$G$33),1),Model!$G32),Model!$C43),IF(ISNUMBER(Model!$G$32),MAX(Y114-(Model!$C$43-Model!$G$32)/MAX(INT(Model!$G$33),1),Model!$G32),Model!$C43)) -> 1 | AA114: =IF(Model!$G$32>Model!$C$43,IF(ISNUMBER(Model!$G$32),MIN(Z114-(Model!$C$43-Model!$G$32)/MAX(INT(Model!$G$33),1),Model!$G32),Model!$C43),IF(ISNUMBER(Model!$G$32),MAX(Z114-(Model!$C$43-Model!$G$32)/MAX(INT(Model!$G$33),1),Model!$G32),Model!$C43)) -> 1
A115: Tomgang boliger | B115: Tomgang boliger | D115: =IF($D$103+SUM($D$110:D111)-SUM($D$112:D112)<D69,D114*($D$103+SUM($D$110:D111)-SUM($D$112:D112))/($C$19*12),0) -> 0 | E115: =IF($D$103+SUM($D$110:E111)-SUM($D$112:E112)<E69,E114*($D$103+SUM($D$110:E111)-SUM($D$112:E112))/($C$19*12),0) -> 0 | F115: =IF($D$103+SUM($D$110:F111)-SUM($D$112:F112)<F69,F114*($D$103+SUM($D$110:F111)-SUM($D$112:F112))/($C$19*12),0) -> 0 | G115: =IF($D$103+SUM($D$110:G111)-SUM($D$112:G112)<G69,G114*($D$103+SUM($D$110:G111)-SUM($D$112:G112))/($C$19*12),0) -> 0 | H115: =IF($D$103+SUM($D$110:H111)-SUM($D$112:H112)<H69,H114*($D$103+SUM($D$110:H111)-SUM($D$112:H112))/($C$19*12),0) -> 0 | I115: =IF($D$103+SUM($D$110:I111)-SUM($D$112:I112)<I69,I114*($D$103+SUM($D$110:I111)-SUM($D$112:I112))/($C$19*12),0) -> 0 | J115: =IF($D$103+SUM($D$110:J111)-SUM($D$112:J112)<J69,J114*($D$103+SUM($D$110:J111)-SUM($D$112:J112))/($C$19*12),0) -> 0 | K115: =IF($D$103+SUM($D$110:K111)-SUM($D$112:K112)<K69,K114*($D$103+SUM($D$110:K111)-SUM($D$112:K112))/($C$19*12),0) -> 0 | L115: =IF($D$103+SUM($D$110:L111)-SUM($D$112:L112)<L69,L114*($D$103+SUM($D$110:L111)-SUM($D$112:L112))/($C$19*12),0) -> 0 | M115: =IF($D$103+SUM($D$110:M111)-SUM($D$112:M112)<M69,M114*($D$103+SUM($D$110:M111)-SUM($D$112:M112))/($C$19*12),0) -> 19.16666667 | N115: =IF($D$103+SUM($D$110:N111)-SUM($D$112:N112)<N69,N114*($D$103+SUM($D$110:N111)-SUM($D$112:N112))/($C$19*12),0) -> 19.16666667 | O115: =IF($D$103+SUM($D$110:O111)-SUM($D$112:O112)<O69,O114*($D$103+SUM($D$110:O111)-SUM($D$112:O112))/($C$19*12),0) -> 19.16666667 | P115: =IF($D$103+SUM($D$110:P111)-SUM($D$112:P112)<P69,P114*($D$103+SUM($D$110:P111)-SUM($D$112:P112))/($C$19*12),0) -> 19.16666667 | Q115: =IF($D$103+SUM($D$110:Q111)-SUM($D$112:Q112)<Q69,Q114*($D$103+SUM($D$110:Q111)-SUM($D$112:Q112))/($C$19*12),0) -> 19.16666667 | R115: =IF($D$103+SUM($D$110:R111)-SUM($D$112:R112)<R69,R114*($D$103+SUM($D$110:R111)-SUM($D$112:R112))/($C$19*12),0) -> 19.16666667 | S115: =IF($D$103+SUM($D$110:S111)-SUM($D$112:S112)<S69,S114*($D$103+SUM($D$110:S111)-SUM($D$112:S112))/($C$19*12),0) -> 19.16666667 | T115: =IF($D$103+SUM($D$110:T111)-SUM($D$112:T112)<T69,T114*($D$103+SUM($D$110:T111)-SUM($D$112:T112))/($C$19*12),0) -> 19.16666667 | U115: =IF($D$103+SUM($D$110:U111)-SUM($D$112:U112)<U69,U114*($D$103+SUM($D$110:U111)-SUM($D$112:U112))/($C$19*12),0) -> 19.16666667 | V115: =IF($D$103+SUM($D$110:V111)-SUM($D$112:V112)<V69,V114*($D$103+SUM($D$110:V111)-SUM($D$112:V112))/($C$19*12),0) -> 19.16666667 | W115: =IF($D$103+SUM($D$110:W111)-SUM($D$112:W112)<W69,W114*($D$103+SUM($D$110:W111)-SUM($D$112:W112))/($C$19*12),0) -> 19.16666667 | X115: =IF($D$103+SUM($D$110:X111)-SUM($D$112:X112)<X69,X114*($D$103+SUM($D$110:X111)-SUM($D$112:X112))/($C$19*12),0) -> 19.16666667 | Y115: =IF($D$103+SUM($D$110:Y111)-SUM($D$112:Y112)<Y69,Y114*($D$103+SUM($D$110:Y111)-SUM($D$112:Y112))/($C$19*12),0) -> 19.16666667 | Z115: =IF($D$103+SUM($D$110:Z111)-SUM($D$112:Z112)<Z69,Z114*($D$103+SUM($D$110:Z111)-SUM($D$112:Z112))/($C$19*12),0) -> 19.16666667 | AA115: =IF($D$103+SUM($D$110:AA111)-SUM($D$112:AA112)<AA69,AA114*($D$103+SUM($D$110:AA111)-SUM($D$112:AA112))/($C$19*12),0) -> 19.16666667
D116: =MIN(D69,$D$103+SUM(D110:D112))/Model!$C$26*'Beregning 2023'!D114 -> 0 | E116: =MIN(E69,$D$103+SUM(E110:E112))/Model!$C$26*'Beregning 2023'!E114 -> 18.15099884 | F116: =MIN(F69,$D$103+SUM(F110:F112))/Model!$C$26*'Beregning 2023'!F114 -> 18.35148001 | G116: =MIN(G69,$D$103+SUM(G110:G112))/Model!$C$26*'Beregning 2023'!G114 -> 18.27430369 | H116: =MIN(H69,$D$103+SUM(H110:H112))/Model!$C$26*'Beregning 2023'!H114 -> 18.40366681 | I116: =MIN(I69,$D$103+SUM(I110:I112))/Model!$C$26*'Beregning 2023'!I114 -> 18.34852614 | J116: =MIN(J69,$D$103+SUM(J110:J112))/Model!$C$26*'Beregning 2023'!J114 -> 18.24590064 | K116: =MIN(K69,$D$103+SUM(K110:K112))/Model!$C$26*'Beregning 2023'!K114 -> 18.36384443 | L116: =MIN(L69,$D$103+SUM(L110:L112))/Model!$C$26*'Beregning 2023'!L114 -> 18.76675623 | M116: =MIN(M69,$D$103+SUM(M110:M112))/Model!$C$26*'Beregning 2023'!M114 -> 19.16666667 | N116: =MIN(N69,$D$103+SUM(N110:N112))/Model!$C$26*'Beregning 2023'!N114 -> 19.16666667 | O116: =MIN(O69,$D$103+SUM(O110:O112))/Model!$C$26*'Beregning 2023'!O114 -> 19.16666667 | P116: =MIN(P69,$D$103+SUM(P110:P112))/Model!$C$26*'Beregning 2023'!P114 -> 19.16666667 | Q116: =MIN(Q69,$D$103+SUM(Q110:Q112))/Model!$C$26*'Beregning 2023'!Q114 -> 19.16666667 | R116: =MIN(R69,$D$103+SUM(R110:R112))/Model!$C$26*'Beregning 2023'!R114 -> 19.16666667 | S116: =MIN(S69,$D$103+SUM(S110:S112))/Model!$C$26*'Beregning 2023'!S114 -> 19.16666667 | T116: =MIN(T69,$D$103+SUM(T110:T112))/Model!$C$26*'Beregning 2023'!T114 -> 19.16666667 | U116: =MIN(U69,$D$103+SUM(U110:U112))/Model!$C$26*'Beregning 2023'!U114 -> 19.16666667 | V116: =MIN(V69,$D$103+SUM(V110:V112))/Model!$C$26*'Beregning 2023'!V114 -> 19.16666667 | W116: =MIN(W69,$D$103+SUM(W110:W112))/Model!$C$26*'Beregning 2023'!W114 -> 19.16666667 | X116: =MIN(X69,$D$103+SUM(X110:X112))/Model!$C$26*'Beregning 2023'!X114 -> 19.16666667 | Y116: =MIN(Y69,$D$103+SUM(Y110:Y112))/Model!$C$26*'Beregning 2023'!Y114 -> 19.16666667 | Z116: =MIN(Z69,$D$103+SUM(Z110:Z112))/Model!$C$26*'Beregning 2023'!Z114 -> 19.16666667 | AA116: =MIN(AA69,$D$103+SUM(AA110:AA112))/Model!$C$26*'Beregning 2023'!AA114 -> 19.16666667

Sheet Analyse behovsgrad (hidden)
A2: Scenarier:
A3: Ingen udvikling i behovsgrad
A4: Tilpasning til aktuelt landsgennemsnit for indskrevne (ekskl. ventelister)
A5: Gennemsnitlig ændring i beboere 2019-2023, hele landet
A7: Valgt scenarie:
A8: 2
A10: Over antal år:
A11: =Model!M10 -> 8
A13: Under 70 år | B13: =IF($A$8=1,Model!E10,IF($A$8=2,G232,IF($A$8=3,D175,""))) -> 0.07271208385
A14: 70-74 år | B14: =IF($A$8=1,Model!E11,IF($A$8=2,G233,IF($A$8=3,D176,""))) -> 1.092901216
A15: 75-79 år | B15: =IF($A$8=1,Model!E12,IF($A$8=2,G234,IF($A$8=3,D177,""))) -> 2.181341381
A16: 80-84 år | B16: =IF($A$8=1,Model!E13,IF($A$8=2,G235,IF($A$8=3,D178,""))) -> 4.409037761
A17: 85-89 år | B17: =IF($A$8=1,Model!E14,IF($A$8=2,G236,IF($A$8=3,D179,""))) -> 9.67392133
A18: 90-95 år | B18: =IF($A$8=1,Model!E15,IF($A$8=2,G237,IF($A$8=3,D180,""))) -> 19.54602543
A19: 95+ år | B19: =IF($A$8=1,Model!E16,IF($A$8=2,G238,IF($A$8=3,D181,""))) -> 24.60740883
B24: Folketal pr. 1. januar efter område, alder og tid, FOLK1
C26: 2013K1 | D26: 2014K1 | E26: 2015K1 | F26: 2016K1 | G26: 2017K1 | H26: 2018K1 | I26: 2019K1 | J26: 2020K1 | K26: 2021K1 | L26: 2022K1 | M26: 2023K1 | N26: 2024K1
A27: Hele landet | B27: 0 år | C27: 58246 | D27: 56161 | E27: 57130 | F27: 58605 | G27: 62025 | H27: 61731 | I27: 61733 | J27: 61466 | K27: 61191 | L27: 63602 | M27: 58740 | N27: 57727
B28: 1 år | C28: 59718 | D28: 58721 | E28: 56748 | F28: 57894 | G28: 59253 | H28: 62508 | I28: 62046 | J28: 61916 | K28: 61663 | L28: 61514 | M28: 64341 | N28: 59115
B29: 2 år | C29: 64422 | D29: 60046 | E29: 59134 | F29: 57484 | G29: 58520 | H29: 59523 | I29: 62675 | J29: 62148 | K29: 61967 | L29: 61864 | M29: 62209 | N29: 64654
B30: 3 år | C30: 64006 | D30: 64638 | E30: 60389 | F30: 59803 | G30: 57977 | H30: 58831 | I30: 59608 | J30: 62697 | K30: 62185 | L30: 62135 | M30: 62571 | N30: 62446
B31: 4 år | C31: 66564 | D31: 64216 | E31: 64967 | F31: 60962 | G31: 60288 | H31: 58205 | I31: 58901 | J31: 59661 | K31: 62844 | L31: 62297 | M31: 62815 | N31: 62696
B32: 5 år | C32: 65643 | D32: 66742 | E32: 64546 | F32: 65616 | G32: 61484 | H32: 60478 | I32: 58352 | J32: 58993 | K32: 59740 | L32: 62893 | M32: 63008 | N32: 62960
B33: 6 år | C33: 66634 | D33: 65822 | E33: 67083 | F33: 65147 | G33: 66047 | H33: 61705 | I33: 60640 | J33: 58415 | K33: 59064 | L33: 59839 | M33: 63652 | N33: 63172
B34: 7 år | C34: 65676 | D34: 66762 | E34: 66122 | F34: 67681 | G34: 65636 | H34: 66236 | I34: 61798 | J34: 60745 | K34: 58551 | L34: 59165 | M34: 60731 | N34: 63802
B35: 8 år | C35: 65801 | D35: 65861 | E35: 67053 | F35: 66672 | G35: 68121 | H35: 65871 | I35: 66386 | J35: 61926 | K35: 60898 | L35: 58683 | M35: 60044 | N35: 60896
B36: 9 år | C36: 65766 | D36: 65959 | E36: 66143 | F36: 67509 | G36: 67155 | H36: 68391 | I36: 66077 | J36: 66522 | K36: 62107 | L36: 61034 | M36: 59474 | N36: 60279
B37: 10 år | C37: 65167 | D37: 65909 | E37: 66299 | F37: 66619 | G37: 67907 | H37: 67353 | I37: 68541 | J37: 66254 | K37: 66696 | L37: 62282 | M37: 61867 | N37: 59666
B38: 11 år | C38: 66273 | D38: 65311 | E38: 66211 | F38: 66703 | G38: 66987 | H38: 68155 | I38: 67526 | J38: 68649 | K38: 66428 | L38: 66845 | M38: 63114 | N38: 62097
B39: 12 år | C39: 68228 | D39: 66422 | E39: 65528 | F39: 66593 | G39: 67022 | H39: 67169 | I39: 68375 | J39: 67673 | K39: 68834 | L39: 66597 | M39: 67655 | N39: 63296
B40: 13 år | C40: 67549 | D40: 68371 | E40: 66661 | F40: 65887 | G40: 66928 | H40: 67267 | I40: 67345 | J40: 68523 | K40: 67896 | L40: 68985 | M40: 67449 | N40: 67793
B41: 14 år | C41: 67903 | D41: 67729 | E41: 68633 | F41: 67099 | G41: 66218 | H41: 67147 | I41: 67467 | J41: 67530 | K41: 68720 | L41: 68096 | M41: 69788 | N41: 67669
B42: 15 år | C42: 69593 | D42: 68174 | E42: 68119 | F42: 69127 | G42: 67555 | H42: 66614 | I42: 67512 | J42: 67768 | K42: 67877 | L42: 69009 | M42: 69038 | N42: 70148
B43: 16 år | C43: 70278 | D43: 70073 | E43: 68822 | F43: 68772 | G43: 69839 | H43: 68201 | I43: 67142 | J43: 67948 | K43: 68246 | L43: 68420 | M43: 70187 | N43: 69688
B44: 17 år | C44: 72834 | D44: 70507 | E44: 70306 | F44: 69287 | G44: 69260 | H44: 70115 | I44: 68260 | J44: 67304 | K44: 68088 | L44: 68469 | M44: 69155 | N44: 70411
B45: 18 år | C45: 73491 | D45: 73255 | E45: 70973 | F45: 71131 | G45: 70008 | H45: 69781 | I45: 70566 | J45: 68639 | K45: 67674 | L45: 68674 | M45: 69597 | N45: 69917
B46: 19 år | C46: 72028 | D46: 74737 | E46: 74684 | F46: 72647 | G46: 72688 | H46: 71269 | I46: 70935 | J46: 71623 | K46: 69581 | L46: 69151 | M46: 69946 | N46: 70749
B47: 20 år | C47: 73946 | D47: 73470 | E47: 76210 | F47: 76989 | G47: 74572 | H47: 74585 | I47: 72820 | J47: 72131 | K47: 72666 | L47: 71267 | M47: 70877 | N47: 71646
B48: 21 år | C48: 72131 | D48: 75528 | E48: 74883 | F48: 78470 | G48: 78567 | H48: 76294 | I48: 75806 | J48: 73901 | K48: 72840 | L48: 74538 | M48: 73294 | N48: 72894
B49: 22 år | C49: 72597 | D49: 73075 | E49: 76460 | F49: 76602 | G49: 79900 | H49: 79720 | I49: 77306 | J49: 76462 | K49: 74517 | L49: 74686 | M49: 76532 | N49: 74848
B50: 23 år | C50: 71337 | D50: 73849 | E50: 74419 | F50: 78420 | G50: 78399 | H50: 81298 | I50: 80841 | J50: 78029 | K50: 77321 | L50: 76345 | M50: 76634 | N50: 78278
B51: 24 år | C51: 69614 | D51: 72352 | E51: 75068 | F51: 76268 | G51: 79884 | H51: 79675 | I51: 82217 | J51: 81368 | K51: 78560 | L51: 78611 | M51: 78041 | N51: 78012
B52: 25 år | C52: 67004 | D52: 70466 | E52: 73224 | F52: 76637 | G52: 77491 | H52: 80773 | I52: 80203 | J52: 82438 | K52: 81455 | L52: 79475 | M52: 80139 | N52: 78857
B53: 26 år | C53: 66454 | D53: 67731 | E53: 71192 | F53: 74593 | G53: 77537 | H53: 78085 | I53: 81198 | J53: 80189 | K53: 82285 | L53: 82044 | M53: 80697 | N53: 80933
B54: 27 år | C54: 64870 | D54: 67040 | E54: 68448 | F54: 72478 | G54: 75429 | H54: 78238 | I54: 78497 | J54: 81165 | K54: 79907 | L54: 82795 | M54: 83251 | N54: 81469
B55: 28 år | C55: 62604 | D55: 65403 | E55: 67569 | F55: 69675 | G55: 73334 | H55: 75949 | I55: 78625 | J55: 78497 | K55: 80915 | L55: 80372 | M55: 83972 | N55: 83924
B56: 29 år | C56: 61290 | D56: 63067 | E56: 65925 | F56: 68600 | G56: 70326 | H56: 73732 | I56: 76366 | J56: 78521 | K56: 78274 | L56: 81389 | M56: 81494 | N56: 84532
B57: 30 år | C57: 62653 | D57: 61688 | E57: 63633 | F57: 66944 | G57: 69318 | H57: 70747 | I57: 73938 | J57: 76209 | K57: 78313 | L57: 78631 | M57: 82549 | N57: 81944
B58: 31 år | C58: 62371 | D58: 63077 | E58: 62306 | F58: 64561 | G58: 67511 | H58: 69599 | I58: 70861 | J58: 73803 | K58: 76025 | L58: 78620 | M58: 79888 | N58: 83082
B59: 32 år | C59: 66222 | D59: 62799 | E59: 63600 | F59: 63164 | G59: 65137 | H59: 67923 | I59: 69787 | J59: 70680 | K59: 73727 | L59: 76356 | M59: 79817 | N59: 80344
B60: 33 år | C60: 67399 | D60: 66506 | E60: 63364 | F60: 64409 | G60: 63691 | H60: 65377 | I60: 68128 | J60: 69626 | K60: 70658 | L60: 74222 | M60: 77669 | N60: 80361
B61: 34 år | C61: 69418 | D61: 67820 | E61: 66966 | F61: 64090 | G61: 64889 | H61: 64011 | I61: 65560 | J61: 68028 | K61: 69744 | L61: 71125 | M61: 75411 | N61: 78151
B62: 35 år | C62: 69096 | D62: 69729 | E62: 68267 | F62: 67715 | G62: 64543 | H62: 65269 | I62: 64248 | J62: 65478 | K62: 68085 | L62: 70235 | M62: 72267 | N62: 75891
B63: 36 år | C63: 71821 | D63: 69352 | E63: 70092 | F63: 68896 | G63: 68146 | H63: 64842 | I63: 65526 | J63: 64089 | K63: 65547 | L63: 68401 | M63: 71443 | N63: 72765
B64: 37 år | C64: 77798 | D64: 72065 | E64: 69770 | F64: 70636 | G64: 69259 | H64: 68297 | I64: 64925 | J64: 65452 | K64: 64162 | L64: 65943 | M64: 69516 | N64: 71842
B65: 38 år | C65: 76621 | D65: 77999 | E65: 72430 | F65: 70262 | G65: 70983 | H65: 69411 | I65: 68520 | J65: 64948 | K65: 65456 | L65: 64445 | M65: 66997 | N65: 69935
B66: 39 år | C66: 76635 | D66: 76790 | E66: 78306 | F66: 72916 | G66: 70492 | H66: 71189 | I66: 69668 | J66: 68495 | K66: 64962 | L66: 65792 | M66: 65503 | N66: 67479
B67: 40 år | C67: 79921 | D67: 76783 | E67: 77079 | F67: 78713 | G67: 73156 | H67: 70580 | I67: 71301 | J67: 69580 | K67: 68557 | L67: 65292 | M67: 66728 | N67: 65871
B68: 41 år | C68: 79047 | D68: 79984 | E68: 76944 | F68: 77450 | G68: 78923 | H68: 73322 | I68: 70752 | J68: 71301 | K68: 69601 | L68: 68851 | M68: 66154 | N68: 67082
B69: 42 år | C69: 75865 | D69: 79121 | E69: 80293 | F69: 77236 | G69: 77682 | H69: 79079 | I69: 73420 | J69: 70755 | K69: 71377 | L69: 69819 | M69: 69778 | N69: 66455
B70: 43 år | C70: 75538 | D70: 75905 | E70: 79273 | F70: 80591 | G70: 77344 | H70: 77816 | I70: 79183 | J70: 73376 | K70: 70813 | L70: 71567 | M70: 70594 | N70: 70031
B71: 44 år | C71: 78172 | D71: 75537 | E71: 76015 | F71: 79530 | G71: 80766 | H71: 77458 | I71: 77909 | J71: 79147 | K71: 73472 | L71: 71016 | M71: 72259 | N71: 70875
B72: 45 år | C72: 83608 | D72: 78207 | E72: 75617 | F72: 76230 | G72: 79623 | H72: 80860 | I72: 77501 | J72: 77918 | K72: 79216 | L72: 73676 | M72: 71621 | N72: 72435
B73: 46 år | C73: 89637 | D73: 83563 | E73: 78320 | F73: 75768 | G73: 76335 | H73: 79664 | I73: 80871 | J73: 77451 | K73: 77980 | L73: 79385 | M73: 74191 | N73: 71840
B74: 47 år | C74: 86726 | D74: 89566 | E74: 83592 | F74: 78457 | G74: 75795 | H74: 76329 | I74: 79687 | J74: 80790 | K74: 77444 | L74: 78123 | M74: 79816 | N74: 74361
B75: 48 år | C75: 84632 | D75: 86609 | E75: 89520 | F75: 83615 | G75: 78492 | H75: 75795 | I75: 76259 | J75: 79589 | K75: 80822 | L75: 77614 | M75: 78588 | N75: 79928
B76: 49 år | C76: 82748 | D76: 84480 | E76: 86555 | F76: 89569 | G76: 83596 | H76: 78441 | I76: 75765 | J76: 76141 | K76: 79542 | L76: 80908 | M76: 77957 | N76: 78669
B77: 50 år | C77: 78091 | D77: 82579 | E77: 84374 | F77: 86524 | G77: 89501 | H77: 83536 | I77: 78405 | J77: 75628 | K77: 76109 | L77: 79628 | M77: 81268 | N77: 77940
B78: 51 år | C78: 75819 | D78: 77902 | E78: 82413 | F78: 84268 | G78: 86422 | H78: 89348 | I78: 83435 | J78: 78262 | K78: 75552 | L78: 76108 | M78: 79775 | N78: 81246
B79: 52 år | C79: 75605 | D79: 75621 | E79: 77725 | F79: 82244 | G79: 84118 | H79: 86281 | I79: 89142 | J79: 83275 | K79: 78124 | L79: 75566 | M79: 76393 | N79: 79820
B80: 53 år | C80: 72384 | D80: 75360 | E80: 75418 | F80: 77537 | G80: 82117 | H80: 83915 | I80: 86087 | J80: 88906 | K80: 83153 | L80: 78092 | M80: 75691 | N80: 76326
B81: 54 år | C81: 72471 | D81: 72034 | E81: 75167 | F81: 75201 | G81: 77335 | H81: 81931 | I81: 83712 | J81: 85835 | K81: 88708 | L81: 83116 | M81: 78243 | N81: 75599
B82: 55 år | C82: 71700 | D82: 72234 | E82: 71738 | F82: 74921 | G82: 74929 | H82: 77080 | I82: 81630 | J82: 83408 | K82: 85600 | L82: 88557 | M82: 83221 | N82: 78103
B83: 56 år | C83: 71965 | D83: 71362 | E83: 71921 | F83: 71502 | G83: 74632 | H83: 74616 | I83: 76815 | J83: 81314 | K83: 83160 | L83: 85386 | M83: 88538 | N83: 82998
B84: 57 år | C84: 70706 | D84: 71558 | E84: 71035 | F84: 71602 | G84: 71143 | H84: 74291 | I84: 74277 | J84: 76439 | K84: 81013 | L84: 82937 | M84: 85332 | N84: 88264
B85: 58 år | C85: 69060 | D85: 70307 | E85: 71167 | F85: 70664 | G85: 71258 | H85: 70787 | I85: 73868 | J85: 73951 | K85: 76105 | L85: 80700 | M85: 82895 | N85: 85031
B86: 59 år | C86: 69950 | D86: 68585 | E86: 69920 | F86: 70785 | G86: 70248 | H86: 70839 | I86: 70404 | J86: 73426 | K86: 73642 | L86: 75759 | M86: 80573 | N86: 82462
B87: 60 år | C87: 68260 | D87: 69398 | E87: 68151 | F87: 69455 | G87: 70326 | H87: 69810 | I87: 70375 | J87: 69935 | K87: 72965 | L87: 73227 | M87: 75695 | N87: 80135
B88: 61 år | C88: 66782 | D88: 67697 | E88: 68833 | F88: 67597 | G88: 68926 | H88: 69833 | I88: 69363 | J88: 69869 | K88: 69498 | L88: 72500 | M88: 73078 | N88: 75345
B89: 62 år | C89: 68413 | D89: 66238 | E89: 67151 | F89: 68264 | G89: 67067 | H89: 68387 | I89: 69315 | J89: 68816 | K89: 69353 | L89: 69063 | M89: 72288 | N89: 72605
B90: 63 år | C90: 67546 | D90: 67784 | E90: 65587 | F90: 66543 | G90: 67677 | H90: 66507 | I90: 67737 | J90: 68692 | K90: 68219 | L90: 68822 | M90: 68779 | N90: 71784
B91: 64 år | C91: 70480 | D91: 66865 | E91: 67095 | F91: 65000 | G91: 65860 | H91: 67058 | I91: 65880 | J91: 67059 | K91: 68079 | L91: 67646 | M91: 68498 | N91: 68222
B92: 65 år | C92: 74300 | D92: 69801 | E92: 66180 | F92: 66392 | G92: 64274 | H92: 65188 | I92: 66404 | J92: 65209 | K92: 66442 | L92: 67399 | M92: 67219 | N92: 67926
B93: 66 år | C93: 75896 | D93: 73434 | E93: 69005 | F93: 65395 | G93: 65615 | H93: 63571 | I93: 64405 | J93: 65611 | K93: 64490 | L93: 65700 | M93: 66896 | N93: 66552
B94: 67 år | C94: 72355 | D94: 74907 | E94: 72556 | F94: 68177 | G94: 64559 | H94: 64841 | I94: 62766 | J94: 63587 | K94: 64797 | L94: 63765 | M94: 65058 | N94: 66134
B95: 68 år | C95: 67844 | D95: 71400 | E95: 73822 | F95: 71636 | G95: 67240 | H95: 63720 | I95: 63940 | J95: 61861 | K95: 62791 | L95: 63954 | M95: 63020 | N95: 64275
B96: 69 år | C96: 61640 | D96: 66770 | E96: 70317 | F96: 72748 | G96: 70608 | H96: 66308 | I96: 62744 | J96: 63007 | K96: 60949 | L96: 61874 | M96: 63159 | N96: 62127
B97: 70 år | C97: 57084 | D97: 60551 | E97: 65645 | F97: 69189 | G97: 71639 | H97: 69467 | I97: 65273 | J97: 61805 | K97: 61963 | L97: 59996 | M97: 61047 | N97: 62196
B98: 71 år | C98: 49923 | D98: 56023 | E98: 59414 | F98: 64462 | G98: 67932 | H98: 70445 | I98: 68244 | J98: 64190 | K98: 60762 | L98: 60925 | M98: 58985 | N98: 59980
B99: 72 år | C99: 47730 | D99: 48954 | E99: 54998 | F99: 58270 | G99: 63158 | H99: 66625 | I99: 69167 | J99: 67036 | K99: 63024 | L99: 59626 | M99: 59875 | N99: 57866
B100: 73 år | C100: 44338 | D100: 46611 | E100: 47876 | F100: 53758 | G100: 57059 | H100: 61802 | I100: 65221 | J100: 67743 | K100: 65776 | L100: 61729 | M100: 58489 | N100: 58703
B101: 74 år | C101: 42919 | D101: 43228 | E101: 45513 | F101: 46764 | G101: 52500 | H101: 55754 | I101: 60360 | J101: 63780 | K101: 66246 | L101: 64250 | M101: 60398 | N101: 57193
B102: 75 år | C102: 40170 | D102: 41726 | E102: 42093 | F102: 44315 | G102: 45541 | H102: 51165 | I102: 54278 | J102: 58778 | K102: 62193 | L102: 64618 | M102: 62676 | N102: 58937
B103: 76 år | C103: 37319 | D103: 38953 | E103: 40434 | F103: 40935 | G103: 43056 | H103: 44244 | I103: 49698 | J103: 52778 | K103: 57095 | L103: 60392 | M103: 62839 | N103: 60940
B104: 77 år | C104: 34311 | D104: 36015 | E104: 37706 | F104: 39125 | G104: 39650 | H104: 41718 | I104: 42819 | J104: 48254 | K104: 51146 | L104: 55334 | M104: 58531 | N104: 60903
B105: 78 år | C105: 31991 | D105: 32921 | E105: 34612 | F105: 36344 | G105: 37712 | H105: 38303 | I105: 40197 | J105: 41368 | K105: 46603 | L105: 49296 | M105: 53377 | N105: 56528
B106: 79 år | C106: 29298 | D106: 30549 | E106: 31549 | F106: 33154 | G106: 34908 | H106: 36218 | I106: 36801 | J106: 38658 | K106: 39889 | L106: 44870 | M106: 47428 | N106: 51320
B107: 80 år | C107: 27301 | D107: 27796 | E107: 29131 | F107: 30067 | G107: 31627 | H107: 33410 | I107: 34621 | J107: 35232 | K107: 37008 | L107: 38186 | M107: 42875 | N107: 45359
B108: 81 år | C108: 25324 | D108: 25738 | E108: 26327 | F108: 27539 | G108: 28520 | H108: 30040 | I108: 31702 | J108: 32993 | K108: 33551 | L108: 35206 | M108: 36334 | N108: 40829
B109: 82 år | C109: 23525 | D109: 23700 | E109: 24214 | F109: 24737 | G109: 25960 | H109: 26815 | I109: 28321 | J109: 29985 | K109: 31267 | L109: 31758 | M109: 33257 | N109: 34366
B110: 83 år | C110: 21673 | D110: 21816 | E110: 22111 | F110: 22606 | G110: 23077 | H110: 24224 | I110: 24980 | J110: 26583 | K110: 28176 | L110: 29384 | M110: 29789 | N110: 31231
B111: 84 år | C111: 20347 | D111: 19976 | E111: 20147 | F111: 20420 | G111: 20943 | H111: 21437 | I111: 22464 | J111: 23170 | K111: 24708 | L111: 26305 | M111: 27313 | N111: 27817
B112: 85 år | C112: 18030 | D112: 18532 | E112: 18401 | F112: 18487 | G112: 18751 | H112: 19192 | I112: 19696 | J112: 20704 | K112: 21349 | L112: 22686 | M112: 24212 | N112: 25287
B113: 86 år | C113: 16691 | D113: 16341 | E113: 16846 | F113: 16674 | G113: 16829 | H113: 17027 | I113: 17415 | J113: 17963 | K113: 18866 | L113: 19348 | M113: 20657 | N113: 22098
B114: 87 år | C114: 14804 | D114: 15038 | E114: 14724 | F114: 15126 | G114: 14918 | H114: 15043 | I114: 15166 | J114: 15647 | K114: 16096 | L114: 16870 | M114: 17354 | N114: 18644
B115: 88 år | C115: 13140 | D115: 13043 | E115: 13313 | F115: 13005 | G115: 13338 | H115: 13159 | I115: 13259 | J115: 13431 | K115: 13885 | L115: 14232 | M115: 14914 | N115: 15402
B116: 89 år | C116: 11216 | D116: 11386 | E116: 11422 | F116: 11633 | G116: 11382 | H116: 11707 | I116: 11379 | J116: 11590 | K116: 11742 | L116: 12048 | M116: 12268 | N116: 13014
B117: 90 år | C117: 9051 | D117: 9528 | E117: 9740 | F117: 9810 | G117: 9981 | H117: 9763 | I117: 9939 | J117: 9717 | K117: 9971 | L117: 10048 | M117: 10172 | N117: 10502
B118: 91 år | C118: 8130 | D118: 7614 | E118: 8061 | F118: 8172 | G118: 8262 | H118: 8401 | I118: 8117 | J118: 8368 | K118: 8144 | L118: 8352 | M118: 8337 | N118: 8568
B119: 92 år | C119: 6740 | D119: 6650 | E119: 6248 | F119: 6658 | G119: 6791 | H119: 6773 | I119: 6882 | J119: 6701 | K119: 6919 | L119: 6699 | M119: 6791 | N119: 6802
B120: 93 år | C120: 4552 | D120: 5430 | E120: 5422 | F120: 4914 | G120: 5400 | H120: 5471 | I120: 5446 | J120: 5605 | K120: 5392 | L120: 5573 | M120: 5371 | N120: 5408
B121: 94 år | C121: 3596 | D121: 3572 | E121: 4245 | F121: 4236 | G121: 3816 | H121: 4183 | I121: 4277 | J121: 4323 | K121: 4405 | L121: 4123 | M121: 4305 | N121: 4154
B122: 95 år | C122: 2616 | D122: 2739 | E122: 2824 | F122: 3268 | G122: 3273 | H122: 2931 | I122: 3159 | J122: 3265 | K122: 3309 | L122: 3303 | M122: 3103 | N122: 3262
B123: 96 år | C123: 2001 | D123: 1939 | E123: 2052 | F123: 2092 | G123: 2446 | H123: 2425 | I123: 2165 | J123: 2322 | K123: 2480 | L123: 2432 | M123: 2383 | N123: 2281
B124: 97 år | C124: 1354 | D124: 1486 | E124: 1418 | F124: 1504 | G124: 1531 | H124: 1761 | I124: 1708 | J124: 1578 | K124: 1730 | L124: 1792 | M124: 1720 | N124: 1690
B125: 98 år | C125: 982 | D125: 932 | E125: 1083 | F125: 1003 | G125: 1062 | H125: 1117 | I125: 1195 | J125: 1193 | K125: 1101 | L125: 1203 | M125: 1235 | N125: 1146
B126: 99 år | C126: 601 | D126: 639 | E126: 658 | F126: 749 | G126: 671 | H126: 722 | I126: 752 | J126: 822 | K126: 806 | L126: 720 | M126: 794 | N126: 836
B127: 100 år | C127: 462 | D127: 403 | E127: 416 | F127: 425 | G127: 505 | H127: 432 | I127: 458 | J127: 490 | K127: 531 | L127: 528 | M127: 446 | N127: 507
B128: 101 år | C128: 245 | D128: 279 | E128: 248 | F128: 258 | G128: 284 | H128: 307 | I128: 257 | J128: 290 | K128: 298 | L128: 330 | M128: 313 | N128: 288
B129: 102 år | C129: 133 | D129: 150 | E129: 180 | F129: 162 | G129: 154 | H129: 158 | I129: 184 | J129: 134 | K129: 173 | L129: 167 | M129: 196 | N129: 189
B130: 103 år | C130: 79 | D130: 76 | E130: 87 | F130: 111 | G130: 88 | H130: 88 | I130: 91 | J130: 108 | K130: 81 | L130: 106 | M130: 98 | N130: 99
B131: 104 år | C131: 55 | D131: 41 | E131: 49 | F131: 52 | G131: 60 | H131: 53 | I131: 51 | J131: 54 | K131: 64 | L131: 37 | M131: 50 | N131: 46
B132: 105 år | C132: 12 | D132: 33 | E132: 21 | F132: 22 | G132: 29 | H132: 37 | I132: 30 | J132: 30 | K132: 27 | L132: 31 | M132: 19 | N132: 25
B133: 106 år | C133: 14 | D133: 3 | E133: 14 | F133: 15 | G133: 14 | H133: 5 | I133: 21 | J133: 18 | K133: 14 | L133: 13 | M133: 14 | N133: 10
B134: 107 år | C134: 4 | D134: 7 | E134: 1 | F134: 9 | G134: 5 | H134: 9 | I134: 2 | J134: 8 | K134: 8 | L134: 5 | M134: 6 | N134: 7
B135: 108 år | C135: 3 | D135: 2 | E135: 4 | F135: 0 | G135: 3 | H135: 2 | I135: 5 | J135: 0 | K135: 4 | L135: 1 | M135: 4 | N135: 4
B136: 109 år | C136: 2 | D136: 1 | E136: 1 | F136: 3 | G136: 0 | H136: 2 | I136: 2 | J136: 1 | K136: 0 | L136: 1 | M136: 1 | N136: 2
B137: 110 år | C137: 0 | D137: 1 | E137: 1 | F137: 1 | G137: 1 | H137: 0 | I137: 2 | J137: 0 | K137: 1 | L137: 0 | M137: 0 | N137: 1
B139: Befolkningen i alt | C139: 2013K1 | D139: 2014K1 | E139: 2015K1 | F139: 2016K1 | G139: 2017K1 | H139: 2018K1 | I139: 2019K1 | J139: 2020K1 | K139: 2021K1 | L139: 2022K1 | M139: 2023K1 | N139: 2024K1
B140: Under 70 år | C140: =SUM(C27:C96) -> 4954862 | D140: =SUM(D27:D96) -> 4956813 | E140: 4960466 | F140: 4977177 | G140: 4985893 | H140: 4988755 | I140: 4990277 | J140: 4986047 | K140: 4983242 | L140: 5000896 | M140: 5044677 | N140: 5056809
B141: 70-74 år | C141: =SUM(C97:C101) -> 241994 | D141: =SUM(D97:D101) -> 255367 | E141: 273446 | F141: 292443 | G141: 312288 | H141: 324093 | I141: 328265 | J141: 324554 | K141: 317771 | L141: 306526 | M141: 298794 | N141: 295938
B142: 75-79 år | C142: =SUM(C102:C106) -> 173089 | D142: =SUM(D102:D106) -> 180164 | E142: 186394 | F142: 193873 | G142: 200867 | H142: 211648 | I142: 223793 | J142: 239836 | K142: 256926 | L142: 274510 | M142: 284851 | N142: 288628
B143: 80-84 år | C143: =SUM(C107:C111) -> 118170 | D143: =SUM(D107:D111) -> 119026 | E143: 121930 | F143: 125369 | G143: 130127 | H143: 135926 | I143: 142088 | J143: 147963 | K143: 154710 | L143: 160839 | M143: 169568 | N143: 179602
B144: 85-89 år | C144: =SUM(C112:C116) -> 73881 | D144: =SUM(D112:D116) -> 74340 | E144: 74706 | F144: 74925 | G144: 75218 | H144: 76128 | I144: 76915 | J144: 79335 | K144: 81938 | L144: 85184 | M144: 89405 | N144: 94445
B145: 90-95 år | C145: =SUM(C117:C122) -> 34685 | D145: =SUM(D117:D122) -> 35533 | E145: 36540 | F145: 37058 | G145: 37523 | H145: 37522 | I145: 37820 | J145: 37979 | K145: 38140 | L145: 38098 | M145: 38079 | N145: 38696
B146: 95+ år | C146: =SUM(C122:C137) -> 8563 | D146: =SUM(D122:D137) -> 8731 | E146: 9057 | F146: 9674 | G146: 10126 | H146: 10049 | I146: 10082 | J146: 10313 | K146: 10627 | L146: 10669 | M146: 10382 | N146: 10393
B148: I alt | C148: =SUM(C140:C146) -> 5605244 | D148: =SUM(D140:D146) -> 5629974 | E148: 5662539 | F148: 5710519 | G148: 5752042 | H148: 5784121 | I148: 5809240 | J148: 5826027 | K148: 5843354 | L148: 5876722 | M148: 5935756 | N148: 5964511
F150: Antal indskrevne | I150: Kommer fra separat excelark
B152: Alle plejeboliger | C152: 2013K1 | D152: 2014K1 | E152: 2015K1 | F152: 2016K1 | G152: 2017K1 | H152: 2018K1 | I152: 2019K1 | J152: 2020K1 | K152: 2021K1 | L152: 2022K1 | M152: 2023
B153: Under 70 år | C153: 1231 | D153: 1108 | E153: 1230 | F153: 1164 | G153: 1184 | H153: 1137 | I153: 3847 | J153: 3797 | K153: 3790 | L153: 3812 | M153: 3775
B154: 70-74 år | C154: 1091 | D154: 1099 | E154: 1115 | F154: 1098 | G154: 1116 | H154: 1185 | I154: 3598 | J154: 3544 | K154: 3512 | L154: 3400 | M154: 3319
B155: 75-79 år | C155: 710 | D155: 668 | E155: 714 | F155: 733 | G155: 672 | H155: 782 | I155: 5213 | J155: 5510 | K155: 5730 | L155: 6039 | M155: 6261
B156: 80-84 år | C156: 4742 | D156: 4804 | E156: 4865 | F156: 5101 | G156: 5174 | H156: 5246 | I156: 7551 | J156: 7607 | K156: 7556 | L156: 7644 | M156: 7634
B157: 85-89 år | C157: 4980 | D157: 5049 | E157: 5164 | F157: 5237 | G157: 5300 | H157: 5525 | I157: 8931 | J157: 8897 | K157: 8846 | L157: 8861 | M157: 9035
B158: 90-95 år | C158: 7770 | D158: 7550 | E158: 7942 | F158: 7774 | G158: 7673 | H158: 7940 | I158: 8660 | J158: 8539 | K158: 8211 | L158: 7926 | M158: 7747
B159: 95+ år | C159: 10088 | D159: 10127 | E159: 10061 | F159: 9811 | G159: 9559 | H159: 9355 | I159: 2658 | J159: 2635 | K159: 2664 | L159: 2650 | M159: 2697
B161: alle | C161: 42073 | D161: 42204 | E161: 43092 | F161: 42777 | G161: 42526 | H161: 42378 | I161: 42500 | J161: =SUM(J153:J160) -> 40529 | K161: =SUM(K153:K160) -> 40309 | L161: 40332 | M161: =SUM(M153:M160) -> 40468
B162: Dækningsgrader 2013-2022 | C162: 2013 | D162: 2014 | E162: 2015 | F162: 2016 | G162: 2017 | H162: 2018 | I162: 2019 | J162: 2020 | K162: 2021 | L162: 2022 | M162: 2023 | N162: Ændring 2019-2023 (2019=indeks=1) | O162: Årligt | P162: Årlig ændring i pct. | T162: Dækningsgrader 2020-2022
B163: Under 70 år | C163: =C153/C140*100 -> 0.02484428426 | D163: =D153/D140*100 -> 0.02235307243 | E163: =E153/E140*100 -> 0.02479605747 | F163: =F153/F140*100 -> 0.02338675116 | G163: 0.02374699979 | H163: =H153/H140*100 -> 0.02279125754 | I163: 0.07708990904 | J163: =J153/J140*100 -> 0.0761525112 | K163: 0.07605490562 | L163: =L153/L140*100 -> 0.07622634024 | M163: =M153/M140*100 -> 0.07483135194 | N163: =M163/I163 -> 0.9707022991 | O163: =N163^(1/5) -> 0.994070559 | P163: =-(1-O163)*100 -> -0.5929441023 | U163: 2020 | V163: 2021 | W163: 2022 | X163: Ændring 2020-2022 (2020=indeks=1) | Y163: Årligt | Z163: Årlig ændring i pct.
B164: 70-74 år | C164: =C154/C141*100 -> 0.4508376241 | D164: 0.4303610098 | E164: 0.4077587531 | F164: 0.3754577815 | G164: 0.3573624347 | H164: 0.3656357897 | I164: =I154/I141*100 -> 1.096065679 | J164: =J154/J141*100 -> 1.091960044 | K164: 1.105198398 | L164: 1.109204439 | M164: 1.110798744 | N164: =M164/I164 -> 1.013441773 | O164: =N164^(1/5) -> 1.002674016 | P164: =-(1-O164)*100 -> 0.2674015517 | T164: Under 60 år | U164: =J153/J140*100 -> 0.0761525112 | V164: =K153/K140*100 -> 0.07605490562 | W164: =L153/L140*100 -> 0.07622634024 | X164: =W164/U164 -> 1.000969489 | Y164: =X164^(1/2) -> 1.000484627 | Z164: =-(1-Y164)*100 -> 0.04846272006
B165: 75-79 år | C165: 0.4101935998 | D165: 0.3707732954 | E165: 0.3830595405 | F165: 0.3780825592 | G165: 0.3345497269 | H165: 0.3694814031 | I165: 2.329384744 | J165: =J155/J142*100 -> 2.297403226 | K165: 2.230214147 | L165: 2.199919857 | M165: 2.197991231 | N165: 0.9435930394 | O165: 0.9884550982 | P165: =-(1-O165)*100 -> -1.154490184 | T165: 60-64 år | U165: =J154/J141*100 -> 1.091960044 | V165: 1.105198398 | W165: 1.109204439 | X165: =W165/U165 -> 1.015792149 | Y165: =X165^(1/2) -> 1.007865144 | Z165: =-(1-Y165)*100 -> 0.7865144293
B166: 80-84 år | C166: 4.012862825 | D166: 4.036092954 | E166: 3.989994259 | F166: 4.068788935 | G166: 3.976115641 | H166: 3.859452938 | I166: 5.314312257 | J166: =J156/J143*100 -> 5.141150152 | K166: 4.883976472 | L166: 4.752578666 | M166: 4.502028685 | N166: 0.8471517041 | O166: 0.9673691598 | P166: =-(1-O166)*100 -> -3.26308402 | T166: 65-66 år | U166: 2.297403226 | V166: 2.230214147 | W166: 2.199919857 | X166: 0.9575680197 | Y166: 0.9785540454 | Z166: -2.144595462
B167: 85-89 år | C167: 6.740569294 | D167: 6.791767554 | E167: 6.912430059 | F167: 6.989656323 | G167: 7.046185753 | H167: 7.257513661 | I167: 11.61151921 | J167: =J157/J144*100 -> 11.21447028 | K167: 10.79596768 | L167: 10.4021882 | M167: 10.10569879 | N167: 0.8703166747 | O167: 0.9726026776 | P167: -2.739732235 | T167: 67-74 år | U167: 5.141150152 | V167: 4.883976472 | W167: 4.752578666 | X167: 0.9244193468 | Y167: 0.9614672885 | Z167: -3.853271154
B168: 90-95 år | C168: 22.40161453 | D168: 21.24785411 | E168: 21.73508484 | F168: 20.97792649 | G168: 20.44879141 | H168: 21.16091893 | I168: 22.8979376 | J168: =J158/J145*100 -> 22.48347771 | K168: 21.52857892 | L168: 20.80424169 | M168: 20.34454686 | N168: 0.8884881782 | O168: 0.9766306071 | P168: -2.336939288 | T168: 75-79 år | U168: 11.21447028 | V168: 10.79596768 | W168: 10.4021882 | X168: 0.9275683952 | Y168: 0.9631035226 | Z168: -3.689647743
B169: 95+ år | C169: 117.809179 | D169: 115.9890047 | E169: 111.0853483 | F169: 101.416167 | G169: 94.40055303 | H169: 93.09384018 | I169: 26.3638167 | J169: =J159/J146*100 -> 25.55027635 | K169: 25.06822245 | L169: 24.83831662 | M169: 25.97765363 | N169: 0.9853525354 | O169: 0.9970531908 | P169: -0.2946809185 | T169: 80-84 år | U169: 22.48347771 | V169: 21.52857892 | W169: 20.80424169 | X169: 0.9253124432 | Y169: 0.9619316208 | Z169: -3.806837915
T170: 85-89 år | U170: 25.55027635 | V170: 25.06822245 | W170: 24.83831662 | X170: 0.9721349498 | Y170: 0.985969041 | Z170: -1.403095898
B171: alle | C171: 0.7506006875 | D171: 0.7496304601 | E171: 0.7610013812 | F171: 0.7490912822 | G171: 0.7393200536 | H171: 0.7326610214 | I171: 0.7315931172 | J171: =J161/J148*100 -> 0.6956541739 | K171: 0.689826425 | L171: 0.6863009685 | M171: 0.6817665686 | N171: =M171/I171 -> 0.9318930872 | O171: =N171^(1/5) -> 0.9859916068 | P171: -1.400839324 | T171: Over 90 år
T172: alle | U172: 0.6956541739 | V172: 0.689826425 | W172: 0.6863009685 | X172: 0.9865548058 | Y172: 0.993254653 | Z172: -0.6745346956
B173: Udregning til senarie 3: Ændring i alder på indskrevne 2018-2023 | D173: Behovsgrad efter (år)
C174: Aktuel behovsgrad | D174: =Model!M10 -> 8 | E174: Årlig ændring i procentpoint
B175: Under 60 år | C175: =Model!E10 -> 0.06752980626 | D175: =C175*O163^$D$174 -> 0.06439219016 | E175: =(D175-C175)/$D$174 -> -0.0003922020124 | O175: (Ikke i brug) Udregning til senarie 4: Behovsgrad 2020-2022 | Q175: Behovsgrad efter (år)
B176: 60-64 år | C176: =Model!E11 -> 1.20271581 | D176: =C176*O164^$D$174 -> 1.228686544 | E176: =(D176-C176)/$D$174 -> 0.003246341724 | P176: Aktuel behovsgrad | Q176: =Model!M10 -> 8 | R176: Årlig ændring i procentpoint
B177: 65-66 år | C177: =Model!E12 -> 2.300995025 | D177: =C177*O165^$D$174 -> 2.09686874 | E177: -0.02551578557 | O177: Under 60 år | P177: =Model!E10 -> 0.06752980626 | Q177: =P177*Y164^$Q$176 -> 0.06779206503 | R177: =(Q177-P177)/$Q$176 -> 3.278234581e-05
B178: 67-74 år | C178: =Model!E13 -> 4.640116916 | D178: =C178*O166^$D$174 -> 3.558498815 | E178: -0.1352022626 | O178: 60-64 år | P178: =Model!E11 -> 1.20271581 | Q178: 1.280508387 | R178: 0.009724072196
B179: 75-79 år | C179: =Model!E14 -> 8.327645051 | D179: =C179*O167^$D$174 -> 6.668158173 | E179: -0.2074358598 | O179: 65-66 år | P179: =Model!E12 -> 2.300995025 | Q179: 1.934613496 | R179: -0.04579769117
B180: 80-84 år | C180: =Model!E15 -> 20.56737589 | D180: 17.02242899 | E180: -0.4431183622 | O180: 67-74 år | P180: =Model!E13 -> 4.640116916 | Q180: 3.38848079 | R180: -0.1564545158
B181: 85-89 år | C181: =Model!E16 -> 35.96491228 | D181: 35.12575168 | E181: -0.1048950745 | O181: 75-79 år | P181: =Model!E14 -> 8.327645051 | Q181: 6.164615251 | R181: -0.270378725
B182: Over 90 år | C182: =Model!E17 -> 0 | D182: 0 | E182: =(D182-C182)/$D$174 -> 0 | O182: 80-84 år | P182: =Model!E15 -> 20.56737589 | Q182: 15.07760963 | R182: -0.6862207824
O183: 85-89 år | P183: =Model!E16 -> 35.96491228 | Q183: 32.12071717 | R183: -0.4805243882
O184: Over 90 år | P184: =Model!E17 -> 0
A191: Udregning til senarie 2: Landsgennemsnit | D191: 2022
A192: Beregning af behovsgrad i udgangspunktet | C192: Indskrevne i alt
A193: Kommune | B193: Aldersgruppe | C193: Plejehjem | D193: Plejeboliger (2006-) | E193: Friplejeboliger | F193: Andre boliger for ældre | G193: Indskrevne i alt | H193: Venteliste | I193: Indskrevne i alt | J193: I befolkningen | K193: Indskrevne landgennemsnit | L193: Behovsgrad
A194: Hele landet | B194: Under 60 år | C194: =SUM('GAMMEL Registerdata indskrevne'!AC4:AC101) -> 41 | D194: =SUM('GAMMEL Registerdata indskrevne'!AD4:AD101) -> 820 | E194: =SUM('GAMMEL Registerdata indskrevne'!AE4:AE101) -> 59 | F194: =SUM('GAMMEL Registerdata indskrevne'!AF4:AF101) -> 0 | G194: =SUM(C194:F194) -> 920 | H194: =$H$202*G194/$G$202 -> 443.4441913 | I194: =SUM(G194:H194) -> 1363.444191 | J194: =+SUM('GAMMEL Befolkningsfremskrivning'!J3:J100) -> 4326885 | K194: =G194/J194*100 -> 0.02126240933 | L194: =I194/J194*100 -> 0.0315109875
A195: Hele landet | B195: 60-64 år | C195: =SUM('GAMMEL Registerdata indskrevne'!AC102:AC199) -> 69 | D195: =SUM('GAMMEL Registerdata indskrevne'!AD102:AD199) -> 944 | E195: =SUM('GAMMEL Registerdata indskrevne'!AE102:AE199) -> 33 | F195: =SUM('GAMMEL Registerdata indskrevne'!AF102:AF199) -> 0 | G195: =SUM(C195:F195) -> 1046 | H195: =$H$202*G195/$G$202 -> 504.1767654 | I195: =SUM(G195:H195) -> 1550.176765 | J195: =+SUM('GAMMEL Befolkningsfremskrivning'!J101:J198) -> 351247 | K195: =G195/J195*100 -> 0.2977961378 | L195: =I195/J195*100 -> 0.4413352329
A196: Hele landet | B196: 65-66 år | C196: =SUM('GAMMEL Registerdata indskrevne'!AC200:AC297) -> 60 | D196: =SUM('GAMMEL Registerdata indskrevne'!AD200:AD297) -> 679 | E196: =SUM('GAMMEL Registerdata indskrevne'!AE200:AE297) -> 37 | F196: =SUM('GAMMEL Registerdata indskrevne'!AF200:AF297) -> 0 | G196: 776 | H196: 374.0355353 | I196: 1150.035535 | J196: =+SUM('GAMMEL Befolkningsfremskrivning'!J199:J296) -> 133096 | K196: 0.5830378073 | L196: 0.8640646866
A197: Hele landet | B197: 67-74 år | C197: =SUM('GAMMEL Registerdata indskrevne'!AC298:AC395) -> 330 | D197: =SUM('GAMMEL Registerdata indskrevne'!AD298:AD395) -> 4327 | E197: =SUM('GAMMEL Registerdata indskrevne'!AE298:AE395) -> 166 | F197: =SUM('GAMMEL Registerdata indskrevne'!AF298:AF395) -> 0 | G197: 4823 | H197: 2324.707973 | I197: 7147.707973 | J197: =+SUM('GAMMEL Befolkningsfremskrivning'!J297:J394) -> 496112 | K197: 0.9721595124 | L197: 1.440744826
A198: Hele landet | B198: 75-79 år | C198: =SUM('GAMMEL Registerdata indskrevne'!AC396:AC493) -> 427 | D198: =SUM('GAMMEL Registerdata indskrevne'!AD396:AD493) -> 5698 | E198: =SUM('GAMMEL Registerdata indskrevne'!AE396:AE493) -> 212 | F198: =SUM('GAMMEL Registerdata indskrevne'!AF396:AF493) -> 0 | G198: 6337 | H198: 3054.46287 | I198: 9391.46287 | J198: =+SUM('GAMMEL Befolkningsfremskrivning'!J395:J492) -> 274504 | K198: 2.30852738 | L198: 3.421248095
A199: Hele landet | B199: 80-84 år | C199: =SUM('GAMMEL Registerdata indskrevne'!AC494:AC591) -> 495 | D199: =SUM('GAMMEL Registerdata indskrevne'!AD494:AD591) -> 7157 | E199: =SUM('GAMMEL Registerdata indskrevne'!AE494:AE591) -> 334 | F199: =SUM('GAMMEL Registerdata indskrevne'!AF494:AF591) -> 0 | G199: 7986 | H199: 3849.288383 | I199: 11835.28838 | J199: =+SUM('GAMMEL Befolkningsfremskrivning'!J493:J590) -> 160836 | K199: 4.965306275 | L199: 7.35860652
A200: Hele landet | B200: 85-89 år | C200: =SUM('GAMMEL Registerdata indskrevne'!AC592:AC689) -> 449 | D200: =SUM('GAMMEL Registerdata indskrevne'!AD592:AD689) -> 8245 | E200: =SUM('GAMMEL Registerdata indskrevne'!AE592:AE689) -> 424 | F200: =SUM('GAMMEL Registerdata indskrevne'!AF592:AF689) -> 0 | G200: 9118 | H200: 4394.91754 | I200: 13512.91754 | J200: =+SUM('GAMMEL Befolkningsfremskrivning'!J591:J688) -> 85182 | K200: 10.70413937 | L200: 15.86358332
A201: Hele landet | B201: Over 90 år | C201: =SUM('GAMMEL Registerdata indskrevne'!AC690:AC787) -> 605 | D201: =SUM('GAMMEL Registerdata indskrevne'!AD690:AD787) -> 9565 | E201: =SUM('GAMMEL Registerdata indskrevne'!AE690:AE787) -> 529 | F201: =SUM('GAMMEL Registerdata indskrevne'!AF690:AF787) -> 0 | G201: 10699 | H201: 5156.966743 | I201: 15855.96674 | J201: =+SUM('GAMMEL Befolkningsfremskrivning'!J689:J786) -> 45464 | K201: 23.53290516 | L201: =I201/J201*100 -> 34.87587265
A202: Hele landet | B202: I alt | C202: =SUM(C194:C201) -> 2476 | D202: =SUM(D194:D201) -> 37435 | E202: =SUM(E194:E201) -> 1794 | F202: 0 | G202: 41705 | H202: =SUM('GAMMEL - Registerdata ventetid'!B6:B103) -> 20102 | I202: =SUM(G202:H202) -> 61807 | J202: =SUM(J194:J201) -> 5873326 | K202: 0.7100746664 | L202: 1.052333891
I203: Indskrevne ift. Befolkningen, giver netop landsgennemsnit
A205: Andel med god fysisk mobilitet blandt 60-årige eller derover
B206: 1987 | C206: 1994 | D206: 2000 | E206: 2005
A207: 60-66 år | B207: 68.4 | C207: 72.7 | D207: 79.4 | E207: 82.6
A208: 67+ år | B208: 43.7 | C208: 47.3 | D208: 56.2 | E208: 62.6
A210: Andel med dårlig fysisk mobilitet
B211: 1987 | C211: 1994 | D211: 2000 | E211: 2005 | F211: Ændring | G211: Ændring pr. år | H211: Årlig ændring i pct.
A212: 60-66 år | B212: =1-(B207/100) -> 0.316 | C212: =1-(C207/100) -> 0.273 | D212: 0.206 | E212: 0.174 | F212: =E212/B212 -> 0.5506329114 | G212: =F212^(1/18) -> 0.967394143 | H212: =-(1-G212)*100 -> -3.260585704
A213: 67+ år | B213: =1-(B208/100) -> 0.563 | C213: 0.527 | D213: 0.438 | E213: 0.374 | F213: =E213/B213 -> 0.6642984014 | G213: =F213^(1/18) -> 0.9775326891 | H213: =-(1-G213)*100 -> -2.24673109
C215: Behovsgrad efter (år)
B216: Aktuel behovsgrad | C216: =Model!M10 -> 8 | D216: Årlig ændring i procentpoint
A217: Under 60 år | B217: =Model!E10 -> 0.06752980626 | C217: =B217 -> 0.06752980626 | D217: =(C217-B217)/#REF! -> 
A218: 60-64 år | B218: =Model!E11 -> 1.20271581 | C218: =B218*$G$212^$C$216 -> 0.9225515632 | D218: =(C218-B218)/#REF! -> 
A219: 65-66 år | B219: =Model!E12 -> 2.300995025 | C219: =B219*$G$212^$C$216 -> 1.764994307 | D219: =(C219-B219)/#REF! -> 
A220: 67-74 år | B220: =Model!E13 -> 4.640116916 | C220: =B220*$G$213^$C$216 -> 3.868826357 | D220: =(C220-B220)/#REF! -> 
A221: 75-79 år | B221: =Model!E14 -> 8.327645051 | C221: =B221*$G$213^$C$216 -> 6.94340536 | D221: =(C221-B221)/#REF! -> 
A222: 80-84 år | B222: =Model!E15 -> 20.56737589 | C222: =B222*$G$213^$C$216 -> 17.1486209 | D222: =(C222-B222)/#REF! -> 
A223: 85-89 år | B223: =Model!E16 -> 35.96491228 | C223: =B223*$G$213^$C$216 -> 29.98674453 | D223: =(C223-B223)/#REF! -> 
... 15 more rows

Sheet plejehjemsoversigt.dk
I3: Valgt kommune | J3: Samlet antal boliger 2024
I4: ='Beregning 2023'!B22 -> Silkeborg | J4: =IFERROR(VLOOKUP(I4,I11:K109,3,FALSE),VLOOKUP(I4&"s",I11:K109,3,FALSE)) -> 704
A10: Plejehjemsnavn | B10: By | C10: Center type | D10: Postalcode | E10: Kommune | F10: Antal boliger | G10: Antal beboere | I10: Navn | J10: Kommune | K10: Samlet antal boliger
A11: Humlehusene | B11: Albertslund | C11: Kommunal | D11: 2620 | E11: Albertslund Kommune | F11: 48 | G11: 48 | I11: =MID(J11,1,FIND(" ",J11)-1) -> Albertslund | J11: =_xlfn.UNIQUE(E11:E1048576) -> Albertslund Kommune | K11: =SUMIFS($F$11:$F$1048576,$E$11:$E$1048576,$J11) -> 129
A12: Plejecentret Albertshøj | B12: Albertslund | C12: Kommunal | D12: 2620 | E12: Albertslund Kommune | F12: 81 | G12: 81 | I12: =MID(J12,1,FIND(" ",J12)-1) -> Allerød | J12: Allerød Kommune | K12: 211
A13: Plejecenter Mimosen | B13: Allerød | C13: Kommunal | D13: 3450 | E13: Allerød Kommune | F13: 24 | G13: 24 | I13: Assens | J13: Assens Kommune | K13: 317
A14: Demensplejecenter Skovvang | B14: Allerød | C14: Kommunal | D14: 3450 | E14: Allerød Kommune | F14: 40 | G14: 40 | I14: Ballerup | J14: Ballerup Kommune | K14: 305
A15: Plejecenter Lyngehus | B15: Lynge | C15: Kommunal | D15: 3540 | E15: Allerød Kommune | F15: 42 | G15: 44 | I15: Billund | J15: Billund Kommune | K15: 227
A16: Plejecenter Engholm | B16: Allerød | C16: Kommunal | D16: 3450 | E16: Allerød Kommune | F16: 45 | G16: 48 | I16: Bornholms | J16: Bornholms Regionskommune | K16: 424
A17: Plejecenter Skovvang | B17: Allerød | C17: Kommunal | D17: 3450 | E17: Allerød Kommune | F17: 60 | G17: 60 | I17: Brøndby | J17: Brøndby Kommune | K17: 257
A18: Bofællesskabet Skelvej | B18: Assens | C18: Kommunal | D18: 5610 | E18: Assens Kommune | F18: 21 | G18: 21 | I18: Brønderslev | J18: Brønderslev Kommune | K18: 365
A19: Bofællesskabet Odensevej | B19: Assens | C19: Kommunal | D19: 5610 | E19: Assens Kommune | F19: 24 | G19: 24 | I19: Dragør | J19: Dragør Kommune | K19: 99
A20: De Gamles Hjem | B20: Glamsbjerg | C20: Kommunal | D20: 5620 | E20: Assens Kommune | F20: 25 | G20: 25 | I20: Egedal | J20: Egedal Kommune | K20: 239
A21: Flemløse Plejehjem | B21: Glamsbjerg | C21: Kommunal | D21: 5620 | E21: Assens Kommune | F21: 27 | G21: 27 | I21: Esbjerg | J21: Esbjerg Kommune | K21: 889
A22: Strandgården | B22: Haarby | C22: Kommunal | D22: 5683 | E22: Assens Kommune | F22: 31 | G22: 31 | I22: Fanø | J22: Fanø Kommune | K22: 36
A23: Bofællesskabet Korsvang | B23: Assens | C23: Kommunal | D23: 5610 | E23: Assens Kommune | F23: 34 | G23: 36 | I23: Favrskov | J23: Favrskov Kommune | K23: 312
A24: Kildebakken | B24: Vissenbjerg | C24: Kommunal | D24: 5492 | E24: Assens Kommune | F24: 34 | G24: 34 | I24: Faxe | J24: Faxe Kommune | K24: 318
A25: Æblehaven | B25: Haarby | C25: Kommunal | D25: 5683 | E25: Assens Kommune | F25: 36 | G25: 36 | I25: Fredensborg | J25: Fredensborg Kommune | K25: 295
A26: Holmely | B26: Aarup | C26: Kommunal | D26: 5560 | E26: Assens Kommune | F26: 40 | G26: 40 | I26: Fredericia | J26: Fredericia Kommune | K26: 364
A27: Sydmarksgården | B27: Tommerup | C27: Selvejende | D27: 5690 | E27: Assens Kommune | F27: 45 | G27: 45 | I27: Frederiksberg | J27: Frederiksberg Kommune | K27: 969
A28: Plejecenter Egely | B28: Ballerup | C28: Kommunal | D28: 2750 | E28: Ballerup Kommune | F28: 14 | G28: 14 | I28: Frederikshavn | J28: Frederikshavn Kommune | K28: 528
A29: Plejecenter Lindehaven | B29: Ballerup | C29: Kommunal | D29: 2750 | E29: Ballerup Kommune | F29: 25 | G29: 25 | I29: Frederikssund | J29: Frederikssund Kommune | K29: 343
A30: Plejecenter Kirstinehaven | B30: Ballerup | C30: Kommunal | D30: 2750 | E30: Ballerup Kommune | F30: 39 | G30: 39 | I30: Furesø | J30: Furesø Kommune | K30: 259
A31: Plejehjemmet Lundehaven | B31: Skovlunde | C31: Kommunal | D31: 2740 | E31: Ballerup Kommune | F31: 48 | G31: 48 | I31: Faaborg-Midtfyn | J31: Faaborg-Midtfyn Kommune | K31: 372
A32: Plejecenter Sønderhaven | B32: Måløv | C32: Kommunal | D32: 2760 | E32: Ballerup Kommune | F32: 48 | G32: 48 | I32: Gentofte | J32: Gentofte Kommune | K32: 858
A33: Plejecenter Toftehaven | B33: Ballerup | C33: Kommunal | D33: 2750 | E33: Ballerup Kommune | F33: 59 | G33: 61 | I33: Gladsaxe | J33: Gladsaxe Kommune | K33: 549
A34: Plejehjemmet Rosenhaven | B34: Skovlunde | C34: Kommunal | D34: 2740 | E34: Ballerup Kommune | F34: 72 | G34: 72 | I34: Glostrup | J34: Glostrup Kommune | K34: 199
A35: Sydtoftens Plejehjem | B35: Grindsted | C35: Kommunal | D35: 7200 | E35: Billund Kommune | F35: 10 | G35: 10 | I35: Greve | J35: Greve Kommune | K35: 385
A36: Omme Plejehjem | B36: Sønder Omme | C36: Kommunal | D36: 7260 | E36: Billund Kommune | F36: 20 | G36: 21 | I36: Gribskov | J36: Gribskov Kommune | K36: 461
A37: Hejnsvig Plejehjem | B37: Hejnsvig | C37: Kommunal | D37: 7250 | E37: Billund Kommune | F37: 20 | G37: 20 | I37: Guldborgsund | J37: Guldborgsund Kommune | K37: 590
A38: Plejehjemmet Frihavnen | B38: Vorbasse | C38: Kommunal | D38: 6623 | E38: Billund Kommune | F38: 21 | G38: 21 | I38: Haderslev | J38: Haderslev Kommune | K38: 395
A39: Plejecenter Mødestedet | B39: Grindsted | C39: Kommunal | D39: 7200 | E39: Billund Kommune | F39: 27 | G39: 27 | I39: Halsnæs | J39: Halsnæs Kommune | K39: 237
A40: Værestedet | B40: Billund | C40: Kommunal | D40: 7190 | E40: Billund Kommune | F40: 28 | G40: 28 | I40: Hedensted | J40: Hedensted Kommune | K40: 320
A41: Billund Plejehjem | B41: Billund | C41: Kommunal | D41: 7190 | E41: Billund Kommune | F41: 30 | G41: 30 | I41: Helsingør | J41: Helsingør Kommune | K41: 546
A42: Fynsgades Plejehjem | B42: Grindsted | C42: Kommunal | D42: 7200 | E42: Billund Kommune | F42: 35 | G42: 35 | I42: Herlev | J42: Herlev Kommune | K42: 294
A43: Filskov Friplejehjem | B43: Grindsted | C43: Friplejebolig | D43: 7200 | E43: Billund Kommune | F43: 36 | G43: 37 | I43: Herning | J43: Herning Kommune | K43: =SUMIFS($F$11:$F$1048576,$E$11:$E$1048576,$J43) -> 734
A44: Plejecenter Nylars | B44: Aakirkeby | C44: Kommunal | D44: 3720 | E44: Bornholms Regionskommune | F44: 18 | G44: 18 | I44: Hillerød | J44: Hillerød Kommune | K44: 398
A45: Plejehjemmet Toftegården | B45: Hasle | C45: Kommunal | D45: 3790 | E45: Bornholms Regionskommune | F45: 35 | G45: 35 | I45: Hjørring | J45: Hjørring Kommune | K45: 534
A46: Plejecenter Klippebo | B46: Gudhjem | C46: Kommunal | D46: 3760 | E46: Bornholms Regionskommune | F46: 40 | G46: 40 | I46: Holbæk | J46: Holbæk Kommune | K46: 351
A47: Plejecenter Aabo | B47: Aakirkeby | C47: Kommunal | D47: 3720 | E47: Bornholms Regionskommune | F47: 54 | G47: 54 | I47: Holstebro | J47: Holstebro Kommune | K47: 427
A48: Plejecenteret Nørremøllecenteret | B48: Nexø | C48: Kommunal | D48: 3730 | E48: Bornholms Regionskommune | F48: 75 | G48: 75 | I48: Horsens | J48: Horsens Kommune | K48: 639
A49: Plejecenter Lunden | B49: Rønne | C49: Kommunal | D49: 3700 | E49: Bornholms Regionskommune | F49: 82 | G49: 82 | I49: Hvidovre | J49: Hvidovre Kommune | K49: 396
A50: Plejecenter Snorrebakken | B50: Rønne | C50: Kommunal | D50: 3700 | E50: Bornholms Regionskommune | F50: 120 | G50: 120 | I50: Høje-Taastrup | J50: Høje-Taastrup Kommune | K50: 268
A51: Ældrecentret Gildhøjhjemmet | B51: Brøndby | C51: Kommunal | D51: 2605 | E51: Brøndby Kommune | F51: 63 | G51: 63 | I51: Hørsholm | J51: Hørsholm Kommune | K51: 236
A52: Ældrecentret Æblehaven | B52: Brøndby Strand | C52: Kommunal | D52: 2660 | E52: Brøndby Kommune | F52: 93 | G52: 93 | I52: Ikast-Brande | J52: Ikast-Brande Kommune | K52: 297
A53: Ældrecentret Nygårds Plads | B53: Brøndby | C53: Kommunal | D53: 2605 | E53: Brøndby Kommune | F53: 101 | G53: 103 | I53: Ishøj | J53: Ishøj Kommune | K53: 100
A54: Plejecenter Elmehøj | B54: Brønderslev | C54: Kommunal | D54: 9700 | E54: Brønderslev Kommune | F54: 19 | G54: 19 | I54: Jammerbugt | J54: Jammerbugt Kommune | K54: 262
A55: Plejecenter Rosengården | B55: Jerslev | C55: Kommunal | D55: 9740 | E55: Brønderslev Kommune | F55: 25 | G55: 25 | I55: Kalundborg | J55: Kalundborg Kommune | K55: 316
A56: Plejecenter Stengården | B56: Hjallerup | C56: Kommunal | D56: 9320 | E56: Brønderslev Kommune | F56: 29 | G56: 29 | I56: Kerteminde | J56: Kerteminde Kommune | K56: 225
A57: Asaa Friplejehjem | C57: Privat | D57: 9340 Asaa | E57: Brønderslev Kommune | F57: 30 | G57: 30 | I57: Kolding | J57: Kolding Kommune | K57: 568
A58: Plejecentret Valdemarsgade | B58: Brønderslev | C58: Kommunal | D58: 9700 | E58: Brønderslev Kommune | F58: 32 | G58: 32 | I58: Københavns | J58: Københavns Kommune | K58: 3394
A59: Plejecentret Støberiet | B59: Brønderslev | C59: Kommunal | D59: 9700 | E59: Brønderslev Kommune | F59: 48 | G59: 48 | I59: Køge | J59: Køge Kommune | K59: 441
A60: Plejecenter Margrethelund | B60: Dronninglund | C60: Kommunal | D60: 9330 | E60: Brønderslev Kommune | F60: 68 | G60: 68 | I60: Langeland | J60: Langeland Kommune | K60: 190
A61: Plejehjemmet Kornumgård | B61: Brønderslev | C61: Selvejende | D61: 9700 | E61: Brønderslev Kommune | F61: 70 | G61: 70 | I61: Lejre | J61: Lejre Kommune | K61: 178
A62: Omsorgscenteret Enggården | B62: Dragør | C62: Kommunal | D62: 2791 | E62: Dragør Kommune | F62: 99 | G62: 100 | I62: Lemvig | J62: Lemvig Kommune | K62: 162
A63: Plejecenter Damgårdsparken | B63: Stenløse | C63: Kommunal | D63: 3660 | E63: Egedal Kommune | F63: 41 | G63: 41 | I63: Lolland | J63: Lolland Kommune | K63: 359
A64: Plejecenter Porsebakken | B64: Smørum | C64: Kommunal | D64: 2765 | E64: Egedal Kommune | F64: 48 | G64: 48 | I64: Lyngby-Taarbæk | J64: Lyngby-Taarbæk Kommune | K64: 540
A65: Plejecenter Egeparken | B65: Ølstykke | C65: Kommunal | D65: 3650 | E65: Egedal Kommune | F65: 72 | G65: 74 | I65: Læsø | J65: Læsø Kommune | K65: 40
A66: Plejecenter Hyrdevænget | B66: Ølstykke | C66: Kommunal | D66: 3650 | E66: Egedal Kommune | F66: 78 | G66: 78 | I66: Mariagerfjord | J66: Mariagerfjord Kommune | K66: 359
A67: Plejehjemmet Karstensminde | B67: Gredstedbro | C67: Friplejebolig | D67: 6771 | E67: Esbjerg Kommune | F67: 15 | G67: 17 | I67: Middelfart | J67: Middelfart Kommune | K67: 295
A68: Plejehjemmet Skovbo | B68: Esbjerg | C68: Kommunal | D68: 6700 | E68: Esbjerg Kommune | F68: 20 | G68: 20 | I68: Morsø | J68: Morsø Kommune | K68: 238
A69: Plejehjemmet Gjesing Midtby | B69: Esbjerg N | C69: Kommunal | D69: 6715 | E69: Esbjerg Kommune | F69: 23 | G69: 23 | I69: Norddjurs | J69: Norddjurs Kommune | K69: 376
A70: Plejehjemmet Østerbyen | B70: Esbjerg | C70: Kommunal | D70: 6700 | E70: Esbjerg Kommune | F70: 26 | G70: 26 | I70: Nordfyns | J70: Nordfyns Kommune | K70: 228
A71: Plejehjemmet Åhaven | B71: Ribe | C71: Kommunal | D71: 6760 | E71: Esbjerg Kommune | F71: 28 | G71: 28 | I71: Nyborg | J71: Nyborg Kommune | K71: 241
A72: Plejehjemmet Østergården | B72: Gørding | C72: Kommunal | D72: 6690 | E72: Esbjerg Kommune | F72: 32 | G72: 32 | I72: Næstved | J72: Næstved Kommune | K72: 510
A73: Plejehjemmet Tjæreborg | B73: Tjæreborg | C73: Kommunal | D73: 6731 | E73: Esbjerg Kommune | F73: 35 | G73: 35 | I73: Odder | J73: Odder Kommune | K73: 154
A74: Plejehjemmet Dagmargården | B74: Ribe | C74: Kommunal | D74: 6760 | E74: Esbjerg Kommune | F74: 37 | G74: 37 | I74: Odense | J74: Odense Kommune | K74: 1360
A75: Plejehjemmet Landlyst | B75: Esbjerg N | C75: Kommunal | D75: 6715 | E75: Esbjerg Kommune | F75: 48 | G75: 48 | I75: Odsherred | J75: Odsherred Kommune | K75: =SUMIFS($F$11:$F$1048576,$E$11:$E$1048576,$J75) -> 305
A76: Plejehjemmet Fovrfeld | B76: Esbjerg V | C76: Kommunal | D76: 6710 | E76: Esbjerg Kommune | F76: 54 | G76: 54 | I76: =MID(J76,1,FIND(" ",J76)-1) -> Randers | J76: Randers Kommune | K76: 911
A77: Plejehjemmet Lyngvej | B77: Esbjerg V | C77: Kommunal | D77: 6710 | E77: Esbjerg Kommune | F77: 54 | G77: 54 | I77: Rebild | J77: Rebild Kommune | K77: 274
A78: Plejehjemmet Bytoften | B78: Esbjerg V | C78: Kommunal | D78: 6710 | E78: Esbjerg Kommune | F78: 54 | G78: 54 | I78: Ringkøbing-Skjern | J78: Ringkøbing-Skjern Kommune | K78: 567
A79: Plejehjemmet Solgården | C79: Kommunal | D79: 6740 Bramming | E79: Esbjerg Kommune | F79: 68 | G79: 68 | I79: Ringsted | J79: Ringsted Kommune | K79: 206
A80: Plejehjemmet Margrethegården | B80: Ribe | C80: Kommunal | D80: 6760 | E80: Esbjerg Kommune | F80: 77 | G80: 77 | I80: Roskilde | J80: Roskilde Kommune | K80: 576
A81: Plejehjemmet Esehuset | B81: Esbjerg V | C81: Kommunal | D81: 6710 | E81: Esbjerg Kommune | F81: 78 | G81: 78 | I81: Rudersdal | J81: Rudersdal Kommune | K81: 657
A82: Plejehjemmet Sirius Seniorbo | B82: Esbjerg N | C82: Kommunal | D82: 6715 | E82: Esbjerg Kommune | F82: 104 | G82: 104 | I82: Rødovre | J82: Rødovre Kommune | K82: 301
A83: Plejehjemmet Hedelund | B83: Esbjerg Ø | C83: Kommunal | D83: 6705 | E83: Esbjerg Kommune | F83: 136 | G83: 136 | I83: Samsø | J83: Samsø Kommune | K83: 36
A84: Fanø Plejecenter | B84: Fanø | C84: Kommunal | D84: 6720 | E84: Fanø Kommune | F84: 36 | G84: 36 | I84: Silkeborg | J84: Silkeborg Kommune | K84: 704
A85: Plejecenter Voldum | B85: Hadsten | C85: Kommunal | D85: 8370 | E85: Favrskov Kommune | F85: 20 | G85: 20 | I85: Skanderborg | J85: Skanderborg Kommune | K85: 366
A86: Plejecenter Anlægget | B86: Ulstrup | C86: Kommunal | D86: 8860 | E86: Favrskov Kommune | F86: 24 | G86: 24 | I86: Skive | J86: Skive Kommune | K86: 453
A87: Sall Friplejehjem | B87: Hammel | C87: Friplejebolig | D87: 8450 | E87: Favrskov Kommune | F87: 24 | G87: 25 | I87: Slagelse | J87: Slagelse Kommune | K87: 575
A88: Plejecenter Thorshøj | B88: Thorsø | C88: Kommunal | D88: 8881 | E88: Favrskov Kommune | F88: 26 | G88: 26 | I88: Solrød | J88: Solrød Kommune | K88: 142
A89: Plejecenter Tinghøj | B89: Hammel | C89: Kommunal | D89: 8450 | E89: Favrskov Kommune | F89: 40 | G89: 40 | I89: Sorø | J89: Sorø Kommune | K89: 270
A90: Plejecenter Møllegården | B90: Hadsten | C90: Kommunal | D90: 8370 | E90: Favrskov Kommune | F90: 43 | G90: 43 | I90: Stevns | J90: Stevns Kommune | K90: 143
A91: Plejecenter Hinneruplund | B91: Hinnerup | C91: Kommunal | D91: 8382 | E91: Favrskov Kommune | F91: 63 | G91: 63 | I91: Struer | J91: Struer Kommune | K91: 177
A92: Plejecenter Solhøj | B92: Hammel | C92: Kommunal | D92: 8450 | E92: Favrskov Kommune | F92: 72 | G92: 72 | I92: Svendborg | J92: Svendborg Kommune | K92: 751
A93: Plejehjemmet Kongsted | B93: Rønnede | C93: Kommunal | D93: 4683 | E93: Faxe Kommune | F93: 19 | G93: 19 | I93: Syddjurs | J93: Syddjurs Kommune | K93: 305
A94: Plejehjemmet Dalby | B94: Haslev | C94: Kommunal | D94: 4690 | E94: Faxe Kommune | F94: 24 | G94: 26 | I94: Sønderborg | J94: Sønderborg Kommune | K94: 529
A95: Plejehjemmet Søndervang | B95: Faxe | C95: Selvejende | D95: 4640 | E95: Faxe Kommune | F95: 31 | G95: 31 | I95: Thisted | J95: Thisted Kommune | K95: 456
A96: Plejehjemmet Solhaven | B96: Karise | C96: Kommunal | D96: 4653 | E96: Faxe Kommune | F96: 34 | G96: 34 | I96: Tønder | J96: Tønder Kommune | K96: 326
A97: Plejehjemmet Hylleholt | B97: Faxe Ladeplads | C97: Kommunal | D97: 4654 | E97: Faxe Kommune | F97: 34 | G97: 34 | I97: Tårnby | J97: Tårnby Kommune | K97: 369
A98: Plejehjemmet Tycho Brahes Vej | B98: Haslev | C98: Kommunal | D98: 4690 | E98: Faxe Kommune | F98: 40 | G98: 44 | I98: Vallensbæk | J98: Vallensbæk Kommune | K98: 50
A99: Plejehjemmet Lindevej | B99: Faxe | C99: Kommunal | D99: 4640 | E99: Faxe Kommune | F99: 41 | G99: 41 | I99: Varde | J99: Varde Kommune | K99: 453
A100: Plejehjemmet Frederiksgade | B100: Haslev | C100: Kommunal | D100: 4690 | E100: Faxe Kommune | F100: 45 | G100: 48 | I100: Vejen | J100: Vejen Kommune | K100: 344
A101: Plejehjemmet Grøndalshusene | B101: Haslev | C101: Kommunal | D101: 4690 | E101: Faxe Kommune | F101: 50 | G101: 50 | I101: Vejle | J101: Vejle Kommune | K101: 898
A102: Plejehjemmet Else Marie | B102: Humlebæk | C102: Selvejende | D102: 3050 | E102: Fredensborg Kommune | F102: 29 | G102: 29 | I102: Vesthimmerlands | J102: Vesthimmerlands Kommune | K102: 389
A103: Pleje- og Rehabiliteringscenter Skovgaarden | B103: Humlebæk | C103: Kommunal | D103: 3050 | E103: Fredensborg Kommune | F103: 30 | G103: 30 | I103: Viborg | J103: Viborg Kommune | K103: 751
A104: Pleje- og Aktivitetscenter Lystholm | B104: Fredensborg | C104: Kommunal | D104: 3480 | E104: Fredensborg Kommune | F104: 40 | G104: 40 | I104: Vordingborg | J104: Vordingborg Kommune | K104: 459
A105: Pleje- og Aktivitetscenter Egelunden | B105: Kokkedal | D105: 2980 | E105: Fredensborg Kommune | F105: 44 | G105: 44 | I105: Ærø | J105: Ærø Kommune | K105: 93
A106: Pleje- og Aktivitetscenter Mergeltoften | B106: Nivå | C106: Kommunal | D106: 2990 | E106: Fredensborg Kommune | F106: 48 | G106: 50 | I106: Aabenraa | J106: Aabenraa Kommune | K106: 449
A107: Pleje- og Aktivitetscenter Øresundshjemmet | B107: Humlebæk | C107: Kommunal | D107: 3050 | E107: Fredensborg Kommune | F107: 48 | G107: 48 | I107: Aalborg | J107: Aalborg Kommune | K107: 1851
A108: Pleje- og Aktivitetscenter Benediktehjemmet | B108: Fredensborg | C108: Kommunal | D108: 3480 | E108: Fredensborg Kommune | F108: 56 | G108: 56 | I108: Aarhus | J108: Aarhus Kommune | K108: 2462
A109: Distrikt - Madsbyhus | B109: Fredericia | C109: Kommunal | D109: 7000 | E109: Fredericia Kommune | F109: 14 | G109: 14 | J109: 0
A110: Distrikt - Rosenlunden | B110: Fredericia | C110: Kommunal | D110: 7000 | E110: Fredericia Kommune | F110: 23 | G110: 23
A111: Distrikt - Stævnhøj Plejecenter | B111: Fredericia | D111: 7000 | E111: Fredericia Kommune | F111: 36 | G111: 36
A112: Distrikt - Øster Elkjær Demens | B112: Fredericia | C112: Kommunal | D112: 7000 | E112: Fredericia Kommune | F112: 43 | G112: 43
A113: Distrikt - Ulleruphus | B113: Fredericia | C113: Selvejende | D113: 7000 | E113: Fredericia Kommune | F113: 45 | G113: 45
A114: Distrikt 12, 13 og 14 Hybyhus pleje, leve-bo og special afdelinger | B114: Fredericia | C114: Kommunal | D114: 7000 | E114: Fredericia Kommune | F114: 84 | G114: 86
A115: Othello Plejecenter | B115: Fredericia | C115: Kommunal | D115: 7000 | E115: Fredericia Kommune | F115: 119 | G115: 119
A116: Flintholm Plejeboliger | B116: Frederiksberg | C116: Kommunal | D116: 2000 | E116: Frederiksberg Kommune | F116: 50 | G116: 50
A117: OK Prinsesse Benedikte | B117: Frederiksberg C | C117: Selvejende | D117: 1953 | E117: Frederiksberg Kommune | F117: 56 | G117: 56
A118: OK-Fonden Lotte | B118: Frederiksberg | C118: Selvejende | D118: 2000 | E118: Frederiksberg Kommune | F118: 60 | G118: 60
A119: Betaniahjemmet | B119: Frederiksberg | C119: Selvejende | D119: 2000 | E119: Frederiksberg Kommune | F119: 60 | G119: 60
A120: Kastanjehaven | B120: Frederiksberg | C120: Kommunal | D120: 2000 | E120: Frederiksberg Kommune | F120: 60 | G120: 68
A121: Dronning Anne-Marie Centret | B121: Frederiksberg | C121: Selvejende | D121: 2000 | E121: Frederiksberg Kommune | F121: 70 | G121: 70
A122: Altiden Akaciegården Plejecenter | B122: Frederiksberg | C122: Privat | D122: 2000 | E122: Frederiksberg Kommune | F122: 95 | G122: 95
A123: Den Selvejende inst. Søndervang | B123: Frederiksberg | C123: Selvejende | D123: 2000 | E123: Frederiksberg Kommune | F123: 105 | G123: 114
A124: Plejeboligerne Østervang | B124: Frederiksberg | C124: Kommunal | D124: 2000 | E124: Frederiksberg Kommune | F124: 124 | G124: 130
A125: Lindehaven | B125: Frederiksberg | C125: Privat | D125: 2000 | E125: Frederiksberg Kommune | F125: 125 | G125: 125
A126: Ingeborggården | B126: Frederiksberg | C126: Kommunal | D126: 2000 | E126: Frederiksberg Kommune | F126: 164 | G126: 164
A127: Aalbæk Plejeboliger | B127: Ålbæk | C127: Kommunal | D127: 9982 | E127: Frederikshavn Kommune | F127: 8 | G127: 8
A128: Dybvad Ældrecenter | B128: Dybvad | C128: Kommunal | D128: 9352 | E128: Frederikshavn Kommune | F128: 20 | G128: 20
A129: Lindevej - LeveBo | B129: Skagen | C129: Kommunal | D129: 9990 | E129: Frederikshavn Kommune | F129: 21 | G129: 21
A130: Drachmannsvænget - LeveBo | B130: Skagen | C130: Kommunal | D130: 9990 | E130: Frederikshavn Kommune | F130: 29 | G130: 29
A131: Bangsbo - LeveBo | B131: Frederikshavn | C131: Kommunal | D131: 9900 | E131: Frederikshavn Kommune | F131: 30 | G131: 30
A132: Plejecenter Ankermedet | B132: Skagen | C132: Kommunal | D132: 9990 | E132: Frederikshavn Kommune | F132: 30 | G132: 30
A133: Østervrå Ældrecenter | B133: Østervrå | C133: Kommunal | D133: 9750 | E133: Frederikshavn Kommune | F133: 32 | G133: 32
A134: Strandgården - LeveBo | B134: Strandby | C134: Kommunal | D134: 9970 | E134: Frederikshavn Kommune | F134: 40 | G134: 40
A135: Abildparken - LeveBo | B135: Frederikshavn | C135: Kommunal | D135: 9900 | E135: Frederikshavn Kommune | F135: 60 | G135: 60
A136: Søparken - LeveBo | B136: Frederikshavn | C136: Kommunal | D136: 9900 | E136: Frederikshavn Kommune | F136: 60 | G136: 60
A137: Caspershus | B137: Frederikshavn | C137: Selvejende | D137: 9900 | E137: Frederikshavn Kommune | F137: 60
A138: Plejecenter Rosengården | B138: Sæby | C138: Kommunal | D138: 9300 | E138: Frederikshavn Kommune | F138: 64 | G138: 64
A139: Sæby Ældrecenter | B139: Sæby | C139: Kommunal | D139: 9300 | E139: Frederikshavn Kommune | F139: 74 | G139: 74
A140: Omsorgscenter Tolleruphøj | B140: Frederikssund | C140: Kommunal | D140: 3600 | E140: Frederikssund Kommune | F140: 31 | G140: 33
A141: Omsorgscenter Solgården | B141: Slangerup | C141: Kommunal | D141: 3550 | E141: Frederikssund Kommune | F141: 46 | G141: 46
A142: Omsorgscenter De Tre Ege | B142: Jægerspris | C142: Kommunal | D142: 3630 | E142: Frederikssund Kommune | F142: 48 | G142: 48
A143: Omsorgscenter Nordhøj | B143: Skibby | C143: Kommunal | D143: 4050 | E143: Frederikssund Kommune | F143: 50 | G143: 50
A144: Attendo Lærkevej | B144: Frederikssund | C144: Friplejebolig | D144: 3600 | E144: Frederikssund Kommune | F144: 72 | G144: 72
A145: Omsorgscenter Pedershave | B145: Frederikssund | C145: Kommunal | D145: 3600 | E145: Frederikssund Kommune | F145: 96 | G145: 96
A146: Plejehjemmet Solbjerghaven | B146: Værløse | C146: Kommunal | D146: 3500 | E146: Furesø Kommune | F146: 20 | G146: 20
A147: Plejehjemmet Svanepunktet | B147: Farum | C147: Kommunal | D147: 3520 | E147: Furesø Kommune | F147: 35 | G147: 35
A148: Plejehjemmet Lillevang | B148: Farum | C148: Kommunal | D148: 3520 | E148: Furesø Kommune | F148: 96 | G148: 96
A149: Ryetbo Plejehjem selvejende inst. | B149: Værløse | C149: Selvejende | D149: 3500 | E149: Furesø Kommune | F149: 108 | G149: 109
A150: Plejehjemmet Lysbjergparken | B150: Faaborg | C150: Kommunal | D150: 5600 | E150: Faaborg-Midtfyn Kommune | F150: 24 | G150: 24
A151: Plejehjemmet Lykkevalg | B151: Faaborg | C151: Kommunal | D151: 5600 | E151: Faaborg-Midtfyn Kommune | F151: 27 | G151: 27
A152: Plejehjemmet Steensvang | B152: Millinge | C152: Kommunal | D152: 5642 | E152: Faaborg-Midtfyn Kommune | F152: 30 | G152: 30
A153: Plejehjemmet Humlehaven | B153: Årslev | C153: Kommunal | D153: 5792 | E153: Faaborg-Midtfyn Kommune | F153: 40 | G153: 40
A154: Sundhedscentret Åhaven | B154: Ferritslev Fyn | C154: Friplejebolig | D154: 5863 | E154: Faaborg-Midtfyn Kommune | F154: 45 | G154: 45
A155: Plejehjemmet Nørrevænget | B155: Gislev | C155: Kommunal | D155: 5854 | E155: Faaborg-Midtfyn Kommune | F155: 46 | G155: 46
A156: Plejehjemmet Åløkkeparken | B156: Broby | C156: Kommunal | D156: 5672 | E156: Faaborg-Midtfyn Kommune | F156: 48 | G156: 48
A157: Plejehjemmet Prices Have Centret | B157: Faaborg | C157: Kommunal | D157: 5600 | E157: Faaborg-Midtfyn Kommune | F157: 54 | G157: 56
A158: Plejehjemmet Tingager | B158: Ringe | C158: Kommunal | D158: 5750 | E158: Faaborg-Midtfyn Kommune | F158: 58 | G158: 58
A159: Brogårdshøj | B159: Gentofte | C159: Selvejende | D159: 2820 | E159: Gentofte Kommune | F159: 44 | G159: 44
A160: Salem | B160: Gentofte | C160: Selvejende | D160: 2820 | E160: Gentofte Kommune | F160: 45 | G160: 45
A161: Kløckershave | B161: Gentofte | C161: Kommunal | D161: 2820 | E161: Gentofte Kommune | F161: 50 | G161: 50
A162: Adelaïde | B162: Charlottenlund | C162: Kommunal | D162: 2920 | E162: Gentofte Kommune | F162: 55 | G162: 55
A163: Lindely | B163: Hellerup | C163: Selvejende | D163: 2900 | E163: Gentofte Kommune | F163: 65 | G163: 65
A164: Søndersøhave | B164: Gentofte | C164: Kommunal | D164: 2820 | E164: Gentofte Kommune | F164: 70 | G164: 70
A165: Egebjerg | B165: Gentofte | C165: Kommunal | D165: 2820 | E165: Gentofte Kommune | F165: 70 | G165: 70
A166: Nymosehave | B166: Gentofte | C166: Kommunal | D166: 2820 | E166: Gentofte Kommune | F166: 93 | G166: 95
A167: Rygårdcentret | B167: Hellerup | C167: Kommunal | D167: 2900 | E167: Gentofte Kommune | F167: 102 | G167: 102
A168: Holmegårdsparken | B168: Charlottenlund | C168: Selvejende | D168: 2920 | E168: Gentofte Kommune | F168: 120 | G168: 120
A169: Jægersborghave | B169: Gentofte | C169: Kommunal | D169: 2820 | E169: Gentofte Kommune | F169: 144 | G169: 144
A170: Plejehjemmet Hareskovbo | B170: Bagsværd | C170: Selvejende | D170: 2880 | E170: Gladsaxe Kommune | F170: 82 | G170: 85
A171: Seniorcenter Møllegården | B171: Kgs.Lyngby | C171: Kommunal | D171: 2800 | E171: Gladsaxe Kommune | F171: 91 | G171: 101
A172: Seniorcenter Bakkegården | B172: Bagsværd | C172: Kommunal | D172: 2880 | E172: Gladsaxe Kommune | F172: 107 | G172: 107
A173: Seniorcenter Egegården | B173: Søborg | C173: Kommunal | D173: 2860 | E173: Gladsaxe Kommune | F173: 129 | G173: 129
A174: Seniorcenter Rosenlund | B174: Søborg | C174: Kommunal | D174: 2860 | E174: Gladsaxe Kommune | F174: 140 | G174: 147
A175: Ældrecenter Sydvestvej | B175: Glostrup | C175: Kommunal | D175: 2600 | E175: Glostrup Kommune | F175: 38 | G175: 38
A176: Ældrecenter Hvissinge | B176: Glostrup | C176: Kommunal | D176: 2600 | E176: Glostrup Kommune | F176: 69 | G176: 69
A177: Ældrecenter Dalvangen | B177: Glostrup | C177: Kommunal | D177: 2600 | E177: Glostrup Kommune | F177: 92 | G177: 97
A178: Dahliahuset - Rehabiliteringscentret Hedebo | B178: Greve | C178: Kommunal | D178: 2670 | E178: Greve Kommune | F178: 8 | G178: 8
A179: Grønlykkeparken - En del af Plejecentret Strandcentret | B179: Greve | C179: Kommunal | D179: 2670 | E179: Greve Kommune | F179: 12 | G179: 12
A180: Lokalcentret Møllehøj | B180: Karlslunde | C180: Kommunal | D180: 2690 | E180: Greve Kommune | F180: 53 | G180: 53
A181: Nældebjerg - Kompetencecenter for Demens | B181: Greve | C181: Kommunal | D181: 2570 | E181: Greve Kommune | F181: 73 | G181: 79
A182: Fribo Greve | B182: Greve | C182: Privat | D182: 2670 | E182: Greve Kommune | F182: 75 | G182: 75
A183: Strandcentret Plejecenter | B183: Greve | C183: Kommunal | D183: 2670 | E183: Greve Kommune | F183: 79 | G183: 79
A184: Langagergård Plejecenter | B184: Karlslunde | C184: Privat | D184: 2690 | E184: Greve Kommune | F184: 85 | G184: 85
A185: Søstersanatoriet ApS | B185: Græsted | D185: 3230 | E185: Gribskov Kommune | F185: 1 | G185: 1
A186: Plejehjemmet Dagmarsminde | B186: Græsted | C186: Friplejebolig | D186: 3230 | E186: Gribskov Kommune | F186: 9 | G186: 12
A187: Ellen Mariehjemmet | B187: Gilleleje | C187: Selvejende | D187: 3250 | E187: Gribskov Kommune | F187: 36 | G187: 36
A188: Trongården | B188: Vejby | D188: 3210 | E188: Gribskov Kommune | F188: 52 | G188: 52
A189: Skovsminde plejecenter | B189: Græsted | C189: Privat | D189: 3230 | E189: Gribskov Kommune | F189: 57 | G189: 61
A190: Bakkebo Omsorgscenter | B190: Gilleleje | C190: Privat | D190: 3250 | E190: Gribskov Kommune | F190: 63 | G190: 66
A191: Bavne Ager | B191: Gilleleje | C191: Friplejebolig | D191: 3250 | E191: Gribskov Kommune | F191: 72 | G191: 72
A192: PlejeGribskov Helsingegården | B192: Helsinge | D192: 3200 | E192: Gribskov Kommune | F192: 81 | G192: 83
A193: Helene Mariehjemmet | B193: Helsinge | C193: Friplejebolig | D193: 3200 | E193: Gribskov Kommune | F193: 90 | G193: 38
A194: Blomsterhaven Demensbolig | B194: Idestrup | C194: Kommunal | D194: 4872 | E194: Guldborgsund Kommune | F194: 12 | G194: 12
A195: Plejecenter Kildehuset, Skærmet enhed | B195: Sakskøbing | C195: Kommunal | D195: 4990 | E195: Guldborgsund Kommune | F195: 12 | G195: 12
A196: Idestrup Plejecenter | B196: Idestrup | C196: Kommunal | D196: 4872 | E196: Guldborgsund Kommune | F196: 23 | G196: 23
A197: Plejehjem Skovvej | B197: Nørre Alslev | C197: Kommunal | D197: 4840 | E197: Guldborgsund Kommune | F197: 25 | G197: 25
A198: Plejecenter Toreby | B198: Toreby L | C198: Kommunal | D198: 4891 | E198: Guldborgsund Kommune | F198: 30 | G198: 30
A199: Plejecenteret Helenehuset og Skærmet Helenehuset | B199: Nørre Alslev | C199: Kommunal | D199: 4840 | E199: Guldborgsund Kommune | F199: 33 | G199: 33
A200: Plejecenter Solgården | B200: Nysted | C200: Kommunal | D200: 4880 | E200: Guldborgsund Kommune | F200: 37 | G200: 37
A201: Plejecenter Doktorparken | B201: Sakskøbing | C201: Kommunal | D201: 4990 | E201: Guldborgsund Kommune | F201: 39 | G201: 41
A202: GuldBoSund Friplejehjem og Rehabilitering | B202: Nykjøbing F | C202: Privat | D202: 4800 | E202: Guldborgsund Kommune | F202: 46 | G202: 50
A203: Plejecenter Sømarken og Sømarken Skærmet | B203: Nykøbing F | C203: Kommunal | D203: 4800 | E203: Guldborgsund Kommune | F203: 49 | G203: 50
A204: Plejecenter Præstemarken | B204: Stubbekøbing | C204: Kommunal | D204: 4850 | E204: Guldborgsund Kommune | F204: 60 | G204: 60
A205: Plejecenter Kildebo | B205: Sakskøbing | C205: Kommunal | D205: 4990 | E205: Guldborgsund Kommune | F205: 60 | G205: 60
A206: Plejecenter Oasen | B206: Nykøbing F | C206: Kommunal | D206: 4800 | E206: Guldborgsund Kommune | F206: 80 | G206: 80
A207: Bakkehuset | B207: Nykøbing F | C207: Kommunal | D207: 4800 | E207: Guldborgsund Kommune | F207: 84 | G207: 84
... 749 more rows

Sheet Indskrevne plejebolig dec 2023 (hidden)
B1: Antal i plejebolig december 2023 (bef 2024) | C1: Alder på referencetidspunktet
C2: Under 70 år | D2: 70-74 år | E2: 75-79 år | F2: 80-84 år | G2: 85-89 år | H2: 90-95 år | I2: 95+ år
C3: plejebolig_dec | D3: plejebolig_dec | E3: plejebolig_dec | F3: plejebolig_dec | G3: plejebolig_dec | H3: plejebolig_dec | I3: plejebolig_dec
C4: 1 | D4: 1 | E4: 1 | F4: 1 | G4: 1 | H4: 1 | I4: 1
C5: N | D5: N | E5: N | F5: N | G5: N | H5: N | I5: N
A6: Gamle opslagsnumre til VBA. Må ikke slettes | B6: Kommunekode | K6: National andel i plejebolig
A7: 1 | B7: København | C7: 311 | D7: 330 | E7: 553 | F7: 643 | G7: 576 | H7: 502 | I7: 192 | K7: Under 70 år | L7: 70-74 år | M7: 75-79 år | N7: 80-84 år | O7: 85-89 år | P7: 90-95 år | Q7: 95+ år
A8: 2 | B8: Frederiksberg | C8: 64 | D8: 79 | E8: 139 | F8: 181 | G8: 206 | H8: 185 | I8: 67
A9: 6 | B9: Ballerup | C9: 28 | D9: 18 | E9: 48 | F9: 55 | G9: 81 | H9: 45 | I9: 10 | K9: 0.07 | L9: 1.1 | M9: 2.2 | N9: 4.4 | O9: 9.7 | P9: 19.5 | Q9: 35.6
A10: 7 | B10: Brøndby | C10: 21 | D10: 26 | E10: 43 | F10: 38 | G10: 59 | H10: 37 | I10: 12
A11: 3 | B11: Dragør | C11: 6.9447 | D11: 19.844 | E11: 15 | F11: 24 | G11: 24 | H11: 21 | I11: 8
A12: 8 | B12: Gentofte | C12: 46 | D12: 61 | E12: 114 | F12: 160 | G12: 189 | H12: 156 | I12: 54 | K12: Hvis antallet er under 5 er der ikke hentet et tal hjem fra forksningsmaskinen, men antallet er
A13: 9 | B13: Gladsaxe | C13: 48 | D13: 42 | E13: 65 | F13: 99 | G13: 117 | H13: 100 | I13: 45 | K13: beregnet ud fra den nationale andel i plejeboliger og det faktiske antal af beboere i kommunen
A14: 10 | B14: Glostrup | C14: 15 | D14: 14 | E14: 33 | F14: 30 | G14: 50 | H14: 26 | I14: 11
A15: 11 | B15: Herlev | C15: 23 | D15: 26 | E15: 38 | F15: 57 | G15: 68 | H15: 62 | I15: 20 | K15: Der er ikke faktiske tal fra:
A16: 5 | B16: Albertslund | C16: 1.9236 | D16: 8 | E16: 19 | F16: 33 | G16: 27 | H16: 18 | I16: 11.392 | K16: Vallendsbæk
A17: 12 | B17: Hvidovre | C17: 31 | D17: 27 | E17: 48 | F17: 68 | G17: 77 | H17: 64 | I17: 27 | K17: Ærø
A18: 13 | B18: Høje-Taastrup | C18: 21 | D18: 25 | E18: 42 | F18: 62 | G18: 57 | H18: 34 | I18: 12 | K18: Fanø
A19: 15 | B19: Lyngby-Taarbæk | C19: 32 | D19: 21 | E19: 72 | F19: 77 | G19: 100 | H19: 98 | I19: 62 | K19: Samsø
A20: 16 | B20: Rødovre | C20: 29 | D20: 21 | E20: 39 | F20: 58 | G20: 67 | H20: 53 | I20: 18 | K20: Læsø
A21: 14 | B21: Ishøj | C21: 12.9318 | D21: 25.597 | E21: 18 | F21: 24 | G21: 15 | H21: 13 | I21: 6.408
A22: 4 | B22: Tårnby | C22: 30 | D22: 36 | E22: 55 | F22: 65 | G22: 70 | H22: 47 | I22: 20
A23: 17 | B23: Vallensbæk | C23: =VLOOKUP($B23&C$2,Befolkningsfremskrivning!$A$4:$AE$795,5,FALSE)*(K$9/100) -> 10.7107 | D23: =VLOOKUP($B23&D$2,Befolkningsfremskrivning!$A$4:$AE$795,5,FALSE)*(L$9/100) -> 7.645 | E23: =VLOOKUP($B23&E$2,Befolkningsfremskrivning!$A$4:$AE$795,5,FALSE)*(M$9/100) -> 19.668 | F23: =VLOOKUP($B23&F$2,Befolkningsfremskrivning!$A$4:$AE$795,5,FALSE)*(N$9/100) -> 25.608 | G23: =VLOOKUP($B23&G$2,Befolkningsfremskrivning!$A$4:$AE$795,5,FALSE)*(O$9/100) -> 22.213 | H23: =VLOOKUP($B23&H$2,Befolkningsfremskrivning!$A$4:$AE$795,5,FALSE)*(P$9/100) -> 15.99 | I23: =VLOOKUP($B23&I$2,Befolkningsfremskrivning!$A$4:$AE$795,5,FALSE)*(Q$9/100) -> 6.052
A24: 22 | B24: Furesø | C24: 16 | D24: 19 | E24: 34 | F24: 62 | G24: 54 | H24: 42 | I24: 8
A25: 18 | B25: Allerød | C25: 13 | D25: 13 | E25: 27 | F25: 42 | G25: 48 | H25: 37 | I25: 14
A26: 20 | B26: Fredensborg | C26: 28 | D26: 25 | E26: 39 | F26: 49 | G26: 65 | H26: 50 | I26: 20
A27: 25 | B27: Helsingør | C27: 46 | D27: 38 | E27: 71 | F27: 100 | G27: 82 | H27: 82 | I27: 29
A28: 26 | B28: Hillerød | C28: 41 | D28: 30 | E28: 55 | F28: 75 | G28: 90 | H28: 70 | I28: 14
A29: 27 | B29: Hørsholm | C29: 18 | D29: 17 | E29: 32 | F29: 44 | G29: 48 | H29: 55 | I29: 14
A30: 28 | B30: Rudersdal | C30: 37 | D30: 26 | E30: 85 | F30: 93 | G30: 145 | H30: 152 | I30: 55
A31: 19 | B31: Egedal | C31: 10 | D31: 13 | E31: 24 | F31: 31 | G31: 43 | H31: 21 | I31: 6
A32: 21 | B32: Frederikssund | C32: 27 | D32: 22 | E32: 49 | F32: 59 | G32: 80 | H32: 63 | I32: 11
A33: 30 | B33: Greve | C33: 21 | D33: 23 | E33: 58 | F33: 59 | G33: 85 | H33: 50 | I33: 13
A34: 31 | B34: Køge | C34: 50 | D34: 30 | E34: 74 | F34: 80 | G34: 80 | H34: 57 | I34: 23
A35: 24 | B35: Halsnæs | C35: 18 | D35: 21 | E35: 52 | F35: 52 | G35: 47 | H35: 34 | I35: 10
A36: 33 | B36: Roskilde | C36: 40 | D36: 41 | E36: 92 | F36: 113 | G36: 135 | H36: 87 | I36: 32
A37: 34 | B37: Solrød | C37: 8 | D37: 15 | E37: 17 | F37: 33 | G37: 29 | H37: 24 | I37: 8
A38: 23 | B38: Gribskov | C38: 28 | D38: 36 | E38: 65 | F38: 79 | G38: 76 | H38: 65 | I38: 25
